Workbook

Sheet Model
A1: You must have macros enabled in order for the program to work. You may see the code through the VBA Editor.
A2: Program by Demetris Koutsoyiannis - Please report bugs to dk@itia.ntua.gr | H2: Version 0.6 | J2: 2019-10-23
A3: Linensed under Creative Commons - Attribution Alone (CC-BY)
A4: q | B4: 1024 | C4: The number of coefficients is 2q+1. If you change this number you must adapt the spreadsheet.
A5: Markov or not | B5: 0 | C5: Set 1 for Markov, any other number for FHK (Cauchy climacogram)
A6: H | B6: 0.8 | C6: Hurst parameter (0 <= H <= 1) | K6: Original | L6: Differenced
A7: M | B7: 0.7 | C7: Fractal (Mandelbrot) parameter (0 <= M <= 1) | J7: var | K7: =SUM((K$13:K$2061)^2) -> 0.995741615 | L7: =SUM(($K$14:$K$2061-$K$13:$K$2060)^2)+$K$13^2 -> 0.02730256148
A8: α | B8: 20 | C8: Time scale parameter | J8: m3 | K8: =SUM(($K$13:$K$2061)^3) -> 0.1809131208 | L8: =SUM(($K$14:$K$2061-$K$13:$K$2060)^3)+$K$13^3 -> 0.001682325422
A9: λ = γ(0) | B9: 1 | C9: State scale parameter | J9: skew | K9: =K8/K7^1.5 -> 0.1820748993 | L9: =L8/L7^1.5 -> 0.3729107619
A10: θ0 | B10: =1/16 -> 0.0625 | C10: (0 for summetric, 1/4 for antisymmetric) | G10: Fun-------> | H10: 0 | J10: skew ratio | L10: =L9/K9 -> 2.048117359
A12: κ, η | B12: γ(κ) | C12: cη | D12: ω | E12: s(ω) | H12: θ(ω) | J12: η | K12: aη | L12: cη convoluted
A13: =IF(B5=1,markov_(B4,B8/2,B9),FHK_Cauchy_(B4,B7,B6,B8,B9)) -> 0 | B13: 1 | C13: 0.9957311982 | D13: =FFTPowSpec_(C13:C1037) -> 0 | E13: 678.7005505 | H13: 0 | J13: =FFT_amaCoef_(E13:E1037,H13:H1037) -> -1024 | K13: 0.003248160307 | L13: =SUM($K$13:$K$2061*K13:K2061) -> 0.995741615 | M13: =K13 -> 0.003248160307
A14: 1 | B14: 0.9957311982 | C14: 0.9820849253 | D14: 0.00048828125 | E14: 192.5504243 | H14: =IF($H$10=1,RAND()/4,$B$10) -> 0.0625 | J14: -1023 | K14: 0.003379401485 | L14: =SUM($K$13:$K$2061*K14:K2062) -> 0.982085059 | M14: =K14-K13 -> 0.0001312411774
A15: 2 | B15: 0.9889080617 | C15: 0.9558070596 | D15: 0.0009765625 | E15: 113.6800236 | H15: =IF($H$10=1,RAND()/4,$B$10) -> 0.0625 | J15: -1022 | K15: 0.003420211592 | L15: =SUM($K$13:$K$2061*K15:K2063) -> 0.9557950833 | M15: =K15-K14 -> 4.081010722e-05
A16: 3 | B16: 0.9807941572 | C16: 0.9255524266 | D16: 0.00146484375 | E16: 93.34209542 | H16: 0.0625 | J16: -1021 | K16: 0.003413530167 | L16: =SUM($K$13:$K$2061*K16:K2064) -> 0.9255288429 | M16: -6.681425368e-06
A17: 4 | B17: 0.9718604648 | C17: 0.8936956952 | D17: 0.001953125 | E17: 75.4184916 | H17: 0.0625 | J17: -1020 | K17: 0.003434630455 | L17: =SUM($K$13:$K$2061*K17:K2065) -> 0.8936598316 | M17: 2.110028857e-05
A18: 5 | B18: 0.9623911539 | C18: 0.8615658501 | D18: 0.00244140625 | E18: 66.86872455 | H18: 0.0625 | J18: -1019 | K18: 0.003425423949 | L18: =SUM($K$13:$K$2061*K18:K2066) -> 0.8615181767 | M18: -9.206506267e-06
A19: 6 | B19: 0.9525811655 | C19: 0.8299831163 | D19: 0.0029296875 | E19: 58.25523587 | H19: 0.0625 | J19: -1018 | K19: 0.003437334677 | L19: =SUM($K$13:$K$2061*K19:K2067) -> 0.8299230428 | M19: 1.191072841e-05
A20: 7 | B20: 0.9425720674 | C20: 0.7994569296 | D20: 0.00341796875 | E20: 53.21210231 | H20: 0.0625 | J20: -1017 | K20: 0.00342947582 | L20: =SUM($K$13:$K$2061*K20:K2068) -> 0.7993849409 | M20: -7.858857142e-06
A21: 8 | B21: 0.9324696017 | C21: 0.7702915287 | D21: 0.00390625 | E21: 47.90650515 | H21: 0.0625 | J21: -1016 | K21: 0.003437312821 | L21: =SUM($K$13:$K$2061*K21:K2069) -> 0.7702070501 | M21: 7.837001195e-06
A22: 9 | B22: 0.9223538367 | C22: 0.7426519135 | D22: 0.00439453125 | E22: 44.44489152 | H22: 0.0625 | J22: -1015 | K22: 0.00343056028 | L22: =SUM($K$13:$K$2061*K22:K2070) -> 0.7425554381 | M22: -6.752541235e-06
A23: 10 | B23: 0.9122857086 | C23: 0.7166082252 | D23: 0.0048828125 | E23: 40.74157428 | H23: 0.0625 | J23: -1014 | K23: 0.003436273918 | L23: =SUM($K$13:$K$2061*K23:K2071) -> 0.7164991838 | M23: 5.713637415e-06
A24: 11 | B24: 0.9023115487 | C24: 0.6921666425 | D24: 0.00537109375 | E24: 38.15572584 | H24: 0.0625 | J24: -1013 | K24: 0.00343030714 | L24: =SUM($K$13:$K$2061*K24:K2072) -> 0.6920455326 | M24: -5.96677807e-06
A25: 12 | B25: 0.8924663696 | C25: 0.6692911815 | D25: 0.005859375 | E25: 35.37181697 | H25: 0.0625 | J25: -1012 | K25: 0.003434744426 | L25: =SUM($K$13:$K$2061*K25:K2073) -> 0.6691574367 | M25: 4.437286786e-06
A26: 13 | B26: 0.8827763278 | C26: 0.6479191154 | D26: 0.00634765625 | E26: 33.33550694 | H26: 0.0625 | J26: -1011 | K26: 0.003429338409 | L26: =SUM($K$13:$K$2061*K26:K2074) -> 0.6477732361 | M26: -5.406017197e-06
A27: 14 | B27: 0.8732606113 | C27: 0.6279718324 | D27: 0.0068359375 | E27: 31.13953153 | H27: 0.0625 | J27: -1010 | K27: 0.003432928171 | L27: =SUM($K$13:$K$2061*K27:K2075) -> 0.6278132544 | M27: 3.589762058e-06
A28: 15 | B28: 0.8639329062 | C28: 0.6093624078 | D28: 0.00732421875 | E28: 29.47842754 | H28: 0.0625 | J28: -1009 | K28: 0.00342793126 | L28: =SUM($K$13:$K$2061*K28:K2076) -> 0.6091916335 | M28: -4.996910912e-06
A29: 16 | B29: 0.85480255 | C29: 0.5920008072 | D29: 0.0078125 | E29: 27.68782906 | H29: 0.0625 | J29: -1008 | K29: 0.003430920233 | L29: =SUM($K$13:$K$2061*K29:K2077) -> 0.5918172736 | M29: 2.988973154e-06
A30: 17 | B30: 0.845875444 | C30: 0.5757973857 | D30: 0.00830078125 | E30: 26.29885694 | H30: 0.0625 | J30: -1007 | K30: 0.003426228594 | L30: =SUM($K$13:$K$2061*K30:K2078) -> 0.5756015969 | M30: -4.691639466e-06
A31: 18 | B31: 0.8371547796 | C31: 0.5606651706 | D31: 0.0087890625 | E31: 24.80358592 | H31: 0.0625 | J31: -1006 | K31: 0.003428772504 | L31: =SUM($K$13:$K$2061*K31:K2079) -> 0.5604565648 | M31: 2.543910197e-06
A32: 19 | B32: 0.8286416183 | C32: 0.5465212781 | D32: 0.00927734375 | E32: 23.6210368 | H32: 0.0625 | J32: -1005 | K32: 0.003424313744 | L32: =SUM($K$13:$K$2061*K32:K2080) -> 0.5463003608 | M32: -4.458760544e-06
A33: 20 | B33: 0.820335356 | C33: 0.533287725 | D33: 0.009765625 | E33: 22.35005612 | H33: 0.0625 | J33: -1004 | K33: 0.003426518502 | L33: =SUM($K$13:$K$2061*K33:K2081) -> 0.5330539354 | M33: 2.204758275e-06
A34: 21 | B34: 0.8122340953 | C34: 0.5208918186 | D34: 0.01025390625 | E34: 21.32951702 | H34: 0.0625 | J34: -1003 | K34: 0.003422239528 | L34: =SUM($K$13:$K$2061*K34:K2082) -> 0.520645663 | M34: -4.27897397e-06
A35: 22 | B35: 0.8043349448 | C35: 0.5092662615 | D35: 0.0107421875 | E35: 20.2344396 | H35: 0.0625 | J35: -1002 | K35: 0.003424180787 | L35: =SUM($K$13:$K$2061*K35:K2083) -> 0.5090071802 | M35: 1.941259481e-06
A36: 23 | B36: 0.7966342592 | C36: 0.498349067 | D36: 0.01123046875 | E36: 19.344455 | H36: 0.0625 | J36: -1001 | K36: 0.003420042896 | L36: =SUM($K$13:$K$2061*K36:K2084) -> 0.4980775672 | M36: -4.137891061e-06
A37: 24 | B37: 0.7891278316 | C37: 0.4880833527 | D37: 0.01171875 | E37: 18.3908623 | H37: 0.0625 | J37: -1000 | K37: 0.003421775553 | L37: =SUM($K$13:$K$2061*K37:K2085) -> 0.4877988753 | M37: 1.732656316e-06
A38: 25 | B38: 0.781811049 | C38: 0.478417062 | D38: 0.01220703125 | E38: 17.60829042 | H38: 0.0625 | J38: -999 | K38: 0.00341774918 | L38: =SUM($K$13:$K$2061*K38:K2086) -> 0.4781201151 | M38: -4.026372768e-06
A39: 26 | B39: 0.7746790154 | C39: 0.4693026461 | D39: 0.0126953125 | E39: 16.77081423 | H39: 0.0625 | J39: -998 | K39: 0.003419315849 | L39: =SUM($K$13:$K$2061*K39:K2087) -> 0.4689926712 | M39: 1.566668806e-06
A40: 27 | B40: 0.7677266508 | C40: 0.46069673 | D40: 0.01318359375 | E40: 16.07808839 | H40: 0.0625 | J40: -997 | K40: 0.003415377619 | L40: =SUM($K$13:$K$2061*K40:K2088) -> 0.4603742359 | M40: -3.938230135e-06
A41: 28 | B41: 0.7609487704 | C41: 0.4525597782 | D41: 0.013671875 | E41: 15.33747139 | H41: 0.0625 | J41: -996 | K41: 0.003416810979 | L41: =SUM($K$13:$K$2061*K41:K2089) -> 0.4522242069 | M41: 1.433360787e-06
A42: 29 | B42: 0.7543401463 | C42: 0.4448557689 | D42: 0.01416015625 | E42: 14.72090614 | H42: 0.0625 | J42: -995 | K42: 0.003412942511 | L42: =SUM($K$13:$K$2061*K42:K2090) -> 0.4445076299 | M42: -3.868468624e-06
A43: 30 | B43: 0.7478955574 | C43: 0.4375518852 | D43: 0.0146484375 | E43: 14.06216448 | H43: 0.0625 | J43: -994 | K43: 0.003414268681 | L43: =SUM($K$13:$K$2061*K43:K2091) -> 0.4371906211 | M43: 1.32617041e-06
A44: 31 | B44: 0.7416098273 | C44: 0.4306182243 | D44: 0.01513671875 | E44: 13.51086447 | H44: 0.0625 | J44: -993 | K44: 0.003410455099 | L44: =SUM($K$13:$K$2061*K44:K2092) -> 0.430244345 | M44: -3.813582112e-06
A45: 32 | B45: 0.7354778543 | C45: 0.4240275288 | D45: 0.015625 | E45: 12.92209454 | H45: 0.0625 | J45: -992 | K45: 0.003411694588 | L45: =SUM($K$13:$K$2061*K45:K2093) -> 0.4236404774 | M45: 1.239488757e-06
A46: 33 | B46: 0.7294946342 | C46: 0.4177549386 | D46: 0.01611328125 | E46: 12.42722664 | H46: 0.0625 | J46: -991 | K46: 0.003407924551 | L46: =SUM($K$13:$K$2061*K46:K2094) -> 0.4173552255 | M46: -3.770036911e-06
A47: 34 | B47: 0.7236552772 | C47: 0.4117777647 | D47: 0.0166015625 | E47: 11.89880395 | H47: 0.0625 | J47: -990 | K47: 0.003409093835 | L47: =SUM($K$13:$K$2061*K47:K2095) -> 0.4113648334 | M47: 1.16928439e-06
A48: 35 | B48: 0.7179550202 | C48: 0.4060752829 | D48: 0.01708984375 | E48: 11.45309653 | H48: 0.0625 | J48: -989 | K48: 0.003405357037 | L48: =SUM($K$13:$K$2061*K48:K2096) -> 0.4056496442 | M48: -3.736798197e-06
A49: 36 | B49: 0.7123892358 | C49: 0.400628547 | D49: 0.017578125 | E49: 10.97712201 | H49: 0.0625 | J49: -988 | K49: 0.003406470821 | L49: =SUM($K$13:$K$2061*K49:K2097) -> 0.4001896448 | M49: 1.113783802e-06
A50: 37 | B50: 0.7069534379 | C50: 0.3954202191 | D50: 0.01806640625 | E50: 10.57451093 | H50: 0.0625 | J50: -987 | K50: 0.003402758168 | L50: =SUM($K$13:$K$2061*K50:K2098) -> 0.3949685646 | M50: -3.712652709e-06
A51: 38 | B51: 0.7016432853 | C51: 0.3904344174 | D51: 0.0185546875 | E51: 10.14441826 | H51: 0.0625 | J51: -986 | K51: 0.003403828823 | L51: =SUM($K$13:$K$2061*K51:K2099) -> 0.3899694549 | M51: 1.070655257e-06
A52: 39 | B52: 0.6964545826 | C52: 0.3856565782 | D52: 0.01904296875 | E52: 9.779790477 | H52: 0.0625 | J52: -985 | K52: 0.003400132999 | L52: =SUM($K$13:$K$2061*K52:K2100) -> 0.3851788194 | M52: -3.695824676e-06
A53: 40 | B53: 0.6913832809 | C53: 0.381073332 | D53: 0.01953125 | E53: 9.390061041 | H53: 0.0625 | J53: -984 | K53: 0.003401170198 | L53: =SUM($K$13:$K$2061*K53:K2101) -> 0.3805822214 | M53: 1.037198842e-06
A54: 41 | B54: 0.6864254762 | C54: 0.3766723914 | D54: 0.02001953125 | E54: 9.059064818 | H54: 0.0625 | J54: -983 | K54: 0.003397485241 | L54: =SUM($K$13:$K$2061*K54:K2102) -> 0.376168441 | M54: -3.684956951e-06
A55: 42 | B55: 0.6815774072 | C55: 0.3724424513 | D55: 0.0205078125 | E55: 8.705016568 | H55: 0.0625 | J55: -982 | K55: 0.003398497769 | L55: =SUM($K$13:$K$2061*K55:K2103) -> 0.3719251058 | M55: 1.012527972e-06
A56: 43 | B56: 0.6768354527 | C56: 0.3683730975 | D56: 0.02099609375 | E56: 8.403918191 | H56: 0.0625 | J56: -981 | K56: 0.00339481787 | L56: =SUM($K$13:$K$2061*K56:K2104) -> 0.3678428694 | M56: -3.679898374e-06
A57: 44 | B57: 0.6721961281 | C57: 0.3644547263 | D57: 0.021484375 | E57: 8.081546227 | H57: 0.0625 | J57: -980 | K57: 0.003395813018 | L57: =SUM($K$13:$K$2061*K57:K2105) -> 0.3639110605 | M57: 9.951475697e-07
A58: 45 | B58: 0.6676560817 | C58: 0.3606784703 | D58: 0.02197265625 | E58: 7.807119929 | H58: 0.0625 | J58: -979 | K58: 0.003392134467 | L58: =SUM($K$13:$K$2061*K58:K2106) -> 0.3601218795 | M58: -3.678550808e-06
A59: 46 | B59: 0.6632120906 | C59: 0.357036133 | D59: 0.0224609375 | E59: 7.512974143 | H59: 0.0625 | J59: -978 | K59: 0.003393117776 | L59: =SUM($K$13:$K$2061*K59:K2107) -> 0.3564660626 | M59: 9.833089738e-07
A60: 47 | B60: 0.6588610567 | C60: 0.3535201291 | D60: 0.02294921875 | E60: 7.262416171 | H60: 0.0625 | J60: -977 | K60: 0.003389436466 | L60: =SUM($K$13:$K$2061*K60:K2108) -> 0.3529370919 | M60: -3.681310396e-06
A61: 48 | B61: 0.6546000022 | C61: 0.3501234308 | D61: 0.0234375 | E61: 6.99350586 | H61: 0.0625 | J61: -976 | K61: 0.003390413877 | L61: =SUM($K$13:$K$2061*K61:K2109) -> 0.3495268726 | M61: 9.774113419e-07
A62: 49 | B62: 0.6504260653 | C62: 0.3468395198 | D62: 0.02392578125 | E62: 6.764366434 | H62: 0.0625 | J62: -975 | K62: 0.003386726076 | L62: =SUM($K$13:$K$2061*K62:K2110) -> 0.3462299535 | M62: -3.687800564e-06
A63: 50 | B63: 0.6463364958 | C63: 0.3436623428 | D63: 0.0244140625 | E63: 6.518084943 | H63: 0.0625 | J63: -974 | K63: 0.003387702632 | L63: =SUM($K$13:$K$2061*K63:K2111) -> 0.3430392144 | M63: 9.765552137e-07
A64: 51 | B64: 0.6423286509 | C64: 0.3405862727 | D64: 0.02490234375 | E64: 6.308213668 | H64: 0.0625 | J64: -973 | K64: 0.003384004775 | L64: =SUM($K$13:$K$2061*K64:K2112) -> 0.3399500955 | M64: -3.697856411e-06
A65: 52 | B65: 0.6383999907 | C65: 0.3376060729 | D65: 0.025390625 | E65: 6.082278089 | H65: 0.0625 | J65: -972 | K65: 0.003384985135 | L65: =SUM($K$13:$K$2061*K65:K2113) -> 0.336956293 | M65: 9.803602187e-07
A66: 53 | B66: 0.6345480744 | C66: 0.3347168644 | D66: 0.02587890625 | E66: 5.889779664 | H66: 0.0625 | J66: -971 | K66: 0.00338127469 | L66: =SUM($K$13:$K$2061*K66:K2114) -> 0.3340539953 | M66: -3.710444892e-06
A67: 54 | B67: 0.6307705558 | C67: 0.3319140969 | D67: 0.0263671875 | E67: 5.682182034 | H67: 0.0625 | J67: -970 | K67: 0.003382261953 | L67: =SUM($K$13:$K$2061*K67:K2115) -> 0.3312375849 | M67: 9.872622971e-07
A68: 55 | B68: 0.6270651798 | C68: 0.329193522 | D68: 0.02685546875 | E68: 5.505379933 | H68: 0.0625 | J68: -969 | K68: 0.003378536694 | L68: =SUM($K$13:$K$2061*K68:K2116) -> 0.3285038809 | M68: -3.725258417e-06
A69: 56 | B69: 0.6234297781 | C69: 0.3265511694 | D69: 0.02734375 | E69: 5.314347355 | H69: 0.0625 | J69: -968 | K69: 0.003379534774 | L69: =SUM($K$13:$K$2061*K69:K2117) -> 0.3258478457 | M69: 9.980795759e-07
A70: 57 | B70: 0.6198622657 | C70: 0.3239833246 | D70: 0.02783203125 | E70: 5.15175376 | H70: 0.0625 | J70: -967 | K70: 0.003375791793 | L70: =SUM($K$13:$K$2061*K70:K2118) -> 0.3232668321 | M70: -3.742981297e-06
A71: 58 | B71: 0.6163606378 | C71: 0.3214865089 | D71: 0.0283203125 | E71: 4.975715489 | H71: 0.0625 | J71: -966 | K71: 0.003376803778 | L71: =SUM($K$13:$K$2061*K71:K2119) -> 0.3207562946 | M71: 1.011985043e-06
A72: 59 | B72: 0.6129229654 | C72: 0.3190574618 | D72: 0.02880859375 | E72: 4.826006203 | H72: 0.0625 | J72: -965 | K72: 0.003373041496 | L72: =SUM($K$13:$K$2061*K72:K2120) -> 0.3183140394 | M72: -3.762281411e-06
A73: 60 | B73: 0.6095473929 | C73: 0.3166931234 | D73: 0.029296875 | E73: 4.663566268 | H73: 0.0625 | J73: -964 | K73: 0.003374069877 | L73: =SUM($K$13:$K$2061*K73:K2121) -> 0.3159359402 | M73: 1.028380609e-06
A74: 61 | B74: 0.6062321346 | C74: 0.3143906205 | D74: 0.02978515625 | E74: 4.525559603 | H74: 0.0625 | J74: -963 | K74: 0.00337028666 | L74: =SUM($K$13:$K$2061*K74:K2122) -> 0.3136201905 | M74: -3.783217273e-06
A75: 62 | B75: 0.6029754715 | C75: 0.3121472519 | D75: 0.0302734375 | E75: 4.375473857 | H75: 0.0625 | J75: -962 | K75: 0.003371333298 | L75: =SUM($K$13:$K$2061*K75:K2123) -> 0.3113630222 | M75: 1.046638686e-06
A76: 63 | B76: 0.5997757486 | C76: 0.3099604758 | D76: 0.03076171875 | E76: 4.248112769 | H76: 0.0625 | J76: -961 | K76: 0.003367528033 | L76: =SUM($K$13:$K$2061*K76:K2124) -> 0.3091629609 | M76: -3.80526551e-06
A77: 64 | B77: 0.5966313724 | C77: 0.307827899 | D77: 0.03125 | E77: 4.109269516 | H77: 0.0625 | J77: -960 | K77: 0.003368595384 | L77: =SUM($K$13:$K$2061*K77:K2125) -> 0.3070165461 | M77: 1.067350962e-06
A78: 65 | B78: 0.5935408076 | C78: 0.3057472655 | D78: 0.03173828125 | E78: 3.991606371 | H78: 0.0625 | J78: -959 | K78: 0.003364765839 | L78: =SUM($K$13:$K$2061*K78:K2126) -> 0.304922589 | M78: -3.829544392e-06
A79: 66 | B79: 0.5905025751 | C79: 0.303716447 | D79: 0.0322265625 | E79: 3.863009924 | H79: =IF($H$10=1,RAND()/4,$B$10) -> 0.0625 | J79: -958 | K79: 0.00336585666 | L79: =SUM($K$13:$K$2061*K79:K2127) -> 0.3028778945 | M79: =K79-K78 -> 1.09082022e-06
A80: 67 | B80: 0.5875152496 | C80: 0.3017334342 | D80: 0.03271484375 | E80: 3.754193453 | H80: 0.0625 | J80: -957 | K80: 0.003362001144 | L80: =SUM($K$13:$K$2061*K80:K2128) -> 0.3008815203 | M80: -3.855515303e-06
A81: 68 | B81: 0.5845774569 | C81: 0.2997963286 | D81: 0.033203125 | E81: 3.634950079 | H81: 0.0625 | J81: -956 | K81: 0.003363116989 | L81: =SUM($K$13:$K$2061*K81:K2129) -> 0.2989305009 | M81: 1.115844934e-06
A82: 69 | B82: 0.5816878719 | C82: 0.2979033347 | D82: 0.03369140625 | E82: 3.534214145 | H82: 0.0625 | J82: -955 | K82: 0.003359234805 | L82: =SUM($K$13:$K$2061*K82:K2130) -> 0.2970241078 | M82: -3.882184669e-06
A83: 70 | B83: 0.5788452169 | C83: 0.2960527531 | D83: 0.0341796875 | E83: 3.423520009 | H83: 0.0625 | J83: -954 | K83: 0.003360377094 | L83: =SUM($K$13:$K$2061*K83:K2131) -> 0.295159575 | M83: 1.142289275e-06
A84: 71 | B84: 0.5760482588 | C84: 0.2942429745 | D84: 0.03466796875 | E84: 3.33017389 | H84: 0.0625 | J84: -953 | K84: 0.003356466857 | L84: =SUM($K$13:$K$2061*K84:K2132) -> 0.2933363599 | M84: -3.910236686e-06
A85: 72 | B85: 0.5732958079 | C85: 0.2924724733 | D85: 0.03515625 | E85: 3.22730465 | H85: 0.0625 | J85: -952 | K85: 0.003357637848 | L85: =SUM($K$13:$K$2061*K85:K2133) -> 0.2915518703 | M85: 1.170991085e-06
A86: 73 | B86: 0.5705867159 | C86: 0.2907398026 | D86: 0.03564453125 | E86: 3.140724608 | H86: 0.0625 | J86: -951 | K86: 0.003353697878 | L86: =SUM($K$13:$K$2061*K86:K2134) -> 0.2898057259 | M86: -3.93997048e-06
A87: 74 | B87: 0.5679198739 | C87: 0.2890435887 | D87: 0.0361328125 | E87: 3.045026406 | H87: 0.0625 | J87: -950 | K87: 0.003354898826 | L87: =SUM($K$13:$K$2061*K87:K2135) -> 0.2880954866 | M87: 1.200948082e-06
A88: 75 | B88: 0.565294211 | C88: 0.287382527 | D88: 0.03662109375 | E88: 2.964648322 | H88: 0.0625 | J88: -949 | K88: 0.003350929068 | L88: =SUM($K$13:$K$2061*K88:K2136) -> 0.2864209144 | M88: -3.969757801e-06
A89: 76 | B89: 0.5627086928 | C89: 0.2857553772 | D89: 0.037109375 | E89: 2.875529957 | H89: 0.0625 | J89: -948 | K89: 0.003352160341 | L89: =SUM($K$13:$K$2061*K89:K2137) -> 0.2847797024 | M89: 1.231272986e-06
A90: 77 | B90: 0.5601623196 | C90: 0.2841609596 | D90: 0.03759765625 | E90: 2.800842903 | H90: 0.0625 | J90: -947 | K90: 0.003348160208 | L90: =SUM($K$13:$K$2061*K90:K2138) -> 0.2831717376 | M90: -4.000132615e-06
A91: 78 | B91: 0.5576541253 | C91: 0.2825981514 | D91: 0.0380859375 | E91: 2.717768994 | H91: 0.0625 | J91: -946 | K91: 0.00334942356 | L91: =SUM($K$13:$K$2061*K91:K2139) -> 0.2815948307 | M91: 1.263351865e-06
A92: 79 | B92: 0.5551831757 | C92: 0.2810658831 | D92: 0.03857421875 | E92: 2.64830958 | H92: 0.0625 | J92: -945 | K92: 0.003345391232 | L92: =SUM($K$13:$K$2061*K92:K2140) -> 0.2800489789 | M92: -4.032328053e-06
A93: 80 | B93: 0.5527485677 | C93: 0.2795631356 | D93: 0.0390625 | E93: 2.570794587 | H93: 0.0625 | J93: -944 | K93: 0.00334668862 | L93: =SUM($K$13:$K$2061*K93:K2141) -> 0.2785320963 | M93: 1.297387362e-06
A94: 81 | B94: 0.5503494273 | C94: 0.2780889367 | D94: 0.03955078125 | E94: 2.506142001 | H94: 0.0625 | J94: -943 | K94: 0.003342623156 | L94: =SUM($K$13:$K$2061*K94:K2142) -> 0.2770442776 | M94: -4.065463816e-06
A95: 82 | B95: 0.5479849093 | C95: 0.2766423592 | D95: 0.0400390625 | E95: 2.433744963 | H95: 0.0625 | J95: -942 | K95: 0.003343954932 | L95: =SUM($K$13:$K$2061*K95:K2143) -> 0.2755835289 | M95: 1.331776057e-06
A96: 83 | B96: 0.5456541955 | C96: 0.2752225173 | D96: 0.04052734375 | E96: 2.373516585 | H96: 0.0625 | J96: -941 | K96: 0.003339856519 | L96: =SUM($K$13:$K$2061*K96:K2144) -> 0.2741500313 | M96: -4.098412693e-06
A97: 84 | B97: 0.5433564937 | C97: 0.2738285653 | D97: 0.041015625 | E97: 2.305836505 | H97: 0.0625 | J97: -940 | K97: 0.00334122334 | L97: =SUM($K$13:$K$2061*K97:K2145) -> 0.2727418722 | M97: 1.36682078e-06
A98: 85 | B98: 0.5410910372 | C98: 0.2724596944 | D98: 0.04150390625 | E98: 2.24968403 | H98: 0.0625 | J98: -939 | K98: 0.003337091112 | L98: =SUM($K$13:$K$2061*K98:K2146) -> 0.2713593096 | M98: -4.132227414e-06
A99: 86 | B99: 0.5388570833 | C99: 0.2711151312 | D99: 0.0419921875 | E99: 2.186355782 | H99: 0.0625 | J99: -938 | K99: 0.003338494015 | L99: =SUM($K$13:$K$2061*K99:K2147) -> 0.2700005037 | M99: 1.402902074e-06
A100: 87 | B100: 0.5366539123 | C100: 0.2697941357 | D100: 0.04248046875 | E100: 2.133961789 | H100: 0.0625 | J100: -937 | K100: 0.00333432755 | L100: =SUM($K$13:$K$2061*K100:K2148) -> 0.2686657809 | M100: -4.166464753e-06
A101: 88 | B101: 0.534480827 | C101: 0.2684959994 | D101: 0.04296875 | E101: 2.074652511 | H101: 0.0625 | J101: -936 | K101: 0.003335767279 | L101: =SUM($K$13:$K$2061*K101:K2149) -> 0.2673533662 | M101: 1.439729264e-06
A102: 89 | B102: 0.5323371517 | C102: 0.2672200434 | D102: 0.04345703125 | E102: 2.025727407 | H102: 0.0625 | J102: -935 | K102: 0.003331565543 | L102: =SUM($K$13:$K$2061*K102:K2150) -> 0.2660636474 | M102: -4.201736375e-06
A103: 90 | B103: 0.5302222312 | C103: 0.2659656171 | D103: 0.0439453125 | E103: 1.970133293 | H103: 0.0625 | J103: -934 | K103: 0.003333043451 | L103: =SUM($K$13:$K$2061*K103:K2151) -> 0.2647949075 | M103: 1.477908e-06
A104: 91 | B104: 0.5281354303 | C104: 0.2647320968 | D104: 0.04443359375 | E104: 1.924412596 | H104: 0.0625 | J104: -933 | K104: 0.003328805644 | L104: =SUM($K$13:$K$2061*K104:K2152) -> 0.2635475891 | M104: -4.237806838e-06
A105: 92 | B105: 0.5260761328 | C105: 0.263518884 | D105: 0.044921875 | E105: 1.872256054 | H105: 0.0625 | J105: -932 | K105: 0.003330322723 | L105: =SUM($K$13:$K$2061*K105:K2153) -> 0.2623200274 | M105: 1.517079313e-06
A106: 93 | B106: 0.524043741 | C106: 0.2623254041 | D106: 0.04541015625 | E106: 1.829497973 | H106: 0.0625 | J106: -931 | K106: 0.003326048167 | L106: =SUM($K$13:$K$2061*K106:K2154) -> 0.2611127142 | M106: -4.27455631e-06
A107: 94 | B107: 0.5220376748 | C107: 0.2611511056 | D107: 0.0458984375 | E107: 1.780525085 | H107: 0.0625 | J107: -930 | K107: 0.00332760459 | L107: =SUM($K$13:$K$2061*K107:K2155) -> 0.2599240318 | M107: 1.556423198e-06
A108: 95 | B108: 0.5200573712 | C108: 0.2599954585 | D108: 0.04638671875 | E108: 1.740508359 | H108: 0.0625 | J108: -929 | K108: 0.003323293729 | L108: =SUM($K$13:$K$2061*K108:K2156) -> 0.2587545163 | M108: -4.310860736e-06
A109: 96 | B109: 0.5181022837 | C109: 0.2588579533 | D109: 0.046875 | E109: 1.694486617 | H109: 0.0625 | J109: -928 | K109: 0.003324889686 | L109: =SUM($K$13:$K$2061*K109:K2157) -> 0.2576025923 | M109: 1.595956795e-06
A110: 97 | B110: 0.5161718816 | C110: 0.2577381001 | D110: 0.04736328125 | E110: 1.657008581 | H110: 0.0625 | J110: -927 | K110: 0.003320541808 | L110: =SUM($K$13:$K$2061*K110:K2158) -> 0.2564688359 | M110: -4.347877931e-06
A111: 98 | B111: 0.5142656495 | C111: 0.2566354277 | D111: 0.0478515625 | E111: 1.613724866 | H111: 0.0625 | J111: -926 | K111: 0.003322178622 | L111: =SUM($K$13:$K$2061*K111:K2159) -> 0.25535171 | M111: 1.636814285e-06
A112: 99 | B112: 0.5123830866 | C112: 0.2555494826 | D112: 0.04833984375 | E112: 1.578599716 | H112: 0.0625 | J112: -925 | K112: 0.003317792659 | L112: =SUM($K$13:$K$2061*K112:K2160) -> 0.254251827 | M112: -4.385963248e-06
A113: 100 | B113: 0.5105237065 | C113: 0.2544798281 | D113: 0.048828125 | E113: 1.537858495 | H113: 0.0625 | J113: -924 | K113: 0.003319471059 | L113: =SUM($K$13:$K$2061*K113:K2161) -> 0.2531676842 | M113: 1.678399411e-06
A114: 101 | B114: 0.5086870364 | C114: 0.2534260434 | D114: 0.04931640625 | E114: 1.504915731 | H114: 0.0625 | J114: -923 | K114: 0.003315046775 | L114: =SUM($K$13:$K$2061*K114:K2162) -> 0.252099927 | M114: -4.424283302e-06
A115: 102 | B115: 0.5068726167 | C115: 0.2523877233 | D115: 0.0498046875 | E115: 1.466537431 | H115: 0.0625 | J115: -922 | K115: 0.003316767116 | L115: =SUM($K$13:$K$2061*K115:K2163) -> 0.2510470841 | M115: 1.720341059e-06
A116: 103 | B116: 0.5050800004 | C116: 0.251364477 | D116: 0.05029296875 | E116: 1.435620461 | H116: 0.0625 | J116: -921 | K116: 0.00331230438 | L116: =SUM($K$13:$K$2061*K116:K2164) -> 0.2500098308 | M116: -4.462736064e-06
A117: 104 | B117: 0.5033087531 | C117: 0.2503559276 | D117: 0.05078125 | E117: 1.399440009 | H117: 0.0625 | J117: -920 | K117: 0.003314066886 | L117: =SUM($K$13:$K$2061*K117:K2165) -> 0.2489867244 | M117: 1.762505282e-06
A118: 105 | B118: 0.5015584522 | C118: 0.2493617117 | D118: 0.05126953125 | E118: 1.370404897 | H118: 0.0625 | J118: -919 | K118: 0.003309565392 | L118: =SUM($K$13:$K$2061*K118:K2166) -> 0.2479784672 | M118: -4.501493728e-06
A119: 106 | B119: 0.4998286864 | C119: 0.2483814784 | D119: 0.0517578125 | E119: 1.33627042 | H119: 0.0625 | J119: -918 | K119: 0.003311371058 | L119: =SUM($K$13:$K$2061*K119:K2167) -> 0.2469836425 | M119: 1.805666411e-06
A120: 107 | B120: 0.4981190556 | C120: 0.2474148889 | D120: 0.05224609375 | E120: 1.308984746 | H120: 0.0625 | J120: -917 | K120: 0.003306829513 | L120: =SUM($K$13:$K$2061*K120:K2168) -> 0.2460029774 | M120: -4.541545425e-06
A121: 108 | B121: 0.4964291706 | C121: 0.2464616162 | D121: 0.052734375 | E121: 1.276756383 | H121: 0.0625 | J121: -916 | K121: 0.003308679328 | L121: =SUM($K$13:$K$2061*K121:K2169) -> 0.2450350792 | M121: 1.849814791e-06
A122: 109 | B122: 0.4947586522 | C122: 0.2455213441 | D122: 0.05322265625 | E122: 1.251098232 | H122: 0.0625 | J122: -915 | K122: 0.003304097899 | L122: =SUM($K$13:$K$2061*K122:K2170) -> 0.2440806973 | M122: -4.581429007e-06
A123: 110 | B123: 0.4931071314 | C123: 0.2445937671 | D123: 0.0537109375 | E123: 1.220647078 | H123: 0.0625 | J123: -914 | K123: 0.003305991512 | L123: =SUM($K$13:$K$2061*K123:K2171) -> 0.2431384608 | M123: 1.893613489e-06
A124: 111 | B124: 0.4914742489 | C124: 0.24367859 | D124: 0.05419921875 | E124: 1.196504109 | H124: 0.0625 | J124: -913 | K124: 0.003301370152 | L124: =SUM($K$13:$K$2061*K124:K2172) -> 0.24220914 | M124: -4.621360444e-06
A125: 112 | B125: 0.4898596548 | C125: 0.2427755271 | D125: 0.0546875 | E125: 1.167711256 | H125: 0.0625 | J125: -912 | K125: 0.00330330791 | L125: =SUM($K$13:$K$2061*K125:K2173) -> 0.2412913836 | M125: 1.937758337e-06
A126: 113 | B126: 0.488263008 | C126: 0.2418843021 | D126: 0.05517578125 | E126: 1.144979876 | H126: 0.0625 | J126: -911 | K126: 0.003298646665 | L126: =SUM($K$13:$K$2061*K126:K2174) -> 0.2403859809 | M126: -4.661245126e-06
A127: 114 | B127: 0.4866839763 | C127: 0.2410046476 | D127: 0.0556640625 | E127: 1.117735543 | H127: 0.0625 | J127: -910 | K127: 0.003300628778 | L127: =SUM($K$13:$K$2061*K127:K2175) -> 0.2394915991 | M127: 1.982112963e-06
A128: 115 | B128: 0.4851222362 | C128: 0.2401363048 | D128: 0.05615234375 | E128: 1.096320148 | H128: 0.0625 | J128: -909 | K128: 0.003295926896 | L128: =SUM($K$13:$K$2061*K128:K2176) -> 0.2386090448 | M128: -4.701881406e-06
A129: 116 | B129: 0.483577472 | C129: 0.239279023 | D129: 0.056640625 | E129: 1.070522907 | H129: 0.0625 | J129: -908 | K129: 0.003297954584 | L129: =SUM($K$13:$K$2061*K129:K2177) -> 0.2377370019 | M129: 2.027687379e-06
A130: 117 | B130: 0.4820493762 | C130: 0.2384325593 | D130: 0.05712890625 | E130: 1.050335203 | H130: 0.0625 | J130: -907 | K130: 0.003293211349 | L130: =SUM($K$13:$K$2061*K130:K2178) -> 0.236876293 | M130: -4.743234673e-06
A131: 118 | B131: 0.480537649 | C131: 0.2375966786 | D131: 0.0576171875 | E131: 1.025891261 | H131: 0.0625 | J131: -906 | K131: 0.003295284836 | L131: =SUM($K$13:$K$2061*K131:K2179) -> 0.2360256175 | M131: 2.073486757e-06
A132: 119 | B132: 0.4790419978 | C132: 0.2367711527 | D132: 0.05810546875 | E132: 1.006849642 | H132: 0.0625 | J132: -905 | K132: 0.003290500141 | L132: =SUM($K$13:$K$2061*K132:K2180) -> 0.2351858127 | M132: -4.784694708e-06
A133: 120 | B133: 0.4775621375 | C133: 0.2359557607 | D133: 0.05859375 | E133: 0.9836722021 | H133: 0.0625 | J133: -904 | K133: 0.003292619817 | L133: =SUM($K$13:$K$2061*K133:K2181) -> 0.2343555923 | M133: 2.119675925e-06
A134: 121 | B134: 0.4760977897 | C134: 0.2351502881 | D134: 0.05908203125 | E134: 0.9657011975 | H134: 0.0625 | J134: -903 | K134: 0.003287793552 | L134: =SUM($K$13:$K$2061*K134:K2182) -> 0.2335358073 | M134: -4.826265142e-06
A135: 122 | B135: 0.4746486832 | C135: 0.234354527 | D135: 0.0595703125 | E135: 0.94370987 | H135: 0.0625 | J135: -902 | K135: 0.003289959353 | L135: =SUM($K$13:$K$2061*K135:K2183) -> 0.2327251844 | M135: 2.165801156e-06
A136: 123 | B136: 0.4732145528 | C136: 0.2335682757 | D136: 0.06005859375 | E136: 0.9267396261 | H136: 0.0625 | J136: -901 | K136: 0.003285091776 | L136: =SUM($K$13:$K$2061*K136:K2184) -> 0.231924587 | M136: -4.867576696e-06
A137: 124 | B137: 0.4717951402 | C137: 0.2327913382 | D137: 0.060546875 | E137: 0.9058599095 | H137: 0.0625 | J137: -900 | K137: 0.003287303683 | L137: =SUM($K$13:$K$2061*K137:K2185) -> 0.2311327542 | M137: 2.211906201e-06
A138: 125 | B138: 0.470390193 | C138: 0.2320235244 | D138: 0.06103515625 | E138: 0.8898257259 | H138: 0.0625 | J138: -899 | K138: 0.003282394435 | L138: =SUM($K$13:$K$2061*K138:K2186) -> 0.230350561 | M138: -4.909247803e-06
A139: 126 | B139: 0.4689994647 | C139: 0.2312646497 | D139: 0.0615234375 | E139: 0.8699885171 | H139: 0.0625 | J139: -898 | K139: 0.003284653258 | L139: =SUM($K$13:$K$2061*K139:K2187) -> 0.2295767577 | M139: 2.258822736e-06
A140: 127 | B140: 0.4676227148 | C140: 0.2305145348 | D140: 0.06201171875 | E140: 0.8548304309 | H140: 0.0625 | J140: -897 | K140: 0.00327970159 | L140: =SUM($K$13:$K$2061*K140:K2188) -> 0.2288122301 | M140: -4.951667988e-06
A141: 128 | B141: 0.4662597083 | C141: 0.2297730055 | D141: 0.0625 | E141: 0.8359715899 | H141: 0.0625 | J141: -896 | K141: 0.003282008007 | L141: =SUM($K$13:$K$2061*K141:K2189) -> 0.2280557388 | M141: 2.306417626e-06
A142: 129 | B142: 0.4649102158 | C142: 0.2290398923 | D142: 0.06298828125 | E142: 0.8216339869 | H142: 0.0625 | J142: -895 | K142: 0.003277013395 | L142: =SUM($K$13:$K$2061*K142:K2190) -> 0.2273081796 | M142: -4.994611847e-06
A143: 130 | B143: 0.4635740131 | C143: 0.2283150308 | D143: 0.0634765625 | E143: 0.8036939371 | H143: =IF($H$10=1,RAND()/4,$B$10) -> 0.0625 | J143: -894 | K143: 0.003279367809 | L143: =SUM($K$13:$K$2061*K143:K2191) -> 0.2265683229 | M143: =K143-K142 -> 2.354413365e-06
A144: 131 | B144: 0.4622508812 | C144: 0.2275982609 | D144: 0.06396484375 | E144: 0.7901252029 | H144: 0.0625 | J144: -893 | K144: 0.003274330535 | L144: =SUM($K$13:$K$2061*K144:K2192) -> 0.2258370737 | M144: -5.03727324e-06
A145: 132 | B145: 0.460940606 | C145: 0.226889427 | D145: 0.064453125 | E145: 0.7730485702 | H145: 0.0625 | J145: -892 | K145: 0.00327673262 | L145: =SUM($K$13:$K$2061*K145:K2193) -> 0.2251132115 | M145: 2.402084902e-06
A146: 133 | B146: 0.4596429784 | C146: 0.2261883776 | D146: 0.06494140625 | E146: 0.7602007731 | H146: 0.0625 | J146: -891 | K146: 0.003271652374 | L146: =SUM($K$13:$K$2061*K146:K2194) -> 0.2243976497 | M146: -5.080246689e-06
A147: 134 | B147: 0.4583577939 | C147: 0.2254949656 | D147: 0.0654296875 | E147: 0.7439360472 | H147: 0.0625 | J147: -890 | K147: 0.003274102645 | L147: =SUM($K$13:$K$2061*K147:K2195) -> 0.2236891762 | M147: 2.450271029e-06
A148: 135 | B148: 0.4570848526 | C148: 0.2248090475 | D148: 0.06591796875 | E148: 0.7317646476 | H148: 0.0625 | J148: -889 | K148: 0.003268979552 | L148: =SUM($K$13:$K$2061*K148:K2196) -> 0.2229887125 | M148: -5.123093094e-06
A149: 136 | B149: 0.4558239592 | C149: 0.2241304839 | D149: 0.06640625 | E149: 0.7162638835 | H149: 0.0625 | J149: -888 | K149: 0.003271477902 | L149: =SUM($K$13:$K$2061*K149:K2197) -> 0.2222950545 | M149: 2.49835073e-06
A150: 137 | B150: 0.4545749225 | C150: 0.223459139 | D150: 0.06689453125 | E150: 0.7047274646 | H150: 0.0625 | J150: -887 | K150: 0.003266311636 | L150: =SUM($K$13:$K$2061*K150:K2198) -> 0.2216091308 | M150: -5.166266606e-06
A151: 138 | B151: 0.4533375557 | C151: 0.2227948803 | D151: 0.0673828125 | E151: 0.689946007 | H151: 0.0625 | J151: -886 | K151: 0.003268858891 | L151: =SUM($K$13:$K$2061*K151:K2199) -> 0.2209297447 | M151: 2.54725498e-06
A152: 139 | B152: 0.4521116759 | C152: 0.2221375792 | D152: 0.06787109375 | E152: 0.679006032 | H152: 0.0625 | J152: -885 | K152: 0.003263648532 | L152: =SUM($K$13:$K$2061*K152:K2200) -> 0.2202578319 | M152: -5.210358507e-06
A153: 140 | B153: 0.4508971043 | C153: 0.2214871101 | D153: 0.068359375 | E153: 0.6649022621 | H153: 0.0625 | J153: -884 | K153: 0.003266245204 | L153: =SUM($K$13:$K$2061*K153:K2201) -> 0.2195922023 | M153: 2.596672243e-06
A154: 141 | B154: 0.449693666 | C154: 0.2208433507 | D154: 0.06884765625 | E154: 0.6545228502 | H154: 0.0625 | J154: -883 | K154: 0.003260991156 | L154: =SUM($K$13:$K$2061*K154:K2202) -> 0.2189337982 | M154: -5.254048265e-06
A155: 142 | B155: 0.4485011897 | C155: 0.2202061817 | D155: 0.0693359375 | E155: 0.6410579523 | H155: 0.0625 | J155: -882 | K155: 0.003263636878 | L155: =SUM($K$13:$K$2061*K155:K2203) -> 0.2182814359 | M155: 2.645722013e-06
A156: 143 | B156: 0.4473195079 | C156: 0.2195754871 | D156: 0.06982421875 | E156: 0.6312056814 | H156: 0.0625 | J156: -881 | K156: 0.003258338709 | L156: =SUM($K$13:$K$2061*K156:K2204) -> 0.2176360637 | M156: -5.298169019e-06
A157: 144 | B157: 0.4461484566 | C157: 0.2189511535 | D157: 0.0703125 | E157: 0.6183434278 | H157: 0.0625 | J157: -880 | K157: 0.003261034272 | L157: =SUM($K$13:$K$2061*K157:K2205) -> 0.2169965039 | M157: 2.695562701e-06
A158: 145 | B158: 0.4449878753 | C158: 0.2183330705 | D158: 0.07080078125 | E158: 0.6089871428 | H158: 0.0625 | J158: -879 | K158: 0.00325569188 | L158: =SUM($K$13:$K$2061*K158:K2206) -> 0.2163637103 | M158: -5.342391825e-06
A159: 146 | B159: 0.4438376067 | C159: 0.2177211303 | D159: 0.0712890625 | E159: 0.5966937033 | H159: 0.0625 | J159: -878 | K159: 0.003258436954 | L159: =SUM($K$13:$K$2061*K159:K2207) -> 0.215736511 | M159: 2.745073924e-06
A160: 147 | B160: 0.4426974971 | C160: 0.2171152277 | D160: 0.07177734375 | E160: 0.5878043451 | H160: 0.0625 | J160: -877 | K160: 0.003253050417 | L160: =SUM($K$13:$K$2061*K160:K2208) -> 0.2151158651 | M160: -5.38653703e-06
A161: 148 | B161: 0.4415673956 | C161: 0.2165152603 | D161: 0.072265625 | E161: 0.5760481106 | H161: 0.0625 | J161: -876 | K161: 0.003255845551 | L161: =SUM($K$13:$K$2061*K161:K2209) -> 0.2145006058 | M161: 2.795133899e-06
A162: 149 | B162: 0.4404471548 | C162: 0.2159211279 | D162: 0.07275390625 | E162: 0.5675985576 | H162: 0.0625 | J162: -875 | K162: 0.003250414338 | L162: =SUM($K$13:$K$2061*K162:K2210) -> 0.2138916972 | M162: -5.431213107e-06
A163: 150 | B163: 0.4393366301 | C163: 0.2153327329 | D163: 0.0732421875 | E163: 0.5563499711 | H163: 0.0625 | J163: -874 | K163: 0.00325325976 | L163: =SUM($K$13:$K$2061*K163:K2211) -> 0.2132879775 | M163: 2.845422402e-06
A164: 151 | B164: 0.4382356798 | C164: 0.2147499799 | D164: 0.07373046875 | E164: 0.5483149003 | H164: 0.0625 | J164: -873 | K164: 0.003247783815 | L164: =SUM($K$13:$K$2061*K164:K2212) -> 0.2126904154 | M164: -5.475944854e-06
A165: 152 | B165: 0.4371441652 | C165: 0.2141727756 | D165: 0.07421875 | E165: 0.537546309 | H165: 0.0625 | J165: -872 | K165: 0.003250679777 | L165: =SUM($K$13:$K$2061*K165:K2213) -> 0.2120978538 | M165: 2.895961823e-06
A166: 153 | B166: 0.4360619504 | C166: 0.2136010294 | D166: 0.07470703125 | E166: 0.5299020604 | H166: 0.0625 | J166: -871 | K166: 0.003245158629 | L166: =SUM($K$13:$K$2061*K166:K2214) -> 0.2115112657 | M166: -5.52114802e-06
A167: 154 | B167: 0.4349889022 | C167: 0.2130346522 | D167: 0.0751953125 | E167: 0.5195875754 | H167: 0.0625 | J167: -870 | K167: 0.003248105729 | L167: =SUM($K$13:$K$2061*K167:K2215) -> 0.2109294984 | M167: 2.94710015e-06
A168: 155 | B168: 0.4339248899 | C168: 0.2124735573 | D168: 0.07568359375 | E168: 0.5123120296 | H168: 0.0625 | J168: -869 | K168: 0.003242539251 | L168: =SUM($K$13:$K$2061*K168:K2216) -> 0.2103535289 | M168: -5.56647793e-06
A169: 156 | B169: 0.4328697855 | C169: 0.2119176599 | D169: 0.076171875 | E169: 0.5024274028 | H169: 0.0625 | J169: -868 | K169: 0.003245537355 | L169: =SUM($K$13:$K$2061*K169:K2217) -> 0.2097822087 | M169: 2.998103823e-06
A170: 157 | B170: 0.4318234638 | C170: 0.2113668772 | D170: 0.07666015625 | E170: 0.4954998705 | H170: 0.0625 | J170: -867 | K170: 0.003239925665 | L170: =SUM($K$13:$K$2061*K170:K2218) -> 0.2092165187 | M170: -5.611689834e-06
A171: 158 | B171: 0.4307858015 | C171: 0.2108211282 | D171: 0.0771484375 | E171: 0.4860223726 | H171: 0.0625 | J171: -866 | K171: 0.003242974496 | L171: =SUM($K$13:$K$2061*K171:K2219) -> 0.2086553142 | M171: 3.048830303e-06
A172: 159 | B172: 0.4297566783 | C172: 0.2102803337 | D172: 0.07763671875 | E172: 0.4794234905 | H172: 0.0625 | J172: -865 | K172: 0.003237317909 | L172: =SUM($K$13:$K$2061*K172:K2220) -> 0.2080995797 | M172: -5.656586791e-06
A173: 160 | B173: 0.4287359757 | C173: 0.2097444164 | D173: 0.078125 | E173: 0.4703318088 | H173: 0.0625 | J173: -864 | K173: 0.003240417963 | L173: =SUM($K$13:$K$2061*K173:K2221) -> 0.2075481742 | M173: 3.100054676e-06
A174: 161 | B174: 0.4277235778 | C174: 0.2092133006 | D174: 0.07861328125 | E174: 0.4640434441 | H174: 0.0625 | J174: -863 | K174: 0.003234715481 | L174: =SUM($K$13:$K$2061*K174:K2222) -> 0.2070020857 | M174: -5.702482804e-06
A175: 162 | B175: 0.4267193709 | C175: 0.2086869122 | D175: 0.0791015625 | E175: 0.4553175774 | H175: 0.0625 | J175: -862 | K175: 0.003237867552 | L175: =SUM($K$13:$K$2061*K175:K2223) -> 0.2064601765 | M175: 3.152071361e-06
A176: 163 | B176: 0.4257232434 | C176: 0.2081651789 | D176: 0.07958984375 | E176: 0.4493227433 | H176: 0.0625 | J176: -861 | K176: 0.003232118794 | L176: =SUM($K$13:$K$2061*K176:K2224) -> 0.2059234377 | M176: -5.748758122e-06
A177: 164 | B177: 0.4247350858 | C177: 0.2076480299 | D177: 0.080078125 | E177: 0.4409439141 | H177: 0.0625 | J177: -860 | K177: 0.003235323085 | L177: =SUM($K$13:$K$2061*K177:K2225) -> 0.2053907353 | M177: 3.204291527e-06
A178: 165 | B178: 0.4237547907 | C178: 0.2071353958 | D178: 0.08056640625 | E178: 0.4352266856 | H178: 0.0625 | J178: -859 | K178: 0.003229528393 | L178: =SUM($K$13:$K$2061*K178:K2226) -> 0.2048630631 | M178: -5.794692666e-06
A179: 166 | B179: 0.4227822528 | C179: 0.2066272089 | D179: 0.0810546875 | E179: 0.4271772507 | H179: 0.0625 | J179: -858 | K179: 0.003232784156 | L179: =SUM($K$13:$K$2061*K179:K2227) -> 0.2043392901 | M179: 3.255763707e-06
A180: 167 | B180: 0.4218173686 | C180: 0.2061234028 | D180: 0.08154296875 | E180: 0.4217226969 | H180: 0.0625 | J180: -857 | K180: 0.003226943869 | L180: =SUM($K$13:$K$2061*K180:K2228) -> 0.2038204132 | M180: -5.840287498e-06
A181: 168 | B181: 0.4208600367 | C181: 0.2056239125 | D181: 0.08203125 | E181: 0.4139860744 | H181: 0.0625 | J181: -856 | K181: 0.003230251875 | L181: =SUM($K$13:$K$2061*K181:K2229) -> 0.2033053043 | M181: 3.308006082e-06
A182: 169 | B182: 0.4199101574 | C182: 0.2051286746 | D182: 0.08251953125 | E182: 0.408780178 | H182: 0.0625 | J182: -855 | K182: 0.003224364852 | L182: =SUM($K$13:$K$2061*K182:K2230) -> 0.2027949629 | M182: -5.887023525e-06
A183: 170 | B183: 0.418967633 | C183: 0.2046376266 | D183: 0.0830078125 | E183: 0.4013407763 | H183: 0.0625 | J183: -854 | K183: 0.003227725282 | L183: =SUM($K$13:$K$2061*K183:K2231) -> 0.2022882637 | M183: 3.360430586e-06
A184: 171 | B184: 0.4180323674 | C184: 0.2041507077 | D184: 0.08349609375 | E184: 0.3963703788 | H184: 0.0625 | J184: -853 | K184: 0.003221792365 | L184: =SUM($K$13:$K$2061*K184:K2232) -> 0.2017862087 | M184: -5.932917454e-06
A185: 172 | B185: 0.4171042665 | C185: 0.2036678582 | D185: 0.083984375 | E185: 0.3892135244 | H185: 0.0625 | J185: -852 | K185: 0.003225205039 | L185: =SUM($K$13:$K$2061*K185:K2233) -> 0.2012876752 | M185: 3.412674011e-06
A186: 173 | B186: 0.4161832376 | C186: 0.2031890195 | D186: 0.08447265625 | E186: 0.3844662669 | H186: 0.0625 | J186: -851 | K186: 0.003219225332 | L186: =SUM($K$13:$K$2061*K186:K2234) -> 0.2007936678 | M186: -5.979706207e-06
A187: 174 | B187: 0.41526919 | C187: 0.2027141345 | D187: 0.0849609375 | E187: 0.3775781456 | H187: 0.0625 | J187: -850 | K187: 0.00322269122 | L187: =SUM($K$13:$K$2061*K187:K2235) -> 0.2003030662 | M187: 3.465887479e-06
A188: 175 | B188: 0.4143620343 | C188: 0.2022431469 | D188: 0.08544921875 | E188: 0.3730424126 | H188: 0.0625 | J188: -849 | K188: 0.003216664549 | L188: =SUM($K$13:$K$2061*K188:K2236) -> 0.1998168772 | M188: -6.026670844e-06
A189: 176 | B189: 0.413461683 | C189: 0.2017760018 | D189: 0.0859375 | E189: 0.366410009 | H189: 0.0625 | J189: -848 | K189: 0.003220183324 | L189: =SUM($K$13:$K$2061*K189:K2237) -> 0.199333983 | M189: 3.518774629e-06
A190: 177 | B190: 0.41256805 | C190: 0.2013126452 | D190: 0.08642578125 | E190: 0.3620748821 | H190: 0.0625 | J190: -847 | K190: 0.003214109891 | L190: =SUM($K$13:$K$2061*K190:K2238) -> 0.1988553924 | M190: -6.073433075e-06
A191: 178 | B191: 0.4116810506 | C191: 0.2008530245 | D191: 0.0869140625 | E191: 0.3556859311 | H191: 0.0625 | J191: -846 | K191: 0.003217681534 | L191: =SUM($K$13:$K$2061*K191:K2239) -> 0.1983799899 | M191: 3.571643067e-06
A192: 179 | B192: 0.4108006018 | C192: 0.2003970877 | D192: 0.08740234375 | E192: 0.351541136 | H192: 0.0625 | J192: -845 | K192: 0.003211561532 | L192: =SUM($K$13:$K$2061*K192:K2240) -> 0.1979087863 | M192: -6.12000175e-06
A193: 180 | B193: 0.409926622 | C193: 0.1999447842 | D193: 0.087890625 | E193: 0.3453840732 | H193: 0.0625 | J193: -844 | K193: 0.003215186329 | L193: =SUM($K$13:$K$2061*K193:K2241) -> 0.1974406684 | M193: 3.624796909e-06
A194: 181 | B194: 0.4090590309 | C194: 0.1994960641 | D194: 0.08837890625 | E194: 0.3414199383 | H194: 0.0625 | J194: -843 | K194: 0.00320901876 | L194: =SUM($K$13:$K$2061*K194:K2242) -> 0.1969766489 | M194: -6.167569055e-06
A195: 182 | B195: 0.4081977498 | C195: 0.1990508787 | D195: 0.0888671875 | E195: 0.3354838562 | H195: 0.0625 | J195: -842 | K195: 0.003212697768 | L195: =SUM($K$13:$K$2061*K195:K2243) -> 0.1965156165 | M195: 3.679007701e-06
A196: 183 | B196: 0.4073427011 | C196: 0.1986091801 | D196: 0.08935546875 | E196: 0.3316912761 | H196: 0.0625 | J196: -841 | K196: 0.00320648221 | L196: =SUM($K$13:$K$2061*K196:K2244) -> 0.1960585858 | M196: -6.215557209e-06
A197: 184 | B197: 0.4064938087 | C197: 0.1981709214 | D197: 0.08984375 | E197: 0.3259658743 | H197: 0.0625 | J197: -840 | K197: 0.003210215133 | L197: =SUM($K$13:$K$2061*K197:K2245) -> 0.1956044475 | M197: 3.732922855e-06
A198: 185 | B198: 0.4056509978 | C198: 0.1977360566 | D198: 0.09033203125 | E198: 0.3223362725 | H198: 0.0625 | J198: -839 | K198: 0.003203952303 | L198: =SUM($K$13:$K$2061*K198:K2246) -> 0.1951542179 | M198: -6.262829977e-06
A199: 186 | B199: 0.4048141949 | C199: 0.1973045404 | D199: 0.0908203125 | E199: 0.316811823 | H199: 0.0625 | J199: -838 | K199: 0.003207738781 | L199: =SUM($K$13:$K$2061*K199:K2247) -> 0.1947067894 | M199: 3.786478148e-06
A200: 187 | B200: 0.4039833275 | C200: 0.1968763287 | D200: 0.09130859375 | E200: 0.3133371179 | H200: 0.0625 | J200: -837 | K200: 0.003201428567 | L200: =SUM($K$13:$K$2061*K200:K2248) -> 0.1942631801 | M200: -6.310214452e-06
A201: 188 | B201: 0.4031583247 | C201: 0.1964513778 | D201: 0.091796875 | E201: 0.3080044302 | H201: 0.0625 | J201: -836 | K201: 0.003205268999 | L201: =SUM($K$13:$K$2061*K201:K2249) -> 0.1938222843 | M201: 3.840432013e-06
... 1860 more rows

Sheet Simulation
A1: =Model!A1 -> You must have macros enabled in order for the program to work. You may see the code through the VBA Editor.
A2: =Model!A2 -> Program by Demetris Koutsoyiannis - Please report bugs to dk@itia.ntua.gr | H2: =Model!H2 -> Version 0.6 | J2: =Model!J2 -> 2019-10-23
A3: =Model!A3 -> Linensed under Creative Commons - Attribution Alone (CC-BY)
A4: The parameters and coefficients of this sheet are given in sheet "Model"
A5: Hit <F9> for another simulation
A6: Lognormal distribution shape parameter | E6: 1
A7: Average | D7: =AVERAGE(D$13:D$10012) -> 1.651004966 | E7: =AVERAGE(E$13:E$10012) -> 30.57774149
A8: Std | D8: =STDEV(D$13:D$10012) -> 2.213865947 | E8: =STDEV(E$13:E$10012) -> 2.181567488
A9: Skew | D9: =SKEW(D$13:D$10012) -> 5.350952012 | E9: =SKEW(E$13:E$10012) -> 0.9956547322
A10: Skew Differenced | D10: =SKEW(D14:D10012-D13:D10011) -> -0.06917395221 | E10: =SKEW(E14:E10012-E13:E10011) -> 1.901522173 | F10: =E10/E9 -> 1.909820856
A12: τ, η | B12: a-η | D12: vη | E12: xτ | G12: cη simulated
A13: 0 | B13: =up2down_(Model!K13:K2061) -> 0.003248160307 | D13: =EXP(NORMSINV(RAND())*$E$6) -> 0.3642649449 | E13: =SUM($B$13:$B$2061*D13:D2061) -> 28.74521611 | G13: =CORREL($E$13:$E$10012,E13:E10012) -> 1
A14: =1+A13 -> 1 | B14: 0.003504370501 | D14: =EXP(NORMSINV(RAND())*$E$6) -> 1.453808993 | E14: =SUM($B$13:$B$2061*D14:D2062) -> 28.93227985 | G14: =CORREL($E$13:$E$10012,E14:E10013) -> 0.9863623871
A15: =1+A14 -> 2 | B15: 0.003471536983 | D15: 0.4466535459 | E15: =SUM($B$13:$B$2061*D15:D2063) -> 29.08895004 | G15: 0.9600962619
A16: 3 | B16: 0.003519623173 | D16: 1.562825005 | E16: =SUM($B$13:$B$2061*D16:D2064) -> 29.48487059 | G16: 0.9302987378
A17: 4 | B17: 0.00351625451 | D17: 2.592566964 | E17: =SUM($B$13:$B$2061*D17:D2065) -> 29.62660489 | G17: 0.8995712823
A18: 5 | B18: 0.003542558887 | D18: 1.486415778 | E18: =SUM($B$13:$B$2061*D18:D2066) -> 30.07654462 | G18: 0.8692739745
A19: 6 | B19: 0.003544246541 | D19: 0.2274147258 | E19: =SUM($B$13:$B$2061*D19:D2067) -> 30.08461652 | G19: 0.8399331069
A20: 7 | B20: 0.003564529595 | D20: 7.156831269 | E20: =SUM($B$13:$B$2061*D20:D2068) -> 29.89678228 | G20: 0.8116809139
A21: 8 | B21: 0.00356806446 | D21: 0.2759289528 | E21: =SUM($B$13:$B$2061*D21:D2069) -> 29.88801092 | G21: 0.7846149078
A22: 9 | B22: 0.003585530609 | D22: 6.243217157 | E22: =SUM($B$13:$B$2061*D22:D2070) -> 30.04501986 | G22: 0.758828586
A23: 10 | B23: 0.003590009971 | D23: 0.3720173668 | E23: =SUM($B$13:$B$2061*D23:D2071) -> 30.22241996 | G23: 0.7342485473
A24: 11 | B24: 0.003605764832 | D24: 0.3622310655 | E24: =SUM($B$13:$B$2061*D24:D2072) -> 30.7828167 | G24: 0.7106499582
A25: 12 | B25: 0.003610779315 | D25: 2.266363558 | E25: =SUM($B$13:$B$2061*D25:D2073) -> 31.64767702 | G25: 0.6882303888
A26: 13 | B26: 0.003625351604 | D26: 1.787851772 | E26: =SUM($B$13:$B$2061*D26:D2074) -> 33.20454587 | G26: 0.6670447259
A27: 14 | B27: 0.00363068052 | D27: 1.033864879 | E27: =SUM($B$13:$B$2061*D27:D2075) -> 32.93381705 | G27: 0.6471407633
A28: 15 | B28: 0.003644376656 | D28: 0.2250601937 | E28: =SUM($B$13:$B$2061*D28:D2076) -> 32.07174858 | G28: 0.6283675297
A29: 16 | B29: 0.003649891743 | D29: 2.250098288 | E29: =SUM($B$13:$B$2061*D29:D2077) -> 31.69050201 | G29: 0.610732543
A30: 17 | B30: 0.003662910177 | D30: 1.892860153 | E30: =SUM($B$13:$B$2061*D30:D2078) -> 31.38948488 | G30: 0.5944904051
A31: 18 | B31: 0.003668532895 | D31: 0.8739412882 | E31: =SUM($B$13:$B$2061*D31:D2079) -> 31.00048919 | G31: 0.579387457
A32: 19 | B32: 0.003681012234 | D32: 0.9504777241 | E32: =SUM($B$13:$B$2061*D32:D2080) -> 30.54751266 | G32: 0.5650072362
A33: 20 | B33: 0.003686692229 | D33: 0.1115541851 | E33: =SUM($B$13:$B$2061*D33:D2081) -> 30.33683236 | G33: 0.551232201
A34: 21 | B34: 0.003698732712 | D34: 1.651635019 | E34: =SUM($B$13:$B$2061*D34:D2082) -> 30.19191803 | G34: 0.5380328953
A35: 22 | B35: 0.00370443734 | D35: 1.045625246 | E35: =SUM($B$13:$B$2061*D35:D2083) -> 30.17592578 | G35: 0.5249557543
A36: 23 | B36: 0.003716114508 | D36: 0.3210131561 | E36: =SUM($B$13:$B$2061*D36:D2084) -> 30.23406777 | G36: 0.5119361901
A37: 24 | B37: 0.003721820435 | D37: 1.656170536 | E37: =SUM($B$13:$B$2061*D37:D2085) -> 30.51585959 | G37: 0.49927909
A38: 25 | B38: 0.003733193416 | D38: 2.793041871 | E38: =SUM($B$13:$B$2061*D38:D2086) -> 30.53528144 | G38: 0.4871424889
A39: 26 | B39: 0.003738884667 | D39: 1.234790832 | E39: =SUM($B$13:$B$2061*D39:D2087) -> 30.69323221 | G39: 0.4755058141
A40: 27 | B40: 0.003749999487 | D40: 2.102671734 | E40: =SUM($B$13:$B$2061*D40:D2088) -> 31.00452429 | G40: 0.4646369152
A41: 28 | B41: 0.003755664471 | D41: 0.7032750731 | E41: =SUM($B$13:$B$2061*D41:D2089) -> 31.47548531 | G41: 0.4545266267
A42: 29 | B42: 0.00376655854 | D42: 1.01537198 | E42: =SUM($B$13:$B$2061*D42:D2090) -> 32.09241369 | G42: 0.4449903739
A43: 30 | B43: 0.003772188897 | D43: 0.4546894187 | E43: =SUM($B$13:$B$2061*D43:D2091) -> 32.92469317 | G43: 0.4361637546
A44: 31 | B44: 0.003782892566 | D44: 3.274650248 | E44: =SUM($B$13:$B$2061*D44:D2092) -> 33.68831195 | G44: 0.4282210453
A45: 32 | B45: 0.00378848196 | D45: 1.821732413 | E45: =SUM($B$13:$B$2061*D45:D2093) -> 34.639438 | G45: 0.4212762846
A46: 33 | B46: 0.003799021277 | D46: 0.5303432434 | E46: =SUM($B$13:$B$2061*D46:D2094) -> 33.93005483 | G46: 0.4152464049
A47: 34 | B47: 0.003804563946 | D47: 0.9730842832 | E47: =SUM($B$13:$B$2061*D47:D2095) -> 33.28643905 | G47: 0.4094965349
A48: 35 | B48: 0.003814960822 | D48: 0.6270420207 | E48: =SUM($B$13:$B$2061*D48:D2096) -> 32.85720483 | G48: 0.4039310634
A49: 36 | B49: 0.003820453238 | D49: 1.353087087 | E49: =SUM($B$13:$B$2061*D49:D2097) -> 32.35787754 | G49: 0.39827156
A50: 37 | B50: 0.003830725529 | D50: 0.5987763906 | E50: =SUM($B$13:$B$2061*D50:D2098) -> 32.04319463 | G50: 0.3922858136
A51: 38 | B51: 0.003836165523 | D51: 1.181588572 | E51: =SUM($B$13:$B$2061*D51:D2099) -> 31.86570307 | G51: 0.3864071096
A52: 39 | B52: 0.003846328403 | D52: 1.553035631 | E52: =SUM($B$13:$B$2061*D52:D2100) -> 31.9801333 | G52: 0.3809582456
A53: 40 | B53: 0.003851713837 | D53: 0.5958252316 | E53: =SUM($B$13:$B$2061*D53:D2101) -> 32.12277221 | G53: 0.3758936972
A54: 41 | B54: 0.003861781149 | D54: 0.4564421549 | E54: =SUM($B$13:$B$2061*D54:D2102) -> 32.2452053 | G54: 0.3713903463
A55: 42 | B55: 0.003867110456 | D55: 1.891693052 | E55: =SUM($B$13:$B$2061*D55:D2103) -> 31.94042701 | G55: 0.36731121
A56: 43 | B56: 0.003877093487 | D56: 0.1999783401 | E56: =SUM($B$13:$B$2061*D56:D2104) -> 31.61758062 | G56: 0.3632056443
A57: 44 | B57: 0.003882366032 | D57: 0.7272674655 | E57: =SUM($B$13:$B$2061*D57:D2105) -> 31.27863504 | G57: 0.3590530753
A58: 45 | B58: 0.00389227553 | D58: 5.120579365 | E58: =SUM($B$13:$B$2061*D58:D2106) -> 31.10167135 | G58: 0.3551993428
A59: 46 | B59: 0.003897489442 | D59: 0.6879635673 | E59: =SUM($B$13:$B$2061*D59:D2107) -> 31.04106653 | G59: 0.3517851971
A60: 47 | B60: 0.003907335133 | D60: 5.309484192 | E60: =SUM($B$13:$B$2061*D60:D2108) -> 31.18396549 | G60: 0.3485899532
A61: 48 | B61: 0.003912489876 | D61: 1.538463181 | E61: =SUM($B$13:$B$2061*D61:D2109) -> 31.48762469 | G61: 0.3454442881
A62: 49 | B62: 0.00392227986 | D62: 0.1828803822 | E62: =SUM($B$13:$B$2061*D62:D2110) -> 31.93157807 | G62: 0.3426168711
A63: 50 | B63: 0.003927375005 | D63: 3.142812336 | E63: =SUM($B$13:$B$2061*D63:D2111) -> 32.45925511 | G63: 0.3399501237
A64: 51 | B64: 0.00393711634 | D64: 1.254666786 | E64: =SUM($B$13:$B$2061*D64:D2112) -> 33.09174289 | G64: 0.3374075308
A65: 52 | B65: 0.003942152172 | D65: 1.240974095 | E65: =SUM($B$13:$B$2061*D65:D2113) -> 33.71095078 | G65: 0.3351375284
A66: 53 | B66: 0.003951851202 | D66: 2.850832647 | E66: =SUM($B$13:$B$2061*D66:D2114) -> 34.82143633 | G66: 0.3328749573
A67: 54 | B67: 0.003956827054 | D67: 4.871891872 | E67: =SUM($B$13:$B$2061*D67:D2115) -> 36.42954135 | G67: 0.3304554674
A68: 55 | B68: 0.003966490401 | D68: 0.4880631542 | E68: =SUM($B$13:$B$2061*D68:D2116) -> 39.57885364 | G68: 0.3281913317
A69: 56 | B69: 0.003971406214 | D69: 0.4540718236 | E69: =SUM($B$13:$B$2061*D69:D2117) -> 39.7758133 | G69: 0.3262769084
A70: 57 | B70: 0.00398103862 | D70: 2.449081931 | E70: =SUM($B$13:$B$2061*D70:D2118) -> 38.37762279 | G70: 0.3245296817
A71: 58 | B71: 0.003985894915 | D71: 0.5832779564 | E71: =SUM($B$13:$B$2061*D71:D2119) -> 37.61922563 | G71: 0.323070156
A72: 59 | B72: 0.003995501408 | D72: 4.87424788 | E72: =SUM($B$13:$B$2061*D72:D2120) -> 36.90252893 | G72: 0.3219046474
A73: 60 | B73: 0.004000298054 | D73: 3.467431888 | E73: =SUM($B$13:$B$2061*D73:D2121) -> 36.48374079 | G73: 0.3211217811
A74: 61 | B74: 0.00400988316 | D74: 0.9332319364 | E74: =SUM($B$13:$B$2061*D74:D2122) -> 36.68198211 | G74: 0.320684314
A75: 62 | B75: 0.004014619868 | D75: 1.259581727 | E75: =SUM($B$13:$B$2061*D75:D2123) -> 36.87725513 | G75: 0.3207637497
A76: 63 | B76: 0.004024188575 | D76: 0.7576089716 | E76: =SUM($B$13:$B$2061*D76:D2124) -> 37.49858534 | G76: 0.3212371687
A77: 64 | B77: 0.004028865032 | D77: 1.624447637 | E77: =SUM($B$13:$B$2061*D77:D2125) -> 36.74016713 | G77: 0.3220428231
A78: 65 | B78: 0.004038420912 | D78: =EXP(NORMSINV(RAND())*$E$6) -> 1.701659886 | E78: =SUM($B$13:$B$2061*D78:D2126) -> 35.80926584 | G78: =CORREL($E$13:$E$10012,E78:E10077) -> 0.3229388779
A79: =1+A78 -> 66 | B79: 0.004043037959 | D79: 0.3082505814 | E79: =SUM($B$13:$B$2061*D79:D2127) -> 35.27833774 | G79: 0.3237295621
A80: 67 | B80: 0.00405258386 | D80: 0.7017206521 | E80: =SUM($B$13:$B$2061*D80:D2128) -> 34.74533611 | G80: 0.3243184738
A81: 68 | B81: 0.004057141898 | D81: 3.109500177 | E81: =SUM($B$13:$B$2061*D81:D2129) -> 34.5156199 | G81: 0.3249338806
A82: 69 | B82: 0.004066681456 | D82: 2.851691546 | E82: =SUM($B$13:$B$2061*D82:D2130) -> 34.55215874 | G82: 0.3256629072
A83: 70 | B83: 0.004071180213 | D83: 0.7418103969 | E83: =SUM($B$13:$B$2061*D83:D2131) -> 34.52383524 | G83: 0.3266164178
A84: 71 | B84: 0.004080716661 | D84: 0.5326829757 | E84: =SUM($B$13:$B$2061*D84:D2132) -> 34.24416203 | G84: 0.3280376838
A85: 72 | B85: 0.004085156783 | D85: 4.424683946 | E85: =SUM($B$13:$B$2061*D85:D2133) -> 34.27779525 | G85: 0.3297260277
A86: 73 | B86: 0.00409469206 | D86: 0.08941587544 | E86: =SUM($B$13:$B$2061*D86:D2134) -> 34.67976071 | G86: 0.3316542638
A87: 74 | B87: 0.004099074371 | D87: 1.192368283 | E87: =SUM($B$13:$B$2061*D87:D2135) -> 34.95757509 | G87: 0.3339407557
A88: 75 | B88: 0.004108611431 | D88: 0.6140388079 | E88: =SUM($B$13:$B$2061*D88:D2136) -> 34.72532176 | G88: 0.3364118216
A89: 76 | B89: 0.004112935232 | D89: 2.141987744 | E89: =SUM($B$13:$B$2061*D89:D2137) -> 35.01504974 | G89: 0.3385703218
A90: 77 | B90: 0.00412247746 | D90: 2.189446318 | E90: =SUM($B$13:$B$2061*D90:D2138) -> 34.86597085 | G90: 0.3401742517
A91: 78 | B91: 0.004126742776 | D91: 1.072247378 | E91: =SUM($B$13:$B$2061*D91:D2139) -> 34.28997288 | G91: 0.341489308
A92: 79 | B92: 0.004136291923 | D92: 0.699096294 | E92: =SUM($B$13:$B$2061*D92:D2140) -> 33.71426934 | G92: 0.3424650974
A93: 80 | B93: 0.004140500008 | D93: 0.3350982689 | E93: =SUM($B$13:$B$2061*D93:D2141) -> 33.39852327 | G93: 0.3431279465
A94: 81 | B94: 0.004150057406 | D94: 0.3877089676 | E94: =SUM($B$13:$B$2061*D94:D2142) -> 33.23676528 | G94: 0.3433819148
A95: 82 | B95: 0.004154208584 | D95: 0.8098026806 | E95: =SUM($B$13:$B$2061*D95:D2143) -> 32.91970119 | G95: 0.3428987928
A96: 83 | B96: 0.004163776998 | D96: 0.2717234033 | E96: =SUM($B$13:$B$2061*D96:D2144) -> 32.57044895 | G96: 0.3419551143
A97: 84 | B97: 0.004167870887 | D97: 9.760975379 | E97: =SUM($B$13:$B$2061*D97:D2145) -> 32.30948276 | G97: 0.3410413161
A98: 85 | B98: 0.004177452366 | D98: 0.5866303615 | E98: =SUM($B$13:$B$2061*D98:D2146) -> 32.2469495 | G98: 0.3403754945
A99: 86 | B99: 0.00418148935 | D99: 3.29811929 | E99: =SUM($B$13:$B$2061*D99:D2147) -> 32.15231162 | G99: 0.3399280438
A100: 87 | B100: 0.004191085888 | D100: 0.6528661922 | E100: =SUM($B$13:$B$2061*D100:D2148) -> 32.16287327 | G100: 0.3395766116
A101: 88 | B101: 0.004195065841 | D101: 0.8878258915 | E101: =SUM($B$13:$B$2061*D101:D2149) -> 32.33129125 | G101: 0.3393276882
A102: 89 | B102: 0.004204679149 | D102: 0.1785599428 | E102: =SUM($B$13:$B$2061*D102:D2150) -> 32.38146456 | G102: 0.33906768
A103: 90 | B103: 0.004208602808 | D103: 0.5488073174 | E103: =SUM($B$13:$B$2061*D103:D2151) -> 32.66930428 | G103: 0.3390358298
A104: 91 | B104: 0.004218234156 | D104: 1.536363771 | E104: =SUM($B$13:$B$2061*D104:D2152) -> 33.09602518 | G104: 0.3396410832
A105: 92 | B105: 0.004222102135 | D105: 0.8708913814 | E105: =SUM($B$13:$B$2061*D105:D2153) -> 32.75837099 | G105: 0.3407826599
A106: 93 | B106: 0.004231752538 | D106: 1.14213835 | E106: =SUM($B$13:$B$2061*D106:D2154) -> 32.29910452 | G106: 0.34233842
A107: 94 | B107: 0.004235565201 | D107: 1.535365221 | E107: =SUM($B$13:$B$2061*D107:D2155) -> 32.15645732 | G107: 0.3442107127
A108: 95 | B108: 0.004245236856 | D108: 0.2516772223 | E108: =SUM($B$13:$B$2061*D108:D2156) -> 31.92720351 | G108: 0.345996312
A109: 96 | B109: 0.004248993587 | D109: 0.3481175025 | E109: =SUM($B$13:$B$2061*D109:D2157) -> 31.72640811 | G109: 0.3475269832
A110: 97 | B110: 0.004258688285 | D110: 1.093404267 | E110: =SUM($B$13:$B$2061*D110:D2158) -> 31.53220031 | G110: 0.348642655
A111: 98 | B111: 0.004262389605 | D111: 3.342072899 | E111: =SUM($B$13:$B$2061*D111:D2159) -> 31.41076581 | G111: 0.3494935452
A112: 99 | B112: 0.004272108043 | D112: 1.112323868 | E112: =SUM($B$13:$B$2061*D112:D2160) -> 31.24051502 | G112: 0.3497502311
A113: 100 | B113: 0.004275754673 | D113: 0.7455390971 | E113: =SUM($B$13:$B$2061*D113:D2161) -> 31.21145514 | G113: 0.3488201612
A114: 101 | B114: 0.004285498046 | D114: 1.569250287 | E114: =SUM($B$13:$B$2061*D114:D2162) -> 31.44004375
A115: 102 | B115: 0.004289090181 | D115: 2.63857939 | E115: =SUM($B$13:$B$2061*D115:D2163) -> 31.71801024
A116: 103 | B116: 0.004298859876 | D116: 0.9328224898 | E116: =SUM($B$13:$B$2061*D116:D2164) -> 32.33808119
A117: 104 | B117: 0.004302397402 | D117: 0.3133666591 | E117: =SUM($B$13:$B$2061*D117:D2165) -> 32.09031973
A118: 105 | B118: 0.00431219501 | D118: 1.306453907 | E118: =SUM($B$13:$B$2061*D118:D2166) -> 31.82730742
A119: 106 | B119: 0.004315678139 | D119: 4.628153238 | E119: =SUM($B$13:$B$2061*D119:D2167) -> 31.82102085
A120: 107 | B120: 0.004325504059 | D120: 0.517791434 | E120: =SUM($B$13:$B$2061*D120:D2168) -> 31.92171722
A121: 108 | B121: 0.004328934059 | D121: 0.9096423389 | E121: =SUM($B$13:$B$2061*D121:D2169) -> 31.98384057
A122: 109 | B122: 0.004338789092 | D122: 1.65012307 | E122: =SUM($B$13:$B$2061*D122:D2170) -> 31.78518124
A123: 110 | B123: 0.004342165656 | D123: 0.7320757787 | E123: =SUM($B$13:$B$2061*D123:D2171) -> 31.5995431
A124: 111 | B124: 0.004352051278 | D124: 0.4880974524 | E124: =SUM($B$13:$B$2061*D124:D2172) -> 31.37108077
A125: 112 | B125: 0.004355374528 | D125: 0.5837236741 | E125: =SUM($B$13:$B$2061*D125:D2173) -> 31.27859252
A126: 113 | B126: 0.004365292089 | D126: 1.283416586 | E126: =SUM($B$13:$B$2061*D126:D2174) -> 31.1981669
A127: 114 | B127: 0.004368561674 | D127: 0.6216835372 | E127: =SUM($B$13:$B$2061*D127:D2175) -> 31.12759011
A128: 115 | B128: 0.004378512278 | D128: 2.750279198 | E128: =SUM($B$13:$B$2061*D128:D2176) -> 31.16371187
A129: 116 | B129: 0.00438172899 | D129: 0.6973991706 | E129: =SUM($B$13:$B$2061*D129:D2177) -> 31.57434454
A130: 117 | B130: 0.004391712849 | D130: 4.917154237 | E130: =SUM($B$13:$B$2061*D130:D2178) -> 31.73850406
A131: 118 | B131: 0.004394877131 | D131: 0.09949967963 | E131: =SUM($B$13:$B$2061*D131:D2179) -> 31.53824086
A132: 119 | B132: 0.004404895198 | D132: 2.465798067 | E132: =SUM($B$13:$B$2061*D132:D2180) -> 31.35526455
A133: 120 | B133: 0.004408007389 | D133: 0.5190625254 | E133: =SUM($B$13:$B$2061*D133:D2181) -> 31.23335807
A134: 121 | B134: 0.004418060418 | D134: 5.082999425 | E134: =SUM($B$13:$B$2061*D134:D2182) -> 31.16501351
A135: 122 | B135: 0.004421120556 | D135: 0.1916170342 | E135: =SUM($B$13:$B$2061*D135:D2183) -> 31.18482584
A136: 123 | B136: 0.004431209845 | D136: 0.4499790846 | E136: =SUM($B$13:$B$2061*D136:D2184) -> 31.39201844
A137: 124 | B137: 0.004434217519 | D137: 0.818929167 | E137: =SUM($B$13:$B$2061*D137:D2185) -> 31.69704998
A138: 125 | B138: 0.004444344263 | D138: 0.7093639545 | E138: =SUM($B$13:$B$2061*D138:D2186) -> 32.2483518
A139: 126 | B139: 0.004447299758 | D139: 2.080554735 | E139: =SUM($B$13:$B$2061*D139:D2187) -> 32.49985141
A140: 127 | B140: 0.004457464381 | D140: 1.640393567 | E140: =SUM($B$13:$B$2061*D140:D2188) -> 32.70189606
A141: 128 | B141: 0.004460368292 | D141: 1.921905745 | E141: =SUM($B$13:$B$2061*D141:D2189) -> 33.07219455
A142: 129 | B142: 0.004470571137 | D142: =EXP(NORMSINV(RAND())*$E$6) -> 1.577020488 | E142: =SUM($B$13:$B$2061*D142:D2190) -> 33.78882279
A143: =1+A142 -> 130 | B143: 0.004473424133 | D143: 1.114358921 | E143: =SUM($B$13:$B$2061*D143:D2191) -> 34.49730999
A144: 131 | B144: 0.004483665947 | D144: 0.9100027195 | E144: =SUM($B$13:$B$2061*D144:D2192) -> 34.81967077
A145: 132 | B145: 0.0044864676 | D145: 0.825402012 | E145: =SUM($B$13:$B$2061*D145:D2193) -> 35.44868801
A146: 133 | B146: 0.00449674936 | D146: 0.3033183074 | E146: =SUM($B$13:$B$2061*D146:D2194) -> 36.18023925
A147: 134 | B147: 0.00449950013 | D147: 0.5159773621 | E147: =SUM($B$13:$B$2061*D147:D2195) -> 36.45409681
A148: 135 | B148: 0.004509822643 | D148: 1.484401684 | E148: =SUM($B$13:$B$2061*D148:D2196) -> 36.97659846
A149: 136 | B149: 0.004512522172 | D149: 0.698941088 | E149: =SUM($B$13:$B$2061*D149:D2197) -> 38.95823888
A150: 137 | B150: 0.004522886456 | D150: 0.7612918973 | E150: =SUM($B$13:$B$2061*D150:D2198) -> 38.26562542
A151: 138 | B151: 0.004525535071 | D151: 3.272711822 | E151: =SUM($B$13:$B$2061*D151:D2199) -> 37.35186785
A152: 139 | B152: 0.004535941143 | D152: 2.172864564 | E152: =SUM($B$13:$B$2061*D152:D2200) -> 37.09002696
A153: 140 | B153: 0.004538539751 | D153: 1.511144982 | E153: =SUM($B$13:$B$2061*D153:D2201) -> 36.9288771
A154: 141 | B154: 0.004548988293 | D154: 0.9643809032 | E154: =SUM($B$13:$B$2061*D154:D2202) -> 36.69792292
A155: 142 | B155: 0.004551536363 | D155: 0.843757984 | E155: =SUM($B$13:$B$2061*D155:D2203) -> 37.05796121
A156: 143 | B156: 0.004562028248 | D156: 0.2942412733 | E156: =SUM($B$13:$B$2061*D156:D2204) -> 37.12860713
A157: 144 | B157: 0.004564526456 | D157: 0.1390732705 | E157: =SUM($B$13:$B$2061*D157:D2205) -> 37.71442539
A158: 145 | B158: 0.004575061967 | D158: 0.4124447129 | E158: =SUM($B$13:$B$2061*D158:D2206) -> 37.25139139
A159: 146 | B159: 0.004577510123 | D159: 0.2914182628 | E159: =SUM($B$13:$B$2061*D159:D2207) -> 36.34596768
A160: 147 | B160: 0.004588090402 | D160: 2.767291354 | E160: =SUM($B$13:$B$2061*D160:D2208) -> 35.85128709
A161: 148 | B161: 0.004590488621 | D161: 1.05513238 | E161: =SUM($B$13:$B$2061*D161:D2209) -> 35.49485197
A162: 149 | B162: 0.004601113938 | D162: 0.5955949842 | E162: =SUM($B$13:$B$2061*D162:D2210) -> 35.33247485
A163: 150 | B163: 0.004603462525 | D163: 0.2667809669 | E163: =SUM($B$13:$B$2061*D163:D2211) -> 35.25468663
A164: 151 | B164: 0.004614133561 | D164: 2.188686188 | E164: =SUM($B$13:$B$2061*D164:D2212) -> 36.027924
A165: 152 | B165: 0.004616432561 | D165: 1.408122455 | E165: =SUM($B$13:$B$2061*D165:D2213) -> 35.33894796
A166: 153 | B166: 0.00462714976 | D166: 0.8445543116 | E166: =SUM($B$13:$B$2061*D166:D2214) -> 34.56165106
A167: 154 | B167: 0.004629399788 | D167: 0.5794509392 | E167: =SUM($B$13:$B$2061*D167:D2215) -> 34.03193188
A168: 155 | B168: 0.004640163375 | D168: 2.513244463 | E168: =SUM($B$13:$B$2061*D168:D2216) -> 33.66586602
A169: 156 | B169: 0.004642364491 | D169: 1.460235704 | E169: =SUM($B$13:$B$2061*D169:D2217) -> 33.40530366
A170: 157 | B170: 0.004653175164 | D170: 7.028596155 | E170: =SUM($B$13:$B$2061*D170:D2218) -> 33.21991382
A171: 158 | B171: 0.004655327165 | D171: 0.3333993672 | E171: =SUM($B$13:$B$2061*D171:D2219) -> 33.16253697
A172: 159 | B172: 0.004666186222 | D172: 1.835577082 | E172: =SUM($B$13:$B$2061*D172:D2220) -> 33.19443673
A173: 160 | B173: 0.004668288849 | D173: 0.3417120092 | E173: =SUM($B$13:$B$2061*D173:D2221) -> 33.46216067
A174: 161 | B174: 0.004679196392 | D174: 0.5136656413 | E174: =SUM($B$13:$B$2061*D174:D2222) -> 34.19718791
A175: 162 | B175: 0.004681250475 | D175: 0.7856238977 | E175: =SUM($B$13:$B$2061*D175:D2223) -> 34.14198469
A176: 163 | B176: 0.004692206515 | D176: 0.5772321822 | E176: =SUM($B$13:$B$2061*D176:D2224) -> 34.01352354
A177: 164 | B177: 0.004694212607 | D177: 0.4425861437 | E177: =SUM($B$13:$B$2061*D177:D2225) -> 34.26110591
A178: 165 | B178: 0.004705217584 | D178: 0.9805996269 | E178: =SUM($B$13:$B$2061*D178:D2226) -> 34.69519008
A179: 166 | B179: 0.004707175122 | D179: 0.2375269503 | E179: =SUM($B$13:$B$2061*D179:D2227) -> 35.84609298
A180: 167 | B180: 0.004718230523 | D180: 0.1988607741 | E180: =SUM($B$13:$B$2061*D180:D2228) -> 35.51092297
A181: 168 | B181: 0.004720139439 | D181: 1.439078478 | E181: =SUM($B$13:$B$2061*D181:D2229) -> 35.15442177
A182: 169 | B182: 0.004731244895 | D182: 0.4874412543 | E182: =SUM($B$13:$B$2061*D182:D2230) -> 35.10617632
A183: 170 | B183: 0.004733106016 | D183: 1.485433611 | E183: =SUM($B$13:$B$2061*D183:D2231) -> 34.41056559
A184: 171 | B184: 0.00474426261 | D184: 0.3864589373 | E184: =SUM($B$13:$B$2061*D184:D2232) -> 33.79043831
A185: 172 | B185: 0.004746075133 | D185: 0.3264725531 | E185: =SUM($B$13:$B$2061*D185:D2233) -> 33.38695211
A186: 173 | B186: 0.004757283263 | D186: 3.093087681 | E186: =SUM($B$13:$B$2061*D186:D2234) -> 33.04566017
A187: 174 | B187: 0.004759048131 | D187: 8.312699509 | E187: =SUM($B$13:$B$2061*D187:D2235) -> 32.79775975
A188: 175 | B188: 0.004770307726 | D188: 0.9696578594 | E188: =SUM($B$13:$B$2061*D188:D2236) -> 32.70599278
A189: 176 | B189: 0.004772024916 | D189: 4.376583593 | E189: =SUM($B$13:$B$2061*D189:D2237) -> 32.77818252
A190: 177 | B190: 0.004783336802 | D190: 1.8698786 | E190: =SUM($B$13:$B$2061*D190:D2238) -> 33.0444444
A191: 178 | B191: 0.004785006209 | D191: 0.7698438081 | E191: =SUM($B$13:$B$2061*D191:D2239) -> 32.75820601
A192: 179 | B192: 0.004796371333 | D192: 0.2301281879 | E192: =SUM($B$13:$B$2061*D192:D2240) -> 32.53230637
A193: 180 | B193: 0.004797992598 | D193: 0.3121942573 | E193: =SUM($B$13:$B$2061*D193:D2241) -> 32.73903661
A194: 181 | B194: 0.004809411114 | D194: 0.864759119 | E194: =SUM($B$13:$B$2061*D194:D2242) -> 32.61317914
A195: 182 | B195: 0.004810985274 | D195: 1.479890451 | E195: =SUM($B$13:$B$2061*D195:D2243) -> 32.30402388
A196: 183 | B196: 0.004822456799 | D196: 0.5013497443 | E196: =SUM($B$13:$B$2061*D196:D2244) -> 32.25883965
A197: 184 | B197: 0.0048239842 | D197: 0.8507539488 | E197: =SUM($B$13:$B$2061*D197:D2245) -> 32.12848002
A198: 185 | B198: 0.004835509696 | D198: 0.3163759647 | E198: =SUM($B$13:$B$2061*D198:D2246) -> 32.05384546
A199: 186 | B199: 0.004836989728 | D199: 0.1531058387 | E199: =SUM($B$13:$B$2061*D199:D2247) -> 32.10025969
A200: 187 | B200: 0.004848570044 | D200: 1.218904687 | E200: =SUM($B$13:$B$2061*D200:D2248) -> 32.47909463
A201: 188 | B201: 0.004850002713 | D201: 0.455424853 | E201: =SUM($B$13:$B$2061*D201:D2249) -> 32.29661996
... 11860 more rows

Sheet OBAMA-Markov
A1: =Model!A1 -> You must have macros enabled in order for the program to work. You may see the code through the VBA Editor.
A2: =Model!A2 -> Program by Demetris Koutsoyiannis - Please report bugs to dk@itia.ntua.gr | H2: =Model!H2 -> Version 0.6 | J2: =Model!J2 -> 2019-10-23
A3: =Model!A3 -> Linensed under Creative Commons - Attribution Alone (CC-BY)
A4: =Model!A4 -> q | B4: =Model!B4 -> 1024 | C4: =Model!C4 -> The number of coefficients is 2q+1. If you change this number you must adapt the spreadsheet.
A5: Markov or not | B5: 1 | C5: Set 1 for Markov, any other number for FHK (Cauchy climacogram)
A6: H | C6: Hurst parameter (0 <= H <= 1)
A7: M | C7: Fractal (Mandelbrot) parameter (0 <= M <= 1)
A8: α | B8: 20 | C8: Time scale parameter
A9: λ = γ(0) | B9: 1 | C9: State scale parameter
A10: θ0 | B10: 0.125 | C10: (0 for summetric, 1/4 for antisymmetric)
A12: κ, η | B12: γ(κ) | C12: cη | D12: ω | E12: s(ω) | H12: θ(ω) | J12: η | K12: aη | L12: cη convoluted
A13: =IF(B5=1,markov_(B4,B8/2,B9),FHK_Cauchy_(B4,B7,B6,B8,B9)) -> 0 | B13: 1 | C13: 0.9674836072 | D13: =FFTPowSpec_(C13:C1037) -> 0 | E13: 40 | F13: =$E13^0.5/($E$13^0.5+$E$1037^0.5) -> 0.9719560636 | G13: =$E13^-0.5/($E$13^-0.5+$E$1037^-0.5) -> 0.02804393639 | H13: =ACOS(F13+G13)/2/PI() -> 0 | J13: =FFT_amaCoef_(E13:E1037,H13:H1037) -> -1024 | K13: 5.551115123e-17 | L13: =SUM($K$13:$K$2061*K13:K2061) -> 0.9674836072
A14: 1 | B14: 0.9674836072 | C14: 0.9055917006 | D14: 0.00048828125 | E14: 39.96235451 | F14: =$E14^0.5/($E$13^0.5+$E$1037^0.5) -> 0.9714985839 | G14: =$E14^-0.5/($E$13^-0.5+$E$1037^-0.5) -> 0.02805714231 | H14: =ACOS(F14+G14)/2/PI() -> 0.004744348048 | J14: -1023 | K14: 0 | L14: =SUM($K$13:$K$2061*K14:K2062) -> 0.9055917006
A15: 2 | B15: 0.9365376539 | C15: 0.8194132562 | D15: 0.0009765625 | E15: 39.84984165 | F15: 0.9701300068 | G15: 0.02809672294 | H15: =ACOS(F15+G15)/2/PI() -> 0.009479529749 | J15: -1022 | K15: 1.110223025e-16 | L15: =SUM($K$13:$K$2061*K15:K2063) -> 0.8194132562
A16: 3 | B16: 0.9070715707 | C16: 0.741435775 | D16: 0.00146484375 | E16: 39.66372038 | F16: 0.9678618276 | G16: 0.02816256747 | H16: 0.01419648162 | J16: -1021 | K16: 7.142314518e-12 | L16: =SUM($K$13:$K$2061*K16:K2064) -> 0.741435775
A17: 4 | B17: 0.8790005754 | C17: 0.6708788323 | D17: 0.001953125 | E17: 39.40605003 | F17: 0.9647129091 | G17: =$E17^-0.5/($E$13^-0.5+$E$1037^-0.5) -> 0.02825449288 | H17: 0.01888634299 | J17: -1020 | K17: -1.578698283e-11 | L17: =SUM($K$13:$K$2061*K17:K2065) -> 0.6708788323
A18: 5 | B18: 0.8522452777 | C18: 0.6070362704 | D18: 0.00244140625 | E18: 39.07963406 | F18: 0.9607090503 | G18: 0.02837224653 | H18: 0.02354055044 | J18: -1019 | K18: 1.586605847e-11 | L18: =SUM($K$13:$K$2061*K18:K2066) -> 0.6070362704
A19: 6 | B19: 0.8267313116 | C19: 0.5492691316 | D19: 0.0029296875 | E19: 38.68794526 | F19: 0.9558824107 | G19: 0.02851550956 | H19: 0.02815092413 | J19: -1018 | K19: -1.578710773e-11 | L19: =SUM($K$13:$K$2061*K19:K2067) -> 0.5492691316
A20: 7 | B20: 0.8023889951 | C20: 0.4969992628 | D20: 0.00341796875 | E20: 38.23503621 | F20: 0.9502708138 | G20: 0.02868390108 | H20: 0.03270974411 | J20: -1017 | K20: 1.586619724e-11 | L20: =SUM($K$13:$K$2061*K20:K2068) -> 0.4969992628
A21: 8 | B21: 0.7791530129 | C21: 0.4497035298 | D21: 0.00390625 | E21: 37.72543896 | F21: 0.9439169585 | G21: 0.02887698306 | H21: 0.03720981505 | J21: -1016 | K21: -1.578723263e-11 | L21: =SUM($K$13:$K$2061*K21:K2069) -> 0.4497035298
A22: 9 | B22: 0.7569621228 | C22: 0.4069085807 | D22: 0.00439453125 | E22: 37.16405854 | F22: 0.9368675692 | G22: 0.02909426574 | H22: 0.0416445182 | J22: -1015 | K22: 1.5866225e-11 | L22: =SUM($K$13:$K$2061*K22:K2070) -> 0.4069085807
A23: 10 | B23: 0.7357588823 | C23: 0.3681861096 | D23: 0.0048828125 | E23: 36.5560645 | F23: 0.9291725159 | G23: 0.02933521338 | H23: 0.04600785033 | J23: -1014 | K23: -2.292963042e-11 | L23: =SUM($K$13:$K$2061*K23:K2071) -> 0.3681861096
A24: 11 | B24: 0.7154893945 | C24: 0.3331485687 | D24: 0.00537109375 | E24: 35.90678451 | F24: 0.9208839325 | G24: 0.02959925031 | H24: 0.05029444941 | J24: -1013 | K24: 3.1653416e-11 | L24: =SUM($K$13:$K$2061*K24:K2072) -> 0.3331485687
A25: 12 | B25: 0.6961030721 | C25: 0.3014452908 | D25: 0.005859375 | E25: 35.22160364 | F25: 0.9120553613 | G25: 0.029885767 | H25: 0.05449960772 | J25: -1012 | K25: -3.879578603e-11 | L25: =SUM($K$13:$K$2061*K25:K2073) -> 0.3014452908
A26: 13 | B26: 0.6775524178 | C26: 0.2727589786 | D26: 0.00634765625 | E26: 34.50587198 | F26: 0.9027409456 | G26: 0.03019412618 | H26: 0.0586192731 | J26: -1011 | K26: 4.744039883e-11 | L26: =SUM($K$13:$K$2061*K26:K2074) -> 0.2727589786
A27: 14 | B27: 0.6597928203 | C27: 0.2468025299 | D27: 0.0068359375 | E27: 33.7648228 | F27: 0.8929946875 | G27: 0.03052366873 | H27: 0.06265003957 | J27: -1010 | K27: -4.751937038e-11 | L27: =SUM($K$13:$K$2061*K27:K2075) -> 0.2468025299
A28: 15 | B28: 0.6427823646 | C28: 0.2233161639 | D28: 0.00732421875 | E28: 33.0035026 | F28: 0.8828697859 | G28: 0.03087371938 | H28: 0.06658912874 | J28: -1009 | K28: 4.744039883e-11 | L28: =SUM($K$13:$K$2061*K28:K2076) -> 0.2233161639
A29: 16 | B29: 0.6264816547 | C29: 0.2020648212 | D29: 0.0078125 | E29: 32.22671368 | F29: 0.8724180615 | G29: 0.03124359206 | H29: 0.07043436331 | J29: -1008 | K29: -5.466183062e-11 | L29: =SUM($K$13:$K$2061*K29:K2077) -> 0.2020648212
A30: 17 | B30: 0.6108536499 | C30: 0.1828358111 | D30: 0.00830078125 | E30: 31.4389693 | F30: 0.8616894736 | G30: 0.03163259487 | H30: 0.07418413453 | J30: -1007 | K30: 6.32275482e-11 | L30: =SUM($K$13:$K$2061*K30:K2078) -> 0.1828358111
A31: 18 | B31: 0.5958635112 | C31: 0.1654366832 | D31: 0.0087890625 | E31: 30.64446084 | F31: 0.8507317282 | G31: 0.03204003462 | H31: 0.07783736472 | J31: -1006 | K31: -6.338556763e-11 | L31: =SUM($K$13:$K$2061*K31:K2079) -> 0.1654366832
A32: 19 | B32: 0.5814784594 | C32: 0.1496933013 | D32: 0.00927734375 | E32: 29.84703625 | F32: 0.839589975 | G32: 0.03246522092 | H32: 0.08139346667 | J32: -1005 | K32: 6.32276384e-11 | L32: =SUM($K$13:$K$2061*K32:K2080) -> 0.1496933013
A33: 20 | B33: 0.5676676416 | C33: 0.1354481002 | D33: 0.009765625 | E33: 29.05018851 | F33: 0.8283065874 | G33: 0.03290746981 | H33: 0.08485230093 | J33: -1004 | K33: -6.338570988e-11 | L33: =SUM($K$13:$K$2061*K33:K2081) -> 0.1354481002
A34: 21 | B34: 0.5544020083 | C34: 0.1225585093 | D34: 0.01025390625 | E34: 28.25705286 | F34: 0.8169210179 | G34: 0.03336610691 | H34: 0.08821413222 | J34: -1003 | K34: 6.322772861e-11 | L34: =SUM($K$13:$K$2061*K34:K2082) -> 0.1225585093
A35: 22 | B35: 0.5416541977 | C35: 0.1108955251 | D35: 0.0107421875 | E35: 27.47041134 | F35: 0.8054697208 | G35: 0.03384047012 | H35: 0.09147958607 | J35: -1002 | K35: -6.338575498e-11 | L35: =SUM($K$13:$K$2061*K35:K2083) -> 0.1108955251
A36: 23 | B36: 0.5293984286 | C36: 0.1003424206 | D36: 0.01123046875 | E36: 26.69270334 | F36: 0.7939861333 | G36: 0.03432991192 | H36: 0.0946496063 | J36: -1001 | K36: 6.322778412e-11 | L36: =SUM($K$13:$K$2061*K36:K2084) -> 0.1003424206
A37: 24 | B37: 0.5176104004 | C37: 0.09079357679 | D37: 0.01171875 | E37: 25.92604077 | F37: 0.7825007053 | G37: 0.03483380122 | H37: 0.0977254141 | J37: -1000 | K37: -6.338585212e-11 | L37: =SUM($K$13:$K$2061*K37:K2085) -> 0.09079357679
A38: 25 | B38: 0.5062671996 | C38: 0.08215342559 | D38: 0.01220703125 | E38: 25.17222673 | F38: 0.7710409699 | G38: 0.03535152487 | H38: 0.1007084692 | J38: -999 | K38: 6.322793331e-11 | L38: =SUM($K$13:$K$2061*K38:K2086) -> 0.08215342559
A39: 26 | B39: 0.4953472125 | C39: 0.0743354935 | D39: 0.0126953125 | E39: 24.43277647 | F39: 0.7596316454 | G39: 0.03588248882 | H39: 0.1036004336 | J39: -998 | K39: -7.052830889e-11 | L39: =SUM($K$13:$K$2061*K39:K2087) -> 0.0743354935
A40: 27 | B40: 0.4848300446 | C40: 0.06726153601 | D40: 0.01318359375 | E40: 23.70893985 | F40: 0.748294762 | G40: 0.03642611896 | H40: 0.1064031374 | J40: -997 | K40: 7.901500808e-11 | L40: =SUM($K$13:$K$2061*K40:K2088) -> 0.06726153601
A41: 28 | B41: 0.4746964445 | C41: 0.06086075457 | D41: 0.013671875 | E41: 23.00172447 | F41: 0.7370498061 | G41: 0.03698186173 | H41: 0.1091185485 | J41: -996 | K41: -7.9252091e-11 | L41: =SUM($K$13:$K$2061*K41:K2089) -> 0.06086075457
A42: 29 | B42: 0.4649282331 | C42: 0.05506908803 | D42: 0.01416015625 | E42: 22.31191881 | F42: 0.7259138763 | G42: 0.03754918443 | H42: 0.1117487438 | J42: -995 | K42: 7.901516941e-11 | L42: =SUM($K$13:$K$2061*K42:K2090) -> 0.05506908803
A43: 30 | B43: 0.4555082374 | C43: 0.04982857142 | D43: 0.0146484375 | E43: 21.64011488 | F43: 0.7149018465 | G43: 0.03812757535 | H43: 0.1142958844 | J43: -994 | K43: -7.92522506e-11 | L43: =SUM($K$13:$K$2061*K43:K2091) -> 0.04982857142
A44: 31 | B44: 0.4464202294 | C44: 0.04508675591 | D44: 0.01513671875 | E44: 20.98673005 | F44: 0.7040265314 | G44: 0.03871654378 | H44: 0.1167621925 | J44: -993 | K44: 7.901530472e-11 | L44: =SUM($K$13:$K$2061*K44:K2092) -> 0.04508675591
A45: 32 | B45: 0.437648868 | C45: 0.04079618381 | D45: 0.015625 | E45: 20.35202774 | F45: 0.6932988516 | G45: 0.03931561975 | H45: 0.1191499318 | J45: -992 | K45: -7.925240672e-11 | L45: =SUM($K$13:$K$2061*K45:K2093) -> 0.04079618381
A46: 33 | B46: 0.4291796451 | C46: 0.03691391362 | D46: 0.01611328125 | E46: 19.73613683 | F46: 0.6827279954 | G46: 0.03992435378 | H46: 0.1214613897 | J46: -991 | K46: 7.901546778e-11 | L46: =SUM($K$13:$K$2061*K46:K2094) -> 0.03691391362
A47: 34 | B47: 0.4209988356 | C47: 0.03340109029 | D47: 0.0166015625 | E47: 19.13906954 | F47: 0.6723215748 | G47: 0.04054231642 | H47: 0.1236988619 | J47: -990 | K47: -7.92525108e-11 | L47: =SUM($K$13:$K$2061*K47:K2095) -> 0.03340109029
A48: 35 | B48: 0.4130934504 | C48: 0.0302225563 | D48: 0.01708984375 | E48: 18.56073793 | F48: 0.6620857752 | G48: 0.04116909779 | H48: 0.1258646396 | J48: -989 | K48: 7.901558921e-11 | L48: =SUM($K$13:$K$2061*K48:K2096) -> 0.0302225563
A49: 36 | B49: 0.4054511917 | C49: 0.02734649981 | D49: 0.017578125 | E49: 18.0009689 | F49: 0.6520254967 | G49: 0.04180430698 | H49: 0.1279609975 | J49: -988 | K49: -7.925271377e-11 | L49: =SUM($K$13:$K$2061*K49:K2097) -> 0.02734649981
A50: 37 | B50: 0.3980604129 | C50: 0.02474413628 | D50: 0.01806640625 | E50: 17.45951765 | F50: 0.6421444873 | G50: 0.04244757147 | H50: 0.1299901852 | J50: -987 | K50: 8.615811536e-11 | L50: =SUM($K$13:$K$2061*K50:K2098) -> 0.02474413628
A51: 38 | B51: 0.3909100792 | C51: 0.02238942038 | D51: 0.0185546875 | E51: 16.93607982 | F51: 0.6324454664 | G51: 0.04309853651 | H51: 0.1319544183 | J51: -986 | K51: -9.503984492e-11 | L51: =SUM($K$13:$K$2061*K51:K2099) -> 0.02238942038
A52: 39 | B52: 0.3839897319 | C52: 0.02025878533 | D52: 0.01904296875 | E52: 16.43030223 | F52: 0.6229302398 | G52: 0.04375686438 | H52: 0.1338558724 | J52: -985 | K52: 9.488190528e-11 | L52: =SUM($K$13:$K$2061*K52:K2100) -> 0.02025878533
A53: 40 | B53: 0.3772894549 | C53: 0.01833090701 | D53: 0.01953125 | E53: 15.94179245 | F53: 0.6135998054 | G53: 0.04442223381 | H53: 0.1356966774 | J53: -984 | K53: -9.504001145e-11 | L53: =SUM($K$13:$K$2061*K53:K2101) -> 0.01833090701
A54: 41 | B54: 0.3707998424 | C54: 0.01658649057 | D54: 0.02001953125 | E54: 15.47012715 | F54: 0.6044544503 | G54: 0.04509433921 | H54: 0.1374789134 | J54: -983 | K54: 1.02024405e-10 | L54: =SUM($K$13:$K$2061*K54:K2102) -> 0.01658649057
A55: 42 | B55: 0.3645119702 | C55: 0.0150080773 | D55: 0.0205078125 | E55: 15.01485939 | F55: 0.595493839 | G55: 0.04577289005 | H55: 0.1392046076 | J55: -982 | K55: -1.108271313e-10 | L55: =SUM($K$13:$K$2061*K55:K2103) -> 0.0150080773
A56: 43 | B56: 0.3584173671 | C56: 0.01357986991 | D56: 0.02099609375 | E56: 14.57552503 | F56: 0.586717094 | G56: 0.04645761015 | H56: 0.1408757312 | J56: -981 | K56: 1.107481927e-10 | L56: =SUM($K$13:$K$2061*K56:K2104) -> 0.01357986991
A57: 44 | B57: 0.3525079897 | C57: 0.01228757443 | D57: 0.021484375 | E57: 14.15164814 | F57: 0.5781228683 | G57: 0.04714823702 | H57: 0.1424941982 | J57: -980 | K57: -1.108272987e-10 | L57: =SUM($K$13:$K$2061*K57:K2105) -> 0.01228757443
A58: 45 | B58: 0.3467761972 | C58: 0.01111825712 | D58: 0.02197265625 | E58: 13.74274576 | F58: 0.5697094113 | G58: 0.04784452122 | H58: 0.1440618642 | J58: -979 | K58: 1.107483818e-10 | L58: =SUM($K$13:$K$2061*K58:K2106) -> 0.01111825712
A59: 46 | B59: 0.3412147293 | C59: 0.01006021507 | D59: 0.0224609375 | E59: 13.34833187 | F59: 0.5614746275 | G59: 0.04854622575 | H59: 0.1455805255 | J59: -978 | K59: -1.108274596e-10 | L59: =SUM($K$13:$K$2061*K59:K2107) -> 0.01006021507
A60: 47 | B60: 0.3358166842 | C60: 0.009102859026 | D60: 0.02294921875 | E60: 12.96792081 | F60: 0.5534161295 | G60: 0.04925312539 | H60: 0.1470519192 | J60: -977 | K60: 1.107485006e-10 | L60: =SUM($K$13:$K$2061*K60:K2108) -> 0.009102859026
A61: 48 | B61: 0.3305754989 | C61: 0.008236607458 | D61: 0.0234375 | E61: 12.60103006 | F61: 0.5455312852 | G61: 0.04996500615 | H61: 0.1484777231 | J61: -976 | K61: -1.108275763e-10 | L61: =SUM($K$13:$K$2061*K61:K2109) -> 0.008236607458
A62: 49 | B62: 0.3254849299 | C62: 0.007452790626 | D62: 0.02392578125 | E62: 12.24718267 | F62: 0.5378172596 | G62: 0.05068166469 | H62: 0.1498595569 | J62: -975 | K62: 1.107486457e-10 | L62: =SUM($K$13:$K$2061*K62:K2110) -> 0.007452790626
A63: 50 | B63: 0.3205390358 | C63: 0.006743563827 | D63: 0.0244140625 | E63: 11.90590914 | F63: 0.5302710527 | G63: 0.05140290778 | H63: 0.1511989821 | J63: -974 | K63: -1.10827701e-10 | L63: =SUM($K$13:$K$2061*K63:K2111) -> 0.006743563827
A64: 51 | B64: 0.3157321604 | C64: 0.006101828882 | D64: 0.02490234375 | E64: 11.57674905 | F64: 0.5228895318 | G64: 0.05212855175 | H64: 0.1524975039 | J64: -973 | K64: 1.107487743e-10 | L64: =SUM($K$13:$K$2061*K64:K2112) -> 0.006101828882
A65: 52 | B65: 0.3110589175 | C65: 0.005521163091 | D65: 0.025390625 | E65: 11.25925226 | F65: 0.5156694611 | G65: 0.05285842206 | H65: 0.1537565716 | J65: -972 | K65: -1.108278801e-10 | L65: =SUM($K$13:$K$2061*K65:K2113) -> 0.005521163091
A66: 53 | B66: 0.3065141754 | C66: 0.004995754955 | D66: 0.02587890625 | E66: 10.95297992 | F66: 0.5086075274 | G66: 0.05359235275 | H66: 0.1549775804 | J66: -971 | K66: 1.107489985e-10 | L66: =SUM($K$13:$K$2061*K66:K2114) -> 0.004995754955
A67: 54 | B67: 0.302093044 | C67: 0.004520346015 | D67: 0.0263671875 | E67: 10.65750522 | F67: 0.5017003624 | G67: 0.05433018603 | H67: 0.1561618729 | J67: -970 | K67: -1.108280663e-10 | L67: =SUM($K$13:$K$2061*K67:K2115) -> 0.004520346015
A68: 55 | B68: 0.2977908609 | C68: 0.004090178217 | D68: 0.02685546875 | E68: 10.37241392 | F68: 0.4949445625 | G68: 0.05507177184 | H68: 0.15731074 | J68: -969 | K68: 1.107491395e-10 | L68: =SUM($K$13:$K$2061*K68:K2116) -> 0.004090178217
A69: 56 | B69: 0.2936031801 | C69: 0.003700946297 | D69: 0.02734375 | E69: 10.09730473 | F69: 0.4883367059 | G69: 0.05581696745 | H69: 0.1584254234 | J69: -968 | K69: -1.108281989e-10 | L69: =SUM($K$13:$K$2061*K69:K2117) -> 0.003700946297
A70: 57 | B70: 0.2895257596 | C70: 0.003348754692 | D70: 0.02783203125 | E70: 9.831789519 | F70: 0.4818733675 | G70: 0.05656563707 | H70: 0.1595071161 | J70: -967 | K70: 1.107493038e-10 | L70: =SUM($K$13:$K$2061*K70:K2118) -> 0.003348754692
A71: 58 | B71: 0.2855545514 | C71: 0.003030078549 | D71: 0.0283203125 | E71: 9.575493445 | F71: 0.4755511316 | G71: 0.05731765147 | H71: 0.1605569649 | J71: -966 | K71: -1.108284159e-10 | L71: =SUM($K$13:$K$2061*K71:K2119) -> 0.003030078549
A72: 59 | B72: 0.2816856906 | C72: 0.002741728451 | D72: 0.02880859375 | E72: 9.328054927 | F72: 0.4693666033 | G72: 0.05807288765 | H72: 0.1615760716 | J72: -965 | K72: 1.107495105e-10 | L72: =SUM($K$13:$K$2061*K72:K2120) -> 0.002741728451
A73: 60 | B73: 0.2779154862 | C73: 0.002480818492 | D73: 0.029296875 | E73: 9.089125574 | F73: 0.4633164175 | G73: 0.05883122848 | H73: 0.1625654947 | J73: -964 | K73: -1.10828605e-10 | L73: =SUM($K$13:$K$2061*K73:K2121) -> 0.002480818492
A74: 61 | B74: 0.2742404121 | C74: 0.002244737399 | D74: 0.02978515625 | E74: 8.858370026 | F74: 0.4573972472 | G74: 0.05959256246 | H74: 0.1635262511 | J74: -963 | K74: 1.178920053e-10 | L74: =SUM($K$13:$K$2061*K74:K2122) -> 0.002244737399
A75: 62 | B75: 0.2706570984 | C75: 0.002031122392 | D75: 0.0302734375 | E75: 8.635465739 | F75: 0.45160581 | G75: 0.06035678333 | H75: 0.1644593174 | J75: -962 | K75: -1.194734281e-10 | L75: =SUM($K$13:$K$2061*K75:K2123) -> 0.002031122392
A76: 63 | B76: 0.2671623232 | C76: 0.001837835541 | D76: 0.03076171875 | E76: 8.420102728 | F76: 0.4459388739 | G76: 0.06112378986 | H76: 0.1653656318 | J76: -961 | K76: 1.108288929e-10 | L76: =SUM($K$13:$K$2061*K76:K2124) -> 0.001837835541
A77: 64 | B77: 0.2637530057 | C77: 0.001662942366 | D77: 0.03125 | E77: 8.211983272 | F77: 0.4403932622 | G77: 0.06189348558 | H77: 0.1662460953 | J77: -960 | K77: -1.107499861e-10 | L77: =SUM($K$13:$K$2061*K77:K2125) -> 0.001662942366
A78: 65 | B78: 0.2604261983 | C78: 0.001504692477 | D78: 0.03173828125 | E78: 8.01082159 | F78: =$E78^0.5/($E$13^0.5+$E$1037^0.5) -> 0.4349658566 | G78: =$E78^-0.5/($E$13^-0.5+$E$1037^-0.5) -> 0.06266577849 | H78: 0.1671015735 | J78: -959 | K78: 1.108290675e-10 | L78: =SUM($K$13:$K$2061*K78:K2126) -> 0.001504692477
A79: 66 | B79: 0.2571790803 | C79: 0.001361502055 | D79: 0.0322265625 | E79: 7.816343492 | F79: 0.429653601 | G79: 0.06344058088 | H79: =ACOS(F79+G79)/2/PI() -> 0.1679328976 | J79: -958 | K79: -1.107500626e-10 | L79: =SUM($K$13:$K$2061*K79:K2127) -> 0.001361502055
A80: 67 | B80: 0.2540089513 | C80: 0.001231938005 | D80: 0.03271484375 | E80: 7.628286029 | F80: 0.4244535031 | G80: 0.06421780907 | H80: 0.1687408663 | J80: -957 | K80: 1.108291405e-10 | L80: =SUM($K$13:$K$2061*K80:K2128) -> 0.001231938005
A81: 68 | B81: 0.2509132256 | C81: 0.001114703603 | D81: 0.033203125 | E81: 7.446397115 | F81: 0.419362637 | G81: 0.06499738321 | H81: 0.1695262467 | J81: -956 | K81: -1.107501393e-10 | L81: =SUM($K$13:$K$2061*K81:K2129) -> 0.001114703603
A82: 69 | B82: 0.247889426 | C82: 0.00100862553 | D82: 0.03369140625 | E82: 7.270435157 | F82: 0.4143781437 | G82: 0.06577922711 | H82: 0.170289776 | J82: -955 | K82: 1.108291931e-10 | L82: =SUM($K$13:$K$2061*K82:K2130) -> 0.00100862553
A83: 70 | B83: 0.2449351789 | C83: 0.0009126421207 | D83: 0.0341796875 | E83: 7.100168674 | F83: 0.4094972324 | G83: 0.06656326799 | H83: 0.1710321623 | J83: -954 | K83: -1.036079492e-10 | L83: =SUM($K$13:$K$2061*K83:K2131) -> 0.0009126421207
A84: 71 | B84: 0.2420482089 | C84: 0.00082579274 | D84: 0.03466796875 | E84: 6.935375926 | F84: 0.4047171807 | G84: 0.06734943639 | H84: 0.1717540862 | J84: -953 | K84: 8.790004887e-11 | L84: =SUM($K$13:$K$2061*K84:K2132) -> 0.00082579274
A85: 72 | B85: 0.2392263343 | C85: 0.0007472081707 | D85: 0.03515625 | E85: 6.775844533 | F85: 0.4000353351 | G85: 0.06813766592 | H85: 0.172456202 | J85: -952 | K85: -7.909747152e-11 | L85: =SUM($K$13:$K$2061*K85:K2133) -> 0.0007472081707
A86: 73 | B86: 0.2364674625 | C86: 0.0006761019119 | D86: 0.03564453125 | E86: 6.621371113 | F86: 0.3954491103 | G86: 0.06892789316 | H86: 0.1731391382 | J86: -951 | K86: 7.917655152e-11 | L86: =SUM($K$13:$K$2061*K86:K2134) -> 0.0006761019119
A87: 74 | B87: 0.2337695856 | C87: 0.0006117623082 | D87: 0.0361328125 | E87: 6.471760918 | F87: 0.3909559889 | G87: 0.06972005748 | H87: 0.1738034996 | J87: -950 | K87: -8.6239923e-11 | L87: =SUM($K$13:$K$2061*K87:K2135) -> 0.0006117623082
A88: 75 | B88: 0.2311307763 | C88: 0.0005535454275 | D88: 0.03662109375 | E88: 6.326827478 | F88: 0.3865535214 | G88: 0.07051410093 | H88: 0.1744498672 | J88: -949 | K88: 9.496369213e-11 | L88: =SUM($K$13:$K$2061*K88:K2136) -> 0.0005535454275
A89: 76 | B89: 0.2285491846 | C89: 0.0005008686153 | D89: 0.037109375 | E89: 6.186392262 | F89: 0.3822393244 | G89: 0.07130996808 | H89: 0.1750788002 | J89: -948 | K89: -9.496378041e-11 | L89: =SUM($K$13:$K$2061*K89:K2137) -> 0.0005008686153
A90: 77 | B90: 0.2260230335 | C90: 0.0004532046648 | D90: 0.03759765625 | E90: 6.050284339 | F90: 0.3780110806 | G90: 0.07210760589 | H90: 0.1756908361 | J90: -947 | K90: 9.496386858e-11 | L90: =SUM($K$13:$K$2061*K90:K2138) -> 0.0004532046648
A91: 78 | B91: 0.2235506159 | C91: 0.0004100765386 | D91: 0.0380859375 | E91: 5.918340052 | F91: 0.373866537 | G91: 0.07290696364 | H91: 0.1762864923 | J91: -946 | K91: -9.496393948e-11 | L91: =SUM($K$13:$K$2061*K91:K2139) -> 0.0004100765386
A92: 79 | B92: 0.2211302914 | C92: 0.0003710525966 | D92: 0.03857421875 | E92: 5.79040271 | F92: 0.3698035043 | G92: 0.07370799276 | H92: 0.1768662665 | J92: -945 | K92: 9.496401442e-11 | L92: =SUM($K$13:$K$2061*K92:K2140) -> 0.0003710525966
A93: 80 | B93: 0.2187604832 | C93: 0.0003357422731 | D93: 0.0390625 | E93: 5.666322277 | F93: 0.3658198554 | G93: 0.07451064676 | H93: 0.1774306379 | J93: -944 | K93: -9.496411657e-11 | L93: =SUM($K$13:$K$2061*K93:K2141) -> 0.0003357422731
A94: 81 | B94: 0.216439675 | C94: 0.0003037921717 | D94: 0.03955078125 | E94: 5.545955089 | F94: 0.3619135239 | G94: 0.07531488111 | H94: 0.1779800674 | J94: -943 | K94: 9.496418459e-11 | L94: =SUM($K$13:$K$2061*K94:K2142) -> 0.0003037921717
A95: 82 | B95: 0.2141664085 | C95: 0.0002748825243 | D95: 0.0400390625 | E95: 5.429163563 | F95: 0.3580825031 | G95: 0.07612065316 | H95: 0.1785149991 | J95: -942 | K95: -9.496421603e-11 | L95: =SUM($K$13:$K$2061*K95:K2143) -> 0.0002748825243
A96: 83 | B96: 0.2119392805 | C96: 0.0002487239933 | D96: 0.04052734375 | E96: 5.315815935 | F96: 0.3543248445 | G96: 0.07692792207 | H96: 0.1790358607 | J96: -941 | K96: 9.496431266e-11 | L96: =SUM($K$13:$K$2061*K96:K2144) -> 0.0002487239933
A97: 84 | B97: 0.2097569407 | C97: 0.0002250547764 | D97: 0.041015625 | E97: 5.205785997 | F97: 0.3506386562 | G97: 0.07773664865 | H97: 0.1795430638 | J97: -940 | K97: -9.496438241e-11 | L97: =SUM($K$13:$K$2061*K97:K2145) -> 0.0002250547764
A98: 85 | B98: 0.2076180891 | C98: 0.0002036379826 | D98: 0.04150390625 | E98: 5.098952848 | F98: 0.3470221017 | G98: 0.07854679539 | H98: 0.1800370054 | J98: -939 | K98: 9.496445051e-11 | L98: =SUM($K$13:$K$2061*K98:K2146) -> 0.0002036379826
A99: 86 | B99: 0.2055214739 | C99: 0.0001842592662 | D99: 0.0419921875 | E99: 4.995200659 | F99: 0.3434733984 | G99: 0.07935832628 | H99: 0.1805180677 | J99: -938 | K99: -9.496453721e-11 | L99: =SUM($K$13:$K$2061*K99:K2147) -> 0.0001842592662
A100: 87 | B100: 0.2034658894 | C100: 0.0001667246788 | D100: 0.04248046875 | E100: 4.894418442 | F100: 0.339990816 | G100: 0.0801712068 | H100: 0.1809866192 | J100: -937 | K100: 9.496464624e-11 | L100: =SUM($K$13:$K$2061*K100:K2148) -> 0.0001667246788
A101: 88 | B101: 0.2014501739 | C101: 0.0001508587277 | D101: 0.04296875 | E101: 4.796499831 | F101: 0.3365726751 | G101: 0.08098540385 | H101: 0.1814430152 | J101: -936 | K101: -9.496475574e-11 | L101: =SUM($K$13:$K$2061*K101:K2149) -> 0.0001508587277
A102: 89 | B102: 0.1994732076 | C102: 0.0001365026221 | D102: 0.04345703125 | E102: 4.701342879 | F102: 0.333217346 | G102: 0.08180088566 | H102: 0.1818875983 | J102: -935 | K102: 9.496484078e-11 | L102: =SUM($K$13:$K$2061*K102:K2150) -> 0.0001365026221
A103: 90 | B103: 0.1975339114 | C103: 0.0001235126797 | D103: 0.0439453125 | E103: 4.608849853 | F103: 0.329923247 | G103: 0.08261762173 | H103: 0.1823206987 | J103: -934 | K103: -9.496487397e-11 | L103: =SUM($K$13:$K$2061*K103:K2151) -> 0.0001235126797
A104: 91 | B104: 0.1956312442 | C104: 0.0001117588945 | D104: 0.04443359375 | E104: 4.518927048 | F104: 0.3266888431 | G104: 0.0834355828 | H104: 0.1827426353 | J104: -933 | K104: 9.496495934e-11 | L104: =SUM($K$13:$K$2061*K104:K2152) -> 0.0001117588945
A105: 92 | B105: 0.1937642023 | C105: 0.0001011236293 | D105: 0.044921875 | E105: 4.431484601 | F105: 0.3235126447 | G105: 0.08425474078 | H105: 0.1831537155 | J105: -932 | K105: -9.49650469e-11 | L105: =SUM($K$13:$K$2061*K105:K2153) -> 0.0001011236293
A106: 93 | B106: 0.191931817 | C106: 9.150044366e-05 | D106: 0.04541015625 | E106: 4.346436323 | F106: 0.3203932062 | G106: 0.08507506866 | H106: 0.1835542362 | J106: -931 | K106: 8.782282235e-11 | L106: =SUM($K$13:$K$2061*K106:K2154) -> 9.150044366e-05
A107: 94 | B107: 0.1901331536 | C107: 8.279302529e-05 | D107: 0.0458984375 | E107: 4.26369953 | F107: 0.3173291246 | G107: 0.08589654056 | H107: 0.1839444837 | J107: -930 | K107: -7.917825595e-11 | L107: =SUM($K$13:$K$2061*K107:K2155) -> 8.279302529e-05
A108: 95 | B108: 0.1883673097 | C108: 7.49142273e-05 | D108: 0.04638671875 | E108: 4.183194888 | F108: 0.3143190382 | G108: 0.08671913155 | H108: 0.1843247346 | J108: -929 | K108: 7.909933483e-11 | L108: =SUM($K$13:$K$2061*K108:K2156) -> 7.49142273e-05
A109: 96 | B109: 0.1866334143 | C109: 6.778519605e-05 | D109: 0.046875 | E109: 4.104846258 | F109: 0.3113616254 | G109: 0.08754281773 | H109: 0.1846952562 | J109: -928 | K109: -7.917842707e-11 | L109: =SUM($K$13:$K$2061*K109:K2157) -> 6.778519605e-05
A110: 97 | B110: 0.1849306256 | C110: 6.133458146e-05 | D110: 0.04736328125 | E110: 4.028580561 | F110: 0.3084556036 | G110: 0.0883675761 | H110: 0.1850563063 | J110: -927 | K110: 7.909948497e-11 | L110: =SUM($K$13:$K$2061*K110:K2158) -> 6.133458146e-05
A111: 98 | B111: 0.183258131 | C111: 5.549782418e-05 | D111: 0.0478515625 | E111: 3.954327633 | F111: 0.3055997275 | G111: 0.08919338457 | H111: 0.1854081344 | J111: -926 | K111: -7.917851491e-11 | L111: =SUM($K$13:$K$2061*K111:K2159) -> 5.549782418e-05
A112: 99 | B112: 0.1816151449 | C112: 5.021650873e-05 | D112: 0.04833984375 | E112: 3.882020101 | F112: 0.3027927886 | G112: 0.09002022189 | H112: 0.1857509812 | J112: -925 | K112: 7.909959407e-11 | L112: =SUM($K$13:$K$2061*K112:K2160) -> 5.021650873e-05
A113: 100 | B113: 0.180000908 | C113: 4.543777573e-05 | D113: 0.048828125 | E113: 3.811593253 | F113: 0.3000336135 | G113: 0.09084806765 | H113: 0.1860850797 | J113: -924 | K113: -7.917866015e-11 | L113: =SUM($K$13:$K$2061*K113:K2161) -> 4.543777573e-05
A114: 101 | B114: 0.1784146864 | C114: 4.11137994e-05 | D114: 0.04931640625 | E114: 3.742984928 | F114: 0.2973210631 | G114: 0.09167690219 | H114: 0.1864106549 | J114: -923 | K114: 7.909973285e-11 | L114: =SUM($K$13:$K$2061*K114:K2162) -> 4.11137994e-05
A115: 102 | B115: 0.1768557703 | C115: 3.720130462e-05 | D115: 0.0498046875 | E115: 3.676135396 | F115: 0.2946540312 | G115: 0.09250670663 | H115: 0.1867279245 | J115: -922 | K115: -7.917879164e-11 | L115: =SUM($K$13:$K$2061*K115:K2163) -> 3.720130462e-05
A116: 103 | B116: 0.1753234731 | C116: 3.366113197e-05 | D116: 0.05029296875 | E116: 3.610987255 | F116: 0.2920314438 | G116: 0.0933374628 | H116: 0.1870370991 | J116: -921 | K116: 7.909988695e-11 | L116: =SUM($K$13:$K$2061*K116:K2164) -> 3.366113197e-05
A117: 104 | B117: 0.1738171308 | C117: 3.045785138e-05 | D117: 0.05078125 | E117: 3.547485326 | F117: 0.2894522579 | G117: 0.09416915321 | H117: 0.1873383822 | J117: -920 | K117: -8.632131021e-11 | L117: =SUM($K$13:$K$2061*K117:K2165) -> 3.045785138e-05
A118: 105 | B118: 0.1723361004 | C118: 2.755940454e-05 | D118: 0.05126953125 | E118: 3.48557656 | F118: 0.2869154605 | G118: 0.09500176104 | H118: 0.187631971 | J118: -919 | K118: 9.488699463e-11 | L118: =SUM($K$13:$K$2061*K118:K2166) -> 2.755940454e-05
A119: 106 | B119: 0.17087976 | C119: 2.493677994e-05 | D119: 0.0517578125 | E119: 3.425209939 | F119: 0.2844200678 | G119: 0.09583527011 | H119: 0.1879180562 | J119: -918 | K119: -9.504500119e-11 | L119: =SUM($K$13:$K$2061*K119:K2167) -> 2.493677994e-05
A120: 107 | B120: 0.1694475071 | C120: 2.256373182e-05 | D120: 0.05224609375 | E120: 3.366336394 | F120: 0.2819651239 | G120: 0.09666966484 | H120: 0.1881968224 | J120: -917 | K120: 9.488708644e-11 | L120: =SUM($K$13:$K$2061*K120:K2168) -> 2.256373182e-05
A121: 108 | B121: 0.1680387586 | C121: 2.041650873e-05 | D121: 0.052734375 | E121: 3.308908715 | F121: 0.2795497003 | G121: 0.09750493023 | H121: 0.1884684483 | J121: -916 | K121: -9.504520363e-11 | L121: =SUM($K$13:$K$2061*K121:K2169) -> 2.041650873e-05
A122: 109 | B122: 0.1666529494 | C122: 1.847362114e-05 | D122: 0.05322265625 | E122: 3.252881478 | F122: 0.2771728948 | G122: 0.09834105185 | H122: 0.1887331071 | J122: -915 | K122: 9.488731855e-11 | L122: =SUM($K$13:$K$2061*K122:K2170) -> 1.847362114e-05
A123: 110 | B123: 0.1652895323 | C123: 1.671562359e-05 | D123: 0.0537109375 | E123: 3.19821096 | F123: 0.2748338308 | G123: 0.09917801581 | H123: 0.1889909664 | J123: -914 | K123: -9.50453833e-11 | L123: =SUM($K$13:$K$2061*K123:K2171) -> 1.671562359e-05
A124: 111 | B124: 0.1639479768 | C124: 1.51249219e-05 | D124: 0.05419921875 | E124: 3.144855072 | F124: 0.2725316564 | G124: 0.1000158087 | H124: 0.1892421886 | J124: -913 | K124: 8.774518085e-11 | L124: =SUM($K$13:$K$2061*K124:K2172) -> 1.51249219e-05
A125: 112 | B125: 0.162627769 | C125: 1.368559469e-05 | D125: 0.0546875 | E125: 3.092773286 | F125: 0.2702655436 | G125: 0.1008544177 | H125: 0.1894869312 | J125: -912 | K125: -8.64009703e-11 | L125: =SUM($K$13:$K$2061*K125:K2173) -> 1.368559469e-05
A126: 113 | B126: 0.1613284106 | C126: 1.238323875e-05 | D126: 0.05517578125 | E126: 3.041926574 | F126: 0.2680346873 | G126: 0.1016938303 | H126: 0.1897253465 | J126: -911 | K126: 9.480866173e-11 | L126: =SUM($K$13:$K$2061*K126:K2174) -> 1.238323875e-05
A127: 114 | B127: 0.1600494182 | C127: 1.120481784e-05 | D127: 0.0556640625 | E127: 2.992277339 | F127: 0.2658383053 | G127: 0.1025340347 | H127: 0.1899575827 | J127: -910 | K127: -8.798238452e-11 | L127: =SUM($K$13:$K$2061*K127:K2175) -> 1.120481784e-05
A128: 115 | B128: 0.1587903233 | C128: 1.013853807e-05 | D128: 0.05615234375 | E128: 2.943789356 | F128: 0.2636756366 | G128: 0.1033750193 | H128: 0.1901837828 | J128: -909 | K128: 8.616415141e-11 | L128: =SUM($K$13:$K$2061*K128:K2176) -> 1.013853807e-05
A129: 116 | B129: 0.1575506713 | C129: 9.173728358e-06 | D129: 0.056640625 | E129: 2.896427718 | F129: 0.2615459415 | G129: 0.104216773 | H129: 0.1904040861 | J129: -908 | K129: -9.50458968e-11 | L129: =SUM($K$13:$K$2061*K129:K2177) -> 9.173728358e-06
A130: 117 | B130: 0.1563300211 | C130: 8.300733498e-06 | D130: 0.05712890625 | E130: 2.850158779 | F130: 0.2594485006 | G130: 0.1050592852 | H130: 0.1906186274 | J130: -907 | K130: 9.488801089e-11 | L130: =SUM($K$13:$K$2061*K130:K2178) -> 8.300733498e-06
A131: 118 | B131: 0.1551279446 | C131: 7.510814157e-06 | D131: 0.0576171875 | E131: 2.804950098 | F131: 0.2573826141 | G131: 0.1059025456 | H131: 0.1908275374 | J131: -906 | K131: -9.50461223e-11 | L131: =SUM($K$13:$K$2061*K131:K2179) -> 7.510814157e-06
A132: 119 | B132: 0.1539440264 | C132: 6.796064554e-06 | D132: 0.05810546875 | E132: 2.760770397 | F132: 0.2553476013 | G132: 0.1067465442 | H132: 0.1910309431 | J132: -905 | K132: 9.488822785e-11 | L132: =SUM($K$13:$K$2061*K132:K2180) -> 6.796064554e-06
A133: 120 | B133: 0.1527778631 | C133: 6.149334695e-06 | D133: 0.05859375 | E133: 2.717589507 | F133: 0.2533428001 | G133: 0.1075912716 | H133: 0.1912289677 | J133: -904 | K133: -9.504634015e-11 | L133: =SUM($K$13:$K$2061*K133:K2181) -> 6.149334695e-06
A134: 121 | B134: 0.151629063 | C134: 5.564147614e-06 | D134: 0.05908203125 | E134: 2.675378325 | F134: 0.251367566 | G134: 0.1084367186 | H134: 0.1914217307 | J134: -903 | K134: 9.488837763e-11 | L134: =SUM($K$13:$K$2061*K134:K2182) -> 5.564147614e-06
A135: 122 | B135: 0.1504972458 | C135: 5.034649348e-06 | D135: 0.0595703125 | E135: 2.63410877 | F135: 0.2494212722 | G135: 0.1092828763 | H135: 0.1916093482 | J135: -902 | K135: -8.790405977e-11 | L135: =SUM($K$13:$K$2061*K135:K2183) -> 5.034649348e-06
A136: 123 | B136: 0.1493820418 | C136: 4.555538453e-06 | D136: 0.06005859375 | E136: 2.593753744 | F136: 0.2475033082 | G136: 0.1101297361 | H136: 0.1917919329 | J136: -901 | K136: 7.910155004e-11 | L136: =SUM($K$13:$K$2061*K136:K2184) -> 4.555538453e-06
A137: 124 | B137: 0.1482830921 | C137: 4.122022347e-06 | D137: 0.060546875 | E137: 2.554287086 | F137: 0.2456130803 | G137: 0.1109772899 | H137: 0.1919695944 | J137: -900 | K137: -7.918067192e-11 | L137: =SUM($K$13:$K$2061*K137:K2185) -> 4.122022347e-06
A138: 125 | B138: 0.1472000477 | C138: 3.729759555e-06 | D138: 0.06103515625 | E138: 2.515683544 | F138: 0.24375001 | G138: 0.1118255298 | H138: 0.1921424389 | J138: -899 | K138: 7.910177273e-11 | L138: =SUM($K$13:$K$2061*K138:K2186) -> 3.729759555e-06
A139: 126 | B139: 0.1461325696 | C139: 3.37482561e-06 | D139: 0.0615234375 | E139: 2.477918729 | F139: 0.2419135346 | G139: 0.1126744482 | H139: 0.1923105697 | J139: -898 | K139: -7.918086394e-11 | L139: =SUM($K$13:$K$2061*K139:K2187) -> 3.37482561e-06
A140: 127 | B140: 0.145080328 | C140: 3.053669388e-06 | D140: 0.06201171875 | E140: 2.440969089 | F140: 0.2401031058 | G140: 0.1135240377 | H140: 0.1924740872 | J140: -897 | K140: 7.910204216e-11 | L140: =SUM($K$13:$K$2061*K140:K2188) -> 3.053669388e-06
A141: 128 | B141: 0.1440430025 | C141: 2.763074008e-06 | D141: 0.0625 | E141: 2.404811869 | F141: 0.2383181897 | G141: 0.1143742912 | H141: 0.192633089 | J141: -896 | K141: -7.918126619e-11 | L141: =SUM($K$13:$K$2061*K141:K2189) -> 2.763074008e-06
A142: 129 | B142: 0.1430202812 | C142: 2.500132723e-06 | D142: 0.06298828125 | E142: 2.369425085 | F142: =$E142^0.5/($E$13^0.5+$E$1037^0.5) -> 0.2365582664 | G142: =$E142^-0.5/($E$13^-0.5+$E$1037^-0.5) -> 0.115225202 | H142: 0.1927876698 | J142: -895 | K142: 7.910240162e-11 | L142: =SUM($K$13:$K$2061*K142:K2190) -> 2.500132723e-06
A143: 130 | B143: 0.1420118611 | C143: 2.262213911e-06 | D143: 0.0634765625 | E143: 2.33478749 | F143: 0.2348228294 | G143: 0.1160767634 | H143: =ACOS(F143+G143)/2/PI() -> 0.1929379219 | J143: -894 | K143: -7.203917422e-11 | L143: =SUM($K$13:$K$2061*K143:K2191) -> 2.262213911e-06
A144: 131 | B144: 0.1410174471 | C144: 2.046935151e-06 | D144: 0.06396484375 | E144: 2.300878547 | F144: 0.2331113853 | G144: 0.1169289693 | H144: 0.193083935 | J144: -893 | K144: 6.331566842e-11 | L144: =SUM($K$13:$K$2061*K144:K2192) -> 2.046935151e-06
A145: 132 | B145: 0.1400367522 | C145: 1.852144123e-06 | D145: 0.064453125 | E145: 2.267678404 | F145: 0.2314234533 | G145: 0.1177818135 | H145: 0.1932257961 | J145: -892 | K145: -6.331583432e-11 | L145: =SUM($K$13:$K$2061*K145:K2193) -> 1.852144123e-06
A146: 133 | B146: 0.1390694971 | C146: 1.675889052e-06 | D146: 0.06494140625 | E146: 2.23516786 | F146: 0.2297585649 | G146: 0.1186352902 | H146: 0.1933635902 | J146: -891 | K146: 6.331599159e-11 | L146: =SUM($K$13:$K$2061*K146:K2194) -> 1.675889052e-06
A147: 134 | B147: 0.1381154101 | C147: 1.516407337e-06 | D147: 0.0654296875 | E147: 2.203328351 | F147: 0.2281162634 | G147: 0.1194893937 | H147: 0.1934973996 | J147: -890 | K147: -6.331612464e-11 | L147: =SUM($K$13:$K$2061*K147:K2195) -> 1.516407337e-06
A148: 135 | B148: 0.1371742263 | C148: 1.372101451e-06 | D148: 0.06591796875 | E148: 2.172141915 | F148: 0.2264961039 | G148: 0.1203441187 | H148: 0.1936273046 | J148: -889 | K148: 6.3316247e-11 | L148: =SUM($K$13:$K$2061*K148:K2196) -> 1.372101451e-06
A149: 136 | B149: 0.1362456882 | C149: 1.24152939e-06 | D149: 0.06640625 | E149: 2.141591175 | F149: 0.2248976524 | G149: 0.12119946 | H149: 0.1937533834 | J149: -888 | K149: -6.331639738e-11 | L149: =SUM($K$13:$K$2061*K149:K2197) -> 1.24152939e-06
A150: 137 | B150: 0.1353295447 | C150: 1.12338239e-06 | D150: 0.06689453125 | E150: 2.111659317 | F150: 0.223320486 | G150: 0.1220554124 | H150: 0.193875712 | J150: -887 | K150: 6.331653462e-11 | L150: =SUM($K$13:$K$2061*K150:K2198) -> 1.12338239e-06
A151: 138 | B151: 0.1344255515 | C151: 1.016478109e-06 | D151: 0.0673828125 | E151: 2.082330067 | F151: 0.2217641922 | G151: 0.1229119713 | H151: 0.1939943643 | J151: -886 | K151: -6.331656963e-11 | L151: =SUM($K$13:$K$2061*K151:K2199) -> 1.016478109e-06
A152: 139 | B152: 0.1335334705 | C152: 9.197478903e-07 | D152: 0.06787109375 | E152: 2.053587669 | F152: 0.2202283687 | G152: 0.1237691319 | H152: 0.1941094125 | J152: -885 | K152: 6.331669314e-11 | L152: =SUM($K$13:$K$2061*K152:K2200) -> 9.197478903e-07
A153: 140 | B153: 0.1326530697 | C153: 8.322217582e-07 | D153: 0.068359375 | E153: 2.025416872 | F153: 0.2187126232 | G153: 0.1246268899 | H153: 0.1942209267 | J153: -884 | K153: -6.331676107e-11 | L153: =SUM($K$13:$K$2061*K153:K2201) -> 8.322217582e-07
A154: 141 | B154: 0.1317841231 | C154: 7.53025688e-07 | D154: 0.06884765625 | E154: 1.997802904 | F154: 0.2172165731 | G154: 0.125485241 | H154: 0.1943289752 | J154: -883 | K154: 6.331685167e-11 | L154: =SUM($K$13:$K$2061*K154:K2202) -> 7.53025688e-07
A155: 142 | B155: 0.1309264102 | C155: 6.813652362e-07 | D155: 0.0693359375 | E155: 1.970731459 | F155: 0.2157398451 | G155: 0.1263441809 | H155: 0.1944336246 | J155: -882 | K155: -6.331693425e-11 | L155: =SUM($K$13:$K$2061*K155:K2203) -> 6.813652362e-07
A156: 143 | B156: 0.1300797165 | C156: 6.165250852e-07 | D156: 0.06982421875 | E156: 1.944188679 | F156: 0.2142820748 | G156: 0.1272037059 | H156: 0.1945349396 | J156: -881 | K156: 5.617473906e-11 | L156: =SUM($K$13:$K$2061*K156:K2204) -> 6.165250852e-07
A157: 144 | B157: 0.1292438325 | C157: 5.57855401e-07 | D157: 0.0703125 | E157: 1.918161137 | F157: 0.2128429069 | G157: 0.128063812 | H157: 0.1946329836 | J157: -880 | K157: -4.753019851e-11 | L157: =SUM($K$13:$K$2061*K157:K2205) -> 5.57855401e-07
A158: 145 | B158: 0.1284185541 | C158: 5.047677405e-07 | D158: 0.07080078125 | E158: 1.892635819 | F158: 0.2114219944 | G158: 0.1289244957 | H158: 0.194727818 | J158: -879 | K158: 4.745132227e-11 | L158: =SUM($K$13:$K$2061*K158:K2206) -> 5.047677405e-07
A159: 146 | B159: 0.1276036823 | C159: 4.567332326e-07 | D159: 0.0712890625 | E159: 1.867600116 | F159: 0.2100189989 | G159: 0.1297857535 | H159: 0.1948195028 | J159: -878 | K159: -4.038808815e-11 | L159: =SUM($K$13:$K$2061*K159:K2207) -> 4.567332326e-07
A160: 147 | B160: 0.1267990227 | C160: 4.132689355e-07 | D160: 0.07177734375 | E160: 1.843041802 | F160: 0.2086335897 | G160: 0.130647582 | H160: 0.1949080966 | J160: -877 | K160: 3.16645831e-11 | L160: =SUM($K$13:$K$2061*K160:K2208) -> 4.132689355e-07
A161: 148 | B161: 0.1260043862 | C161: 3.739410204e-07 | D161: 0.072265625 | E161: 1.818949024 | F161: 0.2072654444 | G161: 0.131509978 | H161: 0.1949936563 | J161: -876 | K161: -3.166466186e-11 | L161: =SUM($K$13:$K$2061*K161:K2209) -> 3.739410204e-07
A162: 149 | B162: 0.1252195877 | C162: 3.383561307e-07 | D162: 0.07275390625 | E162: 1.795310288 | F162: 0.2059142477 | G162: 0.1323729384 | H162: 0.1950762375 | J162: -875 | K162: 3.166476056e-11 | L162: =SUM($K$13:$K$2061*K162:K2210) -> 3.383561307e-07
A163: 150 | B163: 0.1244444472 | C163: 3.061572897e-07 | D163: 0.0732421875 | E163: 1.772114447 | F163: 0.2045796922 | G163: 0.1332364602 | H163: 0.1951558944 | J163: -874 | K163: -3.166484909e-11 | L163: =SUM($K$13:$K$2061*K163:K2211) -> 3.061572897e-07
A164: 151 | B164: 0.1236787884 | C164: 2.770225365e-07 | D164: 0.07373046875 | E164: 1.749350687 | F164: 0.2032614774 | G164: 0.1341005407 | H164: 0.19523268 | J164: -873 | K164: 3.166497562e-11 | L164: =SUM($K$13:$K$2061*K164:K2212) -> 2.770225365e-07
A165: 152 | B165: 0.1229224398 | C165: 2.506603778e-07 | D165: 0.07421875 | E165: 1.727008519 | F165: 0.2019593097 | G165: 0.1349651772 | H165: 0.1953066456 | J165: -872 | K165: -3.166510873e-11 | L165: =SUM($K$13:$K$2061*K165:K2213) -> 2.506603778e-07
A166: 153 | B166: 0.1221752337 | C166: 2.268070602e-07 | D166: 0.07470703125 | E166: 1.705077761 | F166: 0.2006729027 | G166: 0.135830367 | H166: 0.1953778418 | J166: -871 | K166: 3.166525345e-11 | L166: =SUM($K$13:$K$2061*K166:K2214) -> 2.268070602e-07
A167: 154 | B167: 0.1214370063 | C167: 2.052238415e-07 | D167: 0.0751953125 | E167: 1.683548534 | F167: 0.1994019763 | G167: 0.1366961077 | H167: 0.1954463175 | J167: -870 | K167: -3.166533496e-11 | L167: =SUM($K$13:$K$2061*K167:K2215) -> 2.052238415e-07
A168: 155 | B168: 0.1207075978 | C168: 1.85693807e-07 | D168: 0.07568359375 | E168: 1.66241125 | F168: 0.1981462568 | G168: 0.1375623969 | H168: 0.1955121207 | J168: -869 | K168: 3.166545259e-11 | L168: =SUM($K$13:$K$2061*K168:K2216) -> 1.85693807e-07
A169: 156 | B169: 0.1199868521 | C169: 1.680232344e-07 | D169: 0.076171875 | E169: 1.641656598 | F169: 0.1969054769 | G169: 0.1384292324 | H169: 0.195575298 | J169: -868 | K169: -3.166553685e-11 | L169: =SUM($K$13:$K$2061*K169:K2217) -> 1.680232345e-07
A170: 157 | B170: 0.1192746168 | C170: 1.520329533e-07 | D170: 0.07666015625 | E170: 1.62127554 | F170: 0.1956793752 | G170: 0.1392966121 | H170: 0.1956358951 | J170: -867 | K170: 3.166565072e-11 | L170: =SUM($K$13:$K$2061*K170:K2218) -> 1.520329534e-07
A171: 158 | B171: 0.118570743 | C171: 1.375651664e-07 | D171: 0.0771484375 | E171: 1.601259297 | F171: 0.1944676965 | G171: 0.1401645338 | H171: 0.1956939566 | J171: -866 | K171: -3.166574316e-11 | L171: =SUM($K$13:$K$2061*K171:K2219) -> 1.375651664e-07
A172: 159 | B172: 0.117875085 | C172: 1.244743544e-07 | D172: 0.07763671875 | E172: 1.581599344 | F172: 0.193270191 | G172: 0.1410329957 | H172: 0.1957495259 | J172: -865 | K172: 3.166585493e-11 | L172: =SUM($K$13:$K$2061*K172:K2220) -> 1.244743544e-07
A173: 160 | B173: 0.1171875009 | C173: 1.126290954e-07 | D173: 0.078125 | E173: 1.5622874 | F173: 0.1920866148 | G173: 0.1419019959 | H173: 0.1958026455 | J173: -864 | K173: -3.16659752e-11 | L173: =SUM($K$13:$K$2061*K173:K2221) -> 1.126290954e-07
A174: 161 | B174: 0.1165078516 | C174: 1.019102456e-07 | D174: 0.07861328125 | E174: 1.543315418 | F174: 0.1909167292 | G174: 0.1427715326 | H174: 0.1958533568 | J174: -863 | K174: 3.166610425e-11 | L174: =SUM($K$13:$K$2061*K174:K2222) -> 1.019102456e-07
A175: 162 | B175: 0.1158360013 | C175: 9.221366781e-08 | D175: 0.0791015625 | E175: 1.524675581 | F175: 0.1897603008 | G175: 0.1436416042 | H175: 0.1959017003 | J175: -862 | K175: -3.166619023e-11 | L175: =SUM($K$13:$K$2061*K175:K2223) -> 9.221366783e-08
A176: 163 | B176: 0.1151718174 | C176: 8.343704394e-08 | D176: 0.07958984375 | E176: 1.506360289 | F176: 0.1886171016 | G176: 0.1445122091 | H176: 0.1959477156 | J176: -861 | K176: 3.166632003e-11 | L176: =SUM($K$13:$K$2061*K176:K2224) -> 8.343704398e-08
A177: 164 | B177: 0.1145151701 | C177: 7.549760994e-08 | D177: 0.080078125 | E177: 1.488362159 | F177: 0.1874869084 | G177: 0.1453833457 | H177: 0.1959914413 | J177: -860 | K177: -3.166638251e-11 | L177: =SUM($K$13:$K$2061*K177:K2225) -> 7.549760995e-08
A178: 165 | B178: 0.1138659325 | C178: 6.83126018e-08 | D178: 0.08056640625 | E178: 1.47067401 | F178: 0.1863695028 | G178: 0.1462550128 | H178: 0.1960329152 | J178: -859 | K178: 3.16665309e-11 | L178: =SUM($K$13:$K$2061*K178:K2226) -> 6.831260181e-08
A179: 166 | B179: 0.1132239807 | C179: 6.181244316e-08 | D179: 0.0810546875 | E179: 1.453288863 | F179: 0.1852646715 | G179: 0.1471272089 | H179: 0.196072174 | J179: -858 | K179: -3.166666131e-11 | L179: =SUM($K$13:$K$2061*K179:K2227) -> 6.181244317e-08
A180: 167 | B180: 0.1125891933 | C180: 5.593028618e-08 | D180: 0.08154296875 | E180: 1.436199931 | F180: 0.1841722054 | G180: 0.1479999328 | H180: 0.196109254 | J180: -857 | K180: 3.166684129e-11 | L180: =SUM($K$13:$K$2061*K180:K2228) -> 5.593028621e-08
A181: 168 | B181: 0.1119614516 | C181: 5.060655894e-08 | D181: 0.08203125 | E181: 1.419400612 | F181: 0.1830919002 | G181: 0.1488731833 | H181: 0.1961441902 | J181: -856 | K181: -3.166696122e-11 | L181: =SUM($K$13:$K$2061*K181:K2229) -> 5.060655894e-08
A182: 169 | B182: 0.1113406397 | C182: 4.579214874e-08 | D182: 0.08251953125 | E182: 1.402884486 | F182: 0.1820235558 | G182: 0.1497469594 | H182: 0.1961770171 | J182: -855 | K182: 2.452481111e-11 | L182: =SUM($K$13:$K$2061*K182:K2230) -> 4.579214875e-08
A183: 170 | B183: 0.1107266439 | C183: 4.143385013e-08 | D183: 0.0830078125 | E183: 1.386645306 | F183: 0.1809669766 | G183: 0.1506212599 | H183: 0.1962077684 | J183: -854 | K183: -1.588027036e-11 | L183: =SUM($K$13:$K$2061*K183:K2231) -> 4.143385012e-08
A184: 171 | B184: 0.1101193532 | C184: 3.74911906e-08 | D184: 0.08349609375 | E184: 1.370676997 | F184: 0.179921971 | G184: 0.151496084 | H184: 0.196236477 | J184: -853 | K184: 1.580141884e-11 | L184: =SUM($K$13:$K$2061*K184:K2232) -> 3.749119062e-08
A185: 172 | B185: 0.109518659 | C185: 3.392324288e-08 | D185: 0.083984375 | E185: 1.354973644 | F185: 0.1788883514 | G185: 0.1523714306 | H185: 0.1962631751 | J185: -852 | K185: -1.588048882e-11 | L185: =SUM($K$13:$K$2061*K185:K2233) -> 3.392324286e-08
A186: 173 | B186: 0.1089244547 | C186: 3.069499144e-08 | D186: 0.08447265625 | E186: 1.339529493 | F186: 0.1778659342 | G186: 0.1532472991 | H186: 0.196287894 | J186: -851 | K186: 1.58015972e-11 | L186: =SUM($K$13:$K$2061*K186:K2234) -> 3.069499143e-08
A187: 174 | B187: 0.1083366365 | C187: 2.77741492e-08 | D187: 0.0849609375 | E187: 1.324338942 | F187: 0.1768545399 | G187: 0.1541236885 | H187: 0.1963106647 | J187: -850 | K187: -1.588067851e-11 | L187: =SUM($K$13:$K$2061*K187:K2235) -> 2.77741492e-08
A188: 175 | B188: 0.1077551022 | C188: 2.513070285e-08 | D188: 0.08544921875 | E188: 1.309396539 | F188: 0.1758539922 | G188: 0.1550005984 | H188: 0.1963315171 | J188: -849 | K188: 1.580182989e-11 | L188: =SUM($K$13:$K$2061*K188:K2236) -> 2.513070287e-08
A189: 176 | B189: 0.1071797522 | C189: 2.273918653e-08 | D189: 0.0859375 | E189: 1.294696974 | F189: 0.1748641191 | G189: 0.1558780278 | H189: 0.1963504806 | J189: -848 | K189: -1.588091356e-11 | L189: =SUM($K$13:$K$2061*K189:K2237) -> 2.273918652e-08
A190: 177 | B190: 0.1066104888 | C190: 2.057595339e-08 | D190: 0.08642578125 | E190: 1.280235079 | F190: 0.1738847516 | G190: 0.1567559764 | H190: 0.1963675842 | J190: -847 | K190: 1.580202557e-11 | L190: =SUM($K$13:$K$2061*K190:K2238) -> 2.057595339e-08
A191: 178 | B191: 0.1060472164 | C191: 1.861735655e-08 | D191: 0.0869140625 | E191: 1.266005819 | F191: 0.1729157245 | G191: 0.1576344436 | H191: 0.196382856 | J191: -846 | K191: -1.588112986e-11 | L191: =SUM($K$13:$K$2061*K191:K2239) -> 1.861735653e-08
A192: 179 | B192: 0.1054898412 | C192: 1.684566087e-08 | D192: 0.08740234375 | E192: 1.252004291 | F192: 0.171956876 | G192: 0.1585134288 | H192: 0.1963963235 | J192: -845 | K192: 1.580226889e-11 | L192: =SUM($K$13:$K$2061*K192:K2240) -> 1.68456609e-08
A193: 180 | B193: 0.1049382717 | C193: 1.524267645e-08 | D193: 0.087890625 | E193: 1.238225719 | F193: 0.1710080473 | G193: 0.1593929318 | H193: 0.1964080136 | J193: -844 | K193: -1.588135088e-11 | L193: =SUM($K$13:$K$2061*K193:K2241) -> 1.524267644e-08
A194: 181 | B194: 0.1043924179 | C194: 1.379248715e-08 | D194: 0.08837890625 | E194: 1.22466545 | F194: 0.1700690832 | G194: 0.160272952 | H194: 0.1964179529 | J194: -843 | K194: 1.580246366e-11 | L194: =SUM($K$13:$K$2061*K194:K2242) -> 1.379248718e-08
A195: 182 | B195: 0.1038521918 | C195: 1.24791768e-08 | D195: 0.0888671875 | E195: 1.21131895 | F195: 0.1691398315 | G195: 0.1611534893 | H195: 0.1964261671 | J195: -842 | K195: -1.588155918e-11 | L195: =SUM($K$13:$K$2061*K195:K2243) -> 1.24791768e-08
A196: 183 | B196: 0.1033175073 | C196: 1.129183147e-08 | D196: 0.08935546875 | E196: 1.198181802 | F196: 0.1682201428 | G196: 0.1620345433 | H196: 0.1964326816 | J196: -841 | K196: 2.294498683e-11 | L196: =SUM($K$13:$K$2061*K196:K2244) -> 1.129183148e-08
A197: 184 | B197: 0.1027882798 | C197: 1.021771823e-08 | D197: 0.08984375 | E197: 1.185249699 | F197: 0.1673098711 | G197: 0.1629161139 | H197: 0.196437521 | J197: -840 | K197: -3.166869463e-11 | L197: =SUM($K$13:$K$2061*K197:K2245) -> 1.021771822e-08
A198: 185 | B198: 0.1022644266 | C198: 9.245468391e-09 | D198: 0.09033203125 | E198: 1.172518446 | F198: 0.1664088731 | G198: 0.1637982008 | H198: 0.1964407097 | J198: -839 | K198: 3.166880484e-11 | L198: =SUM($K$13:$K$2061*K198:K2246) -> 9.245468414e-09
A199: 186 | B199: 0.1017458666 | C199: 8.36507752e-09 | D199: 0.0908203125 | E199: 1.159983951 | F199: 0.1655170084 | G199: 0.164680804 | H199: 0.1964422713 | J199: -838 | K199: -3.166889485e-11 | L199: =SUM($K$13:$K$2061*K199:K2247) -> 8.365077497e-09
A200: 187 | B200: 0.1012325203 | C200: 7.569724403e-09 | D200: 0.09130859375 | E200: 1.147642226 | F200: 0.1646341393 | G200: 0.1655639234 | H200: 0.1964422291 | J200: -837 | K200: 3.166903032e-11 | L200: =SUM($K$13:$K$2061*K200:K2248) -> 7.569724428e-09
A201: 188 | B201: 0.1007243097 | C201: 6.848949852e-09 | D201: 0.091796875 | E201: 1.135489382 | F201: 0.1637601308 | G201: 0.1664475589 | H201: 0.1964406059 | J201: -836 | K201: -3.166910899e-11 | L201: =SUM($K$13:$K$2061*K201:K2249) -> 6.848949834e-09
... 1860 more rows

Sheet OBAMA-FHK
A1: =Model!A1 -> You must have macros enabled in order for the program to work. You may see the code through the VBA Editor.
A2: =Model!A2 -> Program by Demetris Koutsoyiannis - Please report bugs to dk@itia.ntua.gr | H2: =Model!H2 -> Version 0.6 | J2: =Model!J2 -> 2019-10-23
A3: =Model!A3 -> Linensed under Creative Commons - Attribution Alone (CC-BY)
A4: =Model!A4 -> q | B4: =Model!B4 -> 1024 | C4: =Model!C4 -> The number of coefficients is 2q+1. If you change this number you must adapt the spreadsheet.
A5: =Model!A5 -> Markov or not | B5: =Model!B5 -> 0 | C5: =Model!C5 -> Set 1 for Markov, any other number for FHK (Cauchy climacogram)
A6: =Model!A6 -> H | B6: =Model!B6 -> 0.8 | C6: =Model!C6 -> Hurst parameter (0 <= H <= 1) | J6: Sum all | K6: =SUM(K13:K2061^2) -> 0.9957466576 | N6: =SUM(N13:N2061^2) -> 0.9957311982
A7: =Model!A7 -> M | B7: =Model!B7 -> 0.7 | C7: =Model!C7 -> Fractal (Mandelbrot) parameter (0 <= M <= 1) | F7: Minimize this by Solver to find θ(ω)---------------> | J7: Sum negative | K7: =SUM(K13:K1036^2) -> 0.006258400832 | N7: =SUM(N13:N1036^2) -> 0
A8: =Model!A8 -> α | B8: =Model!B8 -> 20 | C8: =Model!C8 -> Time scale parameter | F8: θ parameters | K8: =K6-K7 -> 0.9894882568 | N8: =N6-N7 -> 0.9957311982
A9: =Model!A9 -> λ = γ(0) | B9: =Model!B9 -> 1 | C9: =Model!C9 -> State scale parameter | F9: 0.1076628621 | G9: -0.0253573086 | K9: =$B$14/K8 -> 1.006309263 | N9: =$B$14/N8 -> 1
F10: 383.0168747 | G10: 0.4360461304 | J10: Adjustment factor | K10: =K9^0.5 -> 1.003149671
F11: 53.97580689 | G11: 0.2300535085
A12: κ, η | B12: γ(κ) | C12: cη | D12: ω | E12: s(ω) | H12: θ(ω) | J12: η | K12: aη | L12: cη convoluted | N12: aη final | O12: cη convoluted final
A13: =IF(B5=1,markov_(B4,B8/2,B9),FHK_Cauchy_(B4,B7,B6,B8,B9)) -> 0 | B13: 1 | C13: 0.9957311982 | D13: =FFTPowSpec_(C13:C1037) -> 0 | E13: 678.7005505 | F13: =F$10*$D13/(F$11+$D13)+F$9 -> 0.1076628621 | G13: =G$10*(0.5-$D13)/(G$11+0.5-$D13)+G$9 -> 0.2732825345 | H13: 0 | J13: =FFT_amaCoef_(E13:E1037,H13:H1037) -> -1024 | K13: 0.003934768608 | L13: =SUM($K$13:$K$2061*K13:K2061) -> 0.9957466576 | N13: =IF(J13<0,0,K13*$K$10) -> 0 | O13: =SUM($N$13:$N$2061*N13:N2061) -> 0.9957311982
A14: 1 | B14: 0.9957311982 | C14: 0.9820849253 | D14: 0.00048828125 | E14: 192.5504243 | F14: =F$10*$D14/(F$11+$D14)+F$9 -> 0.1111277156 | G14: =G$10*(0.5-$D14)/(G$11+0.5-$D14)+G$9 -> 0.2731905716 | H14: =IFERROR(LN(EXP(-10*F14)+EXP(-10*G14))/-10,0) -> 0.09308120324 | J14: -1023 | K14: 0.003926423586 | L14: =SUM($K$13:$K$2061*K14:K2062) -> 0.9820849483 | N14: =IF(J14<0,0,K14*$K$10) -> 0 | O14: =SUM($N$13:$N$2061*N14:N2062) -> 0.9819161305
A15: 2 | B15: 0.9889080617 | C15: 0.9558070596 | D15: 0.0009765625 | E15: 113.6800236 | F15: 0.1145925065 | G15: 0.2730984856 | H15: 0.09594989936 | J15: -1022 | K15: 0.003927111383 | L15: =SUM($K$13:$K$2061*K15:K2063) -> 0.9557905233 | N15: 0 | O15: =SUM($N$13:$N$2061*N15:N2063) -> 0.9553165002
A16: 3 | B16: 0.9807941572 | C16: 0.9255524266 | D16: 0.00146484375 | E16: 93.34209542 | F16: 0.1180572347 | G16: 0.2730062761 | H16: 0.09880066409 | J16: -1021 | K16: 0.003924925202 | L16: =SUM($K$13:$K$2061*K16:K2064) -> 0.9255199281 | N16: 0 | O16: =SUM($N$13:$N$2061*N16:N2064) -> 0.9250327417
A17: 4 | B17: 0.9718604648 | C17: 0.8936956952 | D17: 0.001953125 | E17: 75.4184916 | F17: 0.1215219002 | G17: 0.2729139429 | H17: 0.1016330757 | J17: -1020 | K17: 0.003919373353 | L17: =SUM($K$13:$K$2061*K17:K2065) -> 0.8936469939 | N17: 0 | O17: =SUM($N$13:$N$2061*N17:N2065) -> 0.89325541
A18: 5 | B18: 0.9623911539 | C18: 0.8615658501 | D18: 0.00244140625 | E18: 66.86872455 | F18: 0.124986503 | G18: 0.2728214858 | H18: 0.1044467093 | J18: -1019 | K18: 0.003917563953 | L18: =SUM($K$13:$K$2061*K18:K2066) -> 0.8615010898 | N18: 0 | O18: =SUM($N$13:$N$2061*N18:N2066) -> 0.8610885908
A19: 6 | B19: 0.9525811655 | C19: 0.8299831163 | D19: 0.0029296875 | E19: 58.25523587 | F19: 0.1284510431 | G19: 0.2727289046 | H19: 0.1072411373 | J19: -1018 | K19: 0.003911428476 | L19: =SUM($K$13:$K$2061*K19:K2067) -> 0.8299021717 | N19: 0 | O19: =SUM($N$13:$N$2061*N19:N2067) -> 0.8293685786
A20: 7 | B20: 0.9425720674 | C20: 0.7994569296 | D20: 0.00341796875 | E20: 53.21210231 | F20: 0.1319155206 | G20: 0.2726361989 | H20: 0.1100159299 | J20: -1017 | K20: 0.003909790453 | L20: =SUM($K$13:$K$2061*K20:K2068) -> 0.7993598806 | N20: 0 | O20: =SUM($N$13:$N$2061*N20:N2068) -> 0.7985241811
A21: 8 | B21: 0.9324696017 | C21: 0.7702915287 | D21: 0.00390625 | E21: 47.90650515 | F21: 0.1353799354 | G21: 0.2725433686 | H21: 0.1127706553 | J21: -1016 | K21: 0.003904069779 | L21: =SUM($K$13:$K$2061*K21:K2069) -> 0.7701782588 | N21: 0 | O21: =SUM($N$13:$N$2061*N21:N2069) -> 0.7689689765
A22: 9 | B22: 0.9223538367 | C22: 0.7426519135 | D22: 0.00439453125 | E22: 44.44489152 | F22: 0.1388442875 | G22: 0.2724504133 | H22: 0.1155048804 | J22: -1015 | K22: 0.003902511058 | L22: =SUM($K$13:$K$2061*K22:K2070) -> 0.7425224893 | N22: 0 | O22: =SUM($N$13:$N$2061*N22:N2070) -> 0.7408380318
A23: 10 | B23: 0.9122857086 | C23: 0.7166082252 | D23: 0.0048828125 | E23: 40.74157428 | F23: 0.1423085769 | G23: 0.2723573328 | H23: 0.1182181713 | J23: -1014 | K23: 0.003897230491 | L23: =SUM($K$13:$K$2061*K23:K2071) -> 0.7164625284 | N23: 0 | O23: =SUM($N$13:$N$2061*N23:N2071) -> 0.7143160561
A24: 11 | B24: 0.9023115487 | C24: 0.6921666425 | D24: 0.00537109375 | E24: 38.15572584 | F24: 0.1457728037 | G24: 0.2722641269 | H24: 0.1209100938 | J24: -1013 | K24: 0.003895648766 | L24: =SUM($K$13:$K$2061*K24:K2072) -> 0.6920047364 | N24: 0 | O24: =SUM($N$13:$N$2061*N24:N2072) -> 0.689382946
A25: 12 | B25: 0.8924663696 | C25: 0.6692911815 | D25: 0.005859375 | E25: 35.37181697 | F25: 0.1492369678 | G25: 0.2721707953 | H25: 0.1235802137 | J25: -1012 | K25: 0.003890667547 | L25: =SUM($K$13:$K$2061*K25:K2073) -> 0.6691129465 | N25: 0 | O25: =SUM($N$13:$N$2061*N25:N2073) -> 0.6660947012
A26: 13 | B26: 0.8827763278 | C26: 0.6479191154 | D26: 0.00634765625 | E26: 33.33550694 | F26: 0.1527010692 | G26: 0.2720773378 | H26: 0.1262280977 | J26: -1011 | K26: 0.003888986935 | L26: =SUM($K$13:$K$2061*K26:K2074) -> 0.6477246143 | N26: 0 | O26: =SUM($N$13:$N$2061*N26:N2074) -> 0.644352162
A27: 14 | B27: 0.8732606113 | C27: 0.6279718324 | D27: 0.0068359375 | E27: 31.13953153 | F27: 0.156165108 | G27: 0.2719837541 | H27: 0.1288533139 | J27: -1010 | K27: 0.003884180851 | L27: =SUM($K$13:$K$2061*K27:K2075) -> 0.6277609457 | N27: 0 | O27: =SUM($N$13:$N$2061*N27:N2075) -> 0.624143805
A28: 15 | B28: 0.8639329062 | C28: 0.6093624078 | D28: 0.00732421875 | E28: 29.47842754 | F28: 0.1596290841 | G28: 0.2718900439 | H28: 0.1314554324 | J28: -1009 | K28: 0.003882364964 | L28: =SUM($K$13:$K$2061*K28:K2076) -> 0.6091351989 | N28: 0 | O28: =SUM($N$13:$N$2061*N28:N2076) -> 0.6053367789
A29: 16 | B29: 0.85480255 | C29: 0.5920008072 | D29: 0.0078125 | E29: 27.68782906 | F29: 0.1630929975 | G29: 0.2717962071 | H29: 0.1340340258 | J29: -1008 | K29: 0.003877655002 | L29: =SUM($K$13:$K$2061*K29:K2077) -> 0.5917571568 | N29: 0 | O29: =SUM($N$13:$N$2061*N29:N2077) -> 0.5878892609
A30: 17 | B30: 0.845875444 | C30: 0.5757973857 | D30: 0.00830078125 | E30: 26.29885694 | F30: 0.1665568483 | G30: 0.2717022432 | H30: 0.13658867 | J30: -1007 | K30: 0.003875698253 | L30: =SUM($K$13:$K$2061*K30:K2078) -> 0.5755373584 | N30: 0 | O30: =SUM($N$13:$N$2061*N30:N2078) -> 0.5716609198
A31: 18 | B31: 0.8371547796 | C31: 0.5606651706 | D31: 0.0087890625 | E31: 24.80358592 | F31: 0.1700206364 | G31: 0.2716081521 | H31: 0.1391189449 | J31: -1006 | K31: 0.003871040862 | L31: =SUM($K$13:$K$2061*K31:K2079) -> 0.560388648 | N31: 0 | O31: =SUM($N$13:$N$2061*N31:N2079) -> 0.5566010596
A32: 19 | B32: 0.8286416183 | C32: 0.5465212781 | D32: 0.00927734375 | E32: 23.6210368 | F32: 0.1734843618 | G32: 0.2715139336 | H32: 0.1416244349 | J32: -1005 | K32: 0.003868955367 | L32: =SUM($K$13:$K$2061*K32:K2080) -> 0.5462283258 | N32: 0 | O32: =SUM($N$13:$N$2061*N32:N2080) -> 0.5425758098
A33: 20 | B33: 0.820335356 | C33: 0.533287725 | D33: 0.009765625 | E33: 22.35005612 | F33: 0.1769480246 | G33: 0.2714195873 | H33: 0.1441047298 | J33: -1004 | K33: 0.003864330412 | L33: =SUM($K$13:$K$2061*K33:K2081) -> 0.5329782253 | N33: 0 | O33: =SUM($N$13:$N$2061*N33:N2081) -> 0.5295368941
A34: 21 | B34: 0.8122340953 | C34: 0.5208918186 | D34: 0.01025390625 | E34: 21.32951702 | F34: 0.1804116247 | G34: 0.271325113 | H34: 0.1465594252 | J34: -1003 | K34: 0.003862135349 | L34: =SUM($K$13:$K$2061*K34:K2082) -> 0.520565838 | N34: 0 | O34: =SUM($N$13:$N$2061*N34:N2082) -> 0.5173632708
A35: 22 | B35: 0.8043349448 | C35: 0.5092662615 | D35: 0.0107421875 | E35: 20.2344396 | F35: 0.1838751622 | G35: 0.2712305105 | H35: 0.1489881237 | J35: -1002 | K35: 0.003857534422 | L35: =SUM($K$13:$K$2061*K35:K2083) -> 0.5089236833 | N35: 0 | O35: =SUM($N$13:$N$2061*N35:N2083) -> 0.5060142059
A36: 23 | B36: 0.7966342592 | C36: 0.498349067 | D36: 0.01123046875 | E36: 19.344455 | F36: 0.1873386371 | G36: 0.2711357794 | H36: 0.1513904351 | J36: -1001 | K36: 0.003855251671 | L36: =SUM($K$13:$K$2061*K36:K2084) -> 0.4979899586 | N36: 0 | O36: =SUM($N$13:$N$2061*N36:N2084) -> 0.4953834563
A37: 24 | B37: 0.7891278316 | C37: 0.4880833527 | D37: 0.01171875 | E37: 18.3908623 | F37: 0.1908020493 | G37: 0.2710409195 | H37: 0.1537659775 | J37: -1000 | K37: 0.003850671613 | L37: =SUM($K$13:$K$2061*K37:K2085) -> 0.487707598 | N37: 0 | O37: =SUM($N$13:$N$2061*N37:N2085) -> 0.4854394326
A38: 25 | B38: 0.781811049 | C38: 0.478417062 | D38: 0.01220703125 | E38: 17.60829042 | F38: 0.1942653988 | G38: 0.2709459306 | H38: 0.1561143779 | J38: -999 | K38: 0.003848320616 | L38: =SUM($K$13:$K$2061*K38:K2086) -> 0.4780247292 | N38: 0 | O38: =SUM($N$13:$N$2061*N38:N2086) -> 0.4760903137
A39: 26 | B39: 0.7746790154 | C39: 0.4693026461 | D39: 0.0126953125 | E39: 16.77081423 | F39: 0.1977286857 | G39: 0.2708508124 | H39: 0.1584352728 | J39: -998 | K39: 0.003843761309 | L39: =SUM($K$13:$K$2061*K39:K2087) -> 0.4688936197 | N39: 0 | O39: =SUM($N$13:$N$2061*N39:N2087) -> 0.4673134155
A40: 27 | B40: 0.7677266508 | C40: 0.46069673 | D40: 0.01318359375 | E40: 16.07808839 | F40: 0.2011919099 | G40: 0.2707555646 | H40: 0.1607283092 | J40: -997 | K40: 0.003841358936 | L40: =SUM($K$13:$K$2061*K40:K2088) -> 0.460271079 | N40: 0 | O40: =SUM($N$13:$N$2061*N40:N2088) -> 0.4590298702
A41: 28 | B41: 0.7609487704 | C41: 0.4525597782 | D41: 0.013671875 | E41: 15.33747139 | F41: 0.2046550715 | G41: 0.270660187 | H41: 0.162993145 | J41: -996 | K41: 0.00383682025 | L41: =SUM($K$13:$K$2061*K41:K2089) -> 0.4521173875 | N41: 0 | O41: =SUM($N$13:$N$2061*N41:N2089) -> 0.4512248267
A42: 29 | B42: 0.7543401463 | C42: 0.4448557689 | D42: 0.01416015625 | E42: 14.72090614 | F42: 0.2081181705 | G42: 0.2705646792 | H42: 0.16522945 | J42: -995 | K42: 0.003834380196 | L42: =SUM($K$13:$K$2061*K42:K2090) -> 0.4443967081 | N42: 0 | O42: =SUM($N$13:$N$2061*N42:N2090) -> 0.4438305292
A43: 30 | B43: 0.7478955574 | C43: 0.4375518852 | D43: 0.0146484375 | E43: 14.06216448 | F43: 0.2115812068 | G43: 0.2704690411 | H43: 0.1674369064 | J43: -994 | K43: 0.00382986197 | L43: =SUM($K$13:$K$2061*K43:K2091) -> 0.4370760398 | N43: 0 | O43: =SUM($N$13:$N$2061*N43:N2091) -> 0.43683862
A44: 31 | B44: 0.7416098273 | C44: 0.4306182243 | D44: 0.01513671875 | E44: 13.51086447 | F44: 0.2150441805 | G44: 0.2703732724 | H44: 0.1696152098 | J44: -993 | K44: 0.003827395507 | L44: =SUM($K$13:$K$2061*K44:K2092) -> 0.4301256644 | N44: 0 | O44: =SUM($N$13:$N$2061*N44:N2092) -> 0.4301906239
A45: 32 | B45: 0.7354778543 | C45: 0.4240275288 | D45: 0.015625 | E45: 12.92209454 | F45: 0.2185070916 | G45: 0.2702773727 | H45: 0.1717640692 | J45: -992 | K45: 0.003822896294 | L45: =SUM($K$13:$K$2061*K45:K2093) -> 0.4235181403 | N45: 0 | O45: =SUM($N$13:$N$2061*N45:N2093) -> 0.4238833622
A46: 33 | B46: 0.7294946342 | C46: 0.4177549386 | D46: 0.01611328125 | E46: 12.42722664 | F46: 0.22196994 | G46: 0.2701813419 | H46: 0.1738832086 | J46: -991 | K46: 0.003820413046 | L46: =SUM($K$13:$K$2061*K46:K2094) -> 0.4172287921 | N46: 0 | O46: =SUM($N$13:$N$2061*N46:N2094) -> 0.4178659954
A47: 34 | B47: 0.7236552772 | C47: 0.4117777647 | D47: 0.0166015625 | E47: 11.89880395 | F47: 0.2254327257 | G47: 0.2700851796 | H47: 0.1759723667 | J47: -990 | K47: 0.003815931487 | L47: =SUM($K$13:$K$2061*K47:K2095) -> 0.4112347465 | N47: 0 | O47: =SUM($N$13:$N$2061*N47:N2095) -> 0.4121393644
A48: 35 | B48: 0.7179550202 | C48: 0.4060752829 | D48: 0.01708984375 | E48: 11.45309653 | F48: 0.2288954489 | G48: 0.2699888856 | H48: 0.1780312981 | J48: -989 | K48: 0.003813437926 | L48: =SUM($K$13:$K$2061*K48:K2096) -> 0.4055154641 | N48: 0 | O48: =SUM($N$13:$N$2061*N48:N2096) -> 0.406658869
A49: 36 | B49: 0.7123892358 | C49: 0.400628547 | D49: 0.017578125 | E49: 10.97712201 | F49: 0.2323581094 | G49: 0.2698924596 | H49: 0.1800597736 | J49: -988 | K49: 0.003808973136 | L49: =SUM($K$13:$K$2061*K49:K2097) -> 0.4000518141 | N49: 0 | O49: =SUM($N$13:$N$2061*N49:N2097) -> 0.4014284074
A50: 37 | B50: 0.7069534379 | C50: 0.3954202191 | D50: 0.01806640625 | E50: 10.57451093 | F50: 0.2358207073 | G50: 0.2697959014 | H50: 0.1820575809 | J50: -987 | K50: 0.00380647416 | L50: =SUM($K$13:$K$2061*K50:K2098) -> 0.3948266436 | N50: 0 | O50: =SUM($N$13:$N$2061*N50:N2098) -> 0.3964084714
A51: 38 | B51: 0.7016432853 | C51: 0.3904344174 | D51: 0.0185546875 | E51: 10.14441826 | F51: 0.2392832426 | G51: 0.2696992106 | H51: 0.184024525 | J51: -986 | K51: 0.003802024881 | L51: =SUM($K$13:$K$2061*K51:K2099) -> 0.3898238863 | N51: 0 | O51: =SUM($N$13:$N$2061*N51:N2099) -> 0.3916052461
A52: 39 | B52: 0.6964545826 | C52: 0.3856565782 | D52: 0.01904296875 | E52: 9.779790477 | F52: 0.2427457152 | G52: 0.269602387 | H52: 0.1859604287 | J52: -985 | K52: 0.003799525008 | L52: =SUM($K$13:$K$2061*K52:K2100) -> 0.3850291633 | N52: 0 | O52: =SUM($N$13:$N$2061*N52:N2100) -> 0.386983392
A53: 40 | B53: 0.6913832809 | C53: 0.381073332 | D53: 0.01953125 | E53: 9.390061041 | F53: 0.2462081253 | G53: 0.2695054304 | H53: 0.187865133 | J53: -984 | K53: 0.003795089267 | L53: =SUM($K$13:$K$2061*K53:K2101) -> 0.3804289206 | N53: 0 | O53: =SUM($N$13:$N$2061*N53:N2101) -> 0.38255078
A54: 41 | B54: 0.6864254762 | C54: 0.3766723914 | D54: 0.02001953125 | E54: 9.059064818 | F54: 0.2496704727 | G54: 0.2694083404 | H54: 0.1897384976 | J54: -983 | K54: 0.003792591902 | L54: =SUM($K$13:$K$2061*K54:K2102) -> 0.3760110557 | N54: 0 | O54: =SUM($N$13:$N$2061*N54:N2102) -> 0.3782755034
A55: 42 | B55: 0.6815774072 | C55: 0.3724424513 | D55: 0.0205078125 | E55: 8.705016568 | F55: 0.2531327574 | G55: 0.2693111167 | H55: 0.1915804011 | J55: -982 | K55: 0.003788168513 | L55: =SUM($K$13:$K$2061*K55:K2103) -> 0.3717640787 | N55: 0 | O55: =SUM($N$13:$N$2061*N55:N2103) -> 0.3741666564
A56: 43 | B56: 0.6768354527 | C56: 0.3683730975 | D56: 0.02099609375 | E56: 8.403918191 | F56: 0.2565949796 | G56: 0.2692137592 | H56: 0.1933907413 | J56: -981 | K56: 0.003785676201 | L56: =SUM($K$13:$K$2061*K56:K2104) -> 0.3676777606 | N56: 0 | O56: =SUM($N$13:$N$2061*N56:N2104) -> 0.3701951819
A57: 44 | B57: 0.6721961281 | C57: 0.3644547263 | D57: 0.021484375 | E57: 8.081546227 | F57: 0.2600571391 | G57: 0.2691162675 | H57: 0.1951694356 | J57: -980 | K57: 0.00378126296 | L57: =SUM($K$13:$K$2061*K57:K2105) -> 0.3637423129 | N57: 0 | O57: =SUM($N$13:$N$2061*N57:N2105) -> 0.3663710455
A58: 45 | B58: 0.6676560817 | C58: 0.3606784703 | D58: 0.02197265625 | E58: 7.807119929 | F58: 0.2635192361 | G58: 0.2690186413 | H58: 0.1969164211 | J58: -979 | K58: 0.003778779075 | L58: =SUM($K$13:$K$2061*K58:K2106) -> 0.359949053 | N58: 0 | O58: =SUM($N$13:$N$2061*N58:N2106) -> 0.3626675772
A59: 46 | B59: 0.6632120906 | C59: 0.357036133 | D59: 0.0224609375 | E59: 7.512974143 | F59: 0.2669812704 | G59: 0.2689208804 | H59: 0.1986316548 | J59: -978 | K59: 0.00377437407 | L59: =SUM($K$13:$K$2061*K59:K2107) -> 0.3562896001 | N59: 0 | O59: =SUM($N$13:$N$2061*N59:N2107) -> 0.3590953477
A60: 47 | B60: 0.6588610567 | C60: 0.3535201291 | D60: 0.02294921875 | E60: 7.262416171 | F60: 0.2704432421 | G60: 0.2688229845 | H60: 0.2003151137 | J60: -977 | K60: 0.003771900239 | L60: =SUM($K$13:$K$2061*K60:K2108) -> 0.3527565536 | N60: 0 | O60: =SUM($N$13:$N$2061*N60:N2108) -> 0.3556297059
A61: 48 | B61: 0.6546000022 | C61: 0.3501234308 | D61: 0.0234375 | E61: 6.99350586 | F61: 0.2739051512 | G61: 0.2687249532 | H61: 0.2019667949 | J61: -976 | K61: 0.003767502236 | L61: =SUM($K$13:$K$2061*K61:K2109) -> 0.3493427011 | N61: 0 | O61: =SUM($N$13:$N$2061*N61:N2109) -> 0.3522816265
A62: 49 | B62: 0.6504260653 | C62: 0.3468395198 | D62: 0.02392578125 | E62: 6.764366434 | F62: 0.2773669977 | G62: 0.2686267865 | H62: 0.2035867153 | J62: -975 | K62: 0.00376504001 | L62: =SUM($K$13:$K$2061*K62:K2110) -> 0.3460417089 | N62: 0 | O62: =SUM($N$13:$N$2061*N62:N2110) -> 0.3490281826
A63: 50 | B63: 0.6463364958 | C63: 0.3436623428 | D63: 0.0244140625 | E63: 6.518084943 | F63: 0.2808287816 | G63: 0.2685284838 | H63: 0.2051749121 | J63: -974 | K63: 0.003760647936 | L63: =SUM($K$13:$K$2061*K63:K2111) -> 0.3428473395 | N63: 0 | O63: =SUM($N$13:$N$2061*N63:N2111) -> 0.3458806021
A64: 51 | B64: 0.6423286509 | C64: 0.3405862727 | D64: 0.02490234375 | E64: 6.308213668 | F64: 0.2842905029 | G64: 0.268430045 | H64: 0.2067314423 | J64: -973 | K64: 0.003758198246 | L64: =SUM($K$13:$K$2061*K64:K2112) -> 0.3397541505 | N64: 0 | O64: =SUM($N$13:$N$2061*N64:N2112) -> 0.3428174437
A65: 52 | B65: 0.6383999907 | C65: 0.3376060729 | D65: 0.025390625 | E65: 6.082278089 | F65: 0.2877521616 | G65: 0.2683314698 | H65: 0.2082563826 | J65: -972 | K65: 0.003753810873 | L65: =SUM($K$13:$K$2061*K65:K2113) -> 0.3367567206 | N65: 0 | O65: =SUM($N$13:$N$2061*N65:N2113) -> 0.3398500749
A66: 53 | B66: 0.6345480744 | C66: 0.3347168644 | D66: 0.02587890625 | E66: 5.889779664 | F66: 0.2912137577 | G66: 0.2682327579 | H66: 0.2097498294 | J66: -971 | K66: 0.003751375517 | L66: =SUM($K$13:$K$2061*K66:K2114) -> 0.3338503557 | N66: 0 | O66: =SUM($N$13:$N$2061*N66:N2114) -> 0.3369583467
A67: 54 | B67: 0.6307705558 | C67: 0.3319140969 | D67: 0.0263671875 | E67: 5.682182034 | F67: 0.2946752912 | G67: 0.268133909 | H67: 0.2112118983 | J67: -970 | K67: 0.003746991088 | L67: =SUM($K$13:$K$2061*K67:K2115) -> 0.3310303208 | N67: 0 | O67: =SUM($N$13:$N$2061*N67:N2115) -> 0.3341536804
A68: 55 | B68: 0.6270651798 | C68: 0.329193522 | D68: 0.02685546875 | E68: 5.505379933 | F68: 0.298136762 | G68: 0.2680349228 | H68: 0.2126427241 | J68: -969 | K68: 0.003744570877 | L68: =SUM($K$13:$K$2061*K68:K2116) -> 0.3282925525 | N68: 0 | O68: =SUM($N$13:$N$2061*N68:N2116) -> 0.3314170601
A69: 56 | B69: 0.6234297781 | C69: 0.3265511694 | D69: 0.02734375 | E69: 5.314347355 | F69: 0.3015981703 | G69: 0.267935799 | H69: 0.2140424602 | J69: -968 | K69: 0.00374018901 | L69: =SUM($K$13:$K$2061*K69:K2117) -> 0.3256328957 | N69: 0 | O69: =SUM($N$13:$N$2061*N69:N2117) -> 0.3287598967
A70: 57 | B70: 0.6198622657 | C70: 0.3239833246 | D70: 0.02783203125 | E70: 5.15175376 | F70: 0.305059516 | G70: 0.2678365374 | H70: 0.2154112783 | J70: -967 | K70: 0.00373778445 | L70: =SUM($K$13:$K$2061*K70:K2118) -> 0.3230478208 | N70: 0 | O70: =SUM($N$13:$N$2061*N70:N2118) -> 0.3261641756
A71: 58 | B71: 0.6163606378 | C71: 0.3214865089 | D71: 0.0283203125 | E71: 4.975715489 | F71: 0.3085207991 | G71: 0.2677371377 | H71: 0.2167493681 | J71: -966 | K71: 0.003733403821 | L71: =SUM($K$13:$K$2061*K71:K2119) -> 0.3205336646 | N71: 0 | O71: =SUM($N$13:$N$2061*N71:N2119) -> 0.3236412495
A72: 59 | B72: 0.6129229654 | C72: 0.3190574618 | D72: 0.02880859375 | E72: 4.826006203 | F72: 0.3119820197 | G72: 0.2676375996 | H72: 0.2180569367 | J72: -965 | K72: 0.003731016059 | L72: =SUM($K$13:$K$2061*K72:K2120) -> 0.3180873511 | N72: 0 | O72: =SUM($N$13:$N$2061*N72:N2120) -> 0.3211739945
A73: 60 | B73: 0.6095473929 | C73: 0.3166931234 | D73: 0.029296875 | E73: 4.663566268 | F73: 0.3154431776 | G73: 0.2675379227 | H73: 0.2193342081 | J73: -964 | K73: 0.003726635562 | L73: =SUM($K$13:$K$2061*K73:K2121) -> 0.3157056361 | N73: 0 | O73: =SUM($N$13:$N$2061*N73:N2121) -> 0.3187736692
A74: 61 | B74: 0.6062321346 | C74: 0.3143906205 | D74: 0.02978515625 | E74: 4.525559603 | F74: 0.3189042729 | G74: 0.2674381068 | H74: 0.2205814229 | J74: -963 | K74: 0.003724265719 | L74: =SUM($K$13:$K$2061*K74:K2122) -> 0.313385831 | N74: 0 | O74: =SUM($N$13:$N$2061*N74:N2122) -> 0.3164239479
A75: 62 | B75: 0.6029754715 | C75: 0.3121472519 | D75: 0.0302734375 | E75: 4.375473857 | F75: 0.3223653057 | G75: 0.2673381516 | H75: 0.2217988373 | J75: -962 | K75: 0.003719883717 | L75: =SUM($K$13:$K$2061*K75:K2123) -> 0.31112505 | N75: 0 | O75: =SUM($N$13:$N$2061*N75:N2123) -> 0.3141359682
A76: 63 | B76: 0.5997757486 | C76: 0.3099604758 | D76: 0.03076171875 | E76: 4.248112769 | F76: 0.3258262759 | G76: 0.2672380569 | H76: 0.222986723 | J76: -961 | K76: 0.003717532594 | L76: =SUM($K$13:$K$2061*K76:K2124) -> 0.3089209363 | N76: 0 | O76: =SUM($N$13:$N$2061*N76:N2124) -> 0.3118941238
A77: 64 | B77: 0.5966313724 | C77: 0.307827899 | D77: 0.03125 | E77: 4.109269516 | F77: 0.3292871835 | G77: 0.2671378222 | H77: 0.2241453662 | J77: -960 | K77: 0.003713148787 | L77: =SUM($K$13:$K$2061*K77:K2125) -> 0.3067709118 | N77: 0 | O77: =SUM($N$13:$N$2061*N77:N2125) -> 0.309709412
A78: 65 | B78: 0.5935408076 | C78: 0.3057472655 | D78: 0.03173828125 | E78: 3.991606371 | F78: =F$10*$D78/(F$11+$D78)+F$9 -> 0.3327480285 | G78: =G$10*(0.5-$D78)/(G$11+0.5-$D78)+G$9 -> 0.2670374474 | H78: =IFERROR(LN(EXP(-10*F78)+EXP(-10*G78))/-10,0) -> 0.2252750672 | J78: -959 | K78: 0.003710816168 | L78: =SUM($K$13:$K$2061*K78:K2126) -> 0.3046729054 | N78: =IF(J78<0,0,K78*$K$10) -> 0 | O78: =SUM($N$13:$N$2061*N78:N2126) -> 0.3075668782
A79: 66 | B79: 0.5905025751 | C79: 0.303716447 | D79: 0.0322265625 | E79: 3.863009924 | F79: 0.3362088109 | G79: 0.2669369321 | H79: 0.2263761395 | J79: -958 | K79: 0.003706430293 | L79: =SUM($K$13:$K$2061*K79:K2127) -> 0.3026246042 | N79: 0 | O79: =SUM($N$13:$N$2061*N79:N2127) -> 0.3054773657
A80: 67 | B80: 0.5875152496 | C80: 0.3017334342 | D80: 0.03271484375 | E80: 3.754193453 | F80: 0.3396695308 | G80: 0.2668362761 | H80: 0.2274489094 | J80: -957 | K80: 0.003704116687 | L80: =SUM($K$13:$K$2061*K80:K2128) -> 0.3006241837 | N80: 0 | O80: =SUM($N$13:$N$2061*N80:N2128) -> 0.3034265133
A81: 68 | B81: 0.5845774569 | C81: 0.2997963286 | D81: 0.033203125 | E81: 3.634950079 | F81: 0.343130188 | G81: 0.266735479 | H81: 0.228493715 | J81: -956 | K81: 0.003699727493 | L81: =SUM($K$13:$K$2061*K81:K2129) -> 0.2986695607 | N81: 0 | O81: =SUM($N$13:$N$2061*N81:N2129) -> 0.3014250005
A82: 69 | B82: 0.5816878719 | C82: 0.2979033347 | D82: 0.03369140625 | E82: 3.534214145 | F82: 0.3465907828 | G82: 0.2666345405 | H82: 0.2295109059 | J82: -955 | K82: 0.003697433758 | L82: =SUM($K$13:$K$2061*K82:K2130) -> 0.2967591246 | N82: 0 | O82: =SUM($N$13:$N$2061*N82:N2130) -> 0.299459009
A83: 70 | B83: 0.5788452169 | C83: 0.2960527531 | D83: 0.0341796875 | E83: 3.423520009 | F83: 0.3500513149 | G83: 0.2665334604 | H83: 0.2305008418 | J83: -954 | K83: 0.003693040575 | L83: =SUM($K$13:$K$2061*K83:K2131) -> 0.2948909912 | N83: 0 | O83: =SUM($N$13:$N$2061*N83:N2131) -> 0.2975390484
A84: 71 | B84: 0.5760482588 | C84: 0.2942429745 | D84: 0.03466796875 | E84: 3.33017389 | F84: 0.3535117845 | G84: 0.2664322383 | H84: 0.2314638928 | J84: -953 | K84: 0.003690766537 | L84: =SUM($K$13:$K$2061*K84:K2132) -> 0.2930637361 | N84: 0 | O84: =SUM($N$13:$N$2061*N84:N2132) -> 0.295651799
A85: 72 | B85: 0.5732958079 | C85: 0.2924724733 | D85: 0.03515625 | E85: 3.22730465 | F85: 0.3569721915 | G85: 0.266330874 | H85: 0.2324004375 | J85: -952 | K85: 0.003686369499 | L85: =SUM($K$13:$K$2061*K85:K2133) -> 0.2912756491 | N85: 0 | O85: =SUM($N$13:$N$2061*N85:N2133) -> 0.2938075966
A86: 73 | B86: 0.5705867159 | C86: 0.2907398026 | D86: 0.03564453125 | E86: 3.140724608 | F86: 0.3604325359 | G86: 0.2662293672 | H86: 0.2333108631 | J86: -951 | K86: 0.003684115247 | L86: =SUM($K$13:$K$2061*K86:K2134) -> 0.2895254679 | N86: 0 | O86: =SUM($N$13:$N$2061*N86:N2134) -> 0.2919935817
A87: 74 | B87: 0.5679198739 | C87: 0.2890435887 | D87: 0.0361328125 | E87: 3.045026406 | F87: 0.3638928178 | G87: 0.2661277174 | H87: 0.2341955646 | J87: -950 | K87: 0.003679713082 | L87: =SUM($K$13:$K$2061*K87:K2135) -> 0.2878116344 | N87: 0 | O87: =SUM($N$13:$N$2061*N87:N2135) -> 0.290219914
A88: 75 | B88: 0.565294211 | C88: 0.287382527 | D88: 0.03662109375 | E88: 2.964648322 | F88: 0.3673530371 | G88: 0.2660259246 | H88: 0.2350549435 | J88: -949 | K88: 0.003677479971 | L88: =SUM($K$13:$K$2061*K88:K2136) -> 0.2861330286 | N88: 0 | O88: =SUM($N$13:$N$2061*N88:N2136) -> 0.2884741601
A89: 76 | B89: 0.5627086928 | C89: 0.2857553772 | D89: 0.037109375 | E89: 2.875529957 | F89: 0.3708131938 | G89: 0.2659239882 | H89: 0.2358894078 | J89: -948 | K89: 0.003673071432 | L89: =SUM($K$13:$K$2061*K89:K2137) -> 0.2844882256 | N89: 0 | O89: =SUM($N$13:$N$2061*N89:N2137) -> 0.2867663036
A90: 77 | B90: 0.5601623196 | C90: 0.2841609596 | D90: 0.03759765625 | E90: 2.800842903 | F90: 0.374273288 | G90: 0.2658219082 | H90: 0.2366993708 | J90: -947 | K90: 0.003670859583 | L90: =SUM($K$13:$K$2061*K90:K2138) -> 0.2828762305 | N90: 0 | O90: =SUM($N$13:$N$2061*N90:N2138) -> 0.2850843065
A91: 78 | B91: 0.5576541253 | C91: 0.2825981514 | D91: 0.0380859375 | E91: 2.717768994 | F91: 0.3777333196 | G91: 0.265719684 | H91: 0.2374852507 | J91: -946 | K91: 0.00366644498 | L91: =SUM($K$13:$K$2061*K91:K2139) -> 0.2812957359 | N91: 0 | O91: =SUM($N$13:$N$2061*N91:N2139) -> 0.2834379772
A92: 79 | B92: 0.5551831757 | C92: 0.2810658831 | D92: 0.03857421875 | E92: 2.64830958 | F92: 0.3811932887 | G92: 0.2656173155 | H92: 0.2382474698 | J92: -945 | K92: 0.003664253674 | L92: =SUM($K$13:$K$2061*K92:K2140) -> 0.279745857 | N92: 0 | O92: =SUM($N$13:$N$2061*N92:N2140) -> 0.2818156462
A93: 80 | B93: 0.5527485677 | C93: 0.2795631356 | D93: 0.0390625 | E93: 2.570794587 | F93: 0.3846531952 | G93: 0.2655148023 | H93: 0.2389864535 | J93: -944 | K93: 0.003659833015 | L93: =SUM($K$13:$K$2061*K93:K2141) -> 0.2782253899 | N93: 0 | O93: =SUM($N$13:$N$2061*N93:N2141) -> 0.280226948
A94: 81 | B94: 0.5503494273 | C94: 0.2780889367 | D94: 0.03955078125 | E94: 2.506142001 | F94: 0.3881130392 | G94: 0.2654121441 | H94: 0.2397026305 | J94: -943 | K94: 0.003657662791 | L94: =SUM($K$13:$K$2061*K94:K2142) -> 0.2767335476 | N94: 0 | O94: =SUM($N$13:$N$2061*N94:N2142) -> 0.2786605577
A95: 82 | B95: 0.5479849093 | C95: 0.2766423592 | D95: 0.0400390625 | E95: 2.433744963 | F95: 0.3915728206 | G95: 0.2653093406 | H95: 0.2403964312 | J95: -942 | K95: 0.00365323468 | L95: =SUM($K$13:$K$2061*K95:K2143) -> 0.2752692178 | N95: 0 | O95: =SUM($N$13:$N$2061*N95:N2143) -> 0.2771259385
A96: 83 | B96: 0.5456541955 | C96: 0.2752225173 | D96: 0.04052734375 | E96: 2.373516585 | F96: 0.3950325394 | G96: 0.2652063916 | H96: 0.2410682877 | J96: -941 | K96: 0.003651086363 | L96: =SUM($K$13:$K$2061*K96:K2144) -> 0.2738316998 | N96: 0 | O96: =SUM($N$13:$N$2061*N96:N2144) -> 0.2756120878
A97: 84 | B97: 0.5433564937 | C97: 0.2738285653 | D97: 0.041015625 | E97: 2.305836505 | F97: 0.3984921958 | G97: 0.2651032966 | H97: 0.2417186331 | J97: -940 | K97: 0.003646650353 | L97: =SUM($K$13:$K$2061*K97:K2145) -> 0.2724199629 | N97: 0 | O97: =SUM($N$13:$N$2061*N97:N2145) -> 0.2741283004
A98: 85 | B98: 0.5410910372 | C98: 0.2724596944 | D98: 0.04150390625 | E98: 2.24968403 | F98: 0.4019517895 | G98: 0.2650000554 | H98: 0.2423479006 | J98: -939 | K98: 0.003644523955 | L98: =SUM($K$13:$K$2061*K98:K2146) -> 0.2710333835 | N98: 0 | O98: =SUM($N$13:$N$2061*N98:N2146) -> 0.2726638769
A99: 86 | B99: 0.5388570833 | C99: 0.2711151312 | D99: 0.0419921875 | E99: 2.186355782 | F99: 0.4054113208 | G99: 0.2648966677 | H99: 0.2429565234 | J99: -938 | K99: 0.003640079481 | L99: =SUM($K$13:$K$2061*K99:K2147) -> 0.2696710032 | N99: 0 | O99: =SUM($N$13:$N$2061*N99:N2147) -> 0.2712279465
A100: 87 | B100: 0.5366539123 | C100: 0.2697941357 | D100: 0.04248046875 | E100: 2.133961789 | F100: 0.4088707894 | G100: 0.2647931331 | H100: 0.243544934 | J100: -937 | K100: 0.003637975455 | L100: =SUM($K$13:$K$2061*K100:K2148) -> 0.268332267 | N100: 0 | O100: =SUM($N$13:$N$2061*N100:N2148) -> 0.2698100951
A101: 88 | B101: 0.534480827 | C101: 0.2684959994 | D101: 0.04296875 | E101: 2.074652511 | F101: 0.4123301956 | G101: 0.2646894514 | H101: 0.2441135636 | J101: -936 | K101: 0.003633522265 | L101: =SUM($K$13:$K$2061*K101:K2149) -> 0.2670162814 | N101: 0 | O101: =SUM($N$13:$N$2061*N101:N2149) -> 0.26841929
A102: 89 | B102: 0.5323371517 | C102: 0.2672200434 | D102: 0.04345703125 | E102: 2.025727407 | F102: 0.4157895392 | G102: 0.2645856222 | H102: 0.2446628415 | J102: -935 | K102: 0.00363144018 | L102: =SUM($K$13:$K$2061*K102:K2150) -> 0.2657225527 | N102: 0 | O102: =SUM($N$13:$N$2061*N102:N2150) -> 0.2670453862
A103: 90 | B103: 0.5302222312 | C103: 0.2659656171 | D103: 0.0439453125 | E103: 1.970133293 | F103: 0.4192488202 | G103: 0.2644816452 | H103: 0.2451931951 | J103: -934 | K103: 0.003626978271 | L103: =SUM($K$13:$K$2061*K103:K2151) -> 0.2644502454 | N103: 0 | O103: =SUM($N$13:$N$2061*N103:N2151) -> 0.2656971927
A104: 91 | B104: 0.5281354303 | C104: 0.2647320968 | D104: 0.04443359375 | E104: 1.924412596 | F104: 0.4227080388 | G104: 0.2643775202 | H104: 0.245705049 | J104: -933 | K104: 0.003624918049 | L104: =SUM($K$13:$K$2061*K104:K2152) -> 0.2631989206 | N104: 0 | O104: =SUM($N$13:$N$2061*N104:N2152) -> 0.2643648189
A105: 92 | B105: 0.5260761328 | C105: 0.263518884 | D105: 0.044921875 | E105: 1.872256054 | F105: 0.4261671948 | G105: 0.2642732467 | H105: 0.2461988249 | J105: -932 | K105: 0.003620447333 | L105: =SUM($K$13:$K$2061*K105:K2153) -> 0.261967795 | N105: 0 | O105: =SUM($N$13:$N$2061*N105:N2153) -> 0.2630569192
A106: 93 | B106: 0.524043741 | C106: 0.2623254041 | D106: 0.04541015625 | E106: 1.829497973 | F106: 0.4296262882 | G106: 0.2641688245 | H106: 0.246674941 | J106: -931 | K106: 0.00361840927 | L106: =SUM($K$13:$K$2061*K106:K2154) -> 0.2607564791 | N106: 0 | O106: =SUM($N$13:$N$2061*N106:N2154) -> 0.2617638439
A107: 94 | B107: 0.5220376748 | C107: 0.2611511056 | D107: 0.0458984375 | E107: 1.780525085 | F107: 0.4330853192 | G107: 0.2640642532 | H107: 0.2471338117 | J107: -930 | K107: 0.003613928516 | L107: =SUM($K$13:$K$2061*K107:K2155) -> 0.2595642364 | N107: 0 | O107: =SUM($N$13:$N$2061*N107:N2155) -> 0.2604940967
A108: 95 | B108: 0.5200573712 | C108: 0.2599954585 | D108: 0.04638671875 | E108: 1.740508359 | F108: 0.4365442876 | G108: 0.2639595325 | H108: 0.2475758475 | J108: -929 | K108: 0.003611913516 | L108: =SUM($K$13:$K$2061*K108:K2156) -> 0.2583907218 | N108: 0 | O108: =SUM($N$13:$N$2061*N108:N2156) -> 0.2592382564
A109: 96 | B109: 0.5181022837 | C109: 0.2588579533 | D109: 0.046875 | E109: 1.694486617 | F109: 0.4400031934 | G109: 0.2638546622 | H109: 0.2480014543 | J109: -928 | K109: 0.003607422304 | L109: =SUM($K$13:$K$2061*K109:K2157) -> 0.2572352411 | N109: 0 | O109: =SUM($N$13:$N$2061*N109:N2157) -> 0.2580046796
A110: 97 | B110: 0.5161718816 | C110: 0.2577381001 | D110: 0.04736328125 | E110: 1.657008581 | F110: 0.4434620368 | G110: 0.2637496419 | H110: 0.2484110333 | J110: -927 | K110: 0.003605429956 | L110: =SUM($K$13:$K$2061*K110:K2158) -> 0.2560974894 | N110: 0 | O110: =SUM($N$13:$N$2061*N110:N2158) -> 0.2567841626
A111: 98 | B111: 0.5142656495 | C111: 0.2566354277 | D111: 0.0478515625 | E111: 1.613724866 | F111: 0.4469208176 | G111: 0.2636444712 | H111: 0.2488049808 | J111: -926 | K111: 0.003600928657 | L111: =SUM($K$13:$K$2061*K111:K2159) -> 0.2549768104 | N111: 0 | O111: =SUM($N$13:$N$2061*N111:N2159) -> 0.2555849188
A112: 99 | B112: 0.5123830866 | C112: 0.2555494826 | D112: 0.04833984375 | E112: 1.578599716 | F112: 0.4503795359 | G112: 0.2635391498 | H112: 0.2491836878 | J112: -925 | K112: 0.003598958704 | L112: =SUM($K$13:$K$2061*K112:K2160) -> 0.2538729357 | N112: 0 | O112: =SUM($N$13:$N$2061*N112:N2160) -> 0.2543979509
A113: 100 | B113: 0.5105237065 | C113: 0.2544798281 | D113: 0.048828125 | E113: 1.537858495 | F113: 0.4538381917 | G113: 0.2634336775 | H113: 0.2495475399 | J113: -924 | K113: 0.003594446914 | L113: =SUM($K$13:$K$2061*K113:K2161) -> 0.2527852437 | N113: 0 | O113: =SUM($N$13:$N$2061*N113:N2161) -> 0.2532313332
A114: 101 | B114: 0.5086870364 | C114: 0.2534260434 | D114: 0.04931640625 | E114: 1.504915731 | F114: 0.4572967849 | G114: 0.2633280539 | H114: 0.249896917 | J114: -923 | K114: 0.003592499652 | L114: =SUM($K$13:$K$2061*K114:K2162) -> 0.2517134986 | N114: 0 | O114: =SUM($N$13:$N$2061*N114:N2162) -> 0.2520762655
A115: 102 | B115: 0.5068726167 | C115: 0.2523877233 | D115: 0.0498046875 | E115: 1.466537431 | F115: 0.4607553157 | G115: 0.2632222786 | H115: 0.2502321933 | J115: -922 | K115: 0.003587976843 | L115: =SUM($K$13:$K$2061*K115:K2163) -> 0.2506571102 | N115: 0 | O115: =SUM($N$13:$N$2061*N115:N2163) -> 0.2509406862
A116: 103 | B116: 0.5050800004 | C116: 0.251364477 | D116: 0.05029296875 | E116: 1.435620461 | F116: 0.4642137839 | G116: 0.2631163514 | H116: 0.2505537369 | J116: -921 | K116: 0.003586052683 | L116: =SUM($K$13:$K$2061*K116:K2164) -> 0.2496158729 | N116: 0 | O116: =SUM($N$13:$N$2061*N116:N2164) -> 0.2498159832
A117: 104 | B117: 0.5033087531 | C117: 0.2503559276 | D117: 0.05078125 | E117: 1.399440009 | F117: 0.4676721896 | G117: 0.2630102719 | H117: 0.2508619099 | J117: -920 | K117: 0.003581518332 | L117: =SUM($K$13:$K$2061*K117:K2165) -> 0.2485892248 | N117: 0 | O117: =SUM($N$13:$N$2061*N117:N2165) -> 0.2487099631
A118: 105 | B118: 0.5015584522 | C118: 0.2493617117 | D118: 0.05126953125 | E118: 1.370404897 | F118: 0.4711305328 | G118: 0.2629040397 | H118: 0.2511570678 | J118: -919 | K118: 0.003579617129 | L118: =SUM($K$13:$K$2061*K118:K2166) -> 0.2475769874 | N118: 0 | O118: =SUM($N$13:$N$2061*N118:N2166) -> 0.2476141932
A119: 106 | B119: 0.4998286864 | C119: 0.2483814784 | D119: 0.0517578125 | E119: 1.33627042 | F119: 0.4745888135 | G119: 0.2627976547 | H119: 0.2514395602 | J119: -918 | K119: 0.003575071782 | L119: =SUM($K$13:$K$2061*K119:K2167) -> 0.2465786248 | N119: 0 | O119: =SUM($N$13:$N$2061*N119:N2167) -> 0.2465363518
A120: 107 | B120: 0.4981190556 | C120: 0.2474148889 | D120: 0.05224609375 | E120: 1.308984746 | F120: 0.4780470317 | G120: 0.2626911163 | H120: 0.25170973 | J120: -917 | K120: 0.00357319276 | L120: =SUM($K$13:$K$2061*K120:K2168) -> 0.2455939835 | N120: 0 | O120: =SUM($N$13:$N$2061*N120:N2168) -> 0.2454681784
A121: 108 | B121: 0.4964291706 | C121: 0.2464616162 | D121: 0.052734375 | E121: 1.276756383 | F121: 0.4815051874 | G121: 0.2625844244 | H121: 0.2519679135 | J121: -916 | K121: 0.003568636114 | L121: =SUM($K$13:$K$2061*K121:K2169) -> 0.2446225513 | N121: 0 | O121: =SUM($N$13:$N$2061*N121:N2169) -> 0.244417226
A122: 109 | B122: 0.4947586522 | C122: 0.2455213441 | D122: 0.05322265625 | E122: 1.251098232 | F122: 0.4849632806 | G122: 0.2624775785 | H122: 0.2522144406 | J122: -915 | K122: 0.003566780128 | L122: =SUM($K$13:$K$2061*K122:K2170) -> 0.2436641972 | N122: 0 | O122: =SUM($N$13:$N$2061*N122:N2170) -> 0.2433753988
A123: 110 | B123: 0.4931071314 | C123: 0.2445937671 | D123: 0.0537109375 | E123: 1.220647078 | F123: 0.4884213112 | G123: 0.2623705783 | H123: 0.2524496344 | J123: -914 | K123: 0.0035622114 | L123: =SUM($K$13:$K$2061*K123:K2171) -> 0.2427184308 | N123: 0 | O123: =SUM($N$13:$N$2061*N123:N2171) -> 0.2423501284
A124: 111 | B124: 0.4914742489 | C124: 0.24367859 | D124: 0.05419921875 | E124: 1.196504109 | F124: 0.4918792794 | G124: 0.2622634235 | H124: 0.2526738115 | J124: -913 | K124: 0.003560378601 | L124: =SUM($K$13:$K$2061*K124:K2172) -> 0.2417851417 | N124: 0 | O124: =SUM($N$13:$N$2061*N124:N2172) -> 0.2413334771
A125: 112 | B125: 0.4898596548 | C125: 0.2427755271 | D125: 0.0546875 | E125: 1.167711256 | F125: 0.4953371851 | G125: 0.2621561138 | H125: 0.2528872818 | J125: -912 | K125: 0.003555797268 | L125: =SUM($K$13:$K$2061*K125:K2173) -> 0.2408638593 | N125: 0 | O125: =SUM($N$13:$N$2061*N125:N2173) -> 0.240332758
A126: 113 | B126: 0.488263008 | C126: 0.2418843021 | D126: 0.05517578125 | E126: 1.144979876 | F126: 0.4987950282 | G126: 0.2620486488 | H126: 0.2530903483 | J126: -911 | K126: 0.003553988124 | L126: =SUM($K$13:$K$2061*K126:K2174) -> 0.2399544925 | N126: 0 | O126: =SUM($N$13:$N$2061*N126:N2174) -> 0.2393401851
A127: 114 | B127: 0.4866839763 | C127: 0.2410046476 | D127: 0.0556640625 | E127: 1.117735543 | F127: 0.5022528089 | G127: 0.2619410282 | H127: 0.2532833076 | J127: -910 | K127: 0.003549394054 | L127: =SUM($K$13:$K$2061*K127:K2175) -> 0.2390565887 | N127: 0 | O127: =SUM($N$13:$N$2061*N127:N2175) -> 0.2383629565
A128: 115 | B128: 0.4851222362 | C128: 0.2401363048 | D128: 0.05615234375 | E128: 1.096320148 | F128: 0.5057105271 | G128: 0.2618332516 | H128: 0.2534664494 | J128: -909 | K128: 0.003547607893 | L128: =SUM($K$13:$K$2061*K128:K2176) -> 0.2381700744 | N128: 0 | O128: =SUM($N$13:$N$2061*N128:N2176) -> 0.2373934319
A129: 116 | B129: 0.483577472 | C129: 0.239279023 | D129: 0.056640625 | E129: 1.070522907 | F129: 0.5091681828 | G129: 0.2617253187 | H129: 0.2536400569 | J129: -908 | K129: 0.003543001531 | L129: =SUM($K$13:$K$2061*K129:K2177) -> 0.2372945136 | N129: 0 | O129: =SUM($N$13:$N$2061*N129:N2177) -> 0.2364386975
A130: 117 | B130: 0.4820493762 | C130: 0.2384325593 | D130: 0.05712890625 | E130: 1.050335203 | F130: 0.5126257759 | G130: 0.2616172292 | H130: 0.2538044068 | J130: -907 | K130: 0.003541238326 | L130: =SUM($K$13:$K$2061*K130:K2178) -> 0.2364298488 | N130: 0 | O130: =SUM($N$13:$N$2061*N130:N2178) -> 0.2354912529
A131: 118 | B131: 0.480537649 | C131: 0.2375966786 | D131: 0.0576171875 | E131: 1.025891261 | F131: 0.5160833066 | G131: 0.2615089827 | H131: 0.2539597689 | J131: -906 | K131: 0.003536619241 | L131: =SUM($K$13:$K$2061*K131:K2179) -> 0.2355756596 | N131: 0 | O131: =SUM($N$13:$N$2061*N131:N2179) -> 0.2345580756
A132: 119 | B132: 0.4790419978 | C132: 0.2367711527 | D132: 0.05810546875 | E132: 1.006849642 | F132: 0.5195407749 | G132: 0.2614005789 | H132: 0.2541064068 | J132: -905 | K132: 0.00353487903 | L132: =SUM($K$13:$K$2061*K132:K2180) -> 0.2347319032 | N132: 0 | O132: =SUM($N$13:$N$2061*N132:N2180) -> 0.2336318002
A133: 120 | B133: 0.4775621375 | C133: 0.2359557607 | D133: 0.05859375 | E133: 0.9836722021 | F133: 0.5229981806 | G133: 0.2612920175 | H133: 0.2542445776 | J133: -904 | K133: 0.003530246999 | L133: =SUM($K$13:$K$2061*K133:K2181) -> 0.2338981734 | N133: 0 | O133: =SUM($N$13:$N$2061*N133:N2181) -> 0.232719298
A134: 121 | B134: 0.4760977897 | C134: 0.2351502881 | D134: 0.05908203125 | E134: 0.9657011975 | F134: 0.5264555238 | G134: 0.261183298 | H134: 0.2543745317 | J134: -903 | K134: 0.003528530149 | L134: =SUM($K$13:$K$2061*K134:K2182) -> 0.2330744409 | N134: 0 | O134: =SUM($N$13:$N$2061*N134:N2182) -> 0.2318133335
A135: 122 | B135: 0.4746486832 | C135: 0.234354527 | D135: 0.0595703125 | E135: 0.94370987 | F135: 0.5299128046 | G135: 0.2610744202 | H135: 0.2544965137 | J135: -902 | K135: 0.00352388444 | L135: =SUM($K$13:$K$2061*K135:K2183) -> 0.2322603128 | N135: 0 | O135: =SUM($N$13:$N$2061*N135:N2183) -> 0.2309206751
A136: 123 | B136: 0.4732145528 | C136: 0.2335682757 | D136: 0.06005859375 | E136: 0.9267396261 | F136: 0.5333700228 | G136: 0.2609653837 | H136: 0.2546107616 | J136: -901 | K136: 0.003522191503 | L136: =SUM($K$13:$K$2061*K136:K2184) -> 0.2314557723 | N136: 0 | O136: =SUM($N$13:$N$2061*N136:N2184) -> 0.2300342125
A137: 124 | B137: 0.4717951402 | C137: 0.2327913382 | D137: 0.060546875 | E137: 0.9058599095 | F137: 0.5368271786 | G137: 0.2608561881 | H137: 0.2547175073 | J137: -900 | K137: 0.003517531744 | L137: =SUM($K$13:$K$2061*K137:K2185) -> 0.2306604386 | N137: 0 | O137: =SUM($N$13:$N$2061*N137:N2185) -> 0.2291606135
A138: 125 | B138: 0.470390193 | C138: 0.2320235244 | D138: 0.06103515625 | E138: 0.8898257259 | F138: 0.540284272 | G138: 0.2607468332 | H138: 0.2548169767 | J138: -899 | K138: 0.003515862444 | L138: =SUM($K$13:$K$2061*K138:K2186) -> 0.2298743067 | N138: 0 | O138: =SUM($N$13:$N$2061*N138:N2186) -> 0.2282928889
A139: 126 | B139: 0.4689994647 | C139: 0.2312646497 | D139: 0.0615234375 | E139: 0.8699885171 | F139: 0.5437413028 | G139: 0.2606373185 | H139: 0.2549093897 | J139: -898 | K139: 0.003511188938 | L139: =SUM($K$13:$K$2061*K139:K2187) -> 0.2290970068 | N139: 0 | O139: =SUM($N$13:$N$2061*N139:N2187) -> 0.2274376086
A140: 127 | B140: 0.4676227148 | C140: 0.2305145348 | D140: 0.06201171875 | E140: 0.8548304309 | F140: 0.5471982712 | G140: 0.2605276437 | H140: 0.2549949603 | J140: -897 | K140: 0.003509542888 | L140: =SUM($K$13:$K$2061*K140:K2188) -> 0.2283285448 | N140: 0 | O140: =SUM($N$13:$N$2061*N140:N2188) -> 0.2265879003
A141: 128 | B141: 0.4662597083 | C141: 0.2297730055 | D141: 0.0625 | E141: 0.8359715899 | F141: 0.5506551771 | G141: 0.2604178085 | H141: 0.2550738966 | J141: -896 | K141: 0.003504855769 | L141: =SUM($K$13:$K$2061*K141:K2189) -> 0.2275685613 | N141: 0 | O141: =SUM($N$13:$N$2061*N141:N2189) -> 0.2257502386
A142: 129 | B142: 0.4649102158 | C142: 0.2290398923 | D142: 0.06298828125 | E142: 0.8216339869 | F142: =F$10*$D142/(F$11+$D142)+F$9 -> 0.5541120205 | G142: =G$10*(0.5-$D142)/(G$11+0.5-$D142)+G$9 -> 0.2603078125 | H142: =IFERROR(LN(EXP(-10*F142)+EXP(-10*G142))/-10,0) -> 0.2551464012 | J142: -895 | K142: 0.003503232753 | L142: =SUM($K$13:$K$2061*K142:K2190) -> 0.2268170723 | N142: =IF(J142<0,0,K142*$K$10) -> 0 | O142: =SUM($N$13:$N$2061*N142:N2190) -> 0.2249178639
A143: 130 | B143: 0.4635740131 | C143: 0.2283150308 | D143: 0.0634765625 | E143: 0.8036939371 | F143: 0.5575688014 | G143: 0.2601976553 | H143: 0.255212671 | J143: -894 | K143: 0.003498531639 | L143: =SUM($K$13:$K$2061*K143:K2191) -> 0.2260737279 | N143: 0 | O143: =SUM($N$13:$N$2061*N143:N2191) -> 0.2240971582
A144: 131 | B144: 0.4622508812 | C144: 0.2275982609 | D144: 0.06396484375 | E144: 0.7901252029 | F144: 0.5610255199 | G144: 0.2600873367 | H144: 0.2552728974 | J144: -893 | K144: 0.003496932365 | L144: =SUM($K$13:$K$2061*K144:K2192) -> 0.2253385533 | N144: 0 | O144: =SUM($N$13:$N$2061*N144:N2192) -> 0.223281471
A145: 132 | B145: 0.460940606 | C145: 0.226889427 | D145: 0.064453125 | E145: 0.7730485702 | F145: 0.5644821759 | G145: 0.2599768561 | H145: 0.2553272665 | J145: -892 | K145: 0.003492216826 | L145: =SUM($K$13:$K$2061*K145:K2193) -> 0.2246112078 | N145: 0 | O145: =SUM($N$13:$N$2061*N145:N2193) -> 0.2224770937
A146: 133 | B146: 0.4596429784 | C146: 0.2261883776 | D146: 0.06494140625 | E146: 0.7602007731 | F146: 0.5679387695 | G146: 0.2598662134 | H146: 0.2553759591 | J146: -891 | K146: 0.003490641027 | L146: =SUM($K$13:$K$2061*K146:K2194) -> 0.2238917252 | N146: 0 | O146: =SUM($N$13:$N$2061*N146:N2194) -> 0.2216774817
A147: 134 | B147: 0.4583577939 | C147: 0.2254949656 | D147: 0.0654296875 | E147: 0.7439360472 | F147: 0.5713953006 | G147: 0.2597554081 | H147: 0.2554191507 | J147: -890 | K147: 0.003485910768 | L147: =SUM($K$13:$K$2061*K147:K2195) -> 0.223179773 | N147: 0 | O147: =SUM($N$13:$N$2061*N147:N2195) -> 0.2208888381
A148: 135 | B148: 0.4570848526 | C148: 0.2248090475 | D148: 0.06591796875 | E148: 0.7317646476 | F148: 0.5748517692 | G148: 0.2596444398 | H148: 0.2554570119 | J148: -889 | K148: 0.003484358993 | L148: =SUM($K$13:$K$2061*K148:K2196) -> 0.2224753932 | N148: 0 | O148: =SUM($N$13:$N$2061*N148:N2196) -> 0.2201047206
A149: 136 | B149: 0.4558239592 | C149: 0.2241304839 | D149: 0.06640625 | E149: 0.7162638835 | F149: 0.5783081753 | G149: 0.2595333083 | H149: 0.2554897083 | J149: -888 | K149: 0.003479613686 | L149: =SUM($K$13:$K$2061*K149:K2197) -> 0.221778261 | N149: 0 | O149: =SUM($N$13:$N$2061*N149:N2197) -> 0.2193312463
A150: 137 | B150: 0.4545749225 | C150: 0.223459139 | D150: 0.06689453125 | E150: 0.7047274646 | F150: 0.5817645191 | G150: 0.2594220131 | H150: 0.2555174006 | J150: -887 | K150: 0.003478085578 | L150: =SUM($K$13:$K$2061*K150:K2198) -> 0.2210884258 | N150: 0 | O150: =SUM($N$13:$N$2061*N150:N2198) -> 0.2185620721
A151: 138 | B151: 0.4533375557 | C151: 0.2227948803 | D151: 0.0673828125 | E151: 0.689946007 | F151: 0.5852208003 | G151: 0.2593105539 | H151: 0.2555402449 | J151: -886 | K151: 0.003473325741 | L151: =SUM($K$13:$K$2061*K151:K2199) -> 0.2204055703 | N151: 0 | O151: =SUM($N$13:$N$2061*N151:N2199) -> 0.2178032312
A152: 139 | B152: 0.4521116759 | C152: 0.2221375792 | D152: 0.06787109375 | E152: 0.679006032 | F152: 0.5886770191 | G152: 0.2591989303 | H152: 0.2555583926 | J152: -885 | K152: 0.003471820787 | L152: =SUM($K$13:$K$2061*K152:K2200) -> 0.2197297506 | N152: 0 | O152: =SUM($N$13:$N$2061*N152:N2200) -> 0.2170484767
A153: 140 | B153: 0.4508971043 | C153: 0.2214871101 | D153: 0.068359375 | E153: 0.6649022621 | F153: 0.5921331755 | G153: 0.259087142 | H153: 0.2555719906 | J153: -884 | K153: 0.003467046012 | L153: =SUM($K$13:$K$2061*K153:K2201) -> 0.2190606563 | N153: 0 | O153: =SUM($N$13:$N$2061*N153:N2201) -> 0.2163037602
A154: 141 | B154: 0.449693666 | C154: 0.2208433507 | D154: 0.06884765625 | E154: 0.6545228502 | F154: 0.5955892693 | G154: 0.2589751886 | H154: 0.2555811812 | J154: -883 | K154: 0.003465564987 | L154: =SUM($K$13:$K$2061*K154:K2202) -> 0.2183983502 | N154: 0 | O154: =SUM($N$13:$N$2061*N154:N2202) -> 0.2155629277
A155: 142 | B155: 0.4485011897 | C155: 0.2202061817 | D155: 0.0693359375 | E155: 0.6410579523 | F155: 0.5990453008 | G155: 0.2588630697 | H155: 0.2555861027 | J155: -882 | K155: 0.003460774963 | L155: =SUM($K$13:$K$2061*K155:K2203) -> 0.2177425279 | N155: 0 | O155: =SUM($N$13:$N$2061*N155:N2203) -> 0.2148318511
A156: 143 | B156: 0.4473195079 | C156: 0.2195754871 | D156: 0.06982421875 | E156: 0.6312056814 | F156: 0.6025012698 | G156: 0.258750785 | H156: 0.2555868891 | J156: -881 | K156: 0.00345931733 | L156: =SUM($K$13:$K$2061*K156:K2204) -> 0.2170932584 | N156: 0 | O156: =SUM($N$13:$N$2061*N156:N2204) -> 0.214104467
A157: 144 | B157: 0.4461484566 | C157: 0.2189511535 | D157: 0.0703125 | E157: 0.6183434278 | F157: 0.6059571763 | G157: 0.258638334 | H157: 0.2555836701 | J157: -880 | K157: 0.003454512137 | L157: =SUM($K$13:$K$2061*K157:K2205) -> 0.2164502433 | N157: 0 | O157: =SUM($N$13:$N$2061*N157:N2205) -> 0.2133865694
A158: 145 | B158: 0.4449878753 | C158: 0.2183330705 | D158: 0.07080078125 | E158: 0.6089871428 | F158: 0.6094130204 | G158: 0.2585257165 | H158: 0.2555765718 | J158: -879 | K158: 0.003453078386 | L158: =SUM($K$13:$K$2061*K158:K2206) -> 0.2158135574 | N158: 0 | O158: =SUM($N$13:$N$2061*N158:N2206) -> 0.2126721829
A159: 146 | B159: 0.4438376067 | C159: 0.2177211303 | D159: 0.0712890625 | E159: 0.5966937033 | F159: 0.6128688021 | G159: 0.2584129321 | H159: 0.2555657162 | J159: -878 | K159: 0.00344825737 | L159: =SUM($K$13:$K$2061*K159:K2207) -> 0.2151829077 | N159: 0 | O159: =SUM($N$13:$N$2061*N159:N2207) -> 0.2119670254
A160: 147 | B160: 0.4426974971 | C160: 0.2171152277 | D160: 0.07177734375 | E160: 0.5878043451 | F160: 0.6163245213 | G160: 0.2582999803 | H160: 0.2555512214 | J160: -877 | K160: 0.003446847444 | L160: =SUM($K$13:$K$2061*K160:K2208) -> 0.2145583743 | N160: 0 | O160: =SUM($N$13:$N$2061*N160:N2208) -> 0.2112652068
A161: 148 | B161: 0.4415673956 | C161: 0.2165152603 | D161: 0.072265625 | E161: 0.5760481106 | F161: 0.6197801781 | G161: 0.2581868608 | H161: 0.255533202 | J161: -876 | K161: 0.003442010854 | L161: =SUM($K$13:$K$2061*K161:K2209) -> 0.2139396695 | N161: 0 | O161: =SUM($N$13:$N$2061*N161:N2209) -> 0.2105723709
A162: 149 | B162: 0.4404471548 | C162: 0.2159211279 | D162: 0.07275390625 | E162: 0.5675985576 | F162: 0.6232357725 | G162: 0.2580735733 | H162: 0.2555117689 | J162: -875 | K162: 0.00344062464 | L162: =SUM($K$13:$K$2061*K162:K2210) -> 0.2133268785 | N162: 0 | O162: =SUM($N$13:$N$2061*N162:N2210) -> 0.2098827105
A163: 150 | B163: 0.4393366301 | C163: 0.2153327329 | D163: 0.0732421875 | E163: 0.5563499711 | F163: 0.6266913044 | G163: 0.2579601173 | H163: 0.2554870298 | J163: -874 | K163: 0.003435772194 | L163: =SUM($K$13:$K$2061*K163:K2211) -> 0.2127197182 | N163: 0 | O163: =SUM($N$13:$N$2061*N163:N2211) -> 0.2092017971
A164: 151 | B164: 0.4382356798 | C164: 0.2147499799 | D164: 0.07373046875 | E164: 0.5483149003 | F164: 0.6301467738 | G164: 0.2578464925 | H164: 0.2554590885 | J164: -873 | K164: 0.003434409767 | L164: =SUM($K$13:$K$2061*K164:K2212) -> 0.2121182787 | N164: 0 | O164: =SUM($N$13:$N$2061*N164:N2212) -> 0.2085239042
A165: 152 | B165: 0.4371441652 | C165: 0.2141727756 | D165: 0.07421875 | E165: 0.537546309 | F165: 0.6336021809 | G165: 0.2577326986 | H165: 0.2554280459 | J165: -872 | K165: 0.003429541508 | L165: =SUM($K$13:$K$2061*K165:K2213) -> 0.2115222815 | N165: 0 | O165: =SUM($N$13:$N$2061*N165:N2213) -> 0.2078545325
A166: 153 | B166: 0.4360619504 | C166: 0.2136010294 | D166: 0.07470703125 | E166: 0.5299020604 | F166: 0.6370575255 | G166: 0.257618735 | H166: 0.2553939996 | J166: -871 | K166: 0.00342820247 | L166: =SUM($K$13:$K$2061*K166:K2214) -> 0.210931821 | N166: 0 | O166: =SUM($N$13:$N$2061*N166:N2214) -> 0.2071880338
A167: 154 | B167: 0.4349889022 | C167: 0.2130346522 | D167: 0.0751953125 | E167: 0.5195875754 | F167: 0.6405128077 | G167: 0.2575046015 | H167: 0.2553570441 | J167: -870 | K167: 0.003423318464 | L167: =SUM($K$13:$K$2061*K167:K2215) -> 0.2103466232 | N167: 0 | O167: =SUM($N$13:$N$2061*N167:N2215) -> 0.2065298399
A168: 155 | B168: 0.4339248899 | C168: 0.2124735573 | D168: 0.07568359375 | E168: 0.5123120296 | F168: 0.6439680274 | G168: 0.2573902977 | H168: 0.2553172707 | J168: -869 | K168: 0.003422003096 | L168: =SUM($K$13:$K$2061*K168:K2216) -> 0.2097667864 | N168: 0 | O168: =SUM($N$13:$N$2061*N168:N2216) -> 0.205874379
A169: 156 | B169: 0.4328697855 | C169: 0.2119176599 | D169: 0.076171875 | E169: 0.5024274028 | F169: 0.6474231848 | G169: 0.2572758232 | H169: 0.255274768 | J169: -868 | K169: 0.003417102871 | L169: =SUM($K$13:$K$2061*K169:K2217) -> 0.2091920408 | N169: 0 | O169: =SUM($N$13:$N$2061*N169:N2217) -> 0.2052270152
A170: 157 | B170: 0.4318234638 | C170: 0.2113668772 | D170: 0.07666015625 | E170: 0.4954998705 | F170: 0.6508782797 | G170: 0.2571611775 | H170: 0.2552296216 | J170: -867 | K170: 0.003415811571 | L170: =SUM($K$13:$K$2061*K170:K2218) -> 0.2086224887 | N170: 0 | O170: =SUM($N$13:$N$2061*N170:N2218) -> 0.2045822512
A171: 158 | B171: 0.4307858015 | C171: 0.2108211282 | D171: 0.0771484375 | E171: 0.4860223726 | F171: 0.6543333121 | G171: 0.2570463604 | H171: 0.2551819144 | J171: -866 | K171: 0.00341089438 | L171: =SUM($K$13:$K$2061*K171:K2219) -> 0.208057864 | N171: 0 | O171: =SUM($N$13:$N$2061*N171:N2219) -> 0.2039453852
A172: 159 | B172: 0.4297566783 | C172: 0.2102803337 | D172: 0.07763671875 | E172: 0.4794234905 | F172: 0.6577882822 | G172: 0.2569313715 | H172: 0.2551317266 | J172: -865 | K172: 0.003409627307 | L172: =SUM($K$13:$K$2061*K172:K2220) -> 0.2074982726 | N172: 0 | O172: =SUM($N$13:$N$2061*N172:N2220) -> 0.2033109921
A173: 160 | B173: 0.4287359757 | C173: 0.2097444164 | D173: 0.078125 | E173: 0.4703318088 | F173: 0.6612431899 | G173: 0.2568162102 | H173: 0.2550791356 | J173: -864 | K173: 0.003404693688 | L173: =SUM($K$13:$K$2061*K173:K2221) -> 0.2069434521 | N173: 0 | O173: =SUM($N$13:$N$2061*N173:N2221) -> 0.2026843057
A174: 161 | B174: 0.4277235778 | C174: 0.2092133006 | D174: 0.07861328125 | E174: 0.4640434441 | F174: 0.6646980351 | G174: 0.2567008764 | H174: 0.2550242166 | J174: -863 | K174: 0.003403450091 | L174: =SUM($K$13:$K$2061*K174:K2222) -> 0.2063935119 | N174: 0 | O174: =SUM($N$13:$N$2061*N174:N2222) -> 0.2020599715
A175: 162 | B175: 0.4267193709 | C175: 0.2086869122 | D175: 0.0791015625 | E175: 0.4553175774 | F175: 0.6681528179 | G175: 0.2565853695 | H175: 0.2549670421 | J175: -862 | K175: 0.003398500276 | L175: =SUM($K$13:$K$2061*K175:K2223) -> 0.2058481929 | N175: 0 | O175: =SUM($N$13:$N$2061*N175:N2223) -> 0.2014431601
A176: 163 | B176: 0.4257232434 | C176: 0.2081651789 | D176: 0.07958984375 | E176: 0.4493227433 | F176: 0.6716075383 | G176: 0.2564696892 | H176: 0.2549076823 | J176: -861 | K176: 0.003397280047 | L176: =SUM($K$13:$K$2061*K176:K2224) -> 0.2053076079 | N176: 0 | O176: =SUM($N$13:$N$2061*N176:N2224) -> 0.200828586
A177: 164 | B177: 0.4247350858 | C177: 0.2076480299 | D177: 0.080078125 | E177: 0.4409439141 | F177: 0.6750621963 | G177: 0.2563538351 | H177: 0.254846205 | J177: -860 | K177: 0.003392313684 | L177: =SUM($K$13:$K$2061*K177:K2225) -> 0.2047715009 | N177: 0 | O177: =SUM($N$13:$N$2061*N177:N2225) -> 0.200221358
A178: 165 | B178: 0.4237547907 | C178: 0.2071353958 | D178: 0.08056640625 | E178: 0.4352266856 | F178: 0.6785167918 | G178: 0.2562378068 | H178: 0.2547826759 | J178: -859 | K178: 0.003391117652 | L178: =SUM($K$13:$K$2061*K178:K2226) -> 0.2042399878 | N178: 0 | O178: =SUM($N$13:$N$2061*N178:N2226) -> 0.1996162576
A179: 166 | B179: 0.4227822528 | C179: 0.2066272089 | D179: 0.0810546875 | E179: 0.4271772507 | F179: 0.681971325 | G179: 0.256121604 | H179: 0.2547171585 | J179: -858 | K179: 0.003386133789 | L179: =SUM($K$13:$K$2061*K179:K2227) -> 0.2037128157 | N179: 0 | O179: =SUM($N$13:$N$2061*N179:N2227) -> 0.1990183333
A180: 167 | B180: 0.4218173686 | C180: 0.2061234028 | D180: 0.08154296875 | E180: 0.4217226969 | F180: 0.6854257958 | G180: 0.2560052261 | H180: 0.254649714 | J180: -857 | K180: 0.003384961874 | L180: =SUM($K$13:$K$2061*K180:K2228) -> 0.2031901034 | N180: 0 | O180: =SUM($N$13:$N$2061*N180:N2228) -> 0.1984224321
A181: 168 | B181: 0.4208600367 | C181: 0.2056239125 | D181: 0.08203125 | E181: 0.4139860744 | F181: 0.6888802041 | G181: 0.2558886728 | H181: 0.2545804019 | J181: -856 | K181: 0.003379961322 | L181: =SUM($K$13:$K$2061*K181:K2229) -> 0.2026716006 | N181: 0 | O181: =SUM($N$13:$N$2061*N181:N2229) -> 0.1978335433
A182: 169 | B182: 0.4199101574 | C182: 0.2051286746 | D182: 0.08251953125 | E182: 0.408780178 | F182: 0.6923345501 | G182: 0.2557719438 | H182: 0.2545092793 | J182: -855 | K182: 0.003378813019 | L182: =SUM($K$13:$K$2061*K182:K2230) -> 0.2021574293 | N182: 0 | O182: =SUM($N$13:$N$2061*N182:N2230) -> 0.197246578
A183: 170 | B183: 0.418967633 | C183: 0.2046376266 | D183: 0.0830078125 | E183: 0.4013407763 | F183: 0.6957888336 | G183: 0.2556550386 | H183: 0.2544364018 | J183: -854 | K183: 0.003373794908 | L183: =SUM($K$13:$K$2061*K183:K2231) -> 0.2016473417 | N183: 0 | O183: =SUM($N$13:$N$2061*N183:N2231) -> 0.1966664675
A184: 171 | B184: 0.4180323674 | C184: 0.2041507077 | D184: 0.08349609375 | E184: 0.3963703788 | F184: 0.6992430548 | G184: 0.2555379568 | H184: 0.2543618229 | J184: -853 | K184: 0.003372671084 | L184: =SUM($K$13:$K$2061*K184:K2232) -> 0.2011414623 | N184: 0 | O184: =SUM($N$13:$N$2061*N184:N2232) -> 0.1960881852
A185: 172 | B185: 0.4171042665 | C185: 0.2036678582 | D185: 0.083984375 | E185: 0.3892135244 | F185: 0.7026972135 | G185: 0.2554206981 | H185: 0.2542855942 | J185: -852 | K185: 0.00336763562 | L185: =SUM($K$13:$K$2061*K185:K2233) -> 0.200639546 | N185: 0 | O185: =SUM($N$13:$N$2061*N185:N2233) -> 0.195516606
A186: 173 | B186: 0.4161832376 | C186: 0.2031890195 | D186: 0.08447265625 | E186: 0.3844662669 | F186: 0.7061513098 | G186: 0.255303262 | H186: 0.254207766 | J186: -851 | K186: 0.003366535369 | L186: =SUM($K$13:$K$2061*K186:K2234) -> 0.2001417198 | N186: 0 | O186: =SUM($N$13:$N$2061*N186:N2234) -> 0.1949467642
A187: 174 | B187: 0.41526919 | C187: 0.2027141345 | D187: 0.0849609375 | E187: 0.3775781456 | F187: 0.7096053438 | G187: 0.2551856481 | H187: 0.2541283864 | J187: -850 | K187: 0.003361482805 | L187: =SUM($K$13:$K$2061*K187:K2235) -> 0.199647741 | N187: 0 | O187: =SUM($N$13:$N$2061*N187:N2235) -> 0.194383479
A188: 175 | B188: 0.4143620343 | C188: 0.2022431469 | D188: 0.08544921875 | E188: 0.3730424126 | F188: 0.7130593154 | G188: 0.255067856 | H188: 0.2540475021 | J188: -849 | K188: 0.003360406506 | L188: =SUM($K$13:$K$2061*K188:K2236) -> 0.1991577387 | N188: 0 | O188: =SUM($N$13:$N$2061*N188:N2236) -> 0.1938218445
A189: 176 | B189: 0.413461683 | C189: 0.2017760018 | D189: 0.0859375 | E189: 0.366410009 | F189: 0.7165132245 | G189: 0.2549498853 | H189: 0.2539651583 | J189: -848 | K189: 0.003355336221 | L189: =SUM($K$13:$K$2061*K189:K2237) -> 0.1986714728 | N189: 0 | O189: =SUM($N$13:$N$2061*N189:N2237) -> 0.1932666254
A190: 177 | B190: 0.41256805 | C190: 0.2013126452 | D190: 0.08642578125 | E190: 0.3620748821 | F190: 0.7199670713 | G190: 0.2548317356 | H190: 0.2538813986 | J190: -847 | K190: 0.003354284125 | L190: =SUM($K$13:$K$2061*K190:K2238) -> 0.1981890747 | N190: 0 | O190: =SUM($N$13:$N$2061*N190:N2238) -> 0.192712974
A191: 178 | B191: 0.4116810506 | C191: 0.2008530245 | D191: 0.0869140625 | E191: 0.3556859311 | F191: 0.7234208557 | G191: 0.2547134066 | H191: 0.2537962651 | J191: -846 | K191: 0.003349195674 | L191: =SUM($K$13:$K$2061*K191:K2239) -> 0.1977103062 | N191: 0 | O191: =SUM($N$13:$N$2061*N191:N2239) -> 0.1921656019
A192: 179 | B192: 0.4108006018 | C192: 0.2003970877 | D192: 0.08740234375 | E192: 0.351541136 | F192: 0.7268745777 | G192: 0.2545948977 | H192: 0.2537097983 | J192: -845 | K192: 0.003348168018 | L192: =SUM($K$13:$K$2061*K192:K2240) -> 0.1972353009 | N192: 0 | O192: =SUM($N$13:$N$2061*N192:N2240) -> 0.1916197181
A193: 180 | B193: 0.409926622 | C193: 0.1999447842 | D193: 0.087890625 | E193: 0.3453840732 | F193: 0.7303282373 | G193: 0.2544762086 | H193: 0.2536220377 | J193: -844 | K193: 0.003343061832 | L193: =SUM($K$13:$K$2061*K193:K2241) -> 0.1967638227 | N193: 0 | O193: =SUM($N$13:$N$2061*N193:N2241) -> 0.1910799822
A194: 181 | B194: 0.4090590309 | C194: 0.1994960641 | D194: 0.08837890625 | E194: 0.3414199383 | F194: 0.7337818346 | G194: 0.2543573388 | H194: 0.2535330211 | J194: -843 | K194: 0.00334205764 | L194: =SUM($K$13:$K$2061*K194:K2242) -> 0.1962960073 | N194: 0 | O194: =SUM($N$13:$N$2061*N194:N2242) -> 0.1905416587
A195: 182 | B195: 0.4081977498 | C195: 0.1990508787 | D195: 0.0888671875 | E195: 0.3354838562 | F195: 0.7372353694 | G195: 0.2542382881 | H195: 0.2534427852 | J195: -842 | K195: 0.003336934197 | L195: =SUM($K$13:$K$2061*K195:K2243) -> 0.1958316204 | N195: 0 | O195: =SUM($N$13:$N$2061*N195:N2243) -> 0.1900093561
A196: 183 | B196: 0.4073427011 | C196: 0.1986091801 | D196: 0.08935546875 | E196: 0.3316912761 | F196: 0.7406888419 | G196: 0.2541190558 | H196: 0.2533513653 | J196: -841 | K196: 0.003335953616 | L196: =SUM($K$13:$K$2061*K196:K2244) -> 0.1953707995 | N196: 0 | O196: =SUM($N$13:$N$2061*N196:N2244) -> 0.1894783933
A197: 184 | B197: 0.4064938087 | C197: 0.1981709214 | D197: 0.08984375 | E197: 0.3259658743 | F197: 0.744142252 | G197: 0.2539996417 | H197: 0.2532587957 | J197: -840 | K197: 0.003330812049 | L197: =SUM($K$13:$K$2061*K197:K2245) -> 0.1949133125 | N197: 0 | O197: =SUM($N$13:$N$2061*N197:N2245) -> 0.1889533288
A198: 185 | B198: 0.4056509978 | C198: 0.1977360566 | D198: 0.09033203125 | E198: 0.3223362725 | F198: 0.7475955997 | G198: 0.2538800453 | H198: 0.2531651092 | J198: -839 | K198: 0.003329855838 | L198: =SUM($K$13:$K$2061*K198:K2246) -> 0.1944592986 | N198: 0 | O198: =SUM($N$13:$N$2061*N198:N2246) -> 0.1884295345
A199: 186 | B199: 0.4048141949 | C199: 0.1973045404 | D199: 0.0908203125 | E199: 0.316811823 | F199: 0.751048885 | G199: 0.2537602662 | H199: 0.2530703379 | J199: -838 | K199: 0.00332469579 | L199: =SUM($K$13:$K$2061*K199:K2247) -> 0.1940085273 | N199: 0 | O199: =SUM($N$13:$N$2061*N199:N2247) -> 0.18791152
A200: 187 | B200: 0.4039833275 | C200: 0.1968763287 | D200: 0.09130859375 | E200: 0.3133371179 | F200: 0.754502108 | G200: 0.2536403039 | H200: 0.2529745124 | J200: -837 | K200: 0.003323763849 | L200: =SUM($K$13:$K$2061*K200:K2248) -> 0.1935611398 | N200: 0 | O200: =SUM($N$13:$N$2061*N200:N2248) -> 0.1873947092
... 1861 more rows

Sheet ToARMA(1,q')
A1: =Model!A1 -> You must have macros enabled in order for the program to work. You may see the code through the VBA Editor.
A2: =Model!A2 -> Program by Demetris Koutsoyiannis - Please report bugs to dk@itia.ntua.gr | H2: =Model!H2 -> Version 0.6 | J2: =Model!J2 -> 2019-10-23
A3: =Model!A3 -> Linensed under Creative Commons - Attribution Alone (CC-BY)
A4: =Model!A4 -> q | B4: =Model!B4 -> 1024 | C4: =Model!C4 -> The number of coefficients is 2q+1. If you change this number you must adapt the spreadsheet.
A5: =Model!A5 -> Markov or not | B5: 0 | C5: =Model!C5 -> Set 1 for Markov, any other number for FHK (Cauchy climacogram)
A6: =Model!A6 -> H | B6: =Model!B6 -> 0.8 | C6: =Model!C6 -> Hurst parameter (0 <= H <= 1) | J6: Error in c | K6: =SUM((P13:P1037-C13:C1037)^2) -> 2.93025808
A7: =Model!A7 -> M | B7: =Model!B7 -> 0.7 | C7: =Model!C7 -> Fractal (Mandelbrot) parameter (0 <= M <= 1) | F7: Minimize this by Solver to find θ(ω)---------------> | J7: Error in a | K7: =SUM((K13:K2061-O13:O2061)^2) -> 0.01016210898 | L7: =K1037-MAX(K13:K2061) -> -0.09169009013 | N7: =SUM(N13:N2061^2) -> 1.012801875 | O7: =SUM(O13:O2061^2) -> 0.9957311982
A8: =Model!A8 -> α | B8: =Model!B8 -> 20 | C8: =Model!C8 -> Time scale parameter | F8: θ parameters | H8: β parameter | L8: -0.1 | R8: =MIN(R13:R1037) -> -5.143760973e-09
A9: =Model!A9 -> λ = γ(0) | B9: =Model!B9 -> 1 | C9: =Model!C9 -> State scale parameter | F9: 0.1053687568 | G9: 0.07119798243 | H9: 0.9973130096
A10: ARMA size q' | B10: 100 | F10: 384.6438848 | G10: 0.6643602632 | J10: Adjustment factor | K10: =($B$14/N7)^0.5 -> 0.9915367354
F11: 55.26252583 | G11: 1.08634018
A12: κ, η | B12: γ(κ) | C12: cη | D12: ω | E12: s(ω) | H12: θ(ω) | J12: η | K12: aη | L12: cη convoluted | N12: aη modified | O12: aη final | P12: cη convoluted final | Q12: ω | R12: s(ω)
A13: =IF(B5=1,markov_(B4,B8/2,B9),FHK_Cauchy_(B4,B7,B6,B8,B9)) -> 0 | B13: 1 | C13: 0.9957311982 | D13: =FFTPowSpec_(C13:C1037) -> 0 | E13: 678.7005505 | F13: =F$10*$D13/(F$11+$D13)+F$9 -> 0.1053687568 | G13: =G$10*(0.5-$D13)/(G$11+0.5-$D13)+G$9 -> 0.2805982963 | H13: 0 | J13: =FFT_amaCoef_(E13:E1037,H13:H1037) -> -1024 | K13: 0.003921711895 | L13: =SUM($K$13:$K$2061*K13:K2061) -> 0.9957464072 | N13: =IF(J13<0,0,IF(J13<=$B$10,K13,O12*$H$9)) -> 0 | O13: =N13*$K$10 -> 0 | P13: =SUM($O$13:$O$2061*O13:O2061) -> 0.9957311982 | Q13: =FFTPowSpec_(P13:P1037) -> 0 | R13: 531.792669
A14: 1 | B14: 0.9957311982 | C14: 0.9820849253 | D14: 0.00048828125 | E14: 192.5504243 | F14: =F$10*$D14/(F$11+$D14)+F$9 -> 0.1087673118 | G14: =G$10*(0.5-$D14)/(G$11+0.5-$D14)+G$9 -> 0.2804582148 | H14: =IFERROR(LN(EXP(-10*F14)+EXP(-10*G14))/-10,0) -> 0.09224803484 | J14: -1023 | K14: 0.003899862995 | L14: =SUM($K$13:$K$2061*K14:K2062) -> 0.9820850961 | N14: =IF(J14<0,0,IF(J14<=$B$10,K14,N13*$H$9)) -> 0 | O14: =N14*$K$10 -> 0 | P14: =SUM($O$13:$O$2061*O14:O2062) -> 0.9820248872 | Q14: 0.00048828125 | R14: 305.906777
A15: 2 | B15: 0.9889080617 | C15: 0.9558070596 | D15: 0.0009765625 | E15: 113.6800236 | F15: 0.1121658069 | G15: 0.2803180471 | H15: 0.09509955014 | J15: -1022 | K15: 0.003922669312 | L15: =SUM($K$13:$K$2061*K15:K2063) -> 0.9557905677 | N15: 0 | O15: 0 | P15: =SUM($O$13:$O$2061*O15:O2063) -> 0.9559059549 | Q15: 0.0009765625 | R15: 122.8841418
A16: 3 | B16: 0.9807941572 | C16: 0.9255524266 | D16: 0.00146484375 | E16: 93.34209542 | F16: 0.1155642418 | G16: 0.280177793 | H16: 0.09793443671 | J16: -1021 | K16: 0.003899015416 | L16: =SUM($K$13:$K$2061*K16:K2064) -> 0.9255203527 | N16: 0 | O16: 0 | P16: =SUM($O$13:$O$2061*O16:O2064) -> 0.9266455282 | Q16: 0.00146484375 | R16: 92.02339842
A17: 4 | B17: 0.9718604648 | C17: 0.8936956952 | D17: 0.001953125 | E17: 75.4184916 | F17: 0.1189626167 | G17: 0.2800374525 | H17: 0.1007522899 | J17: -1020 | K17: 0.003910650823 | L17: =SUM($K$13:$K$2061*K17:K2065) -> 0.8936472711 | N17: 0 | O17: 0 | P17: =SUM($O$13:$O$2061*O17:O2065) -> 0.8954577715 | Q17: 0.001953125 | R17: 65.29138352
A18: 5 | B18: 0.9623911539 | C18: 0.8615658501 | D18: 0.00244140625 | E18: 66.86872455 | F18: 0.1223609316 | G18: 0.2798970254 | H18: 0.103552701 | J18: -1019 | K18: 0.00389390905 | L18: =SUM($K$13:$K$2061*K18:K2066) -> 0.8615017942 | N18: 0 | O18: 0 | P18: =SUM($O$13:$O$2061*O18:O2066) -> 0.8640428912 | Q18: 0.00244140625 | R18: 60.93399349
A19: 6 | B19: 0.9525811655 | C19: 0.8299831163 | D19: 0.0029296875 | E19: 58.25523587 | F19: 0.1257591864 | G19: 0.2797565117 | H19: 0.1063352577 | J19: -1018 | K19: 0.003900525957 | L19: =SUM($K$13:$K$2061*K19:K2067) -> 0.8299027198 | N19: 0 | O19: 0 | P19: =SUM($O$13:$O$2061*O19:O2067) -> 0.8327862167 | Q19: 0.0029296875 | R19: 50.95950918
A20: 7 | B20: 0.9425720674 | C20: 0.7994569296 | D20: 0.00341796875 | E20: 53.21210231 | F20: 0.1291573812 | G20: 0.2796159114 | H20: 0.1090995443 | J20: -1017 | K20: 0.003887715989 | L20: =SUM($K$13:$K$2061*K20:K2068) -> 0.7993608635 | N20: 0 | O20: 0 | P20: =SUM($O$13:$O$2061*O20:O2068) -> 0.8025223072 | Q20: 0.00341796875 | R20: 49.75124332
A21: 8 | B21: 0.9324696017 | C21: 0.7702915287 | D21: 0.00390625 | E21: 47.90650515 | F21: 0.1325555159 | G21: 0.2794752242 | H21: 0.1118451424 | J21: -1016 | K21: 0.003892115482 | L21: =SUM($K$13:$K$2061*K21:K2069) -> 0.770179085 | N21: 0 | O21: 0 | P21: =SUM($O$13:$O$2061*O21:O2069) -> 0.7733489408 | Q21: 0.00390625 | R21: 43.77202329
A22: 9 | B22: 0.9223538367 | C22: 0.7426519135 | D22: 0.00439453125 | E22: 44.44489152 | F22: 0.1359535905 | G22: 0.2793344502 | H22: 0.1145716308 | J22: -1015 | K22: 0.003881602177 | L22: =SUM($K$13:$K$2061*K22:K2070) -> 0.7425237504 | N22: 0 | O22: 0 | P22: =SUM($O$13:$O$2061*O22:O2070) -> 0.7457014948 | Q22: 0.00439453125 | R22: 43.05469174
A23: 10 | B23: 0.9122857086 | C23: 0.7166082252 | D23: 0.0048828125 | E23: 40.74157428 | F23: 0.1393516052 | G23: 0.2791935893 | H23: 0.1172785863 | J23: -1014 | K23: 0.003884759252 | L23: =SUM($K$13:$K$2061*K23:K2071) -> 0.7164636327 | N23: 0 | O23: 0 | P23: =SUM($O$13:$O$2061*O23:O2071) -> 0.7195198894 | Q23: 0.0048828125 | R23: 38.54634924
A24: 11 | B24: 0.9023115487 | C24: 0.6921666425 | D24: 0.00537109375 | E24: 38.15572584 | F24: 0.1427495597 | G24: 0.2790526414 | H24: 0.119965584 | J24: -1013 | K24: 0.003875643061 | L24: =SUM($K$13:$K$2061*K24:K2072) -> 0.6920062746 | N24: 0 | O24: 0 | P24: =SUM($O$13:$O$2061*O24:O2072) -> 0.6950178531 | Q24: 0.00537109375 | R24: 37.8602481
A25: 12 | B25: 0.8924663696 | C25: 0.6692911815 | D25: 0.005859375 | E25: 35.37181697 | F25: 0.1461474543 | G25: 0.2789116064 | H25: 0.122632198 | J25: -1012 | K25: 0.00387794202 | L25: =SUM($K$13:$K$2061*K25:K2073) -> 0.6691143274 | N25: 0 | O25: 0 | P25: =SUM($O$13:$O$2061*O25:O2073) -> 0.6720509496 | Q25: 0.005859375 | R25: 34.11228432
A26: 13 | B26: 0.8827763278 | C26: 0.6479191154 | D26: 0.00634765625 | E26: 33.33550694 | F26: 0.1495452888 | G26: 0.2787704842 | H26: 0.1252780015 | J26: -1011 | K26: 0.003869697822 | L26: =SUM($K$13:$K$2061*K26:K2074) -> 0.6477264281 | N26: 0 | O26: 0 | P26: =SUM($O$13:$O$2061*O26:O2074) -> 0.6507093913 | Q26: 0.00634765625 | R26: 33.40768993
A27: 14 | B27: 0.8732606113 | C27: 0.6279718324 | D27: 0.0068359375 | E27: 31.13953153 | F27: 0.1529430633 | G27: 0.2786292748 | H27: 0.1279025675 | J27: -1010 | K27: 0.003871334948 | L27: =SUM($K$13:$K$2061*K27:K2075) -> 0.6277626017 | N27: 0 | O27: 0 | P27: =SUM($O$13:$O$2061*O27:O2075) -> 0.6308121203 | Q27: 0.0068359375 | R27: 30.18846229
A28: 15 | B28: 0.8639329062 | C28: 0.6093624078 | D28: 0.00732421875 | E28: 29.47842754 | F28: 0.1563407777 | G28: 0.278487978 | H28: 0.1305054695 | J28: -1009 | K28: 0.003863652463 | L28: =SUM($K$13:$K$2061*K28:K2076) -> 0.6091372868 | N28: 0 | O28: 0 | P28: =SUM($O$13:$O$2061*O28:O2076) -> 0.612384713 | Q28: 0.00732421875 | R28: 29.50682723
A29: 16 | B29: 0.85480255 | C29: 0.5920008072 | D29: 0.0078125 | E29: 27.68782906 | F29: 0.1597384321 | G29: 0.2783465938 | H29: 0.1330862819 | J29: -1008 | K29: 0.0038647602 | L29: =SUM($K$13:$K$2061*K29:K2077) -> 0.5917590866 | N29: 0 | O29: 0 | P29: =SUM($O$13:$O$2061*O29:O2077) -> 0.5952389764 | Q29: 0.0078125 | R29: 26.73196706
A30: 17 | B30: 0.845875444 | C30: 0.5757973857 | D30: 0.00830078125 | E30: 26.29885694 | F30: 0.1631360265 | G30: 0.2782051222 | H30: 0.1356445805 | J30: -1007 | K30: 0.003857455984 | L30: =SUM($K$13:$K$2061*K30:K2078) -> 0.5755397195 | N30: 0 | O30: 0 | P30: =SUM($O$13:$O$2061*O30:O2078) -> 0.5793707018 | Q30: 0.00830078125 | R30: 26.12366331
A31: 18 | B31: 0.8371547796 | C31: 0.5606651706 | D31: 0.0087890625 | E31: 24.80358592 | F31: 0.1665335608 | G31: 0.2780635629 | H31: 0.1381799434 | J31: -1006 | K31: 0.003858138183 | L31: =SUM($K$13:$K$2061*K31:K2079) -> 0.5603908505 | N31: 0 | O31: 0 | P31: =SUM($O$13:$O$2061*O31:O2079) -> 0.5646009799 | Q31: 0.0087890625 | R31: 23.74954678
A32: 19 | B32: 0.8286416183 | C32: 0.5465212781 | D32: 0.00927734375 | E32: 23.6210368 | F32: 0.1699310351 | G32: 0.277921916 | H32: 0.1406919511 | J32: -1005 | K32: 0.003851102734 | L32: =SUM($K$13:$K$2061*K32:K2080) -> 0.5462309591 | N32: 0 | O32: 0 | P32: =SUM($O$13:$O$2061*O32:O2080) -> 0.5509154132 | Q32: 0.00927734375 | R32: 23.24835105
A33: 20 | B33: 0.820335356 | C33: 0.533287725 | D33: 0.009765625 | E33: 22.35005612 | F33: 0.1733284494 | G33: 0.2777801814 | H33: 0.1431801877 | J33: -1004 | K33: 0.003851446011 | L33: =SUM($K$13:$K$2061*K33:K2081) -> 0.5329806998 | N33: 0 | O33: 0 | P33: =SUM($O$13:$O$2061*O33:O2081) -> 0.5381521103 | Q33: 0.009765625 | R33: 21.23452542
A34: 21 | B34: 0.8122340953 | C34: 0.5208918186 | D34: 0.01025390625 | E34: 21.32951702 | F34: 0.1767258036 | G34: 0.2776383589 | H34: 0.1456442413 | J34: -1003 | K34: 0.0038446116 | L34: =SUM($K$13:$K$2061*K34:K2082) -> 0.5205687431 | N34: 0 | O34: 0 | P34: =SUM($O$13:$O$2061*O34:O2082) -> 0.5262966318 | Q34: 0.01025390625 | R34: 20.85143923
A35: 22 | B35: 0.8043349448 | C35: 0.5092662615 | D35: 0.0107421875 | E35: 20.2344396 | F35: 0.1801230979 | G35: 0.2774964485 | H35: 0.1480837045 | J35: -1002 | K35: 0.003844687071 | L35: =SUM($K$13:$K$2061*K35:K2083) -> 0.5089264294 | N35: 0 | O35: 0 | P35: =SUM($O$13:$O$2061*O35:O2083) -> 0.5152065397 | Q35: 0.0107421875 | R35: 19.14971807
A36: 23 | B36: 0.7966342592 | C36: 0.498349067 | D36: 0.01123046875 | E36: 19.344455 | F36: 0.1835203321 | G36: 0.2773544502 | H36: 0.1504981755 | J36: -1001 | K36: 0.003838011089 | L36: =SUM($K$13:$K$2061*K36:K2084) -> 0.4979931349 | N36: 0 | O36: 0 | P36: =SUM($O$13:$O$2061*O36:O2084) -> 0.5048719127 | Q36: 0.01123046875 | R36: 18.87548436
A37: 24 | B37: 0.7891278316 | C37: 0.4880833527 | D37: 0.01171875 | E37: 18.3908623 | F37: 0.1869175063 | G37: 0.2772123637 | H37: 0.1528872582 | J37: -1000 | K37: 0.003837876137 | L37: =SUM($K$13:$K$2061*K37:K2085) -> 0.4877106152 | N37: 0 | O37: 0 | P37: =SUM($O$13:$O$2061*O37:O2085) -> 0.495169274 | Q37: 0.01171875 | R37: 17.43076119
A38: 25 | B38: 0.781811049 | C38: 0.478417062 | D38: 0.01220703125 | E38: 17.60829042 | F38: 0.1903146204 | G38: 0.2770701892 | H38: 0.1552505635 | J38: -999 | K38: 0.003831328646 | L38: =SUM($K$13:$K$2061*K38:K2086) -> 0.4780281765 | N38: 0 | O38: 0 | P38: =SUM($O$13:$O$2061*O38:O2086) -> 0.4860946764 | Q38: 0.01220703125 | R38: 17.24253221
A39: 26 | B39: 0.7746790154 | C39: 0.4693026461 | D39: 0.0126953125 | E39: 16.77081423 | F39: 0.1937116746 | G39: 0.2769279264 | H39: 0.1575877098 | J39: -998 | K39: 0.003831030135 | L39: =SUM($K$13:$K$2061*K39:K2087) -> 0.4688969077 | N39: 0 | O39: 0 | P39: =SUM($O$13:$O$2061*O39:O2087) -> 0.4775417095 | Q39: 0.0126953125 | R39: 15.99839095
A40: 27 | B40: 0.7677266508 | C40: 0.46069673 | D40: 0.01318359375 | E40: 16.07808839 | F40: 0.1971086687 | G40: 0.2767855753 | H40: 0.1598983232 | J40: -997 | K40: 0.003824589202 | L40: =SUM($K$13:$K$2061*K40:K2088) -> 0.4602747969 | N40: 0 | O40: 0 | P40: =SUM($O$13:$O$2061*O40:O2088) -> 0.4695122776 | Q40: 0.01318359375 | R40: 15.86768387
A41: 28 | B41: 0.7609487704 | C41: 0.4525597782 | D41: 0.013671875 | E41: 15.33747139 | F41: 0.2005056028 | G41: 0.2766431358 | H41: 0.1621820392 | J41: -996 | K41: 0.003824164014 | L41: =SUM($K$13:$K$2061*K41:K2089) -> 0.4521209461 | N41: 0 | O41: 0 | P41: =SUM($O$13:$O$2061*O41:O2089) -> 0.4619146489 | Q41: 0.013671875 | R41: 14.77287846
A42: 29 | B42: 0.7543401463 | C42: 0.4448557689 | D42: 0.01416015625 | E42: 14.72090614 | F42: 0.203902477 | G42: 0.2765006078 | H42: 0.1644385025 | J42: -995 | K42: 0.003817812251 | L42: =SUM($K$13:$K$2061*K42:K2090) -> 0.4444006965 | N42: 0 | O42: 0 | P42: =SUM($O$13:$O$2061*O42:O2090) -> 0.4547557662 | Q42: 0.01416015625 | R42: 14.67274356
A43: 30 | B43: 0.7478955574 | C43: 0.4375518852 | D43: 0.0146484375 | E43: 14.06216448 | F43: 0.207299291 | G43: 0.2763579912 | H43: 0.1666673681 | J43: -994 | K43: 0.003817289856 | L43: =SUM($K$13:$K$2061*K43:K2091) -> 0.4370798688 | N43: 0 | O43: 0 | P43: =SUM($O$13:$O$2061*O43:O2091) -> 0.4479561892 | Q43: 0.0146484375 | R43: 13.68621906
A44: 31 | B44: 0.7416098273 | C44: 0.4306182243 | D44: 0.01513671875 | E44: 13.51086447 | F44: 0.2106960451 | G44: 0.2762152861 | H44: 0.1688683022 | J44: -993 | K44: 0.003811013146 | L44: =SUM($K$13:$K$2061*K44:K2092) -> 0.4301299231 | N44: 0 | O44: 0 | P44: =SUM($O$13:$O$2061*O44:O2092) -> 0.441526881 | Q44: 0.01513671875 | R44: 13.59626273
A45: 32 | B45: 0.7354778543 | C45: 0.4240275288 | D45: 0.015625 | E45: 12.92209454 | F45: 0.2140927392 | G45: 0.2760724922 | H45: 0.1710409823 | J45: -992 | K45: 0.003810416236 | L45: =SUM($K$13:$K$2061*K45:K2093) -> 0.4235222395 | N45: 0 | O45: 0 | P45: =SUM($O$13:$O$2061*O45:O2093) -> 0.4353985405 | Q45: 0.015625 | R45: 12.68957592
A46: 33 | B46: 0.7294946342 | C46: 0.4177549386 | D46: 0.01611328125 | E46: 12.42722664 | F46: 0.2174893733 | G46: 0.2759296094 | H46: 0.1731850986 | J46: -991 | K46: 0.00380420314 | L46: =SUM($K$13:$K$2061*K46:K2094) -> 0.4172333208 | N46: 0 | O46: 0 | P46: =SUM($O$13:$O$2061*O46:O2094) -> 0.4295851686 | Q46: 0.01611328125 | R46: 12.59824604
A47: 34 | B47: 0.7236552772 | C47: 0.4117777647 | D47: 0.0166015625 | E47: 11.89880395 | F47: 0.2208859473 | G47: 0.2757866378 | H47: 0.1753003539 | J47: -990 | K47: 0.003803550286 | L47: =SUM($K$13:$K$2061*K47:K2095) -> 0.4112391157 | N47: 0 | O47: 0 | P47: =SUM($O$13:$O$2061*O47:O2095) -> 0.4240257707 | Q47: 0.0166015625 | R47: 11.75521762
A48: 35 | B48: 0.7179550202 | C48: 0.4060752829 | D48: 0.01708984375 | E48: 11.45309653 | F48: 0.2242824614 | G48: 0.2756435773 | H48: 0.1773864651 | J48: -989 | K48: 0.003797389627 | L48: =SUM($K$13:$K$2061*K48:K2096) -> 0.4055202627 | N48: 0 | O48: 0 | P48: =SUM($O$13:$O$2061*O48:O2096) -> 0.4187365397 | Q48: 0.01708984375 | R48: 11.65948277
A49: 36 | B49: 0.7123892358 | C49: 0.400628547 | D49: 0.017578125 | E49: 10.97712201 | F49: 0.2276789155 | G49: 0.2755004276 | H49: 0.1794431631 | J49: -988 | K49: 0.003796696551 | L49: =SUM($K$13:$K$2061*K49:K2097) -> 0.4000564531 | N49: 0 | O49: 0 | P49: =SUM($O$13:$O$2061*O49:O2097) -> 0.4136632789 | Q49: 0.017578125 | R49: 10.87364677
A50: 37 | B50: 0.7069534379 | C50: 0.3954202191 | D50: 0.01806640625 | E50: 10.57451093 | F50: 0.2310753095 | G50: 0.2753571889 | H50: 0.1814701935 | J50: -987 | K50: 0.00379057839 | L50: =SUM($K$13:$K$2061*K50:K2098) -> 0.394831712 | N50: 0 | O50: 0 | P50: =SUM($O$13:$O$2061*O50:O2098) -> 0.4088236912 | Q50: 0.01806640625 | R50: 10.77675753
A51: 38 | B51: 0.7016432853 | C51: 0.3904344174 | D51: 0.0185546875 | E51: 10.14441826 | F51: 0.2344716436 | G51: 0.2752138609 | H51: 0.1834673178 | J51: -986 | K51: 0.003789857762 | L51: =SUM($K$13:$K$2061*K51:K2099) -> 0.389828795 | N51: 0 | O51: 0 | P51: =SUM($O$13:$O$2061*O51:O2099) -> 0.4041691605 | Q51: 0.0185546875 | R51: 10.04760341
A52: 39 | B52: 0.6964545826 | C52: 0.3856565782 | D52: 0.01904296875 | E52: 9.779790477 | F52: 0.2378679177 | G52: 0.2750704436 | H52: 0.1854343133 | J52: -985 | K52: 0.003783774027 | L52: =SUM($K$13:$K$2061*K52:K2100) -> 0.3850345012 | N52: 0 | O52: 0 | P52: =SUM($O$13:$O$2061*O52:O2100) -> 0.3997183721 | Q52: 0.01904296875 | R52: 9.955922017
A53: 40 | B53: 0.6913832809 | C53: 0.381073332 | D53: 0.01953125 | E53: 9.390061041 | F53: 0.2412641317 | G53: 0.2749269369 | H53: 0.1873709736 | J53: -984 | K53: 0.003783035695 | L53: =SUM($K$13:$K$2061*K53:K2101) -> 0.3804340988 | N53: 0 | O53: 0 | P53: =SUM($O$13:$O$2061*O53:O2101) -> 0.3954273184 | Q53: 0.01953125 | R53: 9.285026125
A54: 41 | B54: 0.6864254762 | C54: 0.3766723914 | D54: 0.02001953125 | E54: 9.059064818 | F54: 0.2446602858 | G54: 0.2747833407 | H54: 0.1892771098 | J54: -983 | K54: 0.003776979027 | L54: =SUM($K$13:$K$2061*K54:K2102) -> 0.376016663 | N54: 0 | O54: 0 | P54: =SUM($O$13:$O$2061*O54:O2102) -> 0.3913152718 | Q54: 0.02001953125 | R54: 9.20492384
A55: 42 | B55: 0.6815774072 | C55: 0.3724424513 | D55: 0.0205078125 | E55: 8.705016568 | F55: 0.2480563799 | G55: 0.274639655 | H55: 0.19115255 | J55: -982 | K55: 0.003776231937 | L55: =SUM($K$13:$K$2061*K55:K2103) -> 0.3717695262 | N55: 0 | O55: 0 | P55: =SUM($O$13:$O$2061*O55:O2103) -> 0.3873420601 | Q55: 0.0205078125 | R55: 8.592882007
A56: 43 | B56: 0.6768354527 | C56: 0.3683730975 | D56: 0.02099609375 | E56: 8.403918191 | F56: 0.251452414 | G56: 0.2744958797 | H56: 0.1929971405 | J56: -981 | K56: 0.003770195567 | L56: =SUM($K$13:$K$2061*K56:K2104) -> 0.3676836371 | N56: 0 | O56: 0 | P56: =SUM($O$13:$O$2061*O56:O2104) -> 0.3835272526 | Q56: 0.02099609375 | R56: 8.528475448
A57: 44 | B57: 0.6721961281 | C57: 0.3644547263 | D57: 0.021484375 | E57: 8.081546227 | F57: 0.2548483881 | G57: 0.2743520146 | H57: 0.1948107457 | J57: -980 | K57: 0.00376944633 | L57: =SUM($K$13:$K$2061*K57:K2105) -> 0.3637480294 | N57: 0 | O57: 0 | P57: =SUM($O$13:$O$2061*O57:O2105) -> 0.3798338966 | Q57: 0.021484375 | R57: 7.973172831
A58: 45 | B58: 0.6676560817 | C58: 0.3606784703 | D58: 0.02197265625 | E58: 7.807119929 | F58: 0.2582443022 | G58: 0.2742080597 | H58: 0.1965932486 | J58: -979 | K58: 0.003763425494 | L58: =SUM($K$13:$K$2061*K58:K2106) -> 0.3599551986 | N58: 0 | O58: 0 | P58: =SUM($O$13:$O$2061*O58:O2106) -> 0.3762816504 | Q58: 0.02197265625 | R58: 7.925296024
A59: 46 | B59: 0.6632120906 | C59: 0.357036133 | D59: 0.0224609375 | E59: 7.512974143 | F59: 0.2616401563 | G59: 0.2740640149 | H59: 0.1983445512 | J59: -978 | K59: 0.003762679917 | L59: =SUM($K$13:$K$2061*K59:K2107) -> 0.3562955857 | N59: 0 | O59: 0 | P59: =SUM($O$13:$O$2061*O59:O2107) -> 0.372836288 | Q59: 0.0224609375 | R59: 7.421610259
A60: 47 | B60: 0.6588610567 | C60: 0.3535201291 | D60: 0.02294921875 | E60: 7.262416171 | F60: 0.2650359505 | G60: 0.2739198801 | H60: 0.2000645744 | J60: -977 | K60: 0.003756669063 | L60: =SUM($K$13:$K$2061*K60:K2108) -> 0.3527629679 | N60: 0 | O60: 0 | P60: =SUM($O$13:$O$2061*O60:O2108) -> 0.36951741 | Q60: 0.02294921875 | R60: 7.388015847
A61: 48 | B61: 0.6546000022 | C61: 0.3501234308 | D61: 0.0234375 | E61: 6.99350586 | F61: 0.2684316846 | G61: 0.2737756553 | H61: 0.2017532586 | J61: -976 | K61: 0.003755932733 | L61: =SUM($K$13:$K$2061*K61:K2109) -> 0.3493489554 | N61: 0 | O61: 0 | P61: =SUM($O$13:$O$2061*O61:O2109) -> 0.3662931198 | Q61: 0.0234375 | R61: 6.928666455
A62: 49 | B62: 0.6504260653 | C62: 0.3468395198 | D62: 0.02392578125 | E62: 6.764366434 | F62: 0.2718273588 | G62: 0.2736313404 | H62: 0.2034105636 | J62: -975 | K62: 0.003749927117 | L62: =SUM($K$13:$K$2061*K62:K2110) -> 0.346048392 | N62: 0 | O62: 0 | P62: =SUM($O$13:$O$2061*O62:O2110) -> 0.3631828594 | Q62: 0.02392578125 | R62: 6.905124105
A63: 50 | B63: 0.6463364958 | C63: 0.3436623428 | D63: 0.0244140625 | E63: 6.518084943 | F63: 0.275222973 | G63: 0.2734869352 | H63: 0.2050364688 | J63: -974 | K63: 0.003749204905 | L63: =SUM($K$13:$K$2061*K63:K2111) -> 0.3428538624 | N63: 0 | O63: 0 | P63: =SUM($O$13:$O$2061*O63:O2111) -> 0.3601567392 | Q63: 0.0244140625 | R63: 6.482143148
A64: 51 | B64: 0.6423286509 | C64: 0.3405862727 | D64: 0.02490234375 | E64: 6.308213668 | F64: 0.2786185272 | G64: 0.2733424397 | H64: 0.206630973 | J64: -973 | K64: 0.003743199948 | L64: =SUM($K$13:$K$2061*K64:K2112) -> 0.339761102 | N64: 0 | O64: 0 | P64: =SUM($O$13:$O$2061*O64:O2112) -> 0.3572339747 | Q64: 0.02490234375 | R64: 6.463926683
A65: 52 | B65: 0.6383999907 | C65: 0.3376060729 | D65: 0.025390625 | E65: 6.082278089 | F65: 0.2820140215 | G65: 0.2731978537 | H65: 0.208194095 | J65: -972 | K65: 0.003742495893 | L65: =SUM($K$13:$K$2061*K65:K2113) -> 0.3367635119 | N65: 0 | O65: 0 | P65: =SUM($O$13:$O$2061*O65:O2113) -> 0.3543864183 | Q65: 0.025390625 | R65: 6.070169969
A66: 53 | B66: 0.6345480744 | C66: 0.3347168644 | D66: 0.02587890625 | E66: 5.889779664 | F66: 0.2854094558 | G66: 0.2730531773 | H66: 0.2097258728 | J66: -971 | K66: 0.003736488476 | L66: =SUM($K$13:$K$2061*K66:K2114) -> 0.3338575755 | N66: 0 | O66: 0 | P66: =SUM($O$13:$O$2061*O66:O2114) -> 0.3516330165 | Q66: 0.02587890625 | R66: 6.053418203
A67: 54 | B67: 0.6307705558 | C67: 0.3319140969 | D67: 0.0263671875 | E67: 5.682182034 | F67: 0.2888048301 | G67: 0.2729084104 | H67: 0.211226364 | J67: -970 | K67: 0.00373580552 | L67: =SUM($K$13:$K$2061*K67:K2115) -> 0.3310373803 | N67: 0 | O67: 0 | P67: =SUM($O$13:$O$2061*O67:O2115) -> 0.3489471441 | Q67: 0.0263671875 | R67: 5.683646577
A68: 55 | B68: 0.6270651798 | C68: 0.329193522 | D68: 0.02685546875 | E68: 5.505379933 | F68: 0.2922001444 | G68: 0.2727635528 | H68: 0.2126956456 | J68: -969 | K68: 0.003729792072 | L68: =SUM($K$13:$K$2061*K68:K2116) -> 0.3283000404 | N68: 0 | O68: 0 | P68: =SUM($O$13:$O$2061*O68:O2116) -> 0.3463474532 | Q68: 0.02685546875 | R68: 5.666219039
A69: 56 | B69: 0.6234297781 | C69: 0.3265511694 | D69: 0.02734375 | E69: 5.314347355 | F69: 0.2955953987 | G69: 0.2726186044 | H69: 0.2141338137 | J69: -968 | K69: 0.003729134035 | L69: =SUM($K$13:$K$2061*K69:K2117) -> 0.3256402233 | N69: 0 | O69: 0 | P69: =SUM($O$13:$O$2061*O69:O2117) -> 0.3438086578 | Q69: 0.02734375 | R69: 5.317497547
A70: 57 | B70: 0.6198622657 | C70: 0.3239833246 | D70: 0.02783203125 | E70: 5.15175376 | F70: 0.2989905931 | G70: 0.2724735652 | H70: 0.2155409833 | J70: -967 | K70: 0.003723111138 | L70: =SUM($K$13:$K$2061*K70:K2118) -> 0.3230555767 | N70: 0 | O70: 0 | P70: =SUM($O$13:$O$2061*O70:O2118) -> 0.3413491035 | Q70: 0.02783203125 | R70: 5.299163861
A71: 58 | B71: 0.6163606378 | C71: 0.3214865089 | D71: 0.0283203125 | E71: 4.975715489 | F71: 0.3023857275 | G71: 0.2723284351 | H71: 0.2169172879 | J71: -966 | K71: 0.003722480445 | L71: =SUM($K$13:$K$2061*K71:K2119) -> 0.32054126 | N71: 0 | O71: 0 | P71: =SUM($O$13:$O$2061*O71:O2119) -> 0.3389446881 | Q71: 0.0283203125 | R71: 4.970574975
A72: 59 | B72: 0.6129229654 | C72: 0.3190574618 | D72: 0.02880859375 | E72: 4.826006203 | F72: 0.305780802 | G72: 0.272183214 | H72: 0.2182628794 | J72: -965 | K72: 0.003716445744 | L72: =SUM($K$13:$K$2061*K72:K2120) -> 0.3180953746 | N72: 0 | O72: 0 | P72: =SUM($O$13:$O$2061*O72:O2120) -> 0.3366134488 | Q72: 0.02880859375 | R72: 4.95260145
A73: 60 | B73: 0.6095473929 | C73: 0.3166931234 | D73: 0.029296875 | E73: 4.663566268 | F73: 0.3091758165 | G73: 0.2720379019 | H73: 0.2195779277 | J73: -964 | K73: 0.003715844701 | L73: =SUM($K$13:$K$2061*K73:K2121) -> 0.3157134992 | N73: 0 | O73: 0 | P73: =SUM($O$13:$O$2061*O73:O2121) -> 0.3343323348 | Q73: 0.029296875 | R73: 4.644472909
A74: 61 | B74: 0.6062321346 | C74: 0.3143906205 | D74: 0.02978515625 | E74: 4.525559603 | F74: 0.312570771 | G74: 0.2718924985 | H74: 0.22086262 | J74: -963 | K74: 0.003709796055 | L74: =SUM($K$13:$K$2061*K74:K2122) -> 0.3133941221 | N74: 0 | O74: 0 | P74: =SUM($O$13:$O$2061*O74:O2122) -> 0.3321190798 | Q74: 0.02978515625 | R74: 4.628837279
A75: 62 | B75: 0.6029754715 | C75: 0.3121472519 | D75: 0.0302734375 | E75: 4.375473857 | F75: 0.3159656656 | G75: 0.271747004 | H75: 0.2221171607 | J75: -962 | K75: 0.003709226202 | L75: =SUM($K$13:$K$2061*K75:K2123) -> 0.3111331805 | N75: 0 | O75: 0 | P75: =SUM($O$13:$O$2061*O75:O2123) -> 0.3299515708 | Q75: 0.0302734375 | R75: 4.341795315
A76: 63 | B76: 0.5997757486 | C76: 0.3099604758 | D76: 0.03076171875 | E76: 4.248112769 | F76: 0.3193605002 | G76: 0.271601418 | H76: 0.2233417707 | J76: -961 | K76: 0.003703161422 | L76: =SUM($K$13:$K$2061*K76:K2124) -> 0.3089294948 | N76: 0 | O76: 0 | P76: =SUM($O$13:$O$2061*O76:O2124) -> 0.3278472482 | Q76: 0.03076171875 | R76: 4.330331934
A77: 64 | B77: 0.5966313724 | C77: 0.307827899 | D77: 0.03125 | E77: 4.109269516 | F77: 0.3227552749 | G77: 0.2714557407 | H77: 0.224536687 | J77: -960 | K77: 0.00370262534 | L77: =SUM($K$13:$K$2061*K77:K2125) -> 0.3067793096 | N77: =IF(J77<0,0,IF(J77<=$B$10,K77,N76*$H$9)) -> 0 | O77: 0 | P77: =SUM($O$13:$O$2061*O77:O2125) -> 0.3257848384 | Q77: 0.03125 | R77: 4.064490547
A78: 65 | B78: 0.5935408076 | C78: 0.3057472655 | D78: 0.03173828125 | E78: 3.991606371 | F78: =F$10*$D78/(F$11+$D78)+F$9 -> 0.3261499896 | G78: =G$10*(0.5-$D78)/(G$11+0.5-$D78)+G$9 -> 0.2713099718 | H78: =IFERROR(LN(EXP(-10*F78)+EXP(-10*G78))/-10,0) -> 0.2257021622 | J78: -959 | K78: 0.003696541524 | L78: =SUM($K$13:$K$2061*K78:K2126) -> 0.304681731 | N78: 0 | O78: =N78*$K$10 -> 0 | P78: =SUM($O$13:$O$2061*O78:O2126) -> 0.3237815031 | Q78: 0.03173828125 | R78: 4.058238459
A79: 66 | B79: 0.5905025751 | C79: 0.303716447 | D79: 0.0322265625 | E79: 3.863009924 | F79: 0.3295446443 | G79: 0.2711641114 | H79: 0.2268384635 | J79: -958 | K79: 0.003696041519 | L79: =SUM($K$13:$K$2061*K79:K2127) -> 0.302633269 | N79: 0 | O79: 0 | P79: =SUM($O$13:$O$2061*O79:O2127) -> 0.3218167225 | Q79: 0.0322265625 | R79: 3.812742998
A80: 67 | B80: 0.5875152496 | C80: 0.3017334342 | D80: 0.03271484375 | E80: 3.754193453 | F80: 0.3329392391 | G80: 0.2710181592 | H80: 0.2279458729 | J80: -957 | K80: 0.003689936771 | L80: =SUM($K$13:$K$2061*K80:K2128) -> 0.3006332763 | N80: 0 | O80: 0 | P80: =SUM($O$13:$O$2061*O80:O2128) -> 0.3199073973 | Q80: 0.03271484375 | R80: 3.811662905
A81: 68 | B81: 0.5845774569 | C81: 0.2997963286 | D81: 0.033203125 | E81: 3.634950079 | F81: 0.3363337739 | G81: 0.2708721153 | H81: 0.2290246858 | J81: -956 | K81: 0.003689473926 | L81: =SUM($K$13:$K$2061*K81:K2129) -> 0.2986784925 | N81: 0 | O81: 0 | P81: =SUM($O$13:$O$2061*O81:O2129) -> 0.3180336859 | Q81: 0.033203125 | R81: 3.584663305
A82: 69 | B82: 0.5816878719 | C82: 0.2979033347 | D82: 0.03369140625 | E82: 3.534214145 | F82: 0.3397282488 | G82: 0.2707259795 | H82: 0.2300752106 | J82: -955 | K82: 0.00368334689 | L82: =SUM($K$13:$K$2061*K82:K2130) -> 0.2967684838 | N82: 0 | O82: 0 | P82: =SUM($O$13:$O$2061*O82:O2130) -> 0.3162122494 | Q82: 0.03369140625 | R82: 3.587749858
A83: 70 | B83: 0.5788452169 | C83: 0.2960527531 | D83: 0.0341796875 | E83: 3.423520009 | F83: 0.3431226638 | G83: 0.2705797518 | H83: 0.2310977683 | J83: -954 | K83: 0.003682922688 | L83: =SUM($K$13:$K$2061*K83:K2131) -> 0.2949001896 | N83: 0 | O83: 0 | P83: =SUM($O$13:$O$2061*O83:O2131) -> 0.3144238577 | Q83: 0.0341796875 | R83: 3.376735831
A84: 71 | B84: 0.5760482588 | C84: 0.2942429745 | D84: 0.03466796875 | E84: 3.33017389 | F84: 0.3465170188 | G84: 0.2704334321 | H84: 0.2320926916 | J84: -953 | K84: 0.003676771177 | L84: =SUM($K$13:$K$2061*K84:K2132) -> 0.293073362 | N84: 0 | O84: 0 | P84: =SUM($O$13:$O$2061*O84:O2132) -> 0.3126849559 | Q84: 0.03466796875 | R84: 3.382425813
A85: 72 | B85: 0.5732958079 | C85: 0.2924724733 | D85: 0.03515625 | E85: 3.22730465 | F85: 0.3499113138 | G85: 0.2702870202 | H85: 0.233060324 | J85: -952 | K85: 0.003676387688 | L85: =SUM($K$13:$K$2061*K85:K2133) -> 0.2912851139 | N85: 0 | O85: 0 | P85: =SUM($O$13:$O$2061*O85:O2133) -> 0.3109768667 | Q85: 0.03515625 | R85: 3.184756013
A86: 73 | B86: 0.5705867159 | C86: 0.2907398026 | D86: 0.03564453125 | E86: 3.140724608 | F86: 0.3533055489 | G86: 0.2701405161 | H86: 0.2340010195 | J86: -951 | K86: 0.003670209959 | L86: =SUM($K$13:$K$2061*K86:K2134) -> 0.2895353601 | N86: 0 | O86: 0 | P86: =SUM($O$13:$O$2061*O86:O2134) -> 0.3093158457 | Q86: 0.03564453125 | R86: 3.1914567
A87: 74 | B87: 0.5679198739 | C87: 0.2890435887 | D87: 0.0361328125 | E87: 3.045026406 | F87: 0.3566997241 | G87: 0.2699939198 | H87: 0.2349151418 | J87: -950 | K87: 0.003669867719 | L87: =SUM($K$13:$K$2061*K87:K2135) -> 0.2878213655 | N87: 0 | O87: 0 | P87: =SUM($O$13:$O$2061*O87:O2135) -> 0.3076837153 | Q87: 0.0361328125 | R87: 3.004880349
A88: 75 | B88: 0.565294211 | C88: 0.287382527 | D88: 0.03662109375 | E88: 2.964648322 | F88: 0.3600938393 | G88: 0.2698472311 | H88: 0.2358030634 | J88: -949 | K88: 0.003663663381 | L88: =SUM($K$13:$K$2061*K88:K2136) -> 0.2861431869 | N88: 0 | O88: 0 | P88: =SUM($O$13:$O$2061*O88:O2136) -> 0.3060965716 | Q88: 0.03662109375 | R88: 3.011431651
A89: 76 | B89: 0.5627086928 | C89: 0.2857553772 | D89: 0.037109375 | E89: 2.875529957 | F89: 0.3634878946 | G89: 0.2697004499 | H89: 0.2366651648 | J89: -948 | K89: 0.003663362883 | L89: =SUM($K$13:$K$2061*K89:K2137) -> 0.2844982227 | N89: 0 | O89: 0 | P89: =SUM($O$13:$O$2061*O89:O2137) -> 0.3045366893 | Q89: 0.037109375 | R89: 2.834434737
A90: 77 | B90: 0.5601623196 | C90: 0.2841609596 | D90: 0.03759765625 | E90: 2.800842903 | F90: 0.36688189 | G90: 0.2695535761 | H90: 0.2375018345 | J90: -947 | K90: 0.003657130391 | L90: =SUM($K$13:$K$2061*K90:K2138) -> 0.2828866547 | N90: 0 | O90: 0 | P90: =SUM($O$13:$O$2061*O90:O2138) -> 0.3030200379 | Q90: 0.03759765625 | R90: 2.840367409
A91: 78 | B91: 0.5576541253 | C91: 0.2825981514 | D91: 0.0380859375 | E91: 2.717768994 | F91: 0.3702758254 | G91: 0.2694066097 | H91: 0.2383134673 | J91: -946 | K91: 0.00365687355 | L91: =SUM($K$13:$K$2061*K91:K2139) -> 0.2813059988 | N91: 0 | O91: 0 | P91: =SUM($O$13:$O$2061*O91:O2139) -> 0.3015293014 | Q91: 0.0380859375 | R91: 2.672256329
A92: 79 | B92: 0.5551831757 | C92: 0.2810658831 | D92: 0.03857421875 | E92: 2.64830958 | F92: 0.3736697009 | G92: 0.2692595506 | H92: 0.2391004644 | J92: -945 | K92: 0.00365061071 | L92: =SUM($K$13:$K$2061*K92:K2140) -> 0.2797565469 | N92: 0 | O92: 0 | P92: =SUM($O$13:$O$2061*O92:O2140) -> 0.3000803594 | Q92: 0.03857421875 | R92: 2.677793214
A93: 80 | B93: 0.5527485677 | C93: 0.2795631356 | D93: 0.0390625 | E93: 2.570794587 | F93: 0.3770635164 | G93: 0.2691123986 | H93: 0.2398632323 | J93: -944 | K93: 0.003650398937 | L93: =SUM($K$13:$K$2061*K93:K2141) -> 0.2782359185 | N93: 0 | O93: 0 | P93: =SUM($O$13:$O$2061*O93:O2141) -> 0.2986562655 | Q93: 0.0390625 | R93: 2.518525062
A94: 81 | B94: 0.5503494273 | C94: 0.2780889367 | D94: 0.03955078125 | E94: 2.506142001 | F94: 0.380457272 | G94: 0.2689651538 | H94: 0.2406021821 | J94: -943 | K94: 0.003644104964 | L94: =SUM($K$13:$K$2061*K94:K2142) -> 0.2767445029 | N94: 0 | O94: 0 | P94: =SUM($O$13:$O$2061*O94:O2142) -> 0.2972728498 | Q94: 0.03955078125 | R94: 2.524361646
A95: 82 | B95: 0.5479849093 | C95: 0.2766423592 | D95: 0.0400390625 | E95: 2.433744963 | F95: 0.3838509677 | G95: 0.268817816 | H95: 0.2413177293 | J95: -942 | K95: 0.003643938175 | L95: =SUM($K$13:$K$2061*K95:K2143) -> 0.2752800116 | N95: 0 | O95: 0 | P95: =SUM($O$13:$O$2061*O95:O2143) -> 0.2959134972 | Q95: 0.0400390625 | R95: 2.374209993
A96: 83 | B96: 0.5456541955 | C96: 0.2752225173 | D96: 0.04052734375 | E96: 2.373516585 | F96: 0.3872446035 | G96: 0.2686703851 | H96: 0.2420102924 | J96: -941 | K96: 0.003637612616 | L96: =SUM($K$13:$K$2061*K96:K2144) -> 0.2738429203 | N96: 0 | O96: 0 | P96: =SUM($O$13:$O$2061*O96:O2144) -> 0.2945940324 | Q96: 0.04052734375 | R96: 2.381175976
A97: 84 | B97: 0.5433564937 | C97: 0.2738285653 | D97: 0.041015625 | E97: 2.305836505 | F97: 0.3906381793 | G97: 0.268522861 | H97: 0.2426802931 | J97: -940 | K97: 0.003637491663 | L97: =SUM($K$13:$K$2061*K97:K2145) -> 0.272431022 | N97: 0 | O97: 0 | P97: =SUM($O$13:$O$2061*O97:O2145) -> 0.2932981321 | Q97: 0.041015625 | R97: 2.240361444
A98: 85 | B98: 0.5410910372 | C98: 0.2724596944 | D98: 0.04150390625 | E98: 2.24968403 | F98: 0.3940316953 | G98: 0.2683752436 | H98: 0.2433281548 | J98: -939 | K98: 0.003631133257 | L98: =SUM($K$13:$K$2061*K98:K2146) -> 0.271044869 | N98: 0 | O98: 0 | P98: =SUM($O$13:$O$2061*O98:O2146) -> 0.2920416627 | Q98: 0.04150390625 | R98: 2.249089219
A99: 86 | B99: 0.5388570833 | C99: 0.2711151312 | D99: 0.0419921875 | E99: 2.186355782 | F99: 0.3974251513 | G99: 0.2682275329 | H99: 0.2439543029 | J99: -938 | K99: 0.003631058835 | L99: =SUM($K$13:$K$2061*K99:K2147) -> 0.2696823271 | N99: 0 | O99: 0 | P99: =SUM($O$13:$O$2061*O99:O2147) -> 0.2908085472 | Q99: 0.0419921875 | R99: 2.117497826
A100: 87 | B100: 0.5366539123 | C100: 0.2697941357 | D100: 0.04248046875 | E100: 2.133961789 | F100: 0.4008185473 | G100: 0.2680797288 | H100: 0.2445591634 | J100: -937 | K100: 0.003624666845 | L100: =SUM($K$13:$K$2061*K100:K2148) -> 0.2683440173 | N100: 0 | O100: 0 | P100: =SUM($O$13:$O$2061*O100:O2148) -> 0.2896147413 | Q100: 0.04248046875 | R100: 2.128204508
A101: 88 | B101: 0.534480827 | C101: 0.2684959994 | D101: 0.04296875 | E101: 2.074652511 | F101: 0.4042118835 | G101: 0.2679318312 | H101: 0.2451431629 | J101: -936 | K101: 0.00362463985 | L101: =SUM($K$13:$K$2061*K101:K2149) -> 0.26702787 | N101: 0 | O101: 0 | P101: =SUM($O$13:$O$2061*O101:O2149) -> 0.2884443557 | Q101: 0.04296875 | R101: 2.005271994
A102: 89 | B102: 0.5323371517 | C102: 0.2672200434 | D102: 0.04345703125 | E102: 2.025727407 | F102: 0.4076051597 | G102: 0.2677838399 | H102: 0.2457067278 | J102: -935 | K102: 0.003618212768 | L102: =SUM($K$13:$K$2061*K102:K2150) -> 0.2657345675 | N102: 0 | O102: 0 | P102: =SUM($O$13:$O$2061*O102:O2150) -> 0.2873134797 | Q102: 0.04345703125 | R102: 2.017710715
A103: 90 | B103: 0.5302222312 | C103: 0.2659656171 | D103: 0.0439453125 | E103: 1.970133293 | F103: 0.410998376 | G103: 0.267635755 | H103: 0.2462502839 | J103: -934 | K103: 0.003618234228 | L103: =SUM($K$13:$K$2061*K103:K2151) -> 0.2644620984 | N103: 0 | O103: 0 | P103: =SUM($O$13:$O$2061*O103:O2151) -> 0.2862063273 | Q103: 0.0439453125 | R103: 1.902486967
A104: 91 | B104: 0.5281354303 | C104: 0.2647320968 | D104: 0.04443359375 | E104: 1.924412596 | F104: 0.4143915324 | G104: 0.2674875762 | H104: 0.2467742559 | J104: -933 | K104: 0.003611771034 | L104: =SUM($K$13:$K$2061*K104:K2152) -> 0.2632111997 | N104: 0 | O104: 0 | P104: =SUM($O$13:$O$2061*O104:O2152) -> 0.2851391565 | Q104: 0.04443359375 | R104: 1.9160609
A105: 92 | B105: 0.5260761328 | C105: 0.263518884 | D105: 0.044921875 | E105: 1.872256054 | F105: 0.4177846289 | G105: 0.2673393036 | H105: 0.2472790668 | J105: -932 | K105: 0.003611841777 | L105: =SUM($K$13:$K$2061*K105:K2153) -> 0.2619799123 | N105: 0 | O105: 0 | P105: =SUM($O$13:$O$2061*O105:O2153) -> 0.2840961548 | Q105: 0.044921875 | R105: 1.807408289
A106: 93 | B106: 0.524043741 | C106: 0.2623254041 | D106: 0.04541015625 | E106: 1.829497973 | F106: 0.4211776655 | G106: 0.267190937 | H106: 0.2477651375 | J106: -931 | K106: 0.003605341864 | L106: =SUM($K$13:$K$2061*K106:K2154) -> 0.2607690223 | N106: 0 | O106: 0 | P106: =SUM($O$13:$O$2061*O106:O2154) -> 0.2830937653 | Q106: 0.04541015625 | R106: 1.821388635
A107: 94 | B107: 0.5220376748 | C107: 0.2611511056 | D107: 0.0458984375 | E107: 1.780525085 | F107: 0.4245706422 | G107: 0.2670424764 | H107: 0.2482328864 | J107: -930 | K107: 0.003605461588 | L107: =SUM($K$13:$K$2061*K107:K2155) -> 0.2595766176 | N107: 0 | O107: 0 | P107: =SUM($O$13:$O$2061*O107:O2155) -> 0.2821159434 | Q107: 0.0458984375 | R107: 1.718230333
A108: 95 | B108: 0.5200573712 | C108: 0.2599954585 | D108: 0.04638671875 | E108: 1.740508359 | F108: 0.427963559 | G108: 0.2668939216 | H108: 0.2486827293 | J108: -929 | K108: 0.003598924942 | L108: =SUM($K$13:$K$2061*K108:K2156) -> 0.2584035288 | N108: 0 | O108: 0 | P108: =SUM($O$13:$O$2061*O108:O2156) -> 0.2811793048 | Q108: 0.04638671875 | R108: 1.731992909
A109: 96 | B109: 0.5181022837 | C109: 0.2588579533 | D109: 0.046875 | E109: 1.694486617 | F109: 0.4313564158 | G109: 0.2667452726 | H109: 0.2491150782 | J109: -928 | K109: 0.003599094155 | L109: =SUM($K$13:$K$2061*K109:K2157) -> 0.2572478861 | N109: 0 | O109: 0 | P109: =SUM($O$13:$O$2061*O109:O2157) -> 0.2802672373 | Q109: 0.046875 | R109: 1.633521598
A110: 97 | B110: 0.5161718816 | C110: 0.2577381001 | D110: 0.04736328125 | E110: 1.657008581 | F110: 0.4347492128 | G110: 0.2665965292 | H110: 0.249530342 | J110: -927 | K110: 0.003592519474 | L110: =SUM($K$13:$K$2061*K110:K2158) -> 0.2561105599 | N110: 0 | O110: 0 | P110: =SUM($O$13:$O$2061*O110:O2158) -> 0.2793964787 | Q110: 0.04736328125 | R110: 1.646721166
A111: 98 | B111: 0.5142656495 | C111: 0.2566354277 | D111: 0.0478515625 | E111: 1.613724866 | F111: 0.4381419498 | G111: 0.2664476914 | H111: 0.2499289254 | J111: -926 | K111: 0.003592739407 | L111: =SUM($K$13:$K$2061*K111:K2159) -> 0.2549897188 | N111: 0 | O111: 0 | P111: =SUM($O$13:$O$2061*O111:O2159) -> 0.2785492685 | Q111: 0.0478515625 | R111: 1.552502765
A112: 99 | B112: 0.5123830866 | C112: 0.2555494826 | D112: 0.04833984375 | E112: 1.578599716 | F112: 0.441534627 | G112: 0.2662987592 | H112: 0.2503112286 | J112: -925 | K112: 0.003586125643 | L112: =SUM($K$13:$K$2061*K112:K2160) -> 0.2538862696 | N112: 0 | O112: 0 | P112: =SUM($O$13:$O$2061*O112:O2160) -> 0.2777423529 | Q112: 0.04833984375 | R112: 1.565134662
A113: 100 | B113: 0.5105237065 | C113: 0.2544798281 | D113: 0.048828125 | E113: 1.537858495 | F113: 0.4449272442 | G113: 0.2661497323 | H113: 0.2506776477 | J113: -924 | K113: 0.003586396645 | L113: =SUM($K$13:$K$2061*K113:K2161) -> 0.2527984153 | N113: 0 | O113: 0 | P113: =SUM($O$13:$O$2061*O113:O2161) -> 0.2769555601 | Q113: 0.048828125 | R113: 1.475084464
A114: 101 | B114: 0.5086870364 | C114: 0.2534260434 | D114: 0.04931640625 | E114: 1.504915731 | F114: 0.4483198016 | G114: 0.2660006107 | H114: 0.2510285738 | J114: -923 | K114: 0.003579743375 | L114: =SUM($K$13:$K$2061*K114:K2162) -> 0.2517270955 | N114: 0 | O114: 0 | P114: =SUM($O$13:$O$2061*O114:O2162) -> 0.2762050207 | Q114: 0.04931640625 | R114: 1.487426433
A115: 102 | B115: 0.5068726167 | C115: 0.2523877233 | D115: 0.0498046875 | E115: 1.466537431 | F115: 0.451712299 | G115: 0.2658513944 | H115: 0.2513643927 | J115: -922 | K115: 0.003580065659 | L115: =SUM($K$13:$K$2061*K115:K2163) -> 0.2506705448 | N115: 0 | O115: 0 | P115: =SUM($O$13:$O$2061*O115:O2163) -> 0.2754564808 | Q115: 0.0498046875 | R115: 1.401680108
A116: 103 | B116: 0.5050800004 | C116: 0.251364477 | D116: 0.05029296875 | E116: 1.435620461 | F116: 0.4551047366 | G116: 0.2657020832 | H116: 0.2516854853 | J116: -921 | K116: 0.003573372552 | L116: =SUM($K$13:$K$2061*K116:K2164) -> 0.2496297326 | N116: 0 | O116: 0 | P116: =SUM($O$13:$O$2061*O116:O2164) -> 0.2747099351 | Q116: 0.05029296875 | R116: 1.414147819
A117: 104 | B117: 0.5033087531 | C117: 0.2503559276 | D117: 0.05078125 | E117: 1.399440009 | F117: 0.4584971142 | G117: 0.2655526771 | H117: 0.2519922268 | J117: -920 | K117: 0.003573746337 | L117: =SUM($K$13:$K$2061*K117:K2165) -> 0.248602922 | N117: 0 | O117: 0 | P117: =SUM($O$13:$O$2061*O117:O2165) -> 0.2739653781 | Q117: 0.05078125 | R117: 1.332882122
A118: 105 | B118: 0.5015584522 | C118: 0.2493617117 | D118: 0.05126953125 | E118: 1.370404897 | F118: 0.461889432 | G118: 0.2654031759 | H118: 0.2522849867 | J118: -919 | K118: 0.003567012562 | L118: =SUM($K$13:$K$2061*K118:K2166) -> 0.2475911096 | N118: 0 | O118: 0 | P118: =SUM($O$13:$O$2061*O118:O2166) -> 0.2732228044 | Q118: 0.05126953125 | R118: 1.345856714
A119: 106 | B119: 0.4998286864 | C119: 0.2483814784 | D119: 0.0517578125 | E119: 1.33627042 | F119: 0.4652816899 | G119: 0.2652535795 | H119: 0.2525641288 | J119: -918 | K119: 0.003567439036 | L119: =SUM($K$13:$K$2061*K119:K2167) -> 0.2465925845 | N119: 0 | O119: 0 | P119: =SUM($O$13:$O$2061*O119:O2167) -> 0.2724822087 | Q119: 0.0517578125 | R119: 1.269125218
A120: 107 | B120: 0.4981190556 | C120: 0.2474148889 | D120: 0.05224609375 | E120: 1.308984746 | F120: 0.4686738879 | G120: 0.265103888 | H120: 0.252830011 | J120: -917 | K120: 0.003560663224 | L120: =SUM($K$13:$K$2061*K120:K2168) -> 0.245608368 | N120: 0 | O120: 0 | P120: =SUM($O$13:$O$2061*O120:O2168) -> 0.2717435856 | Q120: 0.05224609375 | R120: 1.282813846
A121: 108 | B121: 0.4964291706 | C121: 0.2464616162 | D121: 0.052734375 | E121: 1.276756383 | F121: 0.472066026 | G121: 0.2649541011 | H121: 0.2530829848 | J121: -916 | K121: 0.003561142665 | L121: =SUM($K$13:$K$2061*K121:K2169) -> 0.2446367732 | N121: 0 | O121: 0 | P121: =SUM($O$13:$O$2061*O121:O2169) -> 0.2710069298 | Q121: 0.052734375 | R121: 1.210450608
A122: 109 | B122: 0.4947586522 | C122: 0.2455213441 | D122: 0.05322265625 | E122: 1.251098232 | F122: 0.4754581042 | G122: 0.2648042188 | H122: 0.2533233958 | J122: -915 | K122: 0.003554325119 | L122: =SUM($K$13:$K$2061*K122:K2170) -> 0.2436788437 | N122: 0 | O122: 0 | P122: =SUM($O$13:$O$2061*O122:O2170) -> 0.2702722358 | Q122: 0.05322265625 | R122: 1.224823098
A123: 110 | B123: 0.4931071314 | C123: 0.2445937671 | D123: 0.0537109375 | E123: 1.220647078 | F123: 0.4788501225 | G123: 0.264654241 | H123: 0.2535515832 | J123: -914 | K123: 0.003554857314 | L123: =SUM($K$13:$K$2061*K123:K2171) -> 0.2427329144 | N123: 0 | O123: 0 | P123: =SUM($O$13:$O$2061*O123:O2171) -> 0.2695394985 | Q123: 0.0537109375 | R123: 1.156438521
A124: 111 | B124: 0.4914742489 | C124: 0.24367859 | D124: 0.05419921875 | E124: 1.196504109 | F124: 0.482242081 | G124: 0.2645041676 | H124: 0.2537678799 | J124: -913 | K124: 0.003547997582 | L124: =SUM($K$13:$K$2061*K124:K2172) -> 0.2418000498 | N124: 0 | O124: 0 | P124: =SUM($O$13:$O$2061*O124:O2172) -> 0.2688087125 | Q124: 0.05419921875 | R124: 1.171252909
A125: 112 | B125: 0.4898596548 | C125: 0.2427755271 | D125: 0.0546875 | E125: 1.167711256 | F125: 0.4856339795 | G125: 0.2643539985 | H125: 0.2539726121 | J125: -912 | K125: 0.003548582657 | L125: =SUM($K$13:$K$2061*K125:K2173) -> 0.2408786046 | N125: 0 | O125: 0 | P125: =SUM($O$13:$O$2061*O125:O2173) -> 0.2680798724 | Q125: 0.0546875 | R125: 1.106312445
A126: 113 | B126: 0.488263008 | C126: 0.2418843021 | D126: 0.05517578125 | E126: 1.144979876 | F126: 0.4890258182 | G126: 0.2642037336 | H126: 0.2541660999 | J126: -911 | K126: 0.003541680573 | L126: =SUM($K$13:$K$2061*K126:K2174) -> 0.2399696621 | N126: 0 | O126: 0 | P126: =SUM($O$13:$O$2061*O126:O2174) -> 0.2673529731 | Q126: 0.05517578125 | R126: 1.121210932
A127: 114 | B127: 0.4866839763 | C127: 0.2410046476 | D127: 0.0556640625 | E127: 1.117735543 | F127: 0.492417597 | G127: 0.2640533729 | H127: 0.2543486567 | J127: -910 | K127: 0.003542319005 | L127: =SUM($K$13:$K$2061*K127:K2175) -> 0.2390715954 | N127: 0 | O127: 0 | P127: =SUM($O$13:$O$2061*O127:O2175) -> 0.2666280093 | Q127: 0.0556640625 | R127: 1.059160416
A128: 115 | B128: 0.4851222362 | C128: 0.2401363048 | D128: 0.05615234375 | E128: 1.096320148 | F128: 0.495809316 | G128: 0.2639029162 | H128: 0.2545205894 | J128: -909 | K128: 0.003535373335 | L128: =SUM($K$13:$K$2061*K128:K2176) -> 0.2381855051 | N128: 0 | O128: 0 | P128: =SUM($O$13:$O$2061*O128:O2176) -> 0.2659049757 | Q128: 0.05615234375 | R128: 1.073795508
A129: 116 | B129: 0.483577472 | C129: 0.239279023 | D129: 0.056640625 | E129: 1.070522907 | F129: 0.499200975 | G129: 0.2637523635 | H129: 0.2546821982 | J129: -908 | K129: 0.003536066106 | L129: =SUM($K$13:$K$2061*K129:K2177) -> 0.2373097813 | N129: 0 | O129: 0 | P129: =SUM($O$13:$O$2061*O129:O2177) -> 0.265183867 | Q129: 0.056640625 | R129: 1.014185096
A130: 117 | B130: 0.4820493762 | C130: 0.2384325593 | D130: 0.05712890625 | E130: 1.050335203 | F130: 0.5025925742 | G130: 0.2636017146 | H130: 0.2548337771 | J130: -907 | K130: 0.003529076339 | L130: =SUM($K$13:$K$2061*K130:K2178) -> 0.2364455404 | N130: 0 | O130: 0 | P130: =SUM($O$13:$O$2061*O130:O2178) -> 0.2644646782 | Q130: 0.05712890625 | R130: 1.028329786
A131: 118 | B131: 0.480537649 | C131: 0.2375966786 | D131: 0.0576171875 | E131: 1.025891261 | F131: 0.5059841135 | G131: 0.2634509695 | H131: 0.2549756133 | J131: -906 | K131: 0.003529823467 | L131: =SUM($K$13:$K$2061*K131:K2179) -> 0.2355911881 | N131: 0 | O131: 0 | P131: =SUM($O$13:$O$2061*O131:O2179) -> 0.2637474038 | Q131: 0.0576171875 | R131: 0.9708940242
A132: 119 | B132: 0.4790419978 | C132: 0.2367711527 | D132: 0.05810546875 | E132: 1.006849642 | F132: 0.509375593 | G132: 0.263300128 | H132: 0.2551079875 | J132: -905 | K132: 0.003522789212 | L132: =SUM($K$13:$K$2061*K132:K2180) -> 0.2347478554 | N132: 0 | O132: 0 | P132: =SUM($O$13:$O$2061*O132:O2180) -> 0.2630320389 | Q132: 0.05810546875 | R132: 0.9845000992
A133: 120 | B133: 0.4775621375 | C133: 0.2359557607 | D133: 0.05859375 | E133: 0.9836722021 | F133: 0.5127670125 | G133: 0.2631491902 | H133: 0.2552311742 | J133: -904 | K133: 0.003523590931 | L133: =SUM($K$13:$K$2061*K133:K2181) -> 0.2339139623 | N133: 0 | O133: 0 | P133: =SUM($O$13:$O$2061*O133:O2181) -> 0.2623185781 | Q133: 0.05859375 | R133: 0.9291709968
A134: 121 | B134: 0.4760977897 | C134: 0.2351502881 | D134: 0.05908203125 | E134: 0.9657011975 | F134: 0.5161583723 | G134: 0.2629981558 | H134: 0.2553454411 | J134: -903 | K134: 0.003516512082 | L134: =SUM($K$13:$K$2061*K134:K2182) -> 0.2330906534 | N134: 0 | O134: 0 | P134: =SUM($O$13:$O$2061*O134:O2182) -> 0.2616070164 | Q134: 0.05908203125 | R134: 0.9423608474
A135: 122 | B135: 0.4746486832 | C135: 0.234354527 | D135: 0.0595703125 | E135: 0.94370987 | F135: 0.5195496721 | G135: 0.2628470248 | H135: 0.2554510498 | J135: -902 | K135: 0.003517368167 | L135: =SUM($K$13:$K$2061*K135:K2183) -> 0.2322763618 | N135: 0 | O135: 0 | P135: =SUM($O$13:$O$2061*O135:O2183) -> 0.2608973485 | Q135: 0.0595703125 | R135: 0.8892159723
A136: 123 | B136: 0.4732145528 | C136: 0.2335682757 | D136: 0.06005859375 | E136: 0.9267396261 | F136: 0.5229409121 | G136: 0.2626957971 | H136: 0.2555482555 | J136: -901 | K136: 0.003510244756 | L136: =SUM($K$13:$K$2061*K136:K2184) -> 0.2314722448 | N136: 0 | O136: 0 | P136: =SUM($O$13:$O$2061*O136:O2184) -> 0.2601895694 | Q136: 0.06005859375 | R136: 0.9022173888
A137: 124 | B137: 0.4717951402 | C137: 0.2327913382 | D137: 0.060546875 | E137: 0.9058599095 | F137: 0.5263320922 | G137: 0.2625444727 | H137: 0.2556373069 | J137: -900 | K137: 0.003511155369 | L137: =SUM($K$13:$K$2061*K137:K2185) -> 0.2306767475 | N137: 0 | O137: 0 | P137: =SUM($O$13:$O$2061*O137:O2185) -> 0.2594836739 | Q137: 0.060546875 | R137: 0.8513869943
A138: 125 | B138: 0.470390193 | C138: 0.2320235244 | D138: 0.06103515625 | E138: 0.8898257259 | F138: 0.5297232125 | G138: 0.2623930513 | H138: 0.2557184469 | J138: -899 | K138: 0.003503986605 | L138: =SUM($K$13:$K$2061*K138:K2186) -> 0.2298910388 | N138: 0 | O138: 0 | P138: =SUM($O$13:$O$2061*O138:O2186) -> 0.2587796568 | Q138: 0.06103515625 | R138: 0.8644389085
A139: 126 | B139: 0.4689994647 | C139: 0.2312646497 | D139: 0.0615234375 | E139: 0.8699885171 | F139: 0.5331142729 | G139: 0.262241533 | H139: 0.255791912 | J139: -898 | K139: 0.003504952541 | L139: =SUM($K$13:$K$2061*K139:K2187) -> 0.2291135753 | N139: 0 | O139: 0 | P139: =SUM($O$13:$O$2061*O139:O2187) -> 0.2580775132 | Q139: 0.0615234375 | R139: 0.816007711
A140: 127 | B140: 0.4676227148 | C140: 0.2305145348 | D140: 0.06201171875 | E140: 0.8548304309 | F140: 0.5365052734 | G140: 0.2620899176 | H140: 0.2558579327 | J140: -897 | K140: 0.003497737604 | L140: =SUM($K$13:$K$2061*K140:K2188) -> 0.2283455364 | N140: 0 | O140: 0 | P140: =SUM($O$13:$O$2061*O140:O2188) -> 0.2573772379 | Q140: 0.06201171875 | R140: 0.8292720123
A141: 128 | B141: 0.4662597083 | C141: 0.2297730055 | D141: 0.0625 | E141: 0.8359715899 | F141: 0.5398962141 | G141: 0.261938205 | H141: 0.2559167335 | J141: -896 | K141: 0.003498759383 | L141: =SUM($K$13:$K$2061*K141:K2189) -> 0.2275853891 | N141: =IF(J141<0,0,IF(J141<=$B$10,K141,N140*$H$9)) -> 0 | O141: 0 | P141: =SUM($O$13:$O$2061*O141:O2189) -> 0.2566788258 | Q141: 0.0625 | R141: 0.7832096189
A142: 129 | B142: 0.4649102158 | C142: 0.2290398923 | D142: 0.06298828125 | E142: 0.8216339869 | F142: =F$10*$D142/(F$11+$D142)+F$9 -> 0.5432870949 | G142: =G$10*(0.5-$D142)/(G$11+0.5-$D142)+G$9 -> 0.2617863952 | H142: =IFERROR(LN(EXP(-10*F142)+EXP(-10*G142))/-10,0) -> 0.2559685331 | J142: -895 | K142: 0.003491497699 | L142: =SUM($K$13:$K$2061*K142:K2190) -> 0.2268343229 | N142: 0 | O142: =N142*$K$10 -> 0 | P142: =SUM($O$13:$O$2061*O142:O2190) -> 0.2559822719 | Q142: 0.06298828125 | R142: 0.7967186893
A143: 130 | B143: 0.4635740131 | C143: 0.2283150308 | D143: 0.0634765625 | E143: 0.8036939371 | F143: 0.5466779159 | G143: 0.261634488 | H143: 0.2560135444 | J143: -894 | K143: 0.003492575317 | L143: =SUM($K$13:$K$2061*K143:K2191) -> 0.2260908146 | N143: 0 | O143: 0 | P143: =SUM($O$13:$O$2061*O143:O2191) -> 0.2552875712 | Q143: 0.0634765625 | R143: 0.752859607
A144: 131 | B144: 0.4622508812 | C144: 0.2275982609 | D144: 0.06396484375 | E144: 0.7901252029 | F144: 0.550068677 | G144: 0.2614824834 | H144: 0.2560519746 | J144: -893 | K144: 0.00348526722 | L144: =SUM($K$13:$K$2061*K144:K2192) -> 0.2253560627 | N144: 0 | O144: 0 | P144: =SUM($O$13:$O$2061*O144:O2192) -> 0.2545947186 | Q144: 0.06396484375 | R144: 0.766514153
A145: 132 | B145: 0.460940606 | C145: 0.226889427 | D145: 0.064453125 | E145: 0.7730485702 | F145: 0.5534593783 | G145: 0.2613303812 | H145: 0.2560840252 | J145: -892 | K145: 0.003486400631 | L145: =SUM($K$13:$K$2061*K145:K2193) -> 0.2246285532 | N145: 0 | O145: 0 | P145: =SUM($O$13:$O$2061*O145:O2193) -> 0.2539037091 | Q145: 0.064453125 | R145: 0.7245893258
A146: 133 | B146: 0.4596429784 | C146: 0.2261883776 | D146: 0.06494140625 | E146: 0.7602007731 | F146: 0.5568500197 | G146: 0.2611781814 | H146: 0.2561098922 | J146: -891 | K146: 0.003479045445 | L146: =SUM($K$13:$K$2061*K146:K2194) -> 0.2239094931 | N146: 0 | O146: 0 | P146: =SUM($O$13:$O$2061*O146:O2194) -> 0.2532145377 | Q146: 0.06494140625 | R146: 0.7382024503
A147: 134 | B147: 0.4583577939 | C147: 0.2254949656 | D147: 0.0654296875 | E147: 0.7439360472 | F147: 0.5602406013 | G147: 0.2610258839 | H147: 0.2561297664 | J147: -890 | K147: 0.003480234798 | L147: =SUM($K$13:$K$2061*K147:K2195) -> 0.2231973768 | N147: 0 | O147: 0 | P147: =SUM($O$13:$O$2061*O147:O2195) -> 0.2525271995 | Q147: 0.0654296875 | R147: 0.6979063933
A148: 135 | B148: 0.4570848526 | C148: 0.2248090475 | D148: 0.06591796875 | E148: 0.7317646476 | F148: 0.563631123 | G148: 0.2608734886 | H148: 0.2561438331 | J148: -889 | K148: 0.003472832638 | L148: =SUM($K$13:$K$2061*K148:K2196) -> 0.2224934192 | N148: 0 | O148: 0 | P148: =SUM($O$13:$O$2061*O148:O2196) -> 0.2518416893 | Q148: 0.06591796875 | R148: 0.7112743437
A149: 136 | B149: 0.4558239592 | C149: 0.2241304839 | D149: 0.06640625 | E149: 0.7162638835 | F149: 0.5670215849 | G149: 0.2607209953 | H149: 0.2561522725 | J149: -888 | K149: 0.003474078031 | L149: =SUM($K$13:$K$2061*K149:K2197) -> 0.2217961228 | N149: 0 | O149: 0 | P149: =SUM($O$13:$O$2061*O149:O2197) -> 0.2511580024 | Q149: 0.06640625 | R149: 0.6723411719
A150: 137 | B150: 0.4545749225 | C150: 0.223459139 | D150: 0.06689453125 | E150: 0.7047274646 | F150: 0.570411987 | G150: 0.2605684041 | H150: 0.2561552595 | J150: -887 | K150: 0.003466628145 | L150: =SUM($K$13:$K$2061*K150:K2198) -> 0.2211067097 | N150: 0 | O150: 0 | P150: =SUM($O$13:$O$2061*O150:O2198) -> 0.2504761336 | Q150: 0.06689453125 | R150: 0.6853138149
A151: 138 | B151: 0.4533375557 | C151: 0.2227948803 | D151: 0.0673828125 | E151: 0.689946007 | F151: 0.5738023292 | G151: 0.2604157147 | H151: 0.2561529643 | J151: -886 | K151: 0.003467930462 | L151: =SUM($K$13:$K$2061*K151:K2199) -> 0.2204236897 | N151: 0 | O151: 0 | P151: =SUM($O$13:$O$2061*O151:O2199) -> 0.2497960782 | Q151: 0.0673828125 | R151: 0.6475748411
A152: 139 | B152: 0.4521116759 | C152: 0.2221375792 | D152: 0.06787109375 | E152: 0.679006032 | F152: 0.5771926116 | G152: 0.2602629271 | H152: 0.2561455521 | J152: -885 | K152: 0.003460431995 | L152: =SUM($K$13:$K$2061*K152:K2200) -> 0.219748292 | N152: 0 | O152: 0 | P152: =SUM($O$13:$O$2061*O152:O2200) -> 0.2491178311 | Q152: 0.06787109375 | R152: 0.6601014552
A153: 140 | B153: 0.4508971043 | C153: 0.2214871101 | D153: 0.068359375 | E153: 0.6649022621 | F153: 0.5805828341 | G153: 0.2601100413 | H153: 0.2561331832 | J153: -884 | K153: 0.003461791174 | L153: =SUM($K$13:$K$2061*K153:K2201) -> 0.2190790331 | N153: 0 | O153: 0 | P153: =SUM($O$13:$O$2061*O153:O2201) -> 0.2484413875 | Q153: 0.068359375 | R153: 0.6235058647
A154: 141 | B154: 0.449693666 | C154: 0.2208433507 | D154: 0.06884765625 | E154: 0.6545228502 | F154: 0.5839729968 | G154: 0.259957057 | H154: 0.2561160135 | J154: -883 | K154: 0.003454244576 | L154: =SUM($K$13:$K$2061*K154:K2202) -> 0.2184171487 | N154: 0 | O154: 0 | P154: =SUM($O$13:$O$2061*O154:O2202) -> 0.2477667424 | Q154: 0.06884765625 | R154: 0.6356425502
A155: 142 | B155: 0.4485011897 | C155: 0.2202061817 | D155: 0.0693359375 | E155: 0.6410579523 | F155: 0.5873630997 | G155: 0.2598039743 | H155: 0.2560941939 | J155: -882 | K155: 0.003455660626 | L155: =SUM($K$13:$K$2061*K155:K2203) -> 0.2177611617 | N155: 0 | O155: 0 | P155: =SUM($O$13:$O$2061*O155:O2203) -> 0.247093891 | Q155: 0.0693359375 | R155: 0.6002370823
A156: 143 | B156: 0.4473195079 | C156: 0.2195754871 | D156: 0.06982421875 | E156: 0.6312056814 | F156: 0.5907531427 | G156: 0.259650793 | H156: 0.2560678713 | J156: -881 | K156: 0.00344806503 | L156: =SUM($K$13:$K$2061*K156:K2204) -> 0.2171123137 | N156: 0 | O156: 0 | P156: =SUM($O$13:$O$2061*O156:O2204) -> 0.2464228284 | Q156: 0.06982421875 | R156: 0.6121165709
A157: 144 | B157: 0.4461484566 | C157: 0.2189511535 | D157: 0.0703125 | E157: 0.6183434278 | F157: 0.5941431259 | G157: 0.259497513 | H157: 0.256037188 | J157: -880 | K157: 0.00344953839 | L157: =SUM($K$13:$K$2061*K157:K2205) -> 0.2164691339 | N157: 0 | O157: 0 | P157: =SUM($O$13:$O$2061*O157:O2205) -> 0.2457535498 | Q157: 0.0703125 | R157: 0.5779947066
A158: 145 | B158: 0.4449878753 | C158: 0.2183330705 | D158: 0.07080078125 | E158: 0.6089871428 | F158: 0.5975330493 | G158: 0.2593441343 | H158: 0.256002282 | J158: -879 | K158: 0.003441893934 | L158: =SUM($K$13:$K$2061*K158:K2206) -> 0.2158328693 | N158: 0 | O158: 0 | P158: =SUM($O$13:$O$2061*O158:O2206) -> 0.2450860502 | Q158: 0.07080078125 | R158: 0.5897723093
A159: 146 | B159: 0.4438376067 | C159: 0.2177211303 | D159: 0.0712890625 | E159: 0.5966937033 | F159: 0.6009229129 | G159: 0.2591906567 | H159: 0.2559632873 | J159: -878 | K159: 0.003443424294 | L159: =SUM($K$13:$K$2061*K159:K2207) -> 0.2152020546 | N159: 0 | O159: 0 | P159: =SUM($O$13:$O$2061*O159:O2207) -> 0.244420325 | Q159: 0.0712890625 | R159: 0.557013151
A160: 147 | B160: 0.4426974971 | C160: 0.2171152277 | D160: 0.07177734375 | E160: 0.5878043451 | F160: 0.6043127166 | G160: 0.2590370801 | H160: 0.2559203338 | J160: -877 | K160: 0.003435730581 | L160: =SUM($K$13:$K$2061*K160:K2208) -> 0.2145779423 | N160: 0 | O160: 0 | P160: =SUM($O$13:$O$2061*O160:O2208) -> 0.2437563691 | Q160: 0.07177734375 | R160: 0.5688096794
A161: 148 | B161: 0.4415673956 | C161: 0.2165152603 | D161: 0.072265625 | E161: 0.5760481106 | F161: 0.6077024605 | G161: 0.2588834045 | H161: 0.2558735474 | J161: -876 | K161: 0.003437318546 | L161: =SUM($K$13:$K$2061*K161:K2209) -> 0.2139590725 | N161: 0 | O161: 0 | P161: =SUM($O$13:$O$2061*O161:O2209) -> 0.243094178 | Q161: 0.072265625 | R161: 0.5374285871
A162: 149 | B162: 0.4404471548 | C162: 0.2159211279 | D162: 0.07275390625 | E162: 0.5675985576 | F162: 0.6110921446 | G162: 0.2587296297 | H162: 0.2558230503 | J162: -875 | K162: 0.003429575118 | L162: =SUM($K$13:$K$2061*K162:K2210) -> 0.2133467023 | N162: 0 | O162: 0 | P162: =SUM($O$13:$O$2061*O162:O2210) -> 0.2424337466 | Q162: 0.07275390625 | R162: 0.5492903683
A163: 150 | B163: 0.4393366301 | C163: 0.2153327329 | D163: 0.0732421875 | E163: 0.5563499711 | F163: 0.6144817688 | G163: 0.2585757557 | H163: 0.2557689607 | J163: -874 | K163: 0.003431220737 | L163: =SUM($K$13:$K$2061*K163:K2211) -> 0.2127393769 | N163: 0 | O163: 0 | P163: =SUM($O$13:$O$2061*O163:O2211) -> 0.2417750704 | Q163: 0.0732421875 | R163: 0.519217486
A164: 151 | B164: 0.4382356798 | C164: 0.2147499799 | D164: 0.07373046875 | E164: 0.5483149003 | F164: 0.6178713333 | G164: 0.2584217823 | H164: 0.2557113935 | J164: -873 | K164: 0.003423427363 | L164: =SUM($K$13:$K$2061*K164:K2212) -> 0.212138358 | N164: 0 | O164: 0 | P164: =SUM($O$13:$O$2061*O164:O2212) -> 0.2411181444 | Q164: 0.07373046875 | R164: 0.5311059688
A165: 152 | B165: 0.4371441652 | C165: 0.2141727756 | D165: 0.07421875 | E165: 0.537546309 | F165: 0.6212608379 | G165: 0.2582677095 | H165: 0.2556504596 | J165: -872 | K165: 0.003425130972 | L165: =SUM($K$13:$K$2061*K165:K2213) -> 0.2115421955 | N165: 0 | O165: 0 | P165: =SUM($O$13:$O$2061*O165:O2213) -> 0.240462964 | Q165: 0.07421875 | R165: 0.5021977404
A166: 153 | B166: 0.4360619504 | C166: 0.2136010294 | D166: 0.07470703125 | E166: 0.5299020604 | F166: 0.6246502827 | G166: 0.2581135372 | H166: 0.2555862669 | J166: -871 | K166: 0.003417286981 | L166: =SUM($K$13:$K$2061*K166:K2214) -> 0.2109521555 | N166: 0 | O166: 0 | P166: =SUM($O$13:$O$2061*O166:O2214) -> 0.2398095243 | Q166: 0.07470703125 | R166: 0.5140098587
A167: 154 | B167: 0.4349889022 | C167: 0.2130346522 | D167: 0.0751953125 | E167: 0.5195875754 | F167: 0.6280396677 | G167: 0.2579592652 | H167: 0.2555189197 | J167: -870 | K167: 0.003419048918 | L167: =SUM($K$13:$K$2061*K167:K2215) -> 0.2103667921 | N167: 0 | O167: 0 | P167: =SUM($O$13:$O$2061*O167:O2215) -> 0.2391578208 | Q167: 0.0751953125 | R167: 0.4860867182
A168: 155 | B168: 0.4339248899 | C168: 0.2124735573 | D168: 0.07568359375 | E168: 0.5123120296 | F168: 0.6314289929 | G168: 0.2578048935 | H168: 0.2554485191 | J168: -869 | K168: 0.003411154329 | L168: =SUM($K$13:$K$2061*K168:K2216) -> 0.2097873756 | N168: 0 | O168: 0 | P168: =SUM($O$13:$O$2061*O168:O2216) -> 0.2385078486 | Q168: 0.07568359375 | R168: 0.4976963668
A169: 156 | B169: 0.4328697855 | C169: 0.2119176599 | D169: 0.076171875 | E169: 0.5024274028 | F169: 0.6348182582 | G169: 0.257650422 | H169: 0.2553751628 | J169: -868 | K169: 0.003412974408 | L169: =SUM($K$13:$K$2061*K169:K2217) -> 0.2092124644 | N169: 0 | O169: 0 | P169: =SUM($O$13:$O$2061*O169:O2217) -> 0.237859603 | Q169: 0.076171875 | R169: 0.4705912087
A170: 157 | B170: 0.4318234638 | C170: 0.2113668772 | D170: 0.07666015625 | E170: 0.4954998705 | F170: 0.6382074638 | G170: 0.2574958505 | H170: 0.2552989458 | J170: -867 | K170: 0.00340502929 | L170: =SUM($K$13:$K$2061*K170:K2218) -> 0.2086433324 | N170: 0 | O170: 0 | P170: =SUM($O$13:$O$2061*O170:O2218) -> 0.2372130794 | Q170: 0.07666015625 | R170: 0.4818955984
A171: 158 | B171: 0.4307858015 | C171: 0.2108211282 | D171: 0.0771484375 | E171: 0.4860223726 | F171: 0.6415966095 | G171: 0.2573411791 | H171: 0.2552199598 | J171: -866 | K171: 0.003406907122 | L171: =SUM($K$13:$K$2061*K171:K2219) -> 0.2080785418 | N171: 0 | O171: 0 | P171: =SUM($O$13:$O$2061*O171:O2219) -> 0.2365682731 | Q171: 0.0771484375 | R171: 0.4554950973
A172: 159 | B172: 0.4297566783 | C172: 0.2102803337 | D172: 0.07763671875 | E172: 0.4794234905 | F172: 0.6449856955 | G172: 0.2571864075 | H172: 0.2551382937 | J172: -865 | K172: 0.003398911294 | L172: =SUM($K$13:$K$2061*K172:K2220) -> 0.2075193703 | N172: 0 | O172: 0 | P172: =SUM($O$13:$O$2061*O172:O2220) -> 0.2359251794 | Q172: 0.07763671875 | R172: 0.4664493465
A173: 160 | B173: 0.4287359757 | C173: 0.2097444164 | D173: 0.078125 | E173: 0.4703318088 | F173: 0.6483747216 | G173: 0.2570315357 | H173: 0.2550540335 | J173: -864 | K173: 0.003400847746 | L173: =SUM($K$13:$K$2061*K173:K2221) -> 0.2069643839 | N173: 0 | O173: 0 | P173: =SUM($O$13:$O$2061*O173:O2221) -> 0.2352837936 | Q173: 0.078125 | R173: 0.440714108
A174: 161 | B174: 0.4277235778 | C174: 0.2092133006 | D174: 0.07861328125 | E174: 0.4640434441 | F174: 0.651763688 | G174: 0.2568765636 | H174: 0.2549672625 | J174: -863 | K174: 0.003392800163 | L174: =SUM($K$13:$K$2061*K174:K2222) -> 0.2064148633 | N174: 0 | O174: 0 | P174: =SUM($O$13:$O$2061*O174:O2222) -> 0.2346441111 | Q174: 0.07861328125 | R174: 0.4513428485
A175: 162 | B175: 0.4267193709 | C175: 0.2086869122 | D175: 0.0791015625 | E175: 0.4553175774 | F175: 0.6551525945 | G175: 0.2567214911 | H175: 0.2548780613 | J175: -862 | K175: 0.003394795713 | L175: =SUM($K$13:$K$2061*K175:K2223) -> 0.2058693782 | N175: 0 | O175: 0 | P175: =SUM($O$13:$O$2061*O175:O2223) -> 0.2340061273 | Q175: 0.0791015625 | R175: 0.4263008808
A176: 163 | B176: 0.4257232434 | C176: 0.2081651789 | D176: 0.07958984375 | E176: 0.4493227433 | F176: 0.6585414412 | G176: 0.256566318 | H176: 0.2547865079 | J176: -861 | K176: 0.003386696056 | L176: =SUM($K$13:$K$2061*K176:K2224) -> 0.2053292126 | N176: 0 | O176: 0 | P176: =SUM($O$13:$O$2061*O176:O2224) -> 0.2333698376 | Q176: 0.07958984375 | R176: 0.4366845754
A177: 164 | B177: 0.4247350858 | C177: 0.2076480299 | D177: 0.080078125 | E177: 0.4409439141 | F177: 0.6619302281 | G177: 0.2564110444 | H177: 0.2546926778 | J177: -860 | K177: 0.003388750591 | L177: =SUM($K$13:$K$2061*K177:K2225) -> 0.2047929394 | N177: 0 | O177: 0 | P177: =SUM($O$13:$O$2061*O177:O2225) -> 0.2327352373 | Q177: 0.080078125 | R177: 0.4124023517
A178: 165 | B178: 0.4237547907 | C178: 0.2071353958 | D178: 0.08056640625 | E178: 0.4352266856 | F178: 0.6653189553 | G178: 0.2562556701 | H178: 0.254596644 | J178: -859 | K178: 0.003380599412 | L178: =SUM($K$13:$K$2061*K178:K2226) -> 0.2042618455 | N178: 0 | O178: 0 | P178: =SUM($O$13:$O$2061*O178:O2226) -> 0.2321023219 | Q178: 0.08056640625 | R178: 0.4226450564
A179: 166 | B179: 0.4227822528 | C179: 0.2066272089 | D179: 0.0810546875 | E179: 0.4271772507 | F179: 0.6687076226 | G179: 0.2561001949 | H179: 0.2544984772 | J179: -858 | K179: 0.003382712279 | L179: =SUM($K$13:$K$2061*K179:K2227) -> 0.203734507 | N179: 0 | O179: 0 | P179: =SUM($O$13:$O$2061*O179:O2227) -> 0.2314710867 | Q179: 0.0810546875 | R179: 0.3991879837
A180: 167 | B180: 0.4218173686 | C180: 0.2061234028 | D180: 0.08154296875 | E180: 0.4217226969 | F180: 0.6720962302 | G180: 0.2559446189 | H180: 0.2543982458 | J180: -857 | K180: 0.003374509209 | L180: =SUM($K$13:$K$2061*K180:K2228) -> 0.2032122136 | N180: 0 | O180: 0 | P180: =SUM($O$13:$O$2061*O180:O2228) -> 0.2308415273 | Q180: 0.08154296875 | R180: 0.4093792888
A181: 168 | B181: 0.4208600367 | C181: 0.2056239125 | D181: 0.08203125 | E181: 0.4139860744 | F181: 0.6754847779 | G181: 0.2557889419 | H181: 0.254296016 | J181: -856 | K181: 0.003376681519 | L181: =SUM($K$13:$K$2061*K181:K2229) -> 0.2026935444 | N181: 0 | O181: 0 | P181: =SUM($O$13:$O$2061*O181:O2229) -> 0.230213639 | Q181: 0.08203125 | R181: 0.3867762454
A182: 169 | B182: 0.4199101574 | C182: 0.2051286746 | D182: 0.08251953125 | E182: 0.408780178 | F182: 0.6788732659 | G182: 0.2556331638 | H182: 0.2541918516 | J182: -855 | K182: 0.00336842574 | L182: =SUM($K$13:$K$2061*K182:K2230) -> 0.2021797917 | N182: 0 | O182: 0 | P182: =SUM($O$13:$O$2061*O182:O2230) -> 0.2295874173 | Q182: 0.08251953125 | R182: 0.3969612188
A183: 170 | B183: 0.418967633 | C183: 0.2046376266 | D183: 0.0830078125 | E183: 0.4013407763 | F183: 0.682261694 | G183: 0.2554772845 | H183: 0.2540858145 | J183: -854 | K183: 0.003370656933 | L183: =SUM($K$13:$K$2061*K183:K2231) -> 0.2016695375 | N183: 0 | O183: 0 | P183: =SUM($O$13:$O$2061*O183:O2231) -> 0.2289628577 | Q183: 0.0830078125 | R183: 0.3751853137
A184: 171 | B184: 0.4180323674 | C184: 0.2041507077 | D184: 0.08349609375 | E184: 0.3963703788 | F184: 0.6856500624 | G184: 0.2553213038 | H184: 0.2539779647 | J184: -853 | K184: 0.003362349038 | L184: =SUM($K$13:$K$2061*K184:K2232) -> 0.2011640766 | N184: 0 | O184: 0 | P184: =SUM($O$13:$O$2061*O184:O2232) -> 0.2283399556 | Q184: 0.08349609375 | R184: 0.3853524381
A185: 172 | B185: 0.4171042665 | C185: 0.2036678582 | D185: 0.083984375 | E185: 0.3892135244 | F185: 0.689038371 | G185: 0.2551652218 | H185: 0.25386836 | J185: -852 | K185: 0.003364639587 | L185: =SUM($K$13:$K$2061*K185:K2233) -> 0.2006619935 | N185: 0 | O185: 0 | P185: =SUM($O$13:$O$2061*O185:O2233) -> 0.2277187065 | Q185: 0.083984375 | R185: 0.3643235584
A186: 173 | B186: 0.4161832376 | C186: 0.2031890195 | D186: 0.08447265625 | E186: 0.3844662669 | F186: 0.6924266198 | G186: 0.2550090384 | H186: 0.2537570563 | J186: -851 | K186: 0.003356278397 | L186: =SUM($K$13:$K$2061*K186:K2234) -> 0.2001645855 | N186: 0 | O186: 0 | P186: =SUM($O$13:$O$2061*O186:O2234) -> 0.227099106 | Q186: 0.08447265625 | R186: 0.3744135954
A187: 174 | B187: 0.41526919 | C187: 0.2027141345 | D187: 0.0849609375 | E187: 0.3775781456 | F187: 0.6958148089 | G187: 0.2548527533 | H187: 0.2536441078 | J187: -850 | K187: 0.003358628826 | L187: =SUM($K$13:$K$2061*K187:K2235) -> 0.1996704397 | N187: 0 | O187: 0 | P187: =SUM($O$13:$O$2061*O187:O2235) -> 0.2264811496 | Q187: 0.0849609375 | R187: 0.3540202335
A188: 175 | B188: 0.4143620343 | C188: 0.2022431469 | D188: 0.08544921875 | E188: 0.3730424126 | F188: 0.6992029381 | G188: 0.2546963665 | H188: 0.2535295667 | J188: -849 | K188: 0.003350214478 | L188: =SUM($K$13:$K$2061*K188:K2236) -> 0.1991808555 | N188: 0 | O188: 0 | P188: =SUM($O$13:$O$2061*O188:O2236) -> 0.2258648327 | Q188: 0.08544921875 | R188: 0.3639513702
A189: 176 | B189: 0.413461683 | C189: 0.2017760018 | D189: 0.0859375 | E189: 0.366410009 | F189: 0.7025910076 | G189: 0.254539878 | H189: 0.2534134837 | J189: -848 | K189: 0.003352624413 | L189: =SUM($K$13:$K$2061*K189:K2237) -> 0.1986944225 | N189: 0 | O189: 0 | P189: =SUM($O$13:$O$2061*O189:O2237) -> 0.2252501509 | Q189: 0.0859375 | R189: 0.3440826099
A190: 177 | B190: 0.41256805 | C190: 0.2013126452 | D190: 0.08642578125 | E190: 0.3620748821 | F190: 0.7059790173 | G190: 0.2543832875 | H190: 0.2532959076 | J190: -847 | K190: 0.003344156872 | L190: =SUM($K$13:$K$2061*K190:K2238) -> 0.1982124421 | N190: 0 | O190: 0 | P190: =SUM($O$13:$O$2061*O190:O2238) -> 0.2246370998 | Q190: 0.08642578125 | R190: 0.3537818394
A191: 178 | B191: 0.4116810506 | C191: 0.2008530245 | D191: 0.0869140625 | E191: 0.3556859311 | F191: 0.7093669672 | G191: 0.2542265951 | H191: 0.2531768858 | J191: -846 | K191: 0.003346626195 | L191: =SUM($K$13:$K$2061*K191:K2239) -> 0.1977335064 | N191: 0 | O191: 0 | P191: =SUM($O$13:$O$2061*O191:O2239) -> 0.224025675 | Q191: 0.0869140625 | R191: 0.3343574352
A192: 179 | B192: 0.4108006018 | C192: 0.2003970877 | D192: 0.08740234375 | E192: 0.351541136 | F192: 0.7127548573 | G192: 0.2540698006 | H192: 0.2530564638 | J192: -845 | K192: 0.003338105388 | L192: =SUM($K$13:$K$2061*K192:K2240) -> 0.1972589186 | N192: 0 | O192: 0 | P192: =SUM($O$13:$O$2061*O192:O2240) -> 0.2234158719 | Q192: 0.08740234375 | R192: 0.3437866354
A193: 180 | B193: 0.409926622 | C193: 0.1999447842 | D193: 0.087890625 | E193: 0.3453840732 | F193: 0.7161426877 | G193: 0.2539129039 | H193: 0.2529346859 | J193: -844 | K193: 0.003340634806 | L193: =SUM($K$13:$K$2061*K193:K2241) -> 0.196787273 | N193: 0 | O193: 0 | P193: =SUM($O$13:$O$2061*O193:O2241) -> 0.2228076863 | Q193: 0.087890625 | R193: 0.3247746341
A194: 181 | B194: 0.4090590309 | C194: 0.1994960641 | D194: 0.08837890625 | E194: 0.3414199383 | F194: 0.7195304583 | G194: 0.2537559049 | H194: 0.2528115948 | J194: -843 | K194: 0.003332059522 | L194: =SUM($K$13:$K$2061*K194:K2242) -> 0.1963198747 | N194: 0 | O194: 0 | P194: =SUM($O$13:$O$2061*O194:O2242) -> 0.2222011136 | Q194: 0.08837890625 | R194: 0.3339424829
A195: 182 | B195: 0.4081977498 | C195: 0.1990508787 | D195: 0.0888671875 | E195: 0.3354838562 | F195: 0.7229181691 | G195: 0.2535988036 | H195: 0.2526872317 | J195: -842 | K195: 0.00333464972 | L195: =SUM($K$13:$K$2061*K195:K2243) -> 0.1958553203 | N195: 0 | O195: 0 | P195: =SUM($O$13:$O$2061*O195:O2243) -> 0.2215961495 | Q195: 0.0888671875 | R195: 0.3153589648
A196: 183 | B196: 0.4073427011 | C196: 0.1986091801 | D196: 0.08935546875 | E196: 0.3316912761 | F196: 0.7263058202 | G196: 0.2534415997 | H196: 0.2525616364 | J196: -841 | K196: 0.003326019917 | L196: =SUM($K$13:$K$2061*K196:K2244) -> 0.1953949165 | N196: 0 | O196: 0 | P196: =SUM($O$13:$O$2061*O196:O2244) -> 0.2209927897 | Q196: 0.08935546875 | R196: 0.3243154465
A197: 184 | B197: 0.4064938087 | C197: 0.1981709214 | D197: 0.08984375 | E197: 0.3259658743 | F197: 0.7296934115 | G197: 0.2532842933 | H197: 0.2524348476 | J197: -840 | K197: 0.003328670236 | L197: =SUM($K$13:$K$2061*K197:K2245) -> 0.1949372618 | N197: 0 | O197: 0 | P197: =SUM($O$13:$O$2061*O197:O2245) -> 0.2203910297 | Q197: 0.08984375 | R197: 0.3062076555
A198: 185 | B198: 0.4056509978 | C198: 0.1977360566 | D198: 0.09033203125 | E198: 0.3223362725 | F198: 0.733080943 | G198: 0.2531268842 | H198: 0.2523069023 | J198: -839 | K198: 0.003319986434 | L198: =SUM($K$13:$K$2061*K198:K2246) -> 0.1944836646 | N198: 0 | O198: 0 | P198: =SUM($O$13:$O$2061*O198:O2246) -> 0.2197908651 | Q198: 0.09033203125 | R198: 0.3150242855
A199: 186 | B199: 0.4048141949 | C199: 0.1973045404 | D199: 0.0908203125 | E199: 0.316811823 | F199: 0.7364684147 | G199: 0.2529693723 | H199: 0.2521778367 | J199: -838 | K199: 0.003322696799 | L199: =SUM($K$13:$K$2061*K199:K2247) -> 0.1940327255 | N199: 0 | O199: 0 | P199: =SUM($O$13:$O$2061*O199:O2247) -> 0.2191922918 | Q199: 0.0908203125 | R199: 0.2974442153
A200: 187 | B200: 0.4039833275 | C200: 0.1968763287 | D200: 0.09130859375 | E200: 0.3133371179 | F200: 0.7398558267 | G200: 0.2528117575 | H200: 0.2520476855 | J200: -837 | K200: 0.0033139586 | L200: =SUM($K$13:$K$2061*K200:K2248) -> 0.1935857543 | N200: 0 | O200: 0 | P200: =SUM($O$13:$O$2061*O200:O2248) -> 0.2185953052 | Q200: 0.09130859375 | R200: 0.3061879523
... 1861 more rows

Sheet ToAR(q')
A1: =Model!A1 -> You must have macros enabled in order for the program to work. You may see the code through the VBA Editor.
A2: =Model!A2 -> Program by Demetris Koutsoyiannis - Please report bugs to dk@itia.ntua.gr | H2: =Model!H2 -> Version 0.6 | J2: =Model!J2 -> 2019-10-23
A3: =Model!A3 -> Linensed under Creative Commons - Attribution Alone (CC-BY)
A4: =Model!A4 -> q | B4: =Model!B4 -> 1024 | C4: =Model!C4 -> The number of coefficients is 2q+1. If you change this number you must adapt the spreadsheet.
A5: =Model!A5 -> Markov or not | B5: 0 | C5: =Model!C5 -> Set 1 for Markov, any other number for FHK (Cauchy climacogram)
A6: =Model!A6 -> H | B6: =Model!B6 -> 0.8 | C6: =Model!C6 -> Hurst parameter (0 <= H <= 1) | J6: Error in c | K6: =SUM((Y13:Y1037-C13:C1037)^2) -> 8.424249011
A7: =Model!A7 -> M | B7: =Model!B7 -> 0.7 | C7: =Model!C7 -> Fractal (Mandelbrot) parameter (0 <= M <= 1) | F7: Minimize this by Solver to find θ(ω)---------------> | J7: Error in a | K7: =SUM((K13:K2061-X13:X2061)^2) -> 0.02565415882 | L7: =K1037-MAX(K13:K2061) -> -0.1000000672 | N7: 100 | W7: =SUM(W13:W2061^2) -> 0.9726219711 | X7: =SUM(X13:X2061^2) -> 0.9957311982
A8: =Model!A8 -> α | B8: =Model!B8 -> 20 | C8: =Model!C8 -> Time scale parameter | F8: θ parameters | L8: -0.1 | N8: =SUM(N13:N17) -> 0.9820016876
A9: =Model!A9 -> λ = γ(0) | B9: =Model!B9 -> 1 | C9: =Model!C9 -> State scale parameter | F9: 0.07681953395 | G9: 0.08233223032
A10: AR size q' | B10: 100 | F10: 0.2008509962 | G10: 15.59460842 | J10: Adjustment factor | K10: =($B$14/W7)^0.5 -> 1.011810121
F11: 0.01636574055 | G11: 12.08572748 | N11: ="Adapted to AR("&N7&")" -> Adapted to AR(100)
A12: κ, η | B12: γ(κ) | C12: cη | D12: ω | E12: s(ω) | H12: θ(ω) | J12: η | K12: aη | L12: cη convoluted | N12: OneStepPrediction | P12: cη adapted | R12: ω | S12: s(ω) | T12: η | U12: aη | W12: aη modified | X12: aη final | Y12: cη convoluted final | Z12: ω | AA12: s(ω)
A13: =IF(B5=1,markov_(B4,B8/2,B9),FHK_Cauchy_(B4,B7,B6,B8,B9)) -> 0 | B13: 1 | C13: 0.9957311982 | D13: =FFTPowSpec_(C13:C1037) -> 0 | E13: 678.7005505 | F13: =F$10*$D13/(F$11+$D13)+F$9 -> 0.07681953395 | G13: =G$10*(0.5-$D13)/(G$11+0.5-$D13)+G$9 -> 0.7018676703 | H13: 0 | J13: =FFT_amaCoef_(E13:E1037,H13:H1037) -> -1024 | K13: 0.003746556062 | L13: =SUM($K$13:$K$2061*K13:K2061) -> 0.995745077 | N13: =[0]!OneStepPredictionVector_(OFFSET(C13:C1037,0,0,B10+1)) -> 1.486657185 | O13: =up2down_((OFFSET(N13,0,0,B10))) -> 0.002560463811 | P13: =IF(ISNUMBER(O13),C13,SUM(OFFSET($O$13,0,0,$B$10)*OFFSET(P12,-$B$10+1,0,$B$10))) -> 0.9957311982 | R13: =FFTPowSpec_(P13:P1037) -> 0 | S13: 284.6370532 | T13: =FFT_amaCoef_(S13:S1037,F13:F1037) -> -1024 | U13: 5.193451417e-05 | W13: =IF(J13<0,0,U13) -> 0 | X13: =W13*$K$10 -> 0 | Y13: =SUM($X$13:$X$2061*X13:X2061) -> 0.9957311982 | Z13: =FFTPowSpec_(Y13:Y1037) -> 0 | AA13: 326.4616361
A14: 1 | B14: 0.9957311982 | C14: 0.9820849253 | D14: 0.00048828125 | E14: 192.5504243 | F14: =F$10*$D14/(F$11+$D14)+F$9 -> 0.0826384285 | G14: =G$10*(0.5-$D14)/(G$11+0.5-$D14)+G$9 -> 0.7012866684 | H14: =IFERROR(LN(EXP(-10*F14)+EXP(-10*G14))/-10,0) -> 0.08243293479 | J14: -1023 | K14: 0.00368071998 | L14: =SUM($K$13:$K$2061*K14:K2062) -> 0.9820850832 | N14: -0.6025148863 | O14: -0.001223953264 | P14: =IF(ISNUMBER(O14),C14,SUM(OFFSET($O$13,0,0,$B$10)*OFFSET(P13,-$B$10+1,0,$B$10))) -> 0.9820849253 | R14: 0.00048828125 | S14: 253.2803298 | T14: -1023 | U14: 4.393978142e-05 | W14: 0 | X14: =W14*$K$10 -> 0 | Y14: =SUM($X$13:$X$2061*X14:X2062) -> 0.9798159675 | Z14: 0.00048828125 | AA14: 250.6066051
A15: 2 | B15: 0.9889080617 | C15: 0.9558070596 | D15: 0.0009765625 | E15: 113.6800236 | F15: 0.08812965525 | G15: 0.7007056215 | H15: 0.08791131079 | J15: -1022 | K15: 0.003714975948 | L15: =SUM($K$13:$K$2061*K15:K2063) -> 0.95579225 | N15: 0.1487451889 | O15: 0.0003083714707 | P15: =IF(ISNUMBER(O15),C15,SUM(OFFSET($O$13,0,0,$B$10)*OFFSET(P14,-$B$10+1,0,$B$10))) -> 0.9558070596 | R15: 0.0009765625 | S15: 191.3022507 | T15: -1022 | U15: 4.217615263e-05 | W15: 0 | X15: 0 | Y15: =SUM($X$13:$X$2061*X15:X2063) -> 0.9483388523 | Z15: 0.0009765625 | AA15: 160.3838232
A16: 3 | B16: 0.9807941572 | C16: 0.9255524266 | D16: 0.00146484375 | E16: 93.34209542 | F16: 0.09332013324 | G16: 0.7001245294 | H16: 0.09308883111 | J16: -1021 | K16: 0.003701010993 | L16: =SUM($K$13:$K$2061*K16:K2064) -> 0.9255236887 | N16: -0.06220785117 | O16: -6.972248592e-05 | P16: =IF(ISNUMBER(O16),C16,SUM(OFFSET($O$13,0,0,$B$10)*OFFSET(P15,-$B$10+1,0,$B$10))) -> 0.9255524266 | R16: 0.00146484375 | S16: 137.8314972 | T16: -1021 | U16: 3.653572426e-05 | W16: 0 | X16: 0 | Y16: =SUM($X$13:$X$2061*X16:X2064) -> 0.9149486441 | Z16: 0.00146484375 | AA16: 123.1743809
A17: 4 | B17: 0.9718604648 | C17: 0.8936956952 | D17: 0.001953125 | E17: 75.4184916 | F17: 0.09823391144 | G17: 0.6995433923 | H17: 0.09798955972 | J17: -1020 | K17: 0.003714737385 | L17: =SUM($K$13:$K$2061*K17:K2065) -> 0.8936521737 | N17: 0.01132205074 | O17: 8.907777153e-05 | P17: =IF(ISNUMBER(O17),C17,SUM(OFFSET($O$13,0,0,$B$10)*OFFSET(P16,-$B$10+1,0,$B$10))) -> 0.8936956952 | R17: 0.001953125 | S17: 101.0081831 | T17: -1020 | U17: 3.3482579e-05 | W17: 0 | X17: 0 | Y17: =SUM($X$13:$X$2061*X17:X2065) -> 0.8814001131 | Z17: 0.001953125 | AA17: 93.95585903
A18: 5 | B18: 0.9623911539 | C18: 0.8615658501 | D18: 0.00244140625 | E18: 66.86872455 | F18: 0.1028925413 | G18: 0.6989622101 | H18: 0.1026350616 | J18: -1019 | K18: 0.003702423113 | L18: =SUM($K$13:$K$2061*K18:K2066) -> 0.8615082275 | N18: -0.007532259962 | O18: 6.097986583e-05 | P18: =IF(ISNUMBER(O18),C18,SUM(OFFSET($O$13,0,0,$B$10)*OFFSET(P17,-$B$10+1,0,$B$10))) -> 0.8615658501 | R18: 0.00244140625 | S18: 77.07062063 | T18: -1019 | U18: 2.826057108e-05 | W18: 0 | X18: 0 | Y18: =SUM($X$13:$X$2061*X18:X2066) -> 0.8486991218 | Z18: 0.00244140625 | AA18: 76.83680942
A19: 6 | B19: 0.9525811655 | C19: 0.8299831163 | D19: 0.0029296875 | E19: 58.25523587 | F19: 0.1073153929 | G19: 0.6983809827 | H19: 0.1070447187 | J19: -1018 | K19: 0.003709810039 | L19: =SUM($K$13:$K$2061*K19:K2067) -> 0.8299106996 | N19: 0.0003279300262 | O19: 8.092217871e-05 | P19: =IF(ISNUMBER(O19),C19,SUM(OFFSET($O$13,0,0,$B$10)*OFFSET(P18,-$B$10+1,0,$B$10))) -> 0.8299831163 | R19: 0.0029296875 | S19: 61.36632655 | T19: -1018 | U19: 2.492670926e-05 | W19: 0 | X19: 0 | Y19: =SUM($X$13:$X$2061*X19:X2067) -> 0.8173586705 | Z19: 0.0029296875 | AA19: 63.55083683
A20: 7 | B20: 0.9425720674 | C20: 0.7994569296 | D20: 0.00341796875 | E20: 53.21210231 | F20: 0.111519924 | G20: 0.6977997103 | H20: 0.1112359997 | J20: -1017 | K20: 0.003699080246 | L20: =SUM($K$13:$K$2061*K20:K2068) -> 0.7993703392 | N20: -0.001000084489 | O20: 8.092117973e-05 | P20: =IF(ISNUMBER(O20),C20,SUM(OFFSET($O$13,0,0,$B$10)*OFFSET(P19,-$B$10+1,0,$B$10))) -> 0.7994569296 | R20: 0.00341796875 | S20: 50.90097622 | T20: -1017 | U20: 1.977410854e-05 | W20: 0 | X20: 0 | Y20: =SUM($X$13:$X$2061*X20:X2068) -> 0.7875104416 | Z20: 0.00341796875 | AA20: 54.9784265
A21: 8 | B21: 0.9324696017 | C21: 0.7702915287 | D21: 0.00390625 | E21: 47.90650515 | F21: 0.1155219101 | G21: 0.6972183927 | H21: 0.1152246897 | J21: -1016 | K21: 0.003703462089 | L21: =SUM($K$13:$K$2061*K21:K2069) -> 0.7701900992 | N21: 2.402876667e-05 | O21: 8.432886778e-05 | P21: =IF(ISNUMBER(O21),C21,SUM(OFFSET($O$13,0,0,$B$10)*OFFSET(P20,-$B$10+1,0,$B$10))) -> 0.7702915287 | R21: 0.00390625 | S21: 43.74444839 | T21: -1016 | U21: 1.63950721e-05 | W21: 0 | X21: 0 | Y21: =SUM($X$13:$X$2061*X21:X2069) -> 0.7593980661 | Z21: 0.00390625 | AA21: 48.05049369
A22: 9 | B22: 0.9223538367 | C22: 0.7426519135 | D22: 0.00439453125 | E22: 44.44489152 | F22: 0.119335643 | G22: 0.69663703 | H22: 0.1190250888 | J22: -1015 | K22: 0.003693917739 | L22: =SUM($K$13:$K$2061*K22:K2070) -> 0.7425362554 | N22: 4.804646126e-05 | O22: 8.515368049e-05 | P22: =IF(ISNUMBER(O22),C22,SUM(OFFSET($O$13,0,0,$B$10)*OFFSET(P21,-$B$10+1,0,$B$10))) -> 0.7426519135 | R22: 0.00439453125 | S22: 38.81079531 | T22: -1015 | U22: 1.121732791e-05 | W22: 0 | X22: 0 | Y22: =SUM($X$13:$X$2061*X22:X2070) -> 0.7328733196 | Z22: 0.00439453125 | AA22: 43.33517847
A23: 10 | B23: 0.9122857086 | C23: 0.7166082252 | D23: 0.0048828125 | E23: 40.74157428 | F23: 0.1229741005 | G23: 0.6960556222 | H23: 0.1226501825 | J23: -1014 | K23: 0.003696728666 | L23: =SUM($K$13:$K$2061*K23:K2071) -> 0.71647768 | N23: 0.0002271418984 | O23: 8.593595443e-05 | P23: =IF(ISNUMBER(O23),C23,SUM(OFFSET($O$13,0,0,$B$10)*OFFSET(P22,-$B$10+1,0,$B$10))) -> 0.7166082252 | R23: 0.0048828125 | S23: 35.36382324 | T23: -1014 | U23: 7.874057749e-06 | W23: 0 | X23: 0 | Y23: =SUM($X$13:$X$2061*X23:X2071) -> 0.7080740078 | Z23: 0.0048828125 | AA23: 39.37263017
A24: 11 | B24: 0.9023115487 | C24: 0.6921666425 | D24: 0.00537109375 | E24: 38.15572584 | F24: 0.1264490943 | G24: 0.6954741693 | H24: 0.1261117893 | J24: -1013 | K24: 0.003688098333 | L24: =SUM($K$13:$K$2061*K24:K2072) -> 0.6920218184 | N24: 0.0002699530623 | O24: 8.62753896e-05 | P24: =IF(ISNUMBER(O24),C24,SUM(OFFSET($O$13,0,0,$B$10)*OFFSET(P23,-$B$10+1,0,$B$10))) -> 0.6921666425 | R24: 0.00537109375 | S24: 32.9813594 | T24: -1013 | U24: 2.633143789e-06 | W24: 0 | X24: 0 | Y24: =SUM($X$13:$X$2061*X24:X2072) -> 0.684755078 | Z24: 0.00537109375 | AA24: 36.59084884
A25: 12 | B25: 0.8924663696 | C25: 0.6692911815 | D25: 0.005859375 | E25: 35.37181697 | F25: 0.1297713984 | G25: 0.6948926712 | H25: 0.1294206888 | J25: -1012 | K25: 0.003689997447 | L25: =SUM($K$13:$K$2061*K25:K2073) -> 0.6691314227 | N25: 0.0003044076468 | O25: 8.652154258e-05 | P25: =IF(ISNUMBER(O25),C25,SUM(OFFSET($O$13,0,0,$B$10)*OFFSET(P24,-$B$10+1,0,$B$10))) -> 0.6692911815 | R25: 0.005859375 | S25: 31.3309267 | T25: -1012 | U25: -6.385286248e-07 | W25: 0 | X25: 0 | Y25: =SUM($X$13:$X$2061*X25:X2073) -> 0.6630124868 | Z25: 0.005859375 | AA25: 34.15545289
A26: 13 | B26: 0.8827763278 | C26: 0.6479191154 | D26: 0.00634765625 | E26: 33.33550694 | F26: 0.13295086 | G26: 0.694311128 | H26: 0.1325867334 | J26: -1011 | K26: 0.003682079565 | L26: =SUM($K$13:$K$2061*K26:K2074) -> 0.6477450295 | N26: 0.0003127443328 | O26: 8.669180139e-05 | P26: =IF(ISNUMBER(O26),C26,SUM(OFFSET($O$13,0,0,$B$10)*OFFSET(P25,-$B$10+1,0,$B$10))) -> 0.6479191154 | R26: 0.00634765625 | S26: 30.20552318 | T26: -1011 | U26: -5.962558561e-06 | W26: 0 | X26: 0 | Y26: =SUM($X$13:$X$2061*X26:X2074) -> 0.6425756602 | Z26: 0.00634765625 | AA26: 32.38712364
A27: 14 | B27: 0.8732606113 | C27: 0.6279718324 | D27: 0.0068359375 | E27: 31.13953153 | F27: 0.1359964975 | G27: 0.6937295396 | H27: 0.1356189461 | J27: -1010 | K27: 0.00368340256 | L27: =SUM($K$13:$K$2061*K27:K2075) -> 0.6277827653 | N27: 0.0003131067343 | O27: 8.685527203e-05 | P27: =IF(ISNUMBER(O27),C27,SUM(OFFSET($O$13,0,0,$B$10)*OFFSET(P26,-$B$10+1,0,$B$10))) -> 0.6279718324 | R27: 0.0068359375 | S27: 29.40431828 | T27: -1010 | U27: -9.144038092e-06 | W27: 0 | X27: 0 | Y27: =SUM($X$13:$X$2061*X27:X2075) -> 0.6235270838 | Z27: 0.0068359375 | AA27: 30.73729087
A28: 15 | B28: 0.8639329062 | C28: 0.6093624078 | D28: 0.00732421875 | E28: 29.47842754 | F28: 0.1389165859 | G28: 0.6931479061 | H28: 0.1385256057 | J28: -1009 | K28: 0.003676043143 | L28: =SUM($K$13:$K$2061*K28:K2076) -> 0.6091589669 | N28: 0.0003072007581 | O28: 8.703172082e-05 | P28: =IF(ISNUMBER(O28),C28,SUM(OFFSET($O$13,0,0,$B$10)*OFFSET(P27,-$B$10+1,0,$B$10))) -> 0.6093624078 | R28: 0.00732421875 | S28: 28.78246418 | T28: -1009 | U28: -1.456331572e-05 | W28: 0 | X28: 0 | Y28: =SUM($X$13:$X$2061*X28:X2076) -> 0.6055998524 | Z28: 0.00732421875 | AA28: 29.44561586
A29: 16 | B29: 0.85480255 | C29: 0.5920008072 | D29: 0.0078125 | E29: 27.68782906 | F29: 0.1417187314 | G29: 0.6925662274 | H29: 0.141314322 | J29: -1008 | K29: 0.003676977651 | L29: =SUM($K$13:$K$2061*K29:K2077) -> 0.5917823392 | N29: 0.0002987116078 | O29: 8.723769396e-05 | P29: =IF(ISNUMBER(O29),C29,SUM(OFFSET($O$13,0,0,$B$10)*OFFSET(P28,-$B$10+1,0,$B$10))) -> 0.5920008072 | R29: 0.0078125 | S29: 28.18422607 | T29: -1008 | U29: -1.764384629e-05 | W29: 0 | X29: 0 | Y29: =SUM($X$13:$X$2061*X29:X2077) -> 0.5888750996 | Z29: 0.0078125 | AA29: 28.1192141
A30: 17 | B30: 0.845875444 | C30: 0.5757973857 | D30: 0.00830078125 | E30: 26.29885694 | F30: 0.1444099383 | G30: 0.6919845035 | H30: 0.143992102 | J30: -1007 | K30: 0.003670059464 | L30: =SUM($K$13:$K$2061*K30:K2078) -> 0.5755644981 | N30: 0.0002889005987 | O30: 8.748100699e-05 | P30: =IF(ISNUMBER(O30),C30,SUM(OFFSET($O$13,0,0,$B$10)*OFFSET(P29,-$B$10+1,0,$B$10))) -> 0.5757973857 | R30: 0.00830078125 | S30: 27.50044035 | T30: -1007 | U30: -2.316639751e-05 | W30: 0 | X30: 0 | Y30: =SUM($X$13:$X$2061*X30:X2078) -> 0.5731008295 | Z30: 0.00830078125 | AA30: 26.95005853
A31: 18 | B31: 0.8371547796 | C31: 0.5606651706 | D31: 0.0087890625 | E31: 24.80358592 | F31: 0.1469966669 | G31: 0.6914027345 | H31: 0.1465654084 | J31: -1006 | K31: 0.003670718762 | L31: =SUM($K$13:$K$2061*K31:K2079) -> 0.5604172108 | N31: 0.0002787260292 | O31: 8.776590619e-05 | P31: =IF(ISNUMBER(O31),C31,SUM(OFFSET($O$13,0,0,$B$10)*OFFSET(P30,-$B$10+1,0,$B$10))) -> 0.5606651706 | R31: 0.0087890625 | S31: 26.63549397 | T31: -1006 | U31: -2.613923514e-05 | W31: 0 | X31: 0 | Y31: =SUM($X$13:$X$2061*X31:X2079) -> 0.55836131 | Z31: 0.0087890625 | AA31: 25.66008873
A32: 19 | B32: 0.8286416183 | C32: 0.5465212781 | D32: 0.00927734375 | E32: 23.6210368 | F32: 0.1494848855 | G32: 0.6908209203 | H32: 0.1490402117 | J32: -1005 | K32: 0.003664152109 | L32: =SUM($K$13:$K$2061*K32:K2080) -> 0.5462588539 | N32: 0.0002686311249 | O32: 8.809329309e-05 | P32: =IF(ISNUMBER(O32),C32,SUM(OFFSET($O$13,0,0,$B$10)*OFFSET(P31,-$B$10+1,0,$B$10))) -> 0.5465212781 | R32: 0.00927734375 | S32: 25.56108759 | T32: -1005 | U32: -3.177066578e-05 | W32: 0 | X32: 0 | Y32: =SUM($X$13:$X$2061*X32:X2080) -> 0.5444227863 | Z32: 0.00927734375 | AA32: 24.43102346
A33: 20 | B33: 0.820335356 | C33: 0.533287725 | D33: 0.009765625 | E33: 22.35005612 | F33: 0.1518801161 | G33: 0.690239061 | H33: 0.1514220357 | J33: -1004 | K33: 0.003664610661 | L33: =SUM($K$13:$K$2061*K33:K2081) -> 0.5330101843 | N33: 0.000258869474 | O33: 8.846536797e-05 | P33: =IF(ISNUMBER(O33),C33,SUM(OFFSET($O$13,0,0,$B$10)*OFFSET(P32,-$B$10+1,0,$B$10))) -> 0.533287725 | R33: 0.009765625 | S33: 24.28426014 | T33: -1004 | U33: -3.463131121e-05 | W33: 0 | X33: 0 | Y33: =SUM($X$13:$X$2061*X33:X2081) -> 0.5313736901 | Z33: 0.009765625 | AA33: 23.0852138
A34: 21 | B34: 0.8122340953 | C34: 0.5208918186 | D34: 0.01025390625 | E34: 21.32951702 | F34: 0.1541874758 | G34: 0.6896571564 | H34: 0.1537159988 | J34: -1003 | K34: 0.003658326242 | L34: =SUM($K$13:$K$2061*K34:K2082) -> 0.5205997691 | N34: 0.0002495547006 | O34: 8.888117588e-05 | P34: =IF(ISNUMBER(O34),C34,SUM(OFFSET($O$13,0,0,$B$10)*OFFSET(P33,-$B$10+1,0,$B$10))) -> 0.5208918186 | R34: 0.01025390625 | S34: 22.87017774 | T34: -1003 | U34: -4.037569685e-05 | W34: 0 | X34: 0 | Y34: =SUM($X$13:$X$2061*X34:X2082) -> 0.5189984304 | Z34: 0.01025390625 | AA34: 21.80555365
A35: 22 | B35: 0.8043349448 | C35: 0.5092662615 | D35: 0.0107421875 | E35: 20.2344396 | F35: 0.1564117129 | G35: 0.6890752067 | H35: 0.1559268505 | J35: -1002 | K35: 0.00365863477 | L35: =SUM($K$13:$K$2061*K35:K2083) -> 0.5089590518 | N35: 0.0002407332648 | O35: 8.934053415e-05 | P35: =IF(ISNUMBER(O35),C35,SUM(OFFSET($O$13,0,0,$B$10)*OFFSET(P34,-$B$10+1,0,$B$10))) -> 0.5092662615 | R35: 0.0107421875 | S35: 21.39265919 | T35: -1002 | U35: -4.312099971e-05 | W35: 0 | X35: 0 | Y35: =SUM($X$13:$X$2061*X35:X2083) -> 0.5073891912 | Z35: 0.0107421875 | AA35: 20.47987818
A36: 23 | B36: 0.7966342592 | C36: 0.498349067 | D36: 0.01123046875 | E36: 19.344455 | F36: 0.1585572397 | G36: 0.6884932117 | H36: 0.1580590039 | J36: -1001 | K36: 0.003652579729 | L36: =SUM($K$13:$K$2061*K36:K2084) -> 0.4980273051 | N36: 0.0002324113405 | O36: 8.984458247e-05 | P36: =IF(ISNUMBER(O36),C36,SUM(OFFSET($O$13,0,0,$B$10)*OFFSET(P35,-$B$10+1,0,$B$10))) -> 0.498349067 | R36: 0.01123046875 | S36: 19.93862247 | T36: -1001 | U36: -4.898140085e-05 | W36: 0 | X36: 0 | Y36: =SUM($X$13:$X$2061*X36:X2084) -> 0.4963471216 | Z36: 0.01123046875 | AA36: 19.26997431
A37: 24 | B37: 0.7891278316 | C37: 0.4880833527 | D37: 0.01171875 | E37: 18.3908623 | F37: 0.1606281616 | G37: 0.6879111716 | H37: 0.1601165651 | J37: -1000 | K37: 0.003652774607 | L37: =SUM($K$13:$K$2061*K37:K2085) -> 0.4877463875 | N37: 0.0002245754014 | O37: 9.039127192e-05 | P37: =IF(ISNUMBER(O37),C37,SUM(OFFSET($O$13,0,0,$B$10)*OFFSET(P36,-$B$10+1,0,$B$10))) -> 0.4880833527 | R37: 0.01171875 | S37: 18.56823417 | T37: -1000 | U37: -5.160906981e-05 | W37: 0 | X37: 0 | Y37: =SUM($X$13:$X$2061*X37:X2085) -> 0.4859672525 | Z37: 0.01171875 | AA37: 18.08573762
A38: 25 | B38: 0.781811049 | C38: 0.478417062 | D38: 0.01220703125 | E38: 17.60829042 | F38: 0.1626283034 | G38: 0.6873290862 | H38: 0.1621033593 | J38: -999 | K38: 0.003646906432 | L38: =SUM($K$13:$K$2061*K38:K2086) -> 0.4780655017 | N38: 0.0002172021824 | O38: 9.098155252e-05 | P38: =IF(ISNUMBER(O38),C38,SUM(OFFSET($O$13,0,0,$B$10)*OFFSET(P37,-$B$10+1,0,$B$10))) -> 0.478417062 | R38: 0.01220703125 | S38: 17.33022143 | T38: -999 | U38: -5.758784874e-05 | W38: 0 | X38: 0 | Y38: =SUM($X$13:$X$2061*X38:X2086) -> 0.4760656407 | Z38: 0.01220703125 | AA38: 17.05020774
A39: 26 | B39: 0.7746790154 | C39: 0.4693026461 | D39: 0.0126953125 | E39: 16.77081423 | F39: 0.1645612327 | G39: 0.6867469557 | H39: 0.1640229545 | J39: -998 | K39: 0.003647015424 | L39: =SUM($K$13:$K$2061*K39:K2087) -> 0.4689358399 | N39: 0.000210263774 | O39: 9.161601183e-05 | P39: =IF(ISNUMBER(O39),C39,SUM(OFFSET($O$13,0,0,$B$10)*OFFSET(P38,-$B$10+1,0,$B$10))) -> 0.4693026461 | R39: 0.0126953125 | S39: 16.24224878 | T39: -998 | U39: -6.009616593e-05 | W39: 0 | X39: 0 | Y39: =SUM($X$13:$X$2061*X39:X2087) -> 0.466739186 | Z39: 0.0126953125 | AA39: 16.07545873
A40: 27 | B40: 0.7677266508 | C40: 0.46069673 | D40: 0.01318359375 | E40: 16.07808839 | F40: 0.1664302816 | G40: 0.6861647799 | H40: 0.1658786826 | J40: -997 | K40: 0.003641300587 | L40: =SUM($K$13:$K$2061*K40:K2088) -> 0.4603152865 | N40: 0.0002037318584 | O40: 9.229285807e-05 | P40: =IF(ISNUMBER(O40),C40,SUM(OFFSET($O$13,0,0,$B$10)*OFFSET(P39,-$B$10+1,0,$B$10))) -> 0.46069673 | R40: 0.01318359375 | S40: 15.31378186 | T40: -997 | U40: -6.619519006e-05 | W40: 0 | X40: 0 | Y40: =SUM($X$13:$X$2061*X40:X2088) -> 0.4578170208 | Z40: 0.01318359375 | AA40: 15.24975641
A41: 28 | B41: 0.7609487704 | C41: 0.4525597782 | D41: 0.013671875 | E41: 15.33747139 | F41: 0.1682385652 | G41: 0.6855825589 | H41: 0.167673659 | J41: -996 | K41: 0.003641344648 | L41: =SUM($K$13:$K$2061*K41:K2089) -> 0.4521630468 | N41: 0.000197578148 | O41: 9.301441482e-05 | P41: =IF(ISNUMBER(O41),C41,SUM(OFFSET($O$13,0,0,$B$10)*OFFSET(P40,-$B$10+1,0,$B$10))) -> 0.4525597782 | R41: 0.013671875 | S41: 14.53398691 | T41: -996 | U41: -6.858283539e-05 | W41: 0 | X41: 0 | Y41: =SUM($X$13:$X$2061*X41:X2089) -> 0.4493970329 | Z41: 0.013671875 | AA41: 14.48692693
A42: 29 | B42: 0.7543401463 | C42: 0.4448557689 | D42: 0.01416015625 | E42: 14.72090614 | F42: 0.1699889995 | G42: 0.6850002927 | H42: 0.1694107993 | J42: -995 | K42: 0.003635755872 | L42: =SUM($K$13:$K$2061*K42:K2090) -> 0.4444443585 | N42: 0.0001917762019 | O42: 9.377963382e-05 | P42: =IF(ISNUMBER(O42),C42,SUM(OFFSET($O$13,0,0,$B$10)*OFFSET(P41,-$B$10+1,0,$B$10))) -> 0.4448557689 | R42: 0.01416015625 | S42: 13.89188991 | T42: -995 | U42: -7.480361249e-05 | W42: 0 | X42: 0 | Y42: =SUM($X$13:$X$2061*X42:X2090) -> 0.441319762 | Z42: 0.01416015625 | AA42: 13.85211757
A43: 30 | B43: 0.7478955574 | C43: 0.4375518852 | D43: 0.0146484375 | E43: 14.06216448 | F43: 0.1716843168 | G43: 0.6844179812 | H43: 0.1710928355 | J43: -994 | K43: 0.003635751588 | L43: =SUM($K$13:$K$2061*K43:K2091) -> 0.4371251455 | N43: 0.0001863006343 | O43: 9.458966037e-05 | P43: =IF(ISNUMBER(O43),C43,SUM(OFFSET($O$13,0,0,$B$10)*OFFSET(P42,-$B$10+1,0,$B$10))) -> 0.4375518852 | R43: 0.0146484375 | S43: 13.36458952 | T43: -994 | U43: -7.706955051e-05 | W43: 0 | X43: 0 | Y43: =SUM($X$13:$X$2061*X43:X2091) -> 0.4336833529 | Z43: 0.0146484375 | AA43: 13.26424194
A44: 31 | B44: 0.7416098273 | C44: 0.4306182243 | D44: 0.01513671875 | E44: 13.51086447 | F44: 0.17332708 | G44: 0.6838356245 | H44: 0.1727223302 | J44: -993 | K44: 0.003630266995 | L44: =SUM($K$13:$K$2061*K44:K2092) -> 0.4301767643 | N44: 0.0001811288656 | O44: 9.544475181e-05 | P44: =IF(ISNUMBER(O44),C44,SUM(OFFSET($O$13,0,0,$B$10)*OFFSET(P43,-$B$10+1,0,$B$10))) -> 0.4306182243 | R44: 0.01513671875 | S44: 12.93289042 | T44: -993 | U44: -8.341332108e-05 | W44: 0 | X44: 0 | Y44: =SUM($X$13:$X$2061*X44:X2092) -> 0.4263382959 | Z44: 0.01513671875 | AA44: 12.77423666
A45: 32 | B45: 0.7354778543 | C45: 0.4240275288 | D45: 0.015625 | E45: 12.92209454 | F45: 0.1749196955 | G45: 0.6832532226 | H45: 0.1743016893 | J45: -992 | K45: 0.003630226916 | L45: =SUM($K$13:$K$2061*K45:K2093) -> 0.4235706985 | N45: 0.0001762389892 | O45: 9.634623074e-05 | P45: =IF(ISNUMBER(O45),C45,SUM(OFFSET($O$13,0,0,$B$10)*OFFSET(P44,-$B$10+1,0,$B$10))) -> 0.4240275288 | R45: 0.015625 | S45: 12.56965182 | T45: -992 | U45: -8.555672539e-05 | W45: 0 | X45: 0 | Y45: =SUM($X$13:$X$2061*X45:X2093) -> 0.4193824145 | Z45: 0.015625 | AA45: 12.3077414
A46: 33 | B46: 0.7294946342 | C46: 0.4177549386 | D46: 0.01611328125 | E46: 12.42722664 | F46: 0.1764644251 | G46: 0.6826707754 | H46: 0.1758331738 | J46: -991 | K46: 0.003624828766 | L46: =SUM($K$13:$K$2061*K46:K2094) -> 0.4172833473 | N46: 0.0001716115938 | O46: 9.729386259e-05 | P46: =IF(ISNUMBER(O46),C46,SUM(OFFSET($O$13,0,0,$B$10)*OFFSET(P45,-$B$10+1,0,$B$10))) -> 0.4177549386 | R46: 0.01611328125 | S46: 12.25280874 | T46: -991 | U46: -9.202452757e-05 | W46: 0 | X46: 0 | Y46: =SUM($X$13:$X$2061*X46:X2094) -> 0.4126749049 | Z46: 0.01611328125 | AA46: 11.90699
A47: 34 | B47: 0.7236552772 | C47: 0.4117777647 | D47: 0.0166015625 | E47: 11.89880395 | F47: 0.1779633965 | G47: 0.6820882829 | H47: 0.1773189109 | J47: -990 | K47: 0.003624763851 | L47: =SUM($K$13:$K$2061*K47:K2095) -> 0.4112907627 | N47: 0.0001672286629 | O47: 9.829044897e-05 | P47: =IF(ISNUMBER(O47),C47,SUM(OFFSET($O$13,0,0,$B$10)*OFFSET(P46,-$B$10+1,0,$B$10))) -> 0.4117777647 | R47: 0.0166015625 | S47: 11.95531119 | T47: -990 | U47: -9.404472868e-05 | W47: 0 | X47: 0 | Y47: =SUM($X$13:$X$2061*X47:X2095) -> 0.4063128262 | Z47: 0.0166015625 | AA47: 11.50537916
A48: 35 | B48: 0.7179550202 | C48: 0.4060752829 | D48: 0.01708984375 | E48: 11.45309653 | F48: 0.1794186131 | G48: 0.6815057452 | H48: 0.1787609033 | J48: -989 | K48: 0.003619436088 | L48: =SUM($K$13:$K$2061*K48:K2096) -> 0.4055734796 | N48: 0.0001630734608 | O48: 9.933489735e-05 | P48: =IF(ISNUMBER(O48),C48,SUM(OFFSET($O$13,0,0,$B$10)*OFFSET(P47,-$B$10+1,0,$B$10))) -> 0.4060752829 | R48: 0.01708984375 | S48: 11.65737155 | T48: -989 | U48: -0.0001006374448 | W48: 0 | X48: 0 | Y48: =SUM($X$13:$X$2061*X48:X2096) -> 0.4001630256 | Z48: 0.01708984375 | AA48: 11.1409251
A49: 36 | B49: 0.7123892358 | C49: 0.400628547 | D49: 0.017578125 | E49: 10.97712201 | F49: 0.1808319633 | G49: 0.6809231623 | H49: 0.1801610386 | J49: -988 | K49: 0.003619355934 | L49: =SUM($K$13:$K$2061*K49:K2097) -> 0.4001112929 | N49: 0.0001591308677 | O49: 0.0001004304917 | P49: =IF(ISNUMBER(O49),C49,SUM(OFFSET($O$13,0,0,$B$10)*OFFSET(P48,-$B$10+1,0,$B$10))) -> 0.400628547 | R49: 0.017578125 | S49: 11.33851602 | T49: -988 | U49: -0.0001025338931 | W49: 0 | X49: 0 | Y49: =SUM($X$13:$X$2061*X49:X2097) -> 0.3943214678 | Z49: 0.017578125 | AA49: 10.75679205
A50: 37 | B50: 0.7069534379 | C50: 0.3954202191 | D50: 0.01806640625 | E50: 10.57451093 | F50: 0.1822052282 | G50: 0.680340534 | H50: 0.1815210969 | J50: -987 | K50: 0.00361408508 | L50: =SUM($K$13:$K$2061*K50:K2098) -> 0.3948881239 | N50: 0.000155386908 | O50: 0.0001015776835 | P50: =IF(ISNUMBER(O50),C50,SUM(OFFSET($O$13,0,0,$B$10)*OFFSET(P49,-$B$10+1,0,$B$10))) -> 0.3954202191 | R50: 0.01806640625 | S50: 10.98898637 | T50: -987 | U50: -0.0001092522837 | W50: 0 | X50: 0 | Y50: =SUM($X$13:$X$2061*X50:X2098) -> 0.3886617609 | Z50: 0.01806640625 | AA50: 10.3911682
A51: 38 | B51: 0.7016432853 | C51: 0.3904344174 | D51: 0.0185546875 | E51: 10.14441826 | F51: 0.1835400891 | G51: 0.6797578605 | H51: 0.1828427589 | J51: -986 | K51: 0.003613997402 | L51: =SUM($K$13:$K$2061*K51:K2099) -> 0.3898868319 | N51: 0.0001518285301 | O51: 0.0001027778877 | P51: =IF(ISNUMBER(O51),C51,SUM(OFFSET($O$13,0,0,$B$10)*OFFSET(P50,-$B$10+1,0,$B$10))) -> 0.3904344174 | R51: 0.0185546875 | S51: 10.60219179 | T51: -986 | U51: -0.0001110245229 | W51: 0 | X51: 0 | Y51: =SUM($X$13:$X$2061*X51:X2099) -> 0.3832785359 | Z51: 0.0185546875 | AA51: 9.999009528
A52: 39 | B52: 0.6964545826 | C52: 0.3856565782 | D52: 0.01904296875 | E52: 9.779790477 | F52: 0.184838135 | G52: 0.6791751417 | H52: 0.1841276125 | J52: -985 | K52: 0.003608772694 | L52: =SUM($K$13:$K$2061*K52:K2100) -> 0.3850941122 | N52: 0.0001484444887 | O52: 0.0001040334459 | P52: =IF(ISNUMBER(O52),C52,SUM(OFFSET($O$13,0,0,$B$10)*OFFSET(P51,-$B$10+1,0,$B$10))) -> 0.3856565782 | R52: 0.01904296875 | S52: 10.18322963 | T52: -985 | U52: -0.0001178692522 | W52: 0 | X52: 0 | Y52: =SUM($X$13:$X$2061*X52:X2100) -> 0.3780514093 | Z52: 0.01904296875 | AA52: 9.620970619
A53: 40 | B53: 0.6913832809 | C53: 0.381073332 | D53: 0.01953125 | E53: 9.390061041 | F53: 0.1861008681 | G53: 0.6785923777 | H53: 0.1853771589 | J53: -984 | K53: 0.003608683601 | L53: =SUM($K$13:$K$2061*K53:K2101) -> 0.3804953365 | N53: 0.0001452229035 | O53: 0.0001053460143 | P53: =IF(ISNUMBER(O53),C53,SUM(OFFSET($O$13,0,0,$B$10)*OFFSET(P52,-$B$10+1,0,$B$10))) -> 0.381073332 | R53: 0.01953125 | S53: 9.739621763 | T53: -984 | U53: -0.0001195168993 | W53: 0 | X53: 0 | Y53: =SUM($X$13:$X$2061*X53:X2101) -> 0.3730735103 | Z53: 0.01953125 | AA53: 9.22285888
A54: 41 | B54: 0.6864254762 | C54: 0.3766723914 | D54: 0.02001953125 | E54: 9.059064818 | F54: 0.1873297101 | G54: 0.6780095683 | H54: 0.186592819 | J54: -983 | K54: 0.003603495386 | L54: =SUM($K$13:$K$2061*K54:K2102) -> 0.3760794764 | N54: 0.0001421553664 | O54: 0.0001067172729 | P54: =IF(ISNUMBER(O54),C54,SUM(OFFSET($O$13,0,0,$B$10)*OFFSET(P53,-$B$10+1,0,$B$10))) -> 0.3766723914 | R54: 0.02001953125 | S54: 9.286509039 | T54: -983 | U54: -0.0001264885546 | W54: 0 | X54: 0 | Y54: =SUM($X$13:$X$2061*X54:X2102) -> 0.368229827 | Z54: 0.02001953125 | AA54: 8.845981956
A55: 42 | B55: 0.6815774072 | C55: 0.3724424513 | D55: 0.0205078125 | E55: 8.705016568 | F55: 0.1885260073 | G55: 0.6774267136 | H55: 0.1877759379 | J55: -982 | K55: 0.003603410782 | L55: =SUM($K$13:$K$2061*K55:K2103) -> 0.371833968 | N55: 0.0001392304758 | O55: 0.0001081502224 | P55: =IF(ISNUMBER(O55),C55,SUM(OFFSET($O$13,0,0,$B$10)*OFFSET(P54,-$B$10+1,0,$B$10))) -> 0.3724424513 | R55: 0.0205078125 | S55: 8.836737719 | T55: -982 | U55: -0.0001280112849 | W55: 0 | X55: 0 | Y55: =SUM($X$13:$X$2061*X55:X2103) -> 0.363611874 | Z55: 0.0205078125 | AA55: 8.462606032
A56: 43 | B56: 0.6768354527 | C56: 0.3683730975 | D56: 0.02099609375 | E56: 8.403918191 | F56: 0.1896910357 | G56: 0.6768438137 | H56: 0.1889277908 | J56: -981 | K56: 0.003598250804 | L56: =SUM($K$13:$K$2061*K56:K2104) -> 0.3677496561 | N56: 0.0001364424857 | O56: 0.0001096465069 | P56: =IF(ISNUMBER(O56),C56,SUM(OFFSET($O$13,0,0,$B$10)*OFFSET(P55,-$B$10+1,0,$B$10))) -> 0.3683730975 | R56: 0.02099609375 | S56: 8.405319797 | T56: -981 | U56: -0.0001351103911 | W56: 0 | X56: 0 | Y56: =SUM($X$13:$X$2061*X56:X2104) -> 0.3591094693 | Z56: 0.02099609375 | AA56: 8.110741632
A57: 44 | B57: 0.6721961281 | C57: 0.3644547263 | D57: 0.021484375 | E57: 8.081546227 | F57: 0.1908260055 | G57: 0.6762608684 | H57: 0.1900495866 | J57: -980 | K57: 0.003598174648 | L57: =SUM($K$13:$K$2061*K57:K2105) -> 0.3638156782 | N57: 0.0001337807379 | O57: 0.0001112092558 | P57: =IF(ISNUMBER(O57),C57,SUM(OFFSET($O$13,0,0,$B$10)*OFFSET(P56,-$B$10+1,0,$B$10))) -> 0.3644547263 | R57: 0.021484375 | S57: 8.001344635 | T57: -980 | U57: -0.0001365079271 | W57: 0 | X57: 0 | Y57: =SUM($X$13:$X$2061*X57:X2105) -> 0.354812442 | Z57: 0.021484375 | AA57: 7.764596255
A58: 45 | B58: 0.6676560817 | C58: 0.3606784703 | D58: 0.02197265625 | E58: 7.807119929 | F58: 0.1919320651 | G58: 0.6756778778 | H58: 0.1911424728 | J58: -979 | K58: 0.003593036722 | L58: =SUM($K$13:$K$2061*K58:K2106) -> 0.3600244258 | N58: 0.0001312402934 | O58: 0.0001128413972 | P58: =IF(ISNUMBER(O58),C58,SUM(OFFSET($O$13,0,0,$B$10)*OFFSET(P57,-$B$10+1,0,$B$10))) -> 0.3606784703 | R58: 0.02197265625 | S58: 7.633481598 | T58: -979 | U58: -0.0001437349587 | W58: 0 | X58: 0 | Y58: =SUM($X$13:$X$2061*X58:X2106) -> 0.3506149773 | Z58: 0.02197265625 | AA58: 7.456432904
A59: 46 | B59: 0.6632120906 | C59: 0.357036133 | D59: 0.0224609375 | E59: 7.512974143 | F59: 0.1930103053 | G59: 0.6750948419 | H59: 0.1922075391 | J59: -978 | K59: 0.003592973059 | L59: =SUM($K$13:$K$2061*K59:K2107) -> 0.3563664438 | N59: 0.0001288133068 | O59: 0.0001145451782 | P59: =IF(ISNUMBER(O59),C59,SUM(OFFSET($O$13,0,0,$B$10)*OFFSET(P58,-$B$10+1,0,$B$10))) -> 0.357036133 | R59: 0.0224609375 | S59: 7.304034277 | T59: -978 | U59: -0.0001450070611 | W59: 0 | X59: 0 | Y59: =SUM($X$13:$X$2061*X59:X2107) -> 0.3466051806 | Z59: 0.0224609375 | AA59: 7.160290129
A60: 47 | B60: 0.6588610567 | C60: 0.3535201291 | D60: 0.02294921875 | E60: 7.262416171 | F60: 0.1940617626 | G60: 0.6745117607 | H60: 0.1932458209 | J60: -977 | K60: 0.003587850439 | L60: =SUM($K$13:$K$2061*K60:K2108) -> 0.3528354056 | N60: 0.0001264937002 | O60: 0.0001163255147 | P60: =IF(ISNUMBER(O60),C60,SUM(OFFSET($O$13,0,0,$B$10)*OFFSET(P59,-$B$10+1,0,$B$10))) -> 0.3535201291 | R60: 0.02294921875 | S60: 7.014995015 | T60: -977 | U60: -0.0001523624506 | W60: 0 | X60: 0 | Y60: =SUM($X$13:$X$2061*X60:X2108) -> 0.3426812067 | Z60: 0.02294921875 | AA60: 6.902664929
A61: 48 | B61: 0.6546000022 | C61: 0.3501234308 | D61: 0.0234375 | E61: 6.99350586 | F61: 0.1950874227 | G61: 0.6739286342 | H61: 0.1942583027 | J61: -976 | K61: 0.003587803167 | L61: =SUM($K$13:$K$2061*K61:K2109) -> 0.349423025 | N61: 0.0001242763162 | O61: 0.0001181838513 | P61: =IF(ISNUMBER(O61),C61,SUM(OFFSET($O$13,0,0,$B$10)*OFFSET(P60,-$B$10+1,0,$B$10))) -> 0.3501234308 | R61: 0.0234375 | S61: 6.763177236 | T61: -976 | U61: -0.0001535089114 | W61: 0 | X61: 0 | Y61: =SUM($X$13:$X$2061*X61:X2109) -> 0.338929423 | Z61: 0.0234375 | AA61: 6.657301367
A62: 49 | B62: 0.6504260653 | C62: 0.3468395198 | D62: 0.02392578125 | E62: 6.764366434 | F62: 0.1960882234 | G62: 0.6733454623 | H62: 0.1952459214 | J62: -975 | K62: 0.003582690247 | L62: =SUM($K$13:$K$2061*K62:K2110) -> 0.3461240421 | N62: 0.000122155226 | O62: 0.0001201262944 | P62: =IF(ISNUMBER(O62),C62,SUM(OFFSET($O$13,0,0,$B$10)*OFFSET(P61,-$B$10+1,0,$B$10))) -> 0.3468395198 | R62: 0.02392578125 | S62: 6.54596311 | T62: -975 | U62: -0.0001609930574 | W62: 0 | X62: 0 | Y62: =SUM($X$13:$X$2061*X62:X2110) -> 0.3352516104 | Z62: 0.02392578125 | AA62: 6.446115683
A63: 50 | B63: 0.6463364958 | C63: 0.3436623428 | D63: 0.0244140625 | E63: 6.518084943 | F63: 0.1970650577 | G63: 0.6727622451 | H63: 0.1962095688 | J63: -974 | K63: 0.003582662881 | L63: =SUM($K$13:$K$2061*K63:K2111) -> 0.3429311453 | N63: 0.0001201262944 | O63: 0.000122155226 | P63: =IF(ISNUMBER(O63),C63,SUM(OFFSET($O$13,0,0,$B$10)*OFFSET(P62,-$B$10+1,0,$B$10))) -> 0.3436623428 | R63: 0.0244140625 | S63: 6.356830548 | T63: -974 | U63: -0.0001620136943 | W63: 0 | X63: 0 | Y63: =SUM($X$13:$X$2061*X63:X2111) -> 0.3317324024 | Z63: 0.0244140625 | AA63: 6.243125988
A64: 51 | B64: 0.6423286509 | C64: 0.3405862727 | D64: 0.02490234375 | E64: 6.308213668 | F64: 0.1980187763 | G64: 0.6721789825 | H64: 0.1971500945 | J64: -973 | K64: 0.003577554459 | L64: =SUM($K$13:$K$2061*K64:K2112) -> 0.3398399662 | N64: 0.0001181838513 | O64: 0.0001242763162 | P64: =IF(ISNUMBER(O64),C64,SUM(OFFSET($O$13,0,0,$B$10)*OFFSET(P63,-$B$10+1,0,$B$10))) -> 0.3405862727 | R64: 0.02490234375 | S64: 6.190574841 | T64: -973 | U64: -0.0001696269665 | W64: 0 | X64: 0 | Y64: =SUM($X$13:$X$2061*X64:X2112) -> 0.3282769077 | Z64: 0.02490234375 | AA64: 6.067010162
A65: 52 | B65: 0.6383999907 | C65: 0.3376060729 | D65: 0.025390625 | E65: 6.082278089 | F65: 0.1989501902 | G65: 0.6715956746 | H65: 0.1980683084 | J65: -972 | K65: 0.003577549692 | L65: =SUM($K$13:$K$2061*K65:K2113) -> 0.3368440096 | N65: 0.0001163255147 | O65: 0.0001264937002 | P65: =IF(ISNUMBER(O65),C65,SUM(OFFSET($O$13,0,0,$B$10)*OFFSET(P64,-$B$10+1,0,$B$10))) -> 0.3376060729 | R65: 0.025390625 | S65: 6.039167879 | T65: -972 | U65: -0.0001705216188 | W65: 0 | X65: 0 | Y65: =SUM($X$13:$X$2061*X65:X2113) -> 0.3249680429 | Z65: 0.025390625 | AA65: 5.892744433
A66: 53 | B66: 0.6345480744 | C66: 0.3347168644 | D66: 0.02587890625 | E66: 5.889779664 | F66: 0.1998600727 | G66: 0.6710123214 | H66: 0.1989649828 | J66: -971 | K66: 0.00357244214 | L66: =SUM($K$13:$K$2061*K66:K2114) -> 0.333939655 | N66: 0.0001145451782 | O66: 0.0001288133068 | P66: =IF(ISNUMBER(O66),C66,SUM(OFFSET($O$13,0,0,$B$10)*OFFSET(P65,-$B$10+1,0,$B$10))) -> 0.3347168644 | R66: 0.02587890625 | S66: 5.896640632 | T66: -971 | U66: -0.0001782643633 | W66: 0 | X66: 0 | Y66: =SUM($X$13:$X$2061*X66:X2114) -> 0.3217139843 | Z66: 0.02587890625 | AA66: 5.737046968
A67: 54 | B67: 0.6307705558 | C67: 0.3319140969 | D67: 0.0263671875 | E67: 5.682182034 | F67: 0.200749162 | G67: 0.6704289228 | H67: 0.1998408546 | J67: -970 | K67: 0.003572462103 | L67: =SUM($K$13:$K$2061*K67:K2115) -> 0.331121094 | N67: 0.0001128413972 | O67: 0.0001312402934 | P67: =IF(ISNUMBER(O67),C67,SUM(OFFSET($O$13,0,0,$B$10)*OFFSET(P66,-$B$10+1,0,$B$10))) -> 0.3319140969 | R67: 0.0263671875 | S67: 5.755391893 | T67: -970 | U67: -0.0001790328879 | W67: 0 | X67: 0 | Y67: =SUM($X$13:$X$2061*X67:X2115) -> 0.3185959588 | Z67: 0.0263671875 | AA67: 5.576675224
A68: 55 | B68: 0.6270651798 | C68: 0.329193522 | D68: 0.02685546875 | E68: 5.505379933 | F68: 0.2016181627 | G68: 0.6698454788 | H68: 0.2006966274 | J68: -969 | K68: 0.003567351164 | L68: =SUM($K$13:$K$2061*K68:K2116) -> 0.3283853365 | N68: 0.0001112092558 | O68: 0.0001337807379 | P68: =IF(ISNUMBER(O68),C68,SUM(OFFSET($O$13,0,0,$B$10)*OFFSET(P67,-$B$10+1,0,$B$10))) -> 0.329193522 | R68: 0.02685546875 | S68: 5.610845301 | T68: -969 | U68: -0.0001869054309 | W68: 0 | X68: 0 | Y68: =SUM($X$13:$X$2061*X68:X2116) -> 0.3155249811 | Z68: 0.02685546875 | AA68: 5.427680782
A69: 56 | B69: 0.6234297781 | C69: 0.3265511694 | D69: 0.02734375 | E69: 5.314347355 | F69: 0.2024677481 | G69: 0.6692619894 | H69: 0.2015329734 | J69: -968 | K69: 0.003567398841 | L69: =SUM($K$13:$K$2061*K69:K2117) -> 0.3257271539 | N69: 0.0001096465069 | O69: 0.0001364424857 | P69: =IF(ISNUMBER(O69),C69,SUM(OFFSET($O$13,0,0,$B$10)*OFFSET(P68,-$B$10+1,0,$B$10))) -> 0.3265511694 | R69: 0.02734375 | S69: 5.458069217 | T69: -968 | U69: -0.0001875476996 | W69: 0 | X69: 0 | Y69: =SUM($X$13:$X$2061*X69:X2117) -> 0.3125806223 | Z69: 0.02734375 | AA69: 5.269522324
A70: 57 | B70: 0.6198622657 | C70: 0.3239833246 | D70: 0.02783203125 | E70: 5.15175376 | F70: 0.2032985616 | G70: 0.6686784547 | H70: 0.202350535 | J70: -967 | K70: 0.003562280901 | L70: =SUM($K$13:$K$2061*K70:K2118) -> 0.3231440901 | N70: 0.0001081502224 | O70: 0.0001392304758 | P70: =IF(ISNUMBER(O70),C70,SUM(OFFSET($O$13,0,0,$B$10)*OFFSET(P69,-$B$10+1,0,$B$10))) -> 0.3239833246 | R70: 0.02783203125 | S70: 5.295949817 | T70: -967 | U70: -0.0001955503507 | W70: 0 | X70: 0 | Y70: =SUM($X$13:$X$2061*X70:X2118) -> 0.3096765335 | Z70: 0.02783203125 | AA70: 5.118656757
A71: 58 | B71: 0.6163606378 | C71: 0.3214865089 | D71: 0.0283203125 | E71: 4.975715489 | F71: 0.2041112187 | G71: 0.6680948746 | H71: 0.2031499264 | J71: -966 | K71: 0.003562357872 | L71: =SUM($K$13:$K$2061*K71:K2119) -> 0.3206314083 | N71: 0.0001067172729 | O71: 0.0001421553664 | P71: =IF(ISNUMBER(O71),C71,SUM(OFFSET($O$13,0,0,$B$10)*OFFSET(P70,-$B$10+1,0,$B$10))) -> 0.3214865089 | R71: 0.0283203125 | S71: 5.123671122 | T71: -966 | U71: -0.0001960662478 | W71: 0 | X71: 0 | Y71: =SUM($X$13:$X$2061*X71:X2119) -> 0.3068906691 | Z71: 0.0283203125 | AA71: 4.957766243
A72: 59 | B72: 0.6129229654 | C72: 0.3190574618 | D72: 0.02880859375 | E72: 4.826006203 | F72: 0.2049063081 | G72: 0.6675112491 | H72: 0.2039317353 | J72: -965 | K72: 0.003557230247 | L72: =SUM($K$13:$K$2061*K72:K2120) -> 0.318187106 | N72: 0.0001053460143 | O72: 0.0001452229035 | P72: =IF(ISNUMBER(O72),C72,SUM(OFFSET($O$13,0,0,$B$10)*OFFSET(P71,-$B$10+1,0,$B$10))) -> 0.3190574618 | R72: 0.02880859375 | S72: 4.944045564 | T72: -965 | U72: -0.0002041993024 | W72: 0 | X72: 0 | Y72: =SUM($X$13:$X$2061*X72:X2120) -> 0.3041391375 | Z72: 0.02880859375 | AA72: 4.803992272
A73: 60 | B73: 0.6095473929 | C73: 0.3166931234 | D73: 0.029296875 | E73: 4.663566268 | F73: 0.2056843933 | G73: 0.6669275782 | H73: 0.2046965242 | J73: -964 | K73: 0.0035573382 | L73: =SUM($K$13:$K$2061*K73:K2121) -> 0.3158068657 | N73: 0.0001040334459 | O73: 0.0001484444887 | P73: =IF(ISNUMBER(O73),C73,SUM(OFFSET($O$13,0,0,$B$10)*OFFSET(P72,-$B$10+1,0,$B$10))) -> 0.3166931234 | R73: 0.029296875 | S73: 4.759642534 | T73: -964 | U73: -0.0002045887227 | W73: 0 | X73: 0 | Y73: =SUM($X$13:$X$2061*X73:X2121) -> 0.3014983177 | Z73: 0.029296875 | AA73: 4.642830341
A74: 61 | B74: 0.6062321346 | C74: 0.3143906205 | D74: 0.02978515625 | E74: 4.525559603 | F74: 0.2064460141 | G74: 0.6663438619 | H74: 0.2054448317 | J74: -963 | K74: 0.00355219854 | L74: =SUM($K$13:$K$2061*K74:K2122) -> 0.3134890719 | N74: 0.0001027778877 | O74: 0.0001518285301 | P74: =IF(ISNUMBER(O74),C74,SUM(OFFSET($O$13,0,0,$B$10)*OFFSET(P73,-$B$10+1,0,$B$10))) -> 0.3143906205 | R74: 0.02978515625 | S74: 4.575431407 | T74: -963 | U74: -0.0002128524646 | W74: 0 | X74: 0 | Y74: =SUM($X$13:$X$2061*X74:X2122) -> 0.2988866157 | Z74: 0.02978515625 | AA74: 4.491409885
A75: 62 | B75: 0.6029754715 | C75: 0.3121472519 | D75: 0.0302734375 | E75: 4.375473857 | F75: 0.2071916875 | G75: 0.6657601002 | H75: 0.206177174 | J75: -962 | K75: 0.003552338582 | L75: =SUM($K$13:$K$2061*K75:K2123) -> 0.3112297655 | N75: 0.0001015776835 | O75: 0.000155386908 | P75: =IF(ISNUMBER(O75),C75,SUM(OFFSET($O$13,0,0,$B$10)*OFFSET(P74,-$B$10+1,0,$B$10))) -> 0.3121472519 | R75: 0.0302734375 | S75: 4.394944131 | T75: -962 | U75: -0.0002131153116 | W75: 0 | X75: 0 | Y75: =SUM($X$13:$X$2061*X75:X2123) -> 0.2963788793 | Z75: 0.0302734375 | AA75: 4.33688893
A76: 63 | B76: 0.5997757486 | C76: 0.3099604758 | D76: 0.03076171875 | E76: 4.248112769 | F76: 0.2079219093 | G76: 0.6651762932 | H76: 0.2068940455 | J76: -961 | K76: 0.003547184246 | L76: =SUM($K$13:$K$2061*K76:K2124) -> 0.3090276631 | N76: 0.0001004304917 | O76: 0.0001591308677 | P76: =IF(ISNUMBER(O76),C76,SUM(OFFSET($O$13,0,0,$B$10)*OFFSET(P75,-$B$10+1,0,$B$10))) -> 0.3099604758 | R76: 0.03076171875 | S76: 4.222791665 | T76: -961 | U76: -0.0002215100144 | W76: 0 | X76: 0 | Y76: =SUM($X$13:$X$2061*X76:X2124) -> 0.2938956691 | Z76: 0.03076171875 | AA76: 4.19532813
A77: 64 | B77: 0.5966313724 | C77: 0.307827899 | D77: 0.03125 | E77: 4.109269516 | F77: 0.2086371548 | G77: 0.6645924407 | H77: 0.2075959207 | J77: -960 | K77: 0.003547358667 | L77: =SUM($K$13:$K$2061*K77:K2125) -> 0.3068791132 | N77: 9.933489735e-05 | O77: 0.0001630734608 | P77: =IF(ISNUMBER(O77),C77,SUM(OFFSET($O$13,0,0,$B$10)*OFFSET(P76,-$B$10+1,0,$B$10))) -> 0.307827899 | R77: 0.03125 | S77: 4.061313948 | T77: -960 | U77: -0.000221646199 | W77: =IF(J77<0,0,U77) -> 0 | X77: 0 | Y77: =SUM($X$13:$X$2061*X77:X2125) -> 0.291510346 | Z77: 0.03125 | AA77: 4.054434277
A78: 65 | B78: 0.5935408076 | C78: 0.3057472655 | D78: 0.03173828125 | E78: 3.991606371 | F78: =F$10*$D78/(F$11+$D78)+F$9 -> 0.20933788 | G78: =G$10*(0.5-$D78)/(G$11+0.5-$D78)+G$9 -> 0.6640085427 | H78: =IFERROR(LN(EXP(-10*F78)+EXP(-10*G78))/-10,0) -> 0.2082832544 | J78: -959 | K78: 0.003542186621 | L78: =SUM($K$13:$K$2061*K78:K2126) -> 0.3047831179 | N78: 9.829044897e-05 | O78: 0.0001672286629 | P78: =IF(ISNUMBER(O78),C78,SUM(OFFSET($O$13,0,0,$B$10)*OFFSET(P77,-$B$10+1,0,$B$10))) -> 0.3057472655 | R78: 0.03173828125 | S78: 3.913269168 | T78: -959 | U78: -0.0002301721284 | W78: 0 | X78: =W78*$K$10 -> 0 | Y78: =SUM($X$13:$X$2061*X78:X2126) -> 0.2891454965 | Z78: 0.03173828125 | AA78: 3.928527868
A79: 66 | B79: 0.5905025751 | C79: 0.303716447 | D79: 0.0322265625 | E79: 3.863009924 | F79: 0.2100245227 | G79: 0.6634245994 | H79: 0.2089564835 | J79: -958 | K79: 0.00354239715 | L79: =SUM($K$13:$K$2061*K79:K2127) -> 0.3027362912 | N79: 9.729386259e-05 | O79: 0.0001716115938 | P79: =IF(ISNUMBER(O79),C79,SUM(OFFSET($O$13,0,0,$B$10)*OFFSET(P78,-$B$10+1,0,$B$10))) -> 0.303716447 | R79: 0.0322265625 | S79: 3.779008542 | T79: -958 | U79: -0.0002301815676 | W79: 0 | X79: 0 | Y79: =SUM($X$13:$X$2061*X79:X2127) -> 0.2868730401 | Z79: 0.0322265625 | AA79: 3.805289373
A80: 67 | B80: 0.5875152496 | C80: 0.3017334342 | D80: 0.03271484375 | E80: 3.754193453 | F80: 0.2106975033 | G80: 0.6628406106 | H80: 0.2096160272 | J80: -957 | K80: 0.003537205545 | L80: =SUM($K$13:$K$2061*K80:K2128) -> 0.3007378816 | N80: 9.634623074e-05 | O80: 0.0001762389892 | P80: =IF(ISNUMBER(O80),C80,SUM(OFFSET($O$13,0,0,$B$10)*OFFSET(P79,-$B$10+1,0,$B$10))) -> 0.3017334342 | R80: 0.03271484375 | S80: 3.65924726 | T80: -957 | U80: -0.0002388389821 | W80: 0 | X80: 0 | Y80: =SUM($X$13:$X$2061*X80:X2128) -> 0.2846174729 | Z80: 0.03271484375 | AA80: 3.69720483
A81: 68 | B81: 0.5845774569 | C81: 0.2997963286 | D81: 0.033203125 | E81: 3.634950079 | F81: 0.2113572253 | G81: 0.6622565764 | H81: 0.2102622881 | J81: -956 | K81: 0.003537452883 | L81: =SUM($K$13:$K$2061*K81:K2129) -> 0.2987847328 | N81: 9.544475181e-05 | O81: 0.0001811288656 | P81: =IF(ISNUMBER(O81),C81,SUM(OFFSET($O$13,0,0,$B$10)*OFFSET(P80,-$B$10+1,0,$B$10))) -> 0.2997963286 | R81: 0.033203125 | S81: 3.552565578 | T81: -956 | U81: -0.0002387215982 | W81: 0 | X81: 0 | Y81: =SUM($X$13:$X$2061*X81:X2129) -> 0.2824493173 | Z81: 0.033203125 | AA81: 3.591839148
A82: 69 | B82: 0.5816878719 | C82: 0.2979033347 | D82: 0.03369140625 | E82: 3.534214145 | F82: 0.2120040769 | G82: 0.6616724968 | H82: 0.2108956533 | J82: -955 | K82: 0.003532240121 | L82: =SUM($K$13:$K$2061*K82:K2130) -> 0.2968763072 | N82: 9.458966037e-05 | O82: 0.0001863006343 | P82: =IF(ISNUMBER(O82),C82,SUM(OFFSET($O$13,0,0,$B$10)*OFFSET(P81,-$B$10+1,0,$B$10))) -> 0.2979033347 | R82: 0.03369140625 | S82: 3.458101178 | T82: -955 | U82: -0.0002475107504 | W82: 0 | X82: 0 | Y82: =SUM($X$13:$X$2061*X82:X2130) -> 0.2802948742 | Z82: 0.03369140625 | AA82: 3.500106955
A83: 70 | B83: 0.5788452169 | C83: 0.2960527531 | D83: 0.0341796875 | E83: 3.423520009 | F83: 0.2126384309 | G83: 0.6610883717 | H83: 0.2115164948 | J83: -954 | K83: 0.003532525653 | L83: =SUM($K$13:$K$2061*K83:K2131) -> 0.2950096478 | N83: 9.377963382e-05 | O83: 0.0001917762019 | P83: =IF(ISNUMBER(O83),C83,SUM(OFFSET($O$13,0,0,$B$10)*OFFSET(P82,-$B$10+1,0,$B$10))) -> 0.2960527531 | R83: 0.0341796875 | S83: 3.373237648 | T83: -954 | U83: -0.0002472664699 | W83: 0 | X83: 0 | Y83: =SUM($X$13:$X$2061*X83:X2131) -> 0.2782233128 | Z83: 0.0341796875 | AA83: 3.409616098
A84: 71 | B84: 0.5760482588 | C84: 0.2942429745 | D84: 0.03466796875 | E84: 3.33017389 | F84: 0.2132606462 | G84: 0.6605042012 | H84: 0.2121251703 | J84: -953 | K84: 0.003527289352 | L84: =SUM($K$13:$K$2061*K84:K2132) -> 0.2931844029 | N84: 9.301441482e-05 | O84: 0.000197578148 | P84: =IF(ISNUMBER(O84),C84,SUM(OFFSET($O$13,0,0,$B$10)*OFFSET(P83,-$B$10+1,0,$B$10))) -> 0.2942429745 | R84: 0.03466796875 | S84: 3.296170571 | T84: -953 | U84: -0.000256187608 | W84: 0 | X84: 0 | Y84: =SUM($X$13:$X$2061*X84:X2132) -> 0.2761626428 | Z84: 0.03466796875 | AA84: 3.330112291
A85: 72 | B85: 0.5732958079 | C85: 0.2924724733 | D85: 0.03515625 | E85: 3.22730465 | F85: 0.2138710679 | G85: 0.6599199852 | H85: 0.2127220239 | J85: -952 | K85: 0.003527614785 | L85: =SUM($K$13:$K$2061*K85:K2133) -> 0.2913977894 | N85: 9.229285807e-05 | O85: 0.0002037318584 | P85: =IF(ISNUMBER(O85),C85,SUM(OFFSET($O$13,0,0,$B$10)*OFFSET(P84,-$B$10+1,0,$B$10))) -> 0.2924724733 | R85: 0.03515625 | S85: 3.223759482 | T85: -952 | U85: -0.0002558163608 | W85: 0 | X85: 0 | Y85: =SUM($X$13:$X$2061*X85:X2133) -> 0.2741807235 | Z85: 0.03515625 | AA85: 3.249522752
A86: 73 | B86: 0.5705867159 | C86: 0.2907398026 | D86: 0.03564453125 | E86: 3.140724608 | F86: 0.2144700281 | G86: 0.6593357237 | H86: 0.2133073868 | J86: -951 | K86: 0.003522353412 | L86: =SUM($K$13:$K$2061*K86:K2134) -> 0.2896496179 | N86: 9.161601183e-05 | O86: 0.000210263774 | P86: =IF(ISNUMBER(O86),C86,SUM(OFFSET($O$13,0,0,$B$10)*OFFSET(P85,-$B$10+1,0,$B$10))) -> 0.2907398026 | R86: 0.03564453125 | S86: 3.153993914 | T86: -951 | U86: -0.0002648697288 | W86: 0 | X86: 0 | Y86: =SUM($X$13:$X$2061*X86:X2134) -> 0.2722071861 | Z86: 0.03564453125 | AA86: 3.176888519
A87: 74 | B87: 0.5679198739 | C87: 0.2890435887 | D87: 0.0361328125 | E87: 3.045026406 | F87: 0.2150578465 | G87: 0.6587514168 | H87: 0.2138815778 | J87: -950 | K87: 0.003522718854 | L87: =SUM($K$13:$K$2061*K87:K2135) -> 0.2879372574 | N87: 9.098155252e-05 | O87: 0.0002172021824 | P87: =IF(ISNUMBER(O87),C87,SUM(OFFSET($O$13,0,0,$B$10)*OFFSET(P86,-$B$10+1,0,$B$10))) -> 0.2890435887 | R87: 0.0361328125 | S87: 3.084006195 | T87: -950 | U87: -0.0002643714478 | W87: 0 | X87: 0 | Y87: =SUM($X$13:$X$2061*X87:X2135) -> 0.2703086219 | Z87: 0.0361328125 | AA87: 3.100817981
A88: 75 | B88: 0.565294211 | C88: 0.287382527 | D88: 0.03662109375 | E88: 2.964648322 | F88: 0.2156348314 | G88: 0.6581670644 | H88: 0.2144449039 | J88: -949 | K88: 0.003517431906 | L88: =SUM($K$13:$K$2061*K88:K2136) -> 0.2862606607 | N88: 9.039127192e-05 | O88: 0.0002245754014 | P88: =IF(ISNUMBER(O88),C88,SUM(OFFSET($O$13,0,0,$B$10)*OFFSET(P87,-$B$10+1,0,$B$10))) -> 0.287382527 | R88: 0.03662109375 | S88: 3.012425299 | T88: -949 | U88: -0.0002735572868 | W88: 0 | X88: 0 | Y88: =SUM($X$13:$X$2061*X88:X2136) -> 0.2684162034 | Z88: 0.03662109375 | AA88: 3.030130809
A89: 76 | B89: 0.5627086928 | C89: 0.2857553772 | D89: 0.037109375 | E89: 2.875529957 | F89: 0.2162012793 | G89: 0.6575826666 | H89: 0.2149976611 | J89: -948 | K89: 0.003517837935 | L89: =SUM($K$13:$K$2061*K89:K2137) -> 0.2846173302 | N89: 8.984458247e-05 | O89: 0.0002324113405 | P89: =IF(ISNUMBER(O89),C89,SUM(OFFSET($O$13,0,0,$B$10)*OFFSET(P88,-$B$10+1,0,$B$10))) -> 0.2857553772 | R89: 0.037109375 | S89: 2.937470272 | T89: -948 | U89: -0.000272931907 | W89: 0 | X89: 0 | Y89: =SUM($X$13:$X$2061*X89:X2137) -> 0.2665952947 | Z89: 0.037109375 | AA89: 2.954481912
A90: 77 | B90: 0.5601623196 | C90: 0.2841609596 | D90: 0.03759765625 | E90: 2.800842903 | F90: 0.2167574764 | G90: 0.6569982232 | H90: 0.2155401343 | J90: -947 | K90: 0.00351252354 | L90: =SUM($K$13:$K$2061*K90:K2138) -> 0.2830073437 | N90: 8.934053415e-05 | O90: 0.0002407332648 | P90: =IF(ISNUMBER(O90),C90,SUM(OFFSET($O$13,0,0,$B$10)*OFFSET(P89,-$B$10+1,0,$B$10))) -> 0.2841609596 | R90: 0.03759765625 | S90: 2.859090042 | T90: -947 | U90: -0.0002822504557 | W90: 0 | X90: 0 | Y90: =SUM($X$13:$X$2061*X90:X2138) -> 0.264778536 | Z90: 0.03759765625 | AA90: 2.882835979
A91: 78 | B91: 0.5576541253 | C91: 0.2825981514 | D91: 0.0380859375 | E91: 2.717768994 | F91: 0.2173036983 | G91: 0.6564137344 | H91: 0.2160725984 | J91: -946 | K91: 0.003512972015 | L91: =SUM($K$13:$K$2061*K91:K2139) -> 0.2814283209 | N91: 8.888117588e-05 | O91: 0.0002495547006 | P91: =IF(ISNUMBER(O91),C91,SUM(OFFSET($O$13,0,0,$B$10)*OFFSET(P90,-$B$10+1,0,$B$10))) -> 0.2825981514 | R91: 0.0380859375 | S91: 2.777003173 | T91: -946 | U91: -0.0002814979138 | W91: 0 | X91: 0 | Y91: =SUM($X$13:$X$2061*X91:X2139) -> 0.2630301037 | Z91: 0.0380859375 | AA91: 2.806072911
A92: 79 | B92: 0.5551831757 | C92: 0.2810658831 | D92: 0.03857421875 | E92: 2.64830958 | F92: 0.2178402111 | G92: 0.6558292001 | H92: 0.2165953184 | J92: -945 | K92: 0.003507628077 | L92: =SUM($K$13:$K$2061*K92:K2140) -> 0.2798804498 | N92: 8.846536797e-05 | O92: 0.000258869474 | P92: =IF(ISNUMBER(O92),C92,SUM(OFFSET($O$13,0,0,$B$10)*OFFSET(P91,-$B$10+1,0,$B$10))) -> 0.2810658831 | R92: 0.03857421875 | S92: 2.692537207 | T92: -945 | U92: -0.0002909494091 | W92: 0 | X92: 0 | Y92: =SUM($X$13:$X$2061*X92:X2140) -> 0.2612840381 | Z92: 0.03857421875 | AA92: 2.733367169
A93: 80 | B93: 0.5527485677 | C93: 0.2795631356 | D93: 0.0390625 | E93: 2.570794587 | F93: 0.2183672714 | G93: 0.6552446203 | H93: 0.2171085499 | J93: -944 | K93: 0.003508119984 | L93: =SUM($K$13:$K$2061*K93:K2141) -> 0.2783614539 | N93: 8.809329309e-05 | O93: 0.0002686311249 | P93: =IF(ISNUMBER(O93),C93,SUM(OFFSET($O$13,0,0,$B$10)*OFFSET(P92,-$B$10+1,0,$B$10))) -> 0.2795631356 | R93: 0.0390625 | S93: 2.606581553 | T93: -944 | U93: -0.0002900696428 | W93: 0 | X93: 0 | Y93: =SUM($X$13:$X$2061*X93:X2141) -> 0.2596033654 | Z93: 0.0390625 | AA93: 2.656668619
A94: 81 | B94: 0.5503494273 | C94: 0.2780889367 | D94: 0.03955078125 | E94: 2.506142001 | F94: 0.2188851267 | G94: 0.654659995 | H94: 0.2176125398 | J94: -943 | K94: 0.003502745944 | L94: =SUM($K$13:$K$2061*K94:K2142) -> 0.2768716186 | N94: 8.776590619e-05 | O94: 0.0002787260292 | P94: =IF(ISNUMBER(O94),C94,SUM(OFFSET($O$13,0,0,$B$10)*OFFSET(P93,-$B$10+1,0,$B$10))) -> 0.2780889367 | R94: 0.03955078125 | S94: 2.52119633 | T94: -943 | U94: -0.0002996543208 | W94: 0 | X94: 0 | Y94: =SUM($X$13:$X$2061*X94:X2142) -> 0.2579234639 | Z94: 0.03955078125 | AA94: 2.585099043
A95: 82 | B95: 0.5479849093 | C95: 0.2766423592 | D95: 0.0400390625 | E95: 2.433744963 | F95: 0.2193940162 | G95: 0.6540753242 | H95: 0.218107526 | J95: -942 | K95: 0.003503281061 | L95: =SUM($K$13:$K$2061*K95:K2143) -> 0.2754087591 | N95: 8.748100699e-05 | O95: 0.0002889005987 | P95: =IF(ISNUMBER(O95),C95,SUM(OFFSET($O$13,0,0,$B$10)*OFFSET(P94,-$B$10+1,0,$B$10))) -> 0.2766423592 | R95: 0.0400390625 | S95: 2.437603322 | T95: -942 | U95: -0.0002986472684 | W95: 0 | X95: 0 | Y95: =SUM($X$13:$X$2061*X95:X2143) -> 0.2563062458 | Z95: 0.0400390625 | AA95: 2.51127556
A96: 83 | B96: 0.5456541955 | C96: 0.2752225173 | D96: 0.04052734375 | E96: 2.373516585 | F96: 0.2198941706 | G96: 0.6534906078 | H96: 0.2185937385 | J96: -941 | K96: 0.00349787627 | L96: =SUM($K$13:$K$2061*K96:K2144) -> 0.2739732473 | N96: 8.723769396e-05 | O96: 0.0002987116078 | P96: =IF(ISNUMBER(O96),C96,SUM(OFFSET($O$13,0,0,$B$10)*OFFSET(P95,-$B$10+1,0,$B$10))) -> 0.2752225173 | R96: 0.04052734375 | S96: 2.35773137 | T96: -941 | U96: -0.0003083653646 | W96: 0 | X96: 0 | Y96: =SUM($X$13:$X$2061*X96:X2144) -> 0.2546883698 | Z96: 0.04052734375 | AA96: 2.443883472
A97: 84 | B97: 0.5433564937 | C97: 0.2738285653 | D97: 0.041015625 | E97: 2.305836505 | F97: 0.2203858131 | G97: 0.652905846 | H97: 0.2190713995 | J97: -940 | K97: 0.00349845549 | L97: =SUM($K$13:$K$2061*K97:K2145) -> 0.27256298 | N97: 8.703172082e-05 | O97: 0.0003072007581 | P97: =IF(ISNUMBER(O97),C97,SUM(OFFSET($O$13,0,0,$B$10)*OFFSET(P96,-$B$10+1,0,$B$10))) -> 0.2738285653 | R97: 0.041015625 | S97: 2.282378298 | T97: -940 | U97: -0.0003072309642 | W97: 0 | X97: 0 | Y97: =SUM($X$13:$X$2061*X97:X2145) -> 0.2531306689 | Z97: 0.041015625 | AA97: 2.375802849
A98: 85 | B98: 0.5410910372 | C98: 0.2724596944 | D98: 0.04150390625 | E98: 2.24968403 | F98: 0.2208691589 | G98: 0.6523210386 | H98: 0.2195407235 | J98: -939 | K98: 0.003493018704 | L98: =SUM($K$13:$K$2061*K98:K2146) -> 0.2711784058 | N98: 8.685527203e-05 | O98: 0.0003131067343 | P98: =IF(ISNUMBER(O98),C98,SUM(OFFSET($O$13,0,0,$B$10)*OFFSET(P97,-$B$10+1,0,$B$10))) -> 0.2724596944 | R98: 0.04150390625 | S98: 2.212786038 | T98: -939 | U98: -0.0003170827146 | W98: 0 | X98: 0 | Y98: =SUM($X$13:$X$2061*X98:X2146) -> 0.2515710289 | Z98: 0.04150390625 | AA98: 2.315014616
A99: 86 | B99: 0.5388570833 | C99: 0.2711151312 | D99: 0.0419921875 | E99: 2.186355782 | F99: 0.2213444164 | G99: 0.6517361857 | H99: 0.2200019179 | J99: -938 | K99: 0.003493642571 | L99: =SUM($K$13:$K$2061*K99:K2147) -> 0.2698174942 | N99: 8.669180139e-05 | O99: 0.0003127443328 | P99: =IF(ISNUMBER(O99),C99,SUM(OFFSET($O$13,0,0,$B$10)*OFFSET(P98,-$B$10+1,0,$B$10))) -> 0.2711151312 | R99: 0.0419921875 | S99: 2.148993641 | T99: -938 | U99: -0.0003158209033 | W99: 0 | X99: 0 | Y99: =SUM($X$13:$X$2061*X99:X2147) -> 0.2500692372 | Z99: 0.0419921875 | AA99: 2.254424918
A100: 87 | B100: 0.5366539123 | C100: 0.2697941357 | D100: 0.04248046875 | E100: 2.133961789 | F100: 0.221811787 | G100: 0.6511512872 | H100: 0.220455183 | J100: -937 | K100: 0.003488172991 | L100: =SUM($K$13:$K$2061*K100:K2148) -> 0.2684807623 | N100: 8.652154258e-05 | O100: 0.0003044076468 | P100: =IF(ISNUMBER(O100),C100,SUM(OFFSET($O$13,0,0,$B$10)*OFFSET(P99,-$B$10+1,0,$B$10))) -> 0.2697941357 | R100: 0.04248046875 | S100: 2.091426779 | T100: -937 | U100: -0.0003258065457 | W100: 0 | X100: 0 | Y100: =SUM($X$13:$X$2061*X100:X2148) -> 0.2485643567 | Z100: 0.04248046875 | AA100: 2.20123922
A101: 88 | B101: 0.534480827 | C101: 0.2684959994 | D101: 0.04296875 | E101: 2.074652511 | F101: 0.2222714653 | G101: 0.6505663433 | H101: 0.2209007128 | J101: -936 | K101: 0.003488842453 | L101: =SUM($K$13:$K$2061*K101:K2149) -> 0.2671662445 | N101: 8.62753896e-05 | O101: 0.0002699530623 | P101: =IF(ISNUMBER(O101),C101,SUM(OFFSET($O$13,0,0,$B$10)*OFFSET(P100,-$B$10+1,0,$B$10))) -> 0.2684959994 | R101: 0.04296875 | S101: 2.039390588 | T101: -936 | U101: -0.000324417258 | W101: 0 | X101: 0 | Y101: =SUM($X$13:$X$2061*X101:X2149) -> 0.2471151613 | Z101: 0.04296875 | AA101: 2.148328549
A102: 89 | B102: 0.5323371517 | C102: 0.2672200434 | D102: 0.04345703125 | E102: 2.025727407 | F102: 0.2227236396 | G102: 0.6499813537 | H102: 0.2213386948 | J102: -935 | K102: 0.003483338554 | L102: =SUM($K$13:$K$2061*K102:K2150) -> 0.265874519 | N102: 8.593595443e-05 | O102: 0.0002271418984 | P102: =IF(ISNUMBER(O102),C102,SUM(OFFSET($O$13,0,0,$B$10)*OFFSET(P101,-$B$10+1,0,$B$10))) -> 0.2672200434 | R102: 0.04345703125 | S102: 1.992630108 | T102: -935 | U102: -0.0003345370339 | W102: 0 | X102: 0 | Y102: =SUM($X$13:$X$2061*X102:X2150) -> 0.2456618456 | Z102: 0.04345703125 | AA102: 2.102199568
A103: 90 | B103: 0.5302222312 | C103: 0.2659656171 | D103: 0.0439453125 | E103: 1.970133293 | F103: 0.2231684924 | G103: 0.6493963187 | H103: 0.2217693103 | J103: -934 | K103: 0.003484054499 | L103: =SUM($K$13:$K$2061*K103:K2151) -> 0.2646036784 | N103: 8.515368049e-05 | O103: 4.804646126e-05 | P103: =IF(ISNUMBER(O103),C103,SUM(OFFSET($O$13,0,0,$B$10)*OFFSET(P102,-$B$10+1,0,$B$10))) -> 0.2659656171 | R103: 0.0439453125 | S103: 1.94992011 | T103: -934 | U103: -0.0003330201994 | W103: 0 | X103: 0 | Y103: =SUM($X$13:$X$2061*X103:X2151) -> 0.2442622004 | Z103: 0.0439453125 | AA103: 2.055741398
A104: 91 | B104: 0.5281354303 | C104: 0.2647320968 | D104: 0.04443359375 | E104: 1.924412596 | F104: 0.2236061999 | G104: 0.648811238 | H104: 0.2221927348 | J104: -933 | K104: 0.00347851534 | L104: =SUM($K$13:$K$2061*K104:K2152) -> 0.2633543558 | N104: 8.432886778e-05 | O104: 2.402876667e-05 | P104: =IF(ISNUMBER(O104),C104,SUM(OFFSET($O$13,0,0,$B$10)*OFFSET(P103,-$B$10+1,0,$B$10))) -> 0.2647320968 | R104: 0.04443359375 | S104: 1.910579321 | T104: -933 | U104: -0.0003432743596 | W104: 0 | X104: 0 | Y104: =SUM($X$13:$X$2061*X104:X2152) -> 0.2428575094 | Z104: 0.04443359375 | AA104: 2.014919929
A105: 92 | B105: 0.5260761328 | C105: 0.263518884 | D105: 0.044921875 | E105: 1.872256054 | F105: 0.2240369329 | G105: 0.6482261118 | H105: 0.2226091384 | J105: -932 | K105: 0.003479278422 | L105: =SUM($K$13:$K$2061*K105:K2153) -> 0.2621246958 | N105: 8.092117973e-05 | O105: -0.001000084489 | P105: =IF(ISNUMBER(O105),C105,SUM(OFFSET($O$13,0,0,$B$10)*OFFSET(P104,-$B$10+1,0,$B$10))) -> 0.263518884 | R105: 0.044921875 | S105: 1.873143969 | T105: -932 | U105: -0.0003416298975 | W105: 0 | X105: 0 | Y105: =SUM($X$13:$X$2061*X105:X2153) -> 0.2415046112 | Z105: 0.044921875 | AA105: 1.972765852
A106: 93 | B106: 0.524043741 | C106: 0.2623254041 | D106: 0.04541015625 | E106: 1.829497973 | F106: 0.2244608568 | G106: 0.6476409401 | H106: 0.2230186855 | J106: -931 | K106: 0.003473703601 | L106: =SUM($K$13:$K$2061*K106:K2154) -> 0.2609153809 | N106: 8.092217871e-05 | O106: 0.0003279300262 | P106: =IF(ISNUMBER(O106),C106,SUM(OFFSET($O$13,0,0,$B$10)*OFFSET(P105,-$B$10+1,0,$B$10))) -> 0.2623254041 | R106: 0.04541015625 | S106: 1.836837392 | T106: -931 | U106: -0.0003520187174 | W106: 0 | X106: 0 | Y106: =SUM($X$13:$X$2061*X106:X2154) -> 0.2401458387 | Z106: 0.04541015625 | AA106: 1.934907671
A107: 94 | B107: 0.5220376748 | C107: 0.2611511056 | D107: 0.0458984375 | E107: 1.780525085 | F107: 0.2248781318 | G107: 0.6470557228 | H107: 0.2234215354 | J107: -930 | K107: 0.003474513409 | L107: =SUM($K$13:$K$2061*K107:K2155) -> 0.2597246027 | N107: 6.097986583e-05 | O107: -0.007532259962 | P107: =IF(ISNUMBER(O107),C107,SUM(OFFSET($O$13,0,0,$B$10)*OFFSET(P106,-$B$10+1,0,$B$10))) -> 0.2611511056 | R107: 0.0458984375 | S107: 1.800316917 | T107: -930 | U107: -0.0003502465227 | W107: 0 | X107: 0 | Y107: =SUM($X$13:$X$2061*X107:X2155) -> 0.2388371102 | Z107: 0.0458984375 | AA107: 1.894687105
